Workbook

Sheet Ismertető
A2: A munkalapok elnevezése ne legyen megváltoztatva!
A3: Oszlopokat vagy sorokat ne szúrjunk be és ne töröljünk ki!
A5: A "kod" munkalapon kell kitölteni:
B6: a csapatok nevét
B7: szektorok-rajthelyek megnevezését
B8: verseny nevét, idejét stb.
B9: szakaszok idejét vagy nevét
A11: A "szakasz1", "szakasz2" stb. munkalapokon kell bevinni az adatokat
B12: a csapatok előtti "+" jelre kattintva, a "H" oszloptól kezdve, vízszintesen haladva
B13: vesszővel kell írni a súlyokat (pl. 6,28)
B14: a "-" jelre kattintva bezáródik és csak az öszesen látszik
B15: a "2" gombra kattintva az összes kinyílik, az "1" gombra kattintva az összes bezáródik
B16: számolja az összes 10 kg feletti és az 5 kg feletti KOI pontyokat (csapatonként)
A18: Az "Összesen" munkalap mindig azt az állást mutatja, amennyi adat be van rögzítve a szakaszok munkalapokon.
B19: bármilyen sorrendbe be lehet rendezni (súly, darab, átlag)
B20: a teljes mezőnyt állítja sorrendbe
A23: "Össz_részletes" munkalap
B24: ezzel nem kell foglalkozni, csak a számolások miatt van
A26: Két diagram van, súly és darabszám kimutatás.
B27: mindig olyan sorrendben rakja rá a csapatokat, ahogyan az "összesen" munkalapon rendeztetve van.

Sheet kod
A1: Rajthely | B1: Elhelyezés | C1: Csapatnév
A2: A01 | B2: Gát, mélyvíz | C2: SBS - Halcatraz - TiZo Team | E2: XXI. PROFESSZIONÁLIS BOJLIS EURÓPA KUPA (EPBC)
A3: A02 | B3: Gát, mélyvíz | C3: Altstadt Carp Team | E3: XXXVI. MACONKA NEMZETKÖZI BOJLIS KUPA
A4: A03 | B4: Gát, mélyvíz | C4: Ferma De Crap Diosig | E4: Maconka, 2025.06.15. - 2025.06.20.
A5: A04 | B5: Gát, mélyvíz | C5: Bull Tackle
A6: A05 | B6: Gát, mélyvíz | C6: AHFSZ Fishing Team
A7: A06 | B7: Nyári kikötő, belső | C7: Black Carp Team | E7: 1. szakasz: 2025.06.15. 17:00 - 2025.06.16. 06:00
A8: A07 | B8: Nyári kikötő, közép | C8: USA & Mivado Carp Team | E8: 2. szakasz: 2025.06.16. 06:00 - 2025.06.16. 18:00
A9: A08 | B9: Nyári kikötő, külső | C9: Ózdi Sporthorgász Egyesület | E9: 3. szakasz: 2025.06.16. 18:00 - 2025.06.17. 06:00
A10: A09 | B10: I. sziget, bal külső | C10: Kártékony Carp Team | E10: 4. szakasz: 2025.06.17. 06:00 - 2025.06.17. 18:00
A11: A10 | B11: I. sziget, bal | C11: Team 5 Austria | E11: 5. szakasz: 2025.06.17. 18:00 - 2025.06.18. 06:00
A12: A11 | B12: I. sziget, bal közép | C12: Invader's Team Poland | E12: 6. szakasz: 2025.06.18. 06:00 - 2025.06.18. 18:00
A13: B01 | B13: Gát, közepes víz | C13: Tata Nitu Carp Team | E13: 7. szakasz: 2025.06.18. 18:00 - 2025.06.19. 06:00
A14: B02 | B14: Gát, közepes víz | C14: Slovakia Carp Team | E14: 8. szakasz: 2025.06.19. 06:00 - 2025.06.19. 18:00
A15: B03 | B15: Gát, közepes víz | C15: WLC Hungary | E15: 9. szakasz: 2025.06.19. 18:00 - 2025.06.20. 06:00
A16: B04 | B16: Gát, közepes víz | C16: Barfin Line NSD Bulgaria | E16: 10. szakasz: 2025.06.20. 06:00 - 2025.06.20. 15:00
A17: B05 | B17: Gát, közepes víz | C17: Lutra Carp Hunters
A18: B06 | B18: Gát, közepes víz | C18: Xtra Carp Team
A19: B07 | B19: I. sziget, jobb közép | C19: Elite Carp Team Brasov
A20: B08 | B20: I. sziget, jobb | C20: CT777 Varna Bulgaria
A21: B09 | B21: I. sziget, jobb külső | C21: Bait Maker Team
A22: B10 | B22: Felező-spicc, bal | C22: SBS - SziKo Team
A23: B11 | B23: Felező-spicc, közép | C23: Síp Carp Team
A24: C01 | B24: Gát, sekély víz | C24: Carp Fever Bulgaria
A25: C02 | B25: Gát, sekély víz | C25: Carpfriends Ennstal-Austria
A26: C03 | B26: Gát, sekély víz | C26: Carp Team Brasov
A27: C04 | B27: Gát, sekély víz | C27: As La Carp Team
A28: C05 | B28: Gát, sekély víz | C28: Bojlis Főnök - Bait Bait Carp Team
A29: C06 | B29: Felező-spicc, jobb | C29: Secret Of The Carp
A30: C07 | B30: II. sziget, bal | C30: Quick Baits
A31: C08 | B31: II. sziget, bal közép | C31: Carp Team Blankbrothers
A32: C09 | B32: II. sziget, közép | C32: Bait Bait Hungary
A33: C10 | B33: II. sziget, jobb közép | C33: Acroft Illusive Bait Me
A34: C11 | B34: II. sziget, jobb | C34: Vaslui Carp Team

Sheet szakasz1
A1: =IF(kod!E2>0,kod!E2,"") -> XXI. PROFESSZIONÁLIS BOJLIS EURÓPA KUPA (EPBC)
A2: =IF(kod!E3>0,kod!E3,"") -> XXXVI. MACONKA NEMZETKÖZI BOJLIS KUPA
A3: =IF(kod!E4>0,kod!E4,"") -> Maconka, 2025.06.15. - 2025.06.20.
A4: =IF(kod!E5>0,kod!E5,"") -> 
A5: =kod!E7 -> 1. szakasz: 2025.06.15. 17:00 - 2025.06.16. 06:00
A6: Rajthely | B6: Elhelyezés | C6: Csapatnév | D6: Kg | E6: Db | F6: Átlag | G6: BC | H6: BkC | I6: Faj | J6: 10-20 kg | K6: 20+ kg | L6: koi 5-10 kg | M6: koi 10+ kg
A7: A1 | B7: =kod!B2 -> Gát, mélyvíz | C7: =kod!C2 -> SBS - Halcatraz - TiZo Team | D7: =SUM(D8:D13) -> 29.35 | E7: =SUM(E8:E13) -> 2 | F7: =IF(E7=0,0,D7/E7) -> 14.675 | G7: =MAX(G8:G13) -> 17.85 | H7: =H11 -> 0 | I7: ÖSSZESEN | J7: =COUNTIFS($J8:$BB13,">9,99",$J8:$BB13,"<20") -> 2 | K7: =COUNTIFS($J8:$BB13,">19,99") -> 0 | L7: =COUNTIFS($J11:$BA11,">4,99",$J11:$BA11,"<9,99") -> 0 | M7: =COUNTIFS($J11:$BB11,">9,99") -> 0
A8: A1 | B8: =kod!B2 -> Gát, mélyvíz | C8: =kod!C2 -> SBS - Halcatraz - TiZo Team | D8: =SUM(J8:AZ8) -> 0 | E8: =COUNT(J8:AZ8) -> 0 | F8: =IF(E8=0,0,D8/E8) -> 0 | G8: =MAX(J8:BC8) -> 0 | I8: tükörponty
A9: A1 | B9: =kod!B2 -> Gát, mélyvíz | C9: =kod!C2 -> SBS - Halcatraz - TiZo Team | D9: 0 | E9: 0 | F9: 0 | G9: =MAX(J9:BC9) -> 0 | I9: tőponty
A10: A1 | B10: =kod!B2 -> Gát, mélyvíz | C10: =kod!C2 -> SBS - Halcatraz - TiZo Team | D10: 29.35 | E10: 2 | F10: 14.675 | G10: =MAX(J10:BC10) -> 17.85 | I10: nyurgaponty | J10: 17.85 | K10: 11.5
A11: A1 | B11: =kod!B2 -> Gát, mélyvíz | C11: =kod!C2 -> SBS - Halcatraz - TiZo Team | D11: 0 | E11: 0 | F11: 0 | H11: =MAX(J11:AZ11) -> 0 | I11: koi ponty
A12: A1 | B12: =kod!B2 -> Gát, mélyvíz | C12: =kod!C2 -> SBS - Halcatraz - TiZo Team | D12: 0 | E12: 0 | F12: 0 | G12: =MAX(J12:BC12) -> 0 | I12: amur
A13: A1 | B13: =kod!B2 -> Gát, mélyvíz | C13: =kod!C2 -> SBS - Halcatraz - TiZo Team | D13: 0 | E13: 0 | F13: 0 | G13: =MAX(J13:BC13) -> 0 | I13: fekete amur
A14: A2 | B14: =kod!B3 -> Gát, mélyvíz | C14: =kod!C3 -> Altstadt Carp Team | D14: =SUM(D15:D20) -> 0 | E14: =SUM(E15:E20) -> 0 | F14: 0 | G14: =MAX(G15:G20) -> 0 | H14: =H18 -> 0 | I14: ÖSSZESEN | J14: =COUNTIFS($J15:$BB20,">9,99",$J15:$BB20,"<20") -> 0 | K14: =COUNTIFS($J15:$BB20,">19,99") -> 0 | L14: =COUNTIFS($J18:$BA18,">4,99",$J18:$BA18,"<9,99") -> 0 | M14: =COUNTIFS($J18:$BB18,">9,99") -> 0
A15: A2 | B15: =kod!B3 -> Gát, mélyvíz | C15: =kod!C3 -> Altstadt Carp Team | D15: =SUM(J15:AZ15) -> 0 | E15: =COUNT(J15:AZ15) -> 0 | F15: 0 | G15: =MAX(J15:BC15) -> 0 | I15: tükörponty
A16: A2 | B16: =kod!B3 -> Gát, mélyvíz | C16: =kod!C3 -> Altstadt Carp Team | D16: 0 | E16: 0 | F16: 0 | G16: =MAX(J16:BC16) -> 0 | I16: tőponty
A17: A2 | B17: =kod!B3 -> Gát, mélyvíz | C17: =kod!C3 -> Altstadt Carp Team | D17: 0 | E17: 0 | F17: 0 | G17: =MAX(J17:BC17) -> 0 | I17: nyurgaponty
A18: A2 | B18: =kod!B3 -> Gát, mélyvíz | C18: =kod!C3 -> Altstadt Carp Team | D18: 0 | E18: 0 | F18: 0 | H18: =MAX(J18:AZ18) -> 0 | I18: koi ponty
A19: A2 | B19: =kod!B3 -> Gát, mélyvíz | C19: =kod!C3 -> Altstadt Carp Team | D19: 0 | E19: 0 | F19: 0 | G19: =MAX(J19:BC19) -> 0 | I19: amur
A20: A2 | B20: =kod!B3 -> Gát, mélyvíz | C20: =kod!C3 -> Altstadt Carp Team | D20: 0 | E20: 0 | F20: 0 | G20: =MAX(J20:BC20) -> 0 | I20: fekete amur
A21: A3 | B21: =kod!B4 -> Gát, mélyvíz | C21: =kod!C4 -> Ferma De Crap Diosig | D21: =SUM(D22:D27) -> 5.35 | E21: =SUM(E22:E27) -> 1 | F21: 5.35 | G21: =MAX(G22:G27) -> 5.35 | H21: =H25 -> 0 | I21: ÖSSZESEN | J21: =COUNTIFS($J22:$BB27,">9,99",$J22:$BB27,"<20") -> 0 | K21: =COUNTIFS($J22:$BB27,">19,99") -> 0 | L21: =COUNTIFS($J25:$BA25,">4,99",$J25:$BA25,"<9,99") -> 0 | M21: =COUNTIFS($J25:$BB25,">9,99") -> 0
A22: A3 | B22: =kod!B4 -> Gát, mélyvíz | C22: =kod!C4 -> Ferma De Crap Diosig | D22: =SUM(J22:AZ22) -> 0 | E22: =COUNT(J22:AZ22) -> 0 | F22: 0 | G22: =MAX(J22:BC22) -> 0 | I22: tükörponty
A23: A3 | B23: =kod!B4 -> Gát, mélyvíz | C23: =kod!C4 -> Ferma De Crap Diosig | D23: 5.35 | E23: 1 | F23: 5.35 | G23: =MAX(J23:BC23) -> 5.35 | I23: tőponty | J23: 5.35
A24: A3 | B24: =kod!B4 -> Gát, mélyvíz | C24: =kod!C4 -> Ferma De Crap Diosig | D24: 0 | E24: 0 | F24: 0 | G24: =MAX(J24:BC24) -> 0 | I24: nyurgaponty
A25: A3 | B25: =kod!B4 -> Gát, mélyvíz | C25: =kod!C4 -> Ferma De Crap Diosig | D25: 0 | E25: 0 | F25: 0 | H25: =MAX(J25:AZ25) -> 0 | I25: koi ponty
A26: A3 | B26: =kod!B4 -> Gát, mélyvíz | C26: =kod!C4 -> Ferma De Crap Diosig | D26: 0 | E26: 0 | F26: 0 | G26: =MAX(J26:BC26) -> 0 | I26: amur
A27: A3 | B27: =kod!B4 -> Gát, mélyvíz | C27: =kod!C4 -> Ferma De Crap Diosig | D27: 0 | E27: 0 | F27: 0 | G27: =MAX(J27:BC27) -> 0 | I27: fekete amur
A28: A4 | B28: =kod!B5 -> Gát, mélyvíz | C28: =kod!C5 -> Bull Tackle | D28: =SUM(D29:D34) -> 0 | E28: =SUM(E29:E34) -> 0 | F28: 0 | G28: =MAX(G29:G34) -> 0 | H28: =H32 -> 0 | I28: ÖSSZESEN | J28: =COUNTIFS($J29:$BB34,">9,99",$J29:$BB34,"<20") -> 0 | K28: =COUNTIFS($J29:$BB34,">19,99") -> 0 | L28: =COUNTIFS($J32:$BA32,">4,99",$J32:$BA32,"<9,99") -> 0 | M28: =COUNTIFS($J32:$BB32,">9,99") -> 0
A29: A4 | B29: =kod!B5 -> Gát, mélyvíz | C29: =kod!C5 -> Bull Tackle | D29: =SUM(J29:AZ29) -> 0 | E29: =COUNT(J29:AZ29) -> 0 | F29: 0 | G29: =MAX(J29:BC29) -> 0 | I29: tükörponty
A30: A4 | B30: =kod!B5 -> Gát, mélyvíz | C30: =kod!C5 -> Bull Tackle | D30: 0 | E30: 0 | F30: 0 | G30: =MAX(J30:BC30) -> 0 | I30: tőponty
A31: A4 | B31: =kod!B5 -> Gát, mélyvíz | C31: =kod!C5 -> Bull Tackle | D31: 0 | E31: 0 | F31: 0 | G31: =MAX(J31:BC31) -> 0 | I31: nyurgaponty
A32: A4 | B32: =kod!B5 -> Gát, mélyvíz | C32: =kod!C5 -> Bull Tackle | D32: 0 | E32: 0 | F32: 0 | H32: =MAX(J32:AZ32) -> 0 | I32: koi ponty
A33: A4 | B33: =kod!B5 -> Gát, mélyvíz | C33: =kod!C5 -> Bull Tackle | D33: 0 | E33: 0 | F33: 0 | G33: =MAX(J33:BC33) -> 0 | I33: amur
A34: A4 | B34: =kod!B5 -> Gát, mélyvíz | C34: =kod!C5 -> Bull Tackle | D34: 0 | E34: 0 | F34: 0 | G34: =MAX(J34:BC34) -> 0 | I34: fekete amur
A35: A5 | B35: =kod!B6 -> Gát, mélyvíz | C35: =kod!C6 -> AHFSZ Fishing Team | D35: =SUM(D36:D41) -> 23.775 | E35: =SUM(E36:E41) -> 2 | F35: 11.8875 | G35: =MAX(G36:G41) -> 12.775 | H35: =H39 -> 0 | I35: ÖSSZESEN | J35: =COUNTIFS($J36:$BB41,">9,99",$J36:$BB41,"<20") -> 2 | K35: =COUNTIFS($J36:$BB41,">19,99") -> 0 | L35: =COUNTIFS($J39:$BA39,">4,99",$J39:$BA39,"<9,99") -> 0 | M35: =COUNTIFS($J39:$BB39,">9,99") -> 0
A36: A5 | B36: =kod!B6 -> Gát, mélyvíz | C36: =kod!C6 -> AHFSZ Fishing Team | D36: =SUM(J36:AZ36) -> 0 | E36: =COUNT(J36:AZ36) -> 0 | F36: 0 | G36: =MAX(J36:BC36) -> 0 | I36: tükörponty
A37: A5 | B37: =kod!B6 -> Gát, mélyvíz | C37: =kod!C6 -> AHFSZ Fishing Team | D37: 0 | E37: 0 | F37: 0 | G37: =MAX(J37:BC37) -> 0 | I37: tőponty
A38: A5 | B38: =kod!B6 -> Gát, mélyvíz | C38: =kod!C6 -> AHFSZ Fishing Team | D38: 23.775 | E38: 2 | F38: 11.8875 | G38: =MAX(J38:BC38) -> 12.775 | I38: nyurgaponty | J38: 12.775 | K38: 11
A39: A5 | B39: =kod!B6 -> Gát, mélyvíz | C39: =kod!C6 -> AHFSZ Fishing Team | D39: 0 | E39: 0 | F39: 0 | H39: =MAX(J39:AZ39) -> 0 | I39: koi ponty
A40: A5 | B40: =kod!B6 -> Gát, mélyvíz | C40: =kod!C6 -> AHFSZ Fishing Team | D40: 0 | E40: 0 | F40: 0 | G40: =MAX(J40:BC40) -> 0 | I40: amur
A41: A5 | B41: =kod!B6 -> Gát, mélyvíz | C41: =kod!C6 -> AHFSZ Fishing Team | D41: 0 | E41: 0 | F41: 0 | G41: =MAX(J41:BC41) -> 0 | I41: fekete amur
A42: A6 | B42: =kod!B7 -> Nyári kikötő, belső | C42: =kod!C7 -> Black Carp Team | D42: =SUM(D43:D48) -> 24.925 | E42: =SUM(E43:E48) -> 2 | F42: 12.4625 | G42: =MAX(G43:G48) -> 14.05 | H42: =H46 -> 0 | I42: ÖSSZESEN | J42: =COUNTIFS($J43:$BB48,">9,99",$J43:$BB48,"<20") -> 2 | K42: =COUNTIFS($J43:$BB48,">19,99") -> 0 | L42: =COUNTIFS($J46:$BA46,">4,99",$J46:$BA46,"<9,99") -> 0 | M42: =COUNTIFS($J46:$BB46,">9,99") -> 0
A43: A6 | B43: =kod!B7 -> Nyári kikötő, belső | C43: =kod!C7 -> Black Carp Team | D43: =SUM(J43:AZ43) -> 14.05 | E43: =COUNT(J43:AZ43) -> 1 | F43: 14.05 | G43: =MAX(J43:BC43) -> 14.05 | I43: tükörponty | J43: 14.05
A44: A6 | B44: =kod!B7 -> Nyári kikötő, belső | C44: =kod!C7 -> Black Carp Team | D44: 0 | E44: 0 | F44: 0 | G44: =MAX(J44:BC44) -> 0 | I44: tőponty
A45: A6 | B45: =kod!B7 -> Nyári kikötő, belső | C45: =kod!C7 -> Black Carp Team | D45: 10.875 | E45: 1 | F45: 10.875 | G45: =MAX(J45:BC45) -> 10.875 | I45: nyurgaponty | J45: 10.875
A46: A6 | B46: =kod!B7 -> Nyári kikötő, belső | C46: =kod!C7 -> Black Carp Team | D46: 0 | E46: 0 | F46: 0 | H46: =MAX(J46:AZ46) -> 0 | I46: koi ponty
A47: A6 | B47: =kod!B7 -> Nyári kikötő, belső | C47: =kod!C7 -> Black Carp Team | D47: 0 | E47: 0 | F47: 0 | G47: =MAX(J47:BC47) -> 0 | I47: amur
A48: A6 | B48: =kod!B7 -> Nyári kikötő, belső | C48: =kod!C7 -> Black Carp Team | D48: 0 | E48: 0 | F48: 0 | G48: =MAX(J48:BC48) -> 0 | I48: fekete amur
A49: A7 | B49: =kod!B8 -> Nyári kikötő, közép | C49: =kod!C8 -> USA & Mivado Carp Team | D49: =SUM(D50:D55) -> 16.2 | E49: =SUM(E50:E55) -> 1 | F49: =IF(E49=0,0,D49/E49) -> 16.2 | G49: =MAX(G50:G55) -> 16.2 | H49: =H53 -> 0 | I49: ÖSSZESEN | J49: =COUNTIFS($J50:$BB55,">9,99",$J50:$BB55,"<20") -> 1 | K49: =COUNTIFS($J50:$BB55,">19,99") -> 0 | L49: =COUNTIFS($J53:$BA53,">4,99",$J53:$BA53,"<9,99") -> 0 | M49: =COUNTIFS($J53:$BB53,">9,99") -> 0
A50: A7 | B50: =kod!B8 -> Nyári kikötő, közép | C50: =kod!C8 -> USA & Mivado Carp Team | D50: =SUM(J50:AZ50) -> 16.2 | E50: =COUNT(J50:AZ50) -> 1 | F50: 16.2 | G50: =MAX(J50:BC50) -> 16.2 | I50: tükörponty | J50: 16.2
A51: A7 | B51: =kod!B8 -> Nyári kikötő, közép | C51: =kod!C8 -> USA & Mivado Carp Team | D51: 0 | E51: 0 | F51: 0 | G51: =MAX(J51:BC51) -> 0 | I51: tőponty
A52: A7 | B52: =kod!B8 -> Nyári kikötő, közép | C52: =kod!C8 -> USA & Mivado Carp Team | D52: 0 | E52: 0 | F52: 0 | G52: =MAX(J52:BC52) -> 0 | I52: nyurgaponty
A53: A7 | B53: =kod!B8 -> Nyári kikötő, közép | C53: =kod!C8 -> USA & Mivado Carp Team | D53: 0 | E53: 0 | F53: 0 | H53: =MAX(J53:AZ53) -> 0 | I53: koi ponty
A54: A7 | B54: =kod!B8 -> Nyári kikötő, közép | C54: =kod!C8 -> USA & Mivado Carp Team | D54: 0 | E54: 0 | F54: 0 | G54: =MAX(J54:BC54) -> 0 | I54: amur
A55: A7 | B55: =kod!B8 -> Nyári kikötő, közép | C55: =kod!C8 -> USA & Mivado Carp Team | D55: 0 | E55: 0 | F55: 0 | G55: =MAX(J55:BC55) -> 0 | I55: fekete amur
A56: A8 | B56: =kod!B9 -> Nyári kikötő, külső | C56: =kod!C9 -> Ózdi Sporthorgász Egyesület | D56: =SUM(D57:D62) -> 35.275 | E56: =SUM(E57:E62) -> 4 | F56: 8.81875 | G56: =MAX(G57:G62) -> 11.275 | H56: =H60 -> 0 | I56: ÖSSZESEN | J56: =COUNTIFS($J57:$BB62,">9,99",$J57:$BB62,"<20") -> 2 | K56: =COUNTIFS($J57:$BB62,">19,99") -> 0 | L56: =COUNTIFS($J60:$BA60,">4,99",$J60:$BA60,"<9,99") -> 0 | M56: =COUNTIFS($J60:$BB60,">9,99") -> 0
A57: A8 | B57: =kod!B9 -> Nyári kikötő, külső | C57: =kod!C9 -> Ózdi Sporthorgász Egyesület | D57: =SUM(J57:AZ57) -> 11.275 | E57: =COUNT(J57:AZ57) -> 1 | F57: 11.275 | G57: =MAX(J57:BC57) -> 11.275 | I57: tükörponty | J57: 11.275
A58: A8 | B58: =kod!B9 -> Nyári kikötő, külső | C58: =kod!C9 -> Ózdi Sporthorgász Egyesület | D58: 8.5 | E58: 1 | F58: 8.5 | G58: =MAX(J58:BC58) -> 8.5 | I58: tőponty | J58: 8.5
A59: A8 | B59: =kod!B9 -> Nyári kikötő, külső | C59: =kod!C9 -> Ózdi Sporthorgász Egyesület | D59: 10.3 | E59: 1 | F59: 10.3 | G59: =MAX(J59:BC59) -> 10.3 | I59: nyurgaponty | J59: 10.3
A60: A8 | B60: =kod!B9 -> Nyári kikötő, külső | C60: =kod!C9 -> Ózdi Sporthorgász Egyesület | D60: 0 | E60: 0 | F60: 0 | H60: =MAX(J60:AZ60) -> 0 | I60: koi ponty
A61: A8 | B61: =kod!B9 -> Nyári kikötő, külső | C61: =kod!C9 -> Ózdi Sporthorgász Egyesület | D61: 5.2 | E61: 1 | F61: 5.2 | G61: =MAX(J61:BC61) -> 5.2 | I61: amur | J61: 5.2
A62: A8 | B62: =kod!B9 -> Nyári kikötő, külső | C62: =kod!C9 -> Ózdi Sporthorgász Egyesület | D62: 0 | E62: 0 | F62: 0 | G62: =MAX(J62:BC62) -> 0 | I62: fekete amur
A63: A9 | B63: =kod!B10 -> I. sziget, bal külső | C63: =kod!C10 -> Kártékony Carp Team | D63: =SUM(D64:D69) -> 72.1 | E63: =SUM(E64:E69) -> 7 | F63: 10.3 | G63: =MAX(G64:G69) -> 16.325 | H63: =H67 -> 0 | I63: ÖSSZESEN | J63: =COUNTIFS($J64:$BB69,">9,99",$J64:$BB69,"<20") -> 4 | K63: =COUNTIFS($J64:$BB69,">19,99") -> 0 | L63: =COUNTIFS($J67:$BA67,">4,99",$J67:$BA67,"<9,99") -> 0 | M63: =COUNTIFS($J67:$BB67,">9,99") -> 0
A64: A9 | B64: =kod!B10 -> I. sziget, bal külső | C64: =kod!C10 -> Kártékony Carp Team | D64: =SUM(J64:AZ64) -> 0 | E64: =COUNT(J64:AZ64) -> 0 | F64: 0 | G64: =MAX(J64:BC64) -> 0 | I64: tükörponty
A65: A9 | B65: =kod!B10 -> I. sziget, bal külső | C65: =kod!C10 -> Kártékony Carp Team | D65: 30.75 | E65: 4 | F65: 7.6875 | G65: =MAX(J65:BC65) -> 14.925 | I65: tőponty | J65: 14.925 | K65: 4.725 | L65: 7.775 | M65: 3.325
A66: A9 | B66: =kod!B10 -> I. sziget, bal külső | C66: =kod!C10 -> Kártékony Carp Team | D66: 41.35 | E66: 3 | F66: 13.78333333 | G66: =MAX(J66:BC66) -> 16.325 | I66: nyurgaponty | J66: 11.625 | K66: 16.325 | L66: 13.4
A67: A9 | B67: =kod!B10 -> I. sziget, bal külső | C67: =kod!C10 -> Kártékony Carp Team | D67: 0 | E67: 0 | F67: 0 | H67: =MAX(J67:AZ67) -> 0 | I67: koi ponty
A68: A9 | B68: =kod!B10 -> I. sziget, bal külső | C68: =kod!C10 -> Kártékony Carp Team | D68: 0 | E68: 0 | F68: 0 | G68: =MAX(J68:BC68) -> 0 | I68: amur
A69: A9 | B69: =kod!B10 -> I. sziget, bal külső | C69: =kod!C10 -> Kártékony Carp Team | D69: 0 | E69: 0 | F69: 0 | G69: =MAX(J69:BC69) -> 0 | I69: fekete amur
A70: A10 | B70: =kod!B11 -> I. sziget, bal | C70: =kod!C11 -> Team 5 Austria | D70: =SUM(D71:D76) -> 0 | E70: =SUM(E71:E76) -> 0 | F70: 0 | G70: =MAX(G71:G76) -> 0 | H70: =H74 -> 0 | I70: ÖSSZESEN | J70: =COUNTIFS($J71:$BB76,">9,99",$J71:$BB76,"<20") -> 0 | K70: =COUNTIFS($J71:$BB76,">19,99") -> 0 | L70: =COUNTIFS($J74:$BA74,">4,99",$J74:$BA74,"<9,99") -> 0 | M70: =COUNTIFS($J74:$BB74,">9,99") -> 0
A71: A10 | B71: =kod!B11 -> I. sziget, bal | C71: =kod!C11 -> Team 5 Austria | D71: =SUM(J71:AZ71) -> 0 | E71: =COUNT(J71:AZ71) -> 0 | F71: 0 | G71: =MAX(J71:BC71) -> 0 | I71: tükörponty
A72: A10 | B72: =kod!B11 -> I. sziget, bal | C72: =kod!C11 -> Team 5 Austria | D72: 0 | E72: 0 | F72: 0 | G72: =MAX(J72:BC72) -> 0 | I72: tőponty
A73: A10 | B73: =kod!B11 -> I. sziget, bal | C73: =kod!C11 -> Team 5 Austria | D73: 0 | E73: 0 | F73: 0 | G73: =MAX(J73:BC73) -> 0 | I73: nyurgaponty
A74: A10 | B74: =kod!B11 -> I. sziget, bal | C74: =kod!C11 -> Team 5 Austria | D74: 0 | E74: 0 | F74: 0 | H74: =MAX(J74:AZ74) -> 0 | I74: koi ponty
A75: A10 | B75: =kod!B11 -> I. sziget, bal | C75: =kod!C11 -> Team 5 Austria | D75: 0 | E75: 0 | F75: 0 | G75: =MAX(J75:BC75) -> 0 | I75: amur
A76: A10 | B76: =kod!B11 -> I. sziget, bal | C76: =kod!C11 -> Team 5 Austria | D76: 0 | E76: 0 | F76: 0 | G76: =MAX(J76:BC76) -> 0 | I76: fekete amur
A77: A11 | B77: =kod!B12 -> I. sziget, bal közép | C77: =kod!C12 -> Invader's Team Poland | D77: =SUM(D78:D83) -> 0 | E77: =SUM(E78:E83) -> 0 | F77: 0 | G77: =MAX(G78:G83) -> 0 | H77: =H81 -> 0 | I77: ÖSSZESEN | J77: =COUNTIFS($J78:$BB83,">9,99",$J78:$BB83,"<20") -> 0 | K77: =COUNTIFS($J78:$BB83,">19,99") -> 0 | L77: =COUNTIFS($J81:$BA81,">4,99",$J81:$BA81,"<9,99") -> 0 | M77: =COUNTIFS($J81:$BB81,">9,99") -> 0
A78: A11 | B78: =kod!B12 -> I. sziget, bal közép | C78: =kod!C12 -> Invader's Team Poland | D78: =SUM(J78:AZ78) -> 0 | E78: =COUNT(J78:AZ78) -> 0 | F78: 0 | G78: =MAX(J78:BC78) -> 0 | I78: tükörponty
A79: A11 | B79: =kod!B12 -> I. sziget, bal közép | C79: =kod!C12 -> Invader's Team Poland | D79: 0 | E79: 0 | F79: 0 | G79: =MAX(J79:BC79) -> 0 | I79: tőponty
A80: A11 | B80: =kod!B12 -> I. sziget, bal közép | C80: =kod!C12 -> Invader's Team Poland | D80: 0 | E80: 0 | F80: 0 | G80: =MAX(J80:BC80) -> 0 | I80: nyurgaponty
A81: A11 | B81: =kod!B12 -> I. sziget, bal közép | C81: =kod!C12 -> Invader's Team Poland | D81: 0 | E81: 0 | F81: 0 | H81: =MAX(J81:AZ81) -> 0 | I81: koi ponty
A82: A11 | B82: =kod!B12 -> I. sziget, bal közép | C82: =kod!C12 -> Invader's Team Poland | D82: 0 | E82: 0 | F82: 0 | G82: =MAX(J82:BC82) -> 0 | I82: amur
A83: A11 | B83: =kod!B12 -> I. sziget, bal közép | C83: =kod!C12 -> Invader's Team Poland | D83: 0 | E83: 0 | F83: 0 | G83: =MAX(J83:BC83) -> 0 | I83: fekete amur
A84: B1 | B84: =kod!B13 -> Gát, közepes víz | C84: =kod!C13 -> Tata Nitu Carp Team | D84: =SUM(D85:D90) -> 66.625 | E84: =SUM(E85:E90) -> 10 | F84: =IF(E84=0,0,D84/E84) -> 6.6625 | G84: =MAX(G85:G90) -> 12.575 | H84: =H88 -> 0 | I84: ÖSSZESEN | J84: =COUNTIFS($J85:$BB90,">9,99",$J85:$BB90,"<20") -> 1 | K84: =COUNTIFS($J85:$BB90,">19,99") -> 0 | L84: =COUNTIFS($J88:$BA88,">4,99",$J88:$BA88,"<9,99") -> 0 | M84: =COUNTIFS($J88:$BB88,">9,99") -> 0
A85: B1 | B85: =kod!B13 -> Gát, közepes víz | C85: =kod!C13 -> Tata Nitu Carp Team | D85: =SUM(J85:AZ85) -> 5.15 | E85: =COUNT(J85:AZ85) -> 1 | F85: =IF(E85=0,0,D85/E85) -> 5.15 | G85: =MAX(J85:BC85) -> 5.15 | I85: tükörponty | J85: 5.15
A86: B1 | B86: =kod!B13 -> Gát, közepes víz | C86: =kod!C13 -> Tata Nitu Carp Team | D86: 43.825 | E86: 7 | F86: 6.260714286 | G86: =MAX(J86:BC86) -> 9.7 | I86: tőponty | J86: 1.125 | K86: 8.325 | L86: 9.7 | M86: 7.225 | N86: 6.625 | O86: 6.7 | P86: 4.125
A87: B1 | B87: =kod!B13 -> Gát, közepes víz | C87: =kod!C13 -> Tata Nitu Carp Team | D87: 12.575 | E87: 1 | F87: 12.575 | G87: =MAX(J87:BC87) -> 12.575 | I87: nyurgaponty | J87: 12.575
A88: B1 | B88: =kod!B13 -> Gát, közepes víz | C88: =kod!C13 -> Tata Nitu Carp Team | D88: 0 | E88: 0 | F88: 0 | H88: =MAX(J88:AZ88) -> 0 | I88: koi ponty
A89: B1 | B89: =kod!B13 -> Gát, közepes víz | C89: =kod!C13 -> Tata Nitu Carp Team | D89: 0 | E89: 0 | F89: 0 | G89: =MAX(J89:BC89) -> 0 | I89: amur
A90: B1 | B90: =kod!B13 -> Gát, közepes víz | C90: =kod!C13 -> Tata Nitu Carp Team | D90: 5.075 | E90: 1 | F90: 5.075 | G90: =MAX(J90:BC90) -> 5.075 | I90: fekete amur | J90: 5.075
A91: B2 | B91: =kod!B14 -> Gát, közepes víz | C91: =kod!C14 -> Slovakia Carp Team | D91: =SUM(D92:D97) -> 0 | E91: =SUM(E92:E97) -> 0 | F91: 0 | G91: =MAX(G92:G97) -> 0 | H91: =H95 -> 0 | I91: ÖSSZESEN | J91: =COUNTIFS($J92:$BB97,">9,99",$J92:$BB97,"<20") -> 0 | K91: =COUNTIFS($J92:$BB97,">19,99") -> 0 | L91: =COUNTIFS($J95:$BA95,">4,99",$J95:$BA95,"<9,99") -> 0 | M91: =COUNTIFS($J95:$BB95,">9,99") -> 0
A92: B2 | B92: =kod!B14 -> Gát, közepes víz | C92: =kod!C14 -> Slovakia Carp Team | D92: =SUM(J92:AZ92) -> 0 | E92: =COUNT(J92:AZ92) -> 0 | F92: 0 | G92: =MAX(J92:BC92) -> 0 | I92: tükörponty
A93: B2 | B93: =kod!B14 -> Gát, közepes víz | C93: =kod!C14 -> Slovakia Carp Team | D93: 0 | E93: 0 | F93: 0 | G93: =MAX(J93:BC93) -> 0 | I93: tőponty
A94: B2 | B94: =kod!B14 -> Gát, közepes víz | C94: =kod!C14 -> Slovakia Carp Team | D94: 0 | E94: 0 | F94: 0 | G94: =MAX(J94:BC94) -> 0 | I94: nyurgaponty
A95: B2 | B95: =kod!B14 -> Gát, közepes víz | C95: =kod!C14 -> Slovakia Carp Team | D95: 0 | E95: 0 | F95: 0 | H95: =MAX(J95:AZ95) -> 0 | I95: koi ponty
A96: B2 | B96: =kod!B14 -> Gát, közepes víz | C96: =kod!C14 -> Slovakia Carp Team | D96: 0 | E96: 0 | F96: 0 | G96: =MAX(J96:BC96) -> 0 | I96: amur
A97: B2 | B97: =kod!B14 -> Gát, közepes víz | C97: =kod!C14 -> Slovakia Carp Team | D97: 0 | E97: 0 | F97: 0 | G97: =MAX(J97:BC97) -> 0 | I97: fekete amur
A98: B3 | B98: =kod!B15 -> Gát, közepes víz | C98: =kod!C15 -> WLC Hungary | D98: =SUM(D99:D104) -> 20.325 | E98: =SUM(E99:E104) -> 2 | F98: 10.1625 | G98: =MAX(G99:G104) -> 13.6 | H98: =H102 -> 0 | I98: ÖSSZESEN | J98: =COUNTIFS($J99:$BB104,">9,99",$J99:$BB104,"<20") -> 1 | K98: =COUNTIFS($J99:$BB104,">19,99") -> 0 | L98: =COUNTIFS($J102:$BA102,">4,99",$J102:$BA102,"<9,99") -> 0 | M98: =COUNTIFS($J102:$BB102,">9,99") -> 0
A99: B3 | B99: =kod!B15 -> Gát, közepes víz | C99: =kod!C15 -> WLC Hungary | D99: =SUM(J99:AZ99) -> 0 | E99: =COUNT(J99:AZ99) -> 0 | F99: 0 | G99: =MAX(J99:BC99) -> 0 | I99: tükörponty
A100: B3 | B100: =kod!B15 -> Gát, közepes víz | C100: =kod!C15 -> WLC Hungary | D100: 6.725 | E100: 1 | F100: 6.725 | G100: =MAX(J100:BC100) -> 6.725 | I100: tőponty | J100: 6.725
A101: B3 | B101: =kod!B15 -> Gát, közepes víz | C101: =kod!C15 -> WLC Hungary | D101: 13.6 | E101: 1 | F101: 13.6 | G101: =MAX(J101:BC101) -> 13.6 | I101: nyurgaponty | J101: 13.6
A102: B3 | B102: =kod!B15 -> Gát, közepes víz | C102: =kod!C15 -> WLC Hungary | D102: 0 | E102: 0 | F102: 0 | H102: =MAX(J102:AZ102) -> 0 | I102: koi ponty
A103: B3 | B103: =kod!B15 -> Gát, közepes víz | C103: =kod!C15 -> WLC Hungary | D103: 0 | E103: 0 | F103: 0 | G103: =MAX(J103:BC103) -> 0 | I103: amur
A104: B3 | B104: =kod!B15 -> Gát, közepes víz | C104: =kod!C15 -> WLC Hungary | D104: 0 | E104: 0 | F104: 0 | G104: =MAX(J104:BC104) -> 0 | I104: fekete amur
A105: B4 | B105: =kod!B16 -> Gát, közepes víz | C105: =kod!C16 -> Barfin Line NSD Bulgaria | D105: =SUM(D106:D111) -> 11.1 | E105: =SUM(E106:E111) -> 1 | F105: 11.1 | G105: =MAX(G106:G111) -> 11.1 | H105: =H109 -> 0 | I105: ÖSSZESEN | J105: =COUNTIFS($J106:$BB111,">9,99",$J106:$BB111,"<20") -> 1 | K105: =COUNTIFS($J106:$BB111,">19,99") -> 0 | L105: =COUNTIFS($J109:$BA109,">4,99",$J109:$BA109,"<9,99") -> 0 | M105: =COUNTIFS($J109:$BB109,">9,99") -> 0
A106: B4 | B106: =kod!B16 -> Gát, közepes víz | C106: =kod!C16 -> Barfin Line NSD Bulgaria | D106: =SUM(J106:AZ106) -> 11.1 | E106: =COUNT(J106:AZ106) -> 1 | F106: 11.1 | G106: =MAX(J106:BC106) -> 11.1 | I106: tükörponty | J106: 11.1
A107: B4 | B107: =kod!B16 -> Gát, közepes víz | C107: =kod!C16 -> Barfin Line NSD Bulgaria | D107: 0 | E107: 0 | F107: 0 | G107: =MAX(J107:BC107) -> 0 | I107: tőponty
A108: B4 | B108: =kod!B16 -> Gát, közepes víz | C108: =kod!C16 -> Barfin Line NSD Bulgaria | D108: 0 | E108: 0 | F108: 0 | G108: =MAX(J108:BC108) -> 0 | I108: nyurgaponty
A109: B4 | B109: =kod!B16 -> Gát, közepes víz | C109: =kod!C16 -> Barfin Line NSD Bulgaria | D109: 0 | E109: 0 | F109: 0 | H109: =MAX(J109:AZ109) -> 0 | I109: koi ponty
A110: B4 | B110: =kod!B16 -> Gát, közepes víz | C110: =kod!C16 -> Barfin Line NSD Bulgaria | D110: 0 | E110: 0 | F110: 0 | G110: =MAX(J110:BC110) -> 0 | I110: amur
A111: B4 | B111: =kod!B16 -> Gát, közepes víz | C111: =kod!C16 -> Barfin Line NSD Bulgaria | D111: 0 | E111: 0 | F111: 0 | G111: =MAX(J111:BC111) -> 0 | I111: fekete amur
A112: B5 | B112: =kod!B17 -> Gát, közepes víz | C112: =kod!C17 -> Lutra Carp Hunters | D112: =SUM(D113:D118) -> 21.3 | E112: =SUM(E113:E118) -> 2 | F112: 10.65 | G112: =MAX(G113:G118) -> 13.725 | H112: =H116 -> 0 | I112: ÖSSZESEN | J112: =COUNTIFS($J113:$BB118,">9,99",$J113:$BB118,"<20") -> 1 | K112: =COUNTIFS($J113:$BB118,">19,99") -> 0 | L112: =COUNTIFS($J116:$BA116,">4,99",$J116:$BA116,"<9,99") -> 0 | M112: =COUNTIFS($J116:$BB116,">9,99") -> 0
A113: B5 | B113: =kod!B17 -> Gát, közepes víz | C113: =kod!C17 -> Lutra Carp Hunters | D113: =SUM(J113:AZ113) -> 13.725 | E113: =COUNT(J113:AZ113) -> 1 | F113: 13.725 | G113: =MAX(J113:BC113) -> 13.725 | I113: tükörponty | J113: 13.725
A114: B5 | B114: =kod!B17 -> Gát, közepes víz | C114: =kod!C17 -> Lutra Carp Hunters | D114: 0 | E114: 0 | F114: 0 | G114: =MAX(J114:BC114) -> 0 | I114: tőponty
A115: B5 | B115: =kod!B17 -> Gát, közepes víz | C115: =kod!C17 -> Lutra Carp Hunters | D115: 7.575 | E115: 1 | F115: 7.575 | G115: =MAX(J115:BC115) -> 7.575 | I115: nyurgaponty | J115: 7.575
A116: B5 | B116: =kod!B17 -> Gát, közepes víz | C116: =kod!C17 -> Lutra Carp Hunters | D116: 0 | E116: 0 | F116: 0 | H116: =MAX(J116:AZ116) -> 0 | I116: koi ponty
A117: B5 | B117: =kod!B17 -> Gát, közepes víz | C117: =kod!C17 -> Lutra Carp Hunters | D117: 0 | E117: 0 | F117: 0 | G117: =MAX(J117:BC117) -> 0 | I117: amur
A118: B5 | B118: =kod!B17 -> Gát, közepes víz | C118: =kod!C17 -> Lutra Carp Hunters | D118: 0 | E118: 0 | F118: 0 | G118: =MAX(J118:BC118) -> 0 | I118: fekete amur
A119: B6 | B119: =kod!B18 -> Gát, közepes víz | C119: =kod!C18 -> Xtra Carp Team | D119: =SUM(D120:D125) -> 10.5 | E119: =SUM(E120:E125) -> 1 | F119: 10.5 | G119: =MAX(G120:G125) -> 10.5 | H119: =H123 -> 0 | I119: ÖSSZESEN | J119: =COUNTIFS($J120:$BB125,">9,99",$J120:$BB125,"<20") -> 1 | K119: =COUNTIFS($J120:$BB125,">19,99") -> 0 | L119: =COUNTIFS($J123:$BA123,">4,99",$J123:$BA123,"<9,99") -> 0 | M119: =COUNTIFS($J123:$BB123,">9,99") -> 0
A120: B6 | B120: =kod!B18 -> Gát, közepes víz | C120: =kod!C18 -> Xtra Carp Team | D120: =SUM(J120:AZ120) -> 0 | E120: =COUNT(J120:AZ120) -> 0 | F120: 0 | G120: =MAX(J120:BC120) -> 0 | I120: tükörponty
A121: B6 | B121: =kod!B18 -> Gát, közepes víz | C121: =kod!C18 -> Xtra Carp Team | D121: 0 | E121: 0 | F121: 0 | G121: =MAX(J121:BC121) -> 0 | I121: tőponty
A122: B6 | B122: =kod!B18 -> Gát, közepes víz | C122: =kod!C18 -> Xtra Carp Team | D122: 10.5 | E122: 1 | F122: 10.5 | G122: =MAX(J122:BC122) -> 10.5 | I122: nyurgaponty | J122: 10.5
A123: B6 | B123: =kod!B18 -> Gát, közepes víz | C123: =kod!C18 -> Xtra Carp Team | D123: 0 | E123: 0 | F123: 0 | H123: =MAX(J123:AZ123) -> 0 | I123: koi ponty
A124: B6 | B124: =kod!B18 -> Gát, közepes víz | C124: =kod!C18 -> Xtra Carp Team | D124: 0 | E124: 0 | F124: 0 | G124: =MAX(J124:BC124) -> 0 | I124: amur
A125: B6 | B125: =kod!B18 -> Gát, közepes víz | C125: =kod!C18 -> Xtra Carp Team | D125: 0 | E125: 0 | F125: 0 | G125: =MAX(J125:BC125) -> 0 | I125: fekete amur
A126: B7 | B126: =kod!B19 -> I. sziget, jobb közép | C126: =kod!C19 -> Elite Carp Team Brasov | D126: =SUM(D127:D132) -> 77.025 | E126: =SUM(E127:E132) -> 8 | F126: 9.628125 | G126: =MAX(G127:G132) -> 15.725 | H126: =H130 -> 0 | I126: ÖSSZESEN | J126: =COUNTIFS($J127:$BB132,">9,99",$J127:$BB132,"<20") -> 3 | K126: =COUNTIFS($J127:$BB132,">19,99") -> 0 | L126: =COUNTIFS($J130:$BA130,">4,99",$J130:$BA130,"<9,99") -> 0 | M126: =COUNTIFS($J130:$BB130,">9,99") -> 0
A127: B7 | B127: =kod!B19 -> I. sziget, jobb közép | C127: =kod!C19 -> Elite Carp Team Brasov | D127: =SUM(J127:AZ127) -> 19.075 | E127: =COUNT(J127:AZ127) -> 2 | F127: 9.5375 | G127: =MAX(J127:BC127) -> 10.95 | I127: tükörponty | J127: 10.95 | K127: 8.125
A128: B7 | B128: =kod!B19 -> I. sziget, jobb közép | C128: =kod!C19 -> Elite Carp Team Brasov | D128: 42.225 | E128: 5 | F128: 8.445 | G128: =MAX(J128:BC128) -> 10.975 | I128: tőponty | J128: 10.975 | K128: 7 | L128: 9.75 | M128: 7.4 | N128: 7.1
A129: B7 | B129: =kod!B19 -> I. sziget, jobb közép | C129: =kod!C19 -> Elite Carp Team Brasov | D129: 15.725 | E129: 1 | F129: 15.725 | G129: =MAX(J129:BC129) -> 15.725 | I129: nyurgaponty | J129: 15.725
A130: B7 | B130: =kod!B19 -> I. sziget, jobb közép | C130: =kod!C19 -> Elite Carp Team Brasov | D130: 0 | E130: 0 | F130: 0 | H130: =MAX(J130:AZ130) -> 0 | I130: koi ponty
A131: B7 | B131: =kod!B19 -> I. sziget, jobb közép | C131: =kod!C19 -> Elite Carp Team Brasov | D131: 0 | E131: 0 | F131: 0 | G131: =MAX(J131:BC131) -> 0 | I131: amur
A132: B7 | B132: =kod!B19 -> I. sziget, jobb közép | C132: =kod!C19 -> Elite Carp Team Brasov | D132: 0 | E132: 0 | F132: 0 | G132: =MAX(J132:BC132) -> 0 | I132: fekete amur
A133: B8 | B133: =kod!B20 -> I. sziget, jobb | C133: =kod!C20 -> CT777 Varna Bulgaria | D133: =SUM(D134:D139) -> 38.15 | E133: =SUM(E134:E139) -> 4 | F133: 9.5375 | G133: =MAX(G134:G139) -> 11.975 | H133: =H137 -> 0 | I133: ÖSSZESEN | J133: =COUNTIFS($J134:$BB139,">9,99",$J134:$BB139,"<20") -> 2 | K133: =COUNTIFS($J134:$BB139,">19,99") -> 0 | L133: =COUNTIFS($J137:$BA137,">4,99",$J137:$BA137,"<9,99") -> 0 | M133: =COUNTIFS($J137:$BB137,">9,99") -> 0
A134: B8 | B134: =kod!B20 -> I. sziget, jobb | C134: =kod!C20 -> CT777 Varna Bulgaria | D134: =SUM(J134:AZ134) -> 7.95 | E134: =COUNT(J134:AZ134) -> 1 | F134: 7.95 | G134: =MAX(J134:BC134) -> 7.95 | I134: tükörponty | J134: 7.95
A135: B8 | B135: =kod!B20 -> I. sziget, jobb | C135: =kod!C20 -> CT777 Varna Bulgaria | D135: 30.2 | E135: 3 | F135: 10.06666667 | G135: =MAX(J135:BC135) -> 11.975 | I135: tőponty | J135: 7.775 | K135: 11.975 | L135: 10.45
A136: B8 | B136: =kod!B20 -> I. sziget, jobb | C136: =kod!C20 -> CT777 Varna Bulgaria | D136: 0 | E136: 0 | F136: 0 | G136: =MAX(J136:BC136) -> 0 | I136: nyurgaponty
A137: B8 | B137: =kod!B20 -> I. sziget, jobb | C137: =kod!C20 -> CT777 Varna Bulgaria | D137: 0 | E137: 0 | F137: 0 | H137: =MAX(J137:AZ137) -> 0 | I137: koi ponty
A138: B8 | B138: =kod!B20 -> I. sziget, jobb | C138: =kod!C20 -> CT777 Varna Bulgaria | D138: 0 | E138: 0 | F138: 0 | G138: =MAX(J138:BC138) -> 0 | I138: amur
A139: B8 | B139: =kod!B20 -> I. sziget, jobb | C139: =kod!C20 -> CT777 Varna Bulgaria | D139: 0 | E139: 0 | F139: 0 | G139: =MAX(J139:BC139) -> 0 | I139: fekete amur
A140: B9 | B140: =kod!B21 -> I. sziget, jobb külső | C140: =kod!C21 -> Bait Maker Team | D140: =SUM(D141:D146) -> 54.35 | E140: =SUM(E141:E146) -> 10 | F140: 5.435 | G140: =MAX(G141:G146) -> 7.075 | H140: =H144 -> 0 | I140: ÖSSZESEN | J140: =COUNTIFS($J141:$BB146,">9,99",$J141:$BB146,"<20") -> 0 | K140: =COUNTIFS($J141:$BB146,">19,99") -> 0 | L140: =COUNTIFS($J144:$BA144,">4,99",$J144:$BA144,"<9,99") -> 0 | M140: =COUNTIFS($J144:$BB144,">9,99") -> 0
A141: B9 | B141: =kod!B21 -> I. sziget, jobb külső | C141: =kod!C21 -> Bait Maker Team | D141: =SUM(J141:AZ141) -> 6.6 | E141: =COUNT(J141:AZ141) -> 1 | F141: =IF(E141=0,0,D141/E141) -> 6.6 | G141: =MAX(J141:BC141) -> 6.6 | I141: tükörponty | J141: 6.6
A142: B9 | B142: =kod!B21 -> I. sziget, jobb külső | C142: =kod!C21 -> Bait Maker Team | D142: 44.975 | E142: 8 | F142: 5.621875 | G142: =MAX(J142:BC142) -> 7.075 | I142: tőponty | J142: 6.925 | K142: 5.85 | L142: 5.025 | M142: 6.35 | N142: 2.35 | O142: 7.075 | P142: 5.15 | Q142: 6.25
A143: B9 | B143: =kod!B21 -> I. sziget, jobb külső | C143: =kod!C21 -> Bait Maker Team | D143: 0 | E143: 0 | F143: 0 | G143: =MAX(J143:BC143) -> 0 | I143: nyurgaponty
A144: B9 | B144: =kod!B21 -> I. sziget, jobb külső | C144: =kod!C21 -> Bait Maker Team | D144: 0 | E144: 0 | F144: 0 | H144: =MAX(J144:AZ144) -> 0 | I144: koi ponty
A145: B9 | B145: =kod!B21 -> I. sziget, jobb külső | C145: =kod!C21 -> Bait Maker Team | D145: 0 | E145: 0 | F145: 0 | G145: =MAX(J145:BC145) -> 0 | I145: amur
A146: B9 | B146: =kod!B21 -> I. sziget, jobb külső | C146: =kod!C21 -> Bait Maker Team | D146: 2.775 | E146: 1 | F146: 2.775 | G146: =MAX(J146:BC146) -> 2.775 | I146: fekete amur | J146: 2.775
A147: B10 | B147: =kod!B22 -> Felező-spicc, bal | C147: =kod!C22 -> SBS - SziKo Team | D147: =SUM(D148:D153) -> 24.925 | E147: =SUM(E148:E153) -> 3 | F147: 8.308333333 | G147: =MAX(G148:G153) -> 11.425 | H147: =H151 -> 0 | I147: ÖSSZESEN | J147: =COUNTIFS($J148:$BB153,">9,99",$J148:$BB153,"<20") -> 1 | K147: =COUNTIFS($J148:$BB153,">19,99") -> 0 | L147: =COUNTIFS($J151:$BA151,">4,99",$J151:$BA151,"<9,99") -> 0 | M147: =COUNTIFS($J151:$BB151,">9,99") -> 0
A148: B10 | B148: =kod!B22 -> Felező-spicc, bal | C148: =kod!C22 -> SBS - SziKo Team | D148: =SUM(J148:AZ148) -> 0 | E148: =COUNT(J148:AZ148) -> 0 | F148: =IF(E148=0,0,D148/E148) -> 0 | G148: =MAX(J148:BC148) -> 0 | I148: tükörponty
A149: B10 | B149: =kod!B22 -> Felező-spicc, bal | C149: =kod!C22 -> SBS - SziKo Team | D149: 24.925 | E149: 3 | F149: 8.308333333 | G149: =MAX(J149:BC149) -> 11.425 | I149: tőponty | J149: 5.975 | K149: 7.525 | L149: 11.425
A150: B10 | B150: =kod!B22 -> Felező-spicc, bal | C150: =kod!C22 -> SBS - SziKo Team | D150: 0 | E150: 0 | F150: 0 | G150: =MAX(J150:BC150) -> 0 | I150: nyurgaponty
A151: B10 | B151: =kod!B22 -> Felező-spicc, bal | C151: =kod!C22 -> SBS - SziKo Team | D151: 0 | E151: 0 | F151: 0 | H151: =MAX(J151:AZ151) -> 0 | I151: koi ponty
A152: B10 | B152: =kod!B22 -> Felező-spicc, bal | C152: =kod!C22 -> SBS - SziKo Team | D152: 0 | E152: 0 | F152: 0 | G152: =MAX(J152:BC152) -> 0 | I152: amur
A153: B10 | B153: =kod!B22 -> Felező-spicc, bal | C153: =kod!C22 -> SBS - SziKo Team | D153: 0 | E153: 0 | F153: 0 | G153: =MAX(J153:BC153) -> 0 | I153: fekete amur
A154: B11 | B154: =kod!B23 -> Felező-spicc, közép | C154: =kod!C23 -> Síp Carp Team | D154: =SUM(D155:D160) -> 0 | E154: =SUM(E155:E160) -> 0 | F154: =IF(E154=0,0,D154/E154) -> 0 | G154: =MAX(G155:G160) -> 0 | H154: =H158 -> 0 | I154: ÖSSZESEN | J154: =COUNTIFS($J155:$BB160,">9,99",$J155:$BB160,"<20") -> 0 | K154: =COUNTIFS($J155:$BB160,">19,99") -> 0 | L154: =COUNTIFS($J158:$BA158,">4,99",$J158:$BA158,"<9,99") -> 0 | M154: =COUNTIFS($J158:$BB158,">9,99") -> 0
A155: B11 | B155: =kod!B23 -> Felező-spicc, közép | C155: =kod!C23 -> Síp Carp Team | D155: =SUM(J155:AZ155) -> 0 | E155: =COUNT(J155:AZ155) -> 0 | F155: 0 | G155: =MAX(J155:BC155) -> 0 | I155: tükörponty
A156: B11 | B156: =kod!B23 -> Felező-spicc, közép | C156: =kod!C23 -> Síp Carp Team | D156: 0 | E156: 0 | F156: 0 | G156: =MAX(J156:BC156) -> 0 | I156: tőponty
A157: B11 | B157: =kod!B23 -> Felező-spicc, közép | C157: =kod!C23 -> Síp Carp Team | D157: 0 | E157: 0 | F157: 0 | G157: =MAX(J157:BC157) -> 0 | I157: nyurgaponty
A158: B11 | B158: =kod!B23 -> Felező-spicc, közép | C158: =kod!C23 -> Síp Carp Team | D158: 0 | E158: 0 | F158: 0 | H158: =MAX(J158:AZ158) -> 0 | I158: koi ponty
A159: B11 | B159: =kod!B23 -> Felező-spicc, közép | C159: =kod!C23 -> Síp Carp Team | D159: 0 | E159: 0 | F159: 0 | G159: =MAX(J159:BC159) -> 0 | I159: amur
A160: B11 | B160: =kod!B23 -> Felező-spicc, közép | C160: =kod!C23 -> Síp Carp Team | D160: 0 | E160: 0 | F160: 0 | G160: =MAX(J160:BC160) -> 0 | I160: fekete amur
A161: C1 | B161: =kod!B24 -> Gát, sekély víz | C161: =kod!C24 -> Carp Fever Bulgaria | D161: =SUM(D162:D167) -> 56.375 | E161: =SUM(E162:E167) -> 9 | F161: =IF(E161=0,0,D161/E161) -> 6.263888889 | G161: =MAX(G162:G167) -> 10.9 | H161: =H165 -> 0 | I161: ÖSSZESEN | J161: =COUNTIFS($J162:$BB167,">9,99",$J162:$BB167,"<20") -> 1 | K161: =COUNTIFS($J162:$BB167,">19,99") -> 0 | L161: =COUNTIFS($J165:$BA165,">4,99",$J165:$BA165,"<9,99") -> 0 | M161: =COUNTIFS($J165:$BB165,">9,99") -> 0
A162: C1 | B162: =kod!B24 -> Gát, sekély víz | C162: =kod!C24 -> Carp Fever Bulgaria | D162: =SUM(J162:AZ162) -> 16.6 | E162: =COUNT(J162:AZ162) -> 2 | F162: =IF(E162=0,0,D162/E162) -> 8.3 | G162: =MAX(J162:BC162) -> 8.95 | I162: tükörponty | J162: 8.95 | K162: 7.65
A163: C1 | B163: =kod!B24 -> Gát, sekély víz | C163: =kod!C24 -> Carp Fever Bulgaria | D163: 23.1 | E163: 5 | F163: 4.62 | G163: =MAX(J163:BC163) -> 8 | I163: tőponty | J163: 5.3 | K163: 1.175 | L163: 6.6 | M163: 2.025 | N163: 8
A164: C1 | B164: =kod!B24 -> Gát, sekély víz | C164: =kod!C24 -> Carp Fever Bulgaria | D164: 16.675 | E164: 2 | F164: 8.3375 | G164: =MAX(J164:BC164) -> 10.9 | I164: nyurgaponty | J164: 10.9 | K164: 5.775
A165: C1 | B165: =kod!B24 -> Gát, sekély víz | C165: =kod!C24 -> Carp Fever Bulgaria | D165: 0 | E165: 0 | F165: 0 | H165: =MAX(J165:AZ165) -> 0 | I165: koi ponty
A166: C1 | B166: =kod!B24 -> Gát, sekély víz | C166: =kod!C24 -> Carp Fever Bulgaria | D166: 0 | E166: 0 | F166: 0 | G166: =MAX(J166:BC166) -> 0 | I166: amur
A167: C1 | B167: =kod!B24 -> Gát, sekély víz | C167: =kod!C24 -> Carp Fever Bulgaria | D167: 0 | E167: 0 | F167: 0 | G167: =MAX(J167:BC167) -> 0 | I167: fekete amur
A168: C2 | B168: =kod!B25 -> Gát, sekély víz | C168: =kod!C25 -> Carpfriends Ennstal-Austria | D168: =SUM(D169:D174) -> 32.625 | E168: =SUM(E169:E174) -> 5 | F168: 6.525 | G168: =MAX(G169:G174) -> 8.725 | H168: =H172 -> 0 | I168: ÖSSZESEN | J168: =COUNTIFS($J169:$BB174,">9,99",$J169:$BB174,"<20") -> 0 | K168: =COUNTIFS($J169:$BB174,">19,99") -> 0 | L168: =COUNTIFS($J172:$BA172,">4,99",$J172:$BA172,"<9,99") -> 0 | M168: =COUNTIFS($J172:$BB172,">9,99") -> 0
A169: C2 | B169: =kod!B25 -> Gát, sekély víz | C169: =kod!C25 -> Carpfriends Ennstal-Austria | D169: =SUM(J169:AZ169) -> 5.125 | E169: =COUNT(J169:AZ169) -> 1 | F169: 5.125 | G169: =MAX(J169:BC169) -> 5.125 | I169: tükörponty | J169: 5.125
A170: C2 | B170: =kod!B25 -> Gát, sekély víz | C170: =kod!C25 -> Carpfriends Ennstal-Austria | D170: 27.5 | E170: 4 | F170: 6.875 | G170: =MAX(J170:BC170) -> 8.725 | I170: tőponty | J170: 4.7 | K170: 5.425 | L170: 8.65 | M170: 8.725
A171: C2 | B171: =kod!B25 -> Gát, sekély víz | C171: =kod!C25 -> Carpfriends Ennstal-Austria | D171: 0 | E171: 0 | F171: 0 | G171: =MAX(J171:BC171) -> 0 | I171: nyurgaponty
A172: C2 | B172: =kod!B25 -> Gát, sekély víz | C172: =kod!C25 -> Carpfriends Ennstal-Austria | D172: 0 | E172: 0 | F172: 0 | H172: =MAX(J172:AZ172) -> 0 | I172: koi ponty
A173: C2 | B173: =kod!B25 -> Gát, sekély víz | C173: =kod!C25 -> Carpfriends Ennstal-Austria | D173: 0 | E173: 0 | F173: 0 | G173: =MAX(J173:BC173) -> 0 | I173: amur
A174: C2 | B174: =kod!B25 -> Gát, sekély víz | C174: =kod!C25 -> Carpfriends Ennstal-Austria | D174: 0 | E174: 0 | F174: 0 | G174: =MAX(J174:BC174) -> 0 | I174: fekete amur
A175: C3 | B175: =kod!B26 -> Gát, sekély víz | C175: =kod!C26 -> Carp Team Brasov | D175: =SUM(D176:D181) -> 13.525 | E175: =SUM(E176:E181) -> 2 | F175: 6.7625 | G175: =MAX(G176:G181) -> 7.65 | H175: =H179 -> 0 | I175: ÖSSZESEN | J175: =COUNTIFS($J176:$BB181,">9,99",$J176:$BB181,"<20") -> 0 | K175: =COUNTIFS($J176:$BB181,">19,99") -> 0 | L175: =COUNTIFS($J179:$BA179,">4,99",$J179:$BA179,"<9,99") -> 0 | M175: =COUNTIFS($J179:$BB179,">9,99") -> 0
A176: C3 | B176: =kod!B26 -> Gát, sekély víz | C176: =kod!C26 -> Carp Team Brasov | D176: =SUM(J176:AZ176) -> 0 | E176: =COUNT(J176:AZ176) -> 0 | F176: 0 | G176: =MAX(J176:BC176) -> 0 | I176: tükörponty
A177: C3 | B177: =kod!B26 -> Gát, sekély víz | C177: =kod!C26 -> Carp Team Brasov | D177: 13.525 | E177: 2 | F177: 6.7625 | G177: =MAX(J177:BC177) -> 7.65 | I177: tőponty | J177: 7.65 | K177: 5.875
A178: C3 | B178: =kod!B26 -> Gát, sekély víz | C178: =kod!C26 -> Carp Team Brasov | D178: 0 | E178: 0 | F178: 0 | G178: =MAX(J178:BC178) -> 0 | I178: nyurgaponty
A179: C3 | B179: =kod!B26 -> Gát, sekély víz | C179: =kod!C26 -> Carp Team Brasov | D179: 0 | E179: 0 | F179: 0 | H179: =MAX(J179:AZ179) -> 0 | I179: koi ponty
A180: C3 | B180: =kod!B26 -> Gát, sekély víz | C180: =kod!C26 -> Carp Team Brasov | D180: 0 | E180: 0 | F180: 0 | G180: =MAX(J180:BC180) -> 0 | I180: amur
A181: C3 | B181: =kod!B26 -> Gát, sekély víz | C181: =kod!C26 -> Carp Team Brasov | D181: 0 | E181: 0 | F181: 0 | G181: =MAX(J181:BC181) -> 0 | I181: fekete amur
A182: C4 | B182: =kod!B27 -> Gát, sekély víz | C182: =kod!C27 -> As La Carp Team | D182: =SUM(D183:D188) -> 90 | E182: =SUM(E183:E188) -> 14 | F182: 6.428571429 | G182: =MAX(G183:G188) -> 9.9 | H182: =H186 -> 0 | I182: ÖSSZESEN | J182: =COUNTIFS($J183:$BB188,">9,99",$J183:$BB188,"<20") -> 0 | K182: =COUNTIFS($J183:$BB188,">19,99") -> 0 | L182: =COUNTIFS($J186:$BA186,">4,99",$J186:$BA186,"<9,99") -> 0 | M182: =COUNTIFS($J186:$BB186,">9,99") -> 0
A183: C4 | B183: =kod!B27 -> Gát, sekély víz | C183: =kod!C27 -> As La Carp Team | D183: =SUM(J183:AZ183) -> 8.575 | E183: =COUNT(J183:AZ183) -> 1 | F183: 8.575 | G183: =MAX(J183:BC183) -> 8.575 | I183: tükörponty | J183: 8.575
A184: C4 | B184: =kod!B27 -> Gát, sekély víz | C184: =kod!C27 -> As La Carp Team | D184: 50.85 | E184: 9 | F184: 5.65 | G184: =MAX(J184:BC184) -> 8.5 | I184: tőponty | J184: 1.5 | K184: 1.725 | L184: 8.5 | M184: 6.725 | N184: 6.925 | O184: 6.2 | P184: 7.925 | Q184: 6.125 | R184: 5.225
A185: C4 | B185: =kod!B27 -> Gát, sekély víz | C185: =kod!C27 -> As La Carp Team | D185: 30.575 | E185: 4 | F185: 7.64375 | G185: =MAX(J185:BC185) -> 9.9 | I185: nyurgaponty | J185: 3.875 | K185: 6.925 | L185: 9.875 | M185: 9.9
A186: C4 | B186: =kod!B27 -> Gát, sekély víz | C186: =kod!C27 -> As La Carp Team | D186: 0 | E186: 0 | F186: 0 | H186: =MAX(J186:AZ186) -> 0 | I186: koi ponty
A187: C4 | B187: =kod!B27 -> Gát, sekély víz | C187: =kod!C27 -> As La Carp Team | D187: 0 | E187: 0 | F187: 0 | G187: =MAX(J187:BC187) -> 0 | I187: amur
A188: C4 | B188: =kod!B27 -> Gát, sekély víz | C188: =kod!C27 -> As La Carp Team | D188: 0 | E188: 0 | F188: 0 | G188: =MAX(J188:BC188) -> 0 | I188: fekete amur
A189: C5 | B189: =kod!B28 -> Gát, sekély víz | C189: =kod!C28 -> Bojlis Főnök - Bait Bait Carp Team | D189: =SUM(D190:D195) -> 94.525 | E189: =SUM(E190:E195) -> 14 | F189: 6.751785714 | G189: =MAX(G190:G195) -> 10.6 | H189: =H193 -> 4.325 | I189: ÖSSZESEN | J189: =COUNTIFS($J190:$BB195,">9,99",$J190:$BB195,"<20") -> 1 | K189: =COUNTIFS($J190:$BB195,">19,99") -> 0 | L189: =COUNTIFS($J193:$BA193,">4,99",$J193:$BA193,"<9,99") -> 0 | M189: =COUNTIFS($J193:$BB193,">9,99") -> 0
A190: C5 | B190: =kod!B28 -> Gát, sekély víz | C190: =kod!C28 -> Bojlis Főnök - Bait Bait Carp Team | D190: =SUM(J190:AZ190) -> 8.075 | E190: =COUNT(J190:AZ190) -> 1 | F190: 8.075 | G190: =MAX(J190:BC190) -> 8.075 | I190: tükörponty | J190: 8.075
A191: C5 | B191: =kod!B28 -> Gát, sekély víz | C191: =kod!C28 -> Bojlis Főnök - Bait Bait Carp Team | D191: 40.5 | E191: 7 | F191: 5.785714286 | G191: =MAX(J191:BC191) -> 8.25 | I191: tőponty | J191: 8.25 | K191: 4.7 | L191: 8.025 | M191: 6.8 | N191: 3.6 | O191: 2.05 | P191: 7.075
A192: C5 | B192: =kod!B28 -> Gát, sekély víz | C192: =kod!C28 -> Bojlis Főnök - Bait Bait Carp Team | D192: 32.95 | E192: 4 | F192: 8.2375 | G192: =MAX(J192:BC192) -> 10.6 | I192: nyurgaponty | J192: 7.875 | K192: 7.525 | L192: 10.6 | M192: 6.95
A193: C5 | B193: =kod!B28 -> Gát, sekély víz | C193: =kod!C28 -> Bojlis Főnök - Bait Bait Carp Team | D193: 4.325 | E193: 1 | F193: 4.325 | H193: =MAX(J193:AZ193) -> 4.325 | I193: koi ponty | J193: 4.325
A194: C5 | B194: =kod!B28 -> Gát, sekély víz | C194: =kod!C28 -> Bojlis Főnök - Bait Bait Carp Team | D194: 8.675 | E194: 1 | F194: 8.675 | G194: =MAX(J194:BC194) -> 8.675 | I194: amur | J194: 8.675
A195: C5 | B195: =kod!B28 -> Gát, sekély víz | C195: =kod!C28 -> Bojlis Főnök - Bait Bait Carp Team | D195: 0 | E195: 0 | F195: 0 | G195: =MAX(J195:BC195) -> 0 | I195: fekete amur
A196: C6 | B196: =kod!B29 -> Felező-spicc, jobb | C196: =kod!C29 -> Secret Of The Carp | D196: =SUM(D197:D202) -> 6.9 | E196: =SUM(E197:E202) -> 1 | F196: 6.9 | G196: =MAX(G197:G202) -> 6.9 | H196: =H200 -> 0 | I196: ÖSSZESEN | J196: =COUNTIFS($J197:$BB202,">9,99",$J197:$BB202,"<20") -> 0 | K196: =COUNTIFS($J197:$BB202,">19,99") -> 0 | L196: =COUNTIFS($J200:$BA200,">4,99",$J200:$BA200,"<9,99") -> 0 | M196: =COUNTIFS($J200:$BB200,">9,99") -> 0
A197: C6 | B197: =kod!B29 -> Felező-spicc, jobb | C197: =kod!C29 -> Secret Of The Carp | D197: =SUM(J197:AZ197) -> 0 | E197: =COUNT(J197:AZ197) -> 0 | F197: 0 | G197: =MAX(J197:BC197) -> 0 | I197: tükörponty
A198: C6 | B198: =kod!B29 -> Felező-spicc, jobb | C198: =kod!C29 -> Secret Of The Carp | D198: 6.9 | E198: 1 | F198: 6.9 | G198: =MAX(J198:BC198) -> 6.9 | I198: tőponty | J198: 6.9
A199: C6 | B199: =kod!B29 -> Felező-spicc, jobb | C199: =kod!C29 -> Secret Of The Carp | D199: 0 | E199: 0 | F199: 0 | G199: =MAX(J199:BC199) -> 0 | I199: nyurgaponty
A200: C6 | B200: =kod!B29 -> Felező-spicc, jobb | C200: =kod!C29 -> Secret Of The Carp | D200: 0 | E200: 0 | F200: 0 | H200: =MAX(J200:AZ200) -> 0 | I200: koi ponty
... 38 more rows

Sheet szakasz2
A1: =IF(kod!E2>0,kod!E2,"") -> XXI. PROFESSZIONÁLIS BOJLIS EURÓPA KUPA (EPBC)
A2: =IF(kod!E3>0,kod!E3,"") -> XXXVI. MACONKA NEMZETKÖZI BOJLIS KUPA
A3: =IF(kod!E4>0,kod!E4,"") -> Maconka, 2025.06.15. - 2025.06.20.
A4: =IF(kod!E5>0,kod!E5,"") -> 
A5: =kod!E8 -> 2. szakasz: 2025.06.16. 06:00 - 2025.06.16. 18:00
A6: Rajthely | B6: Elhelyezés | C6: Csapatnév | D6: Kg | E6: Db | F6: Átlag | G6: BC | H6: BkC | I6: Faj | J6: 10-20 kg | K6: 20+ kg | L6: koi 5-10 kg | M6: koi 10+ kg
A7: A1 | B7: =kod!B2 -> Gát, mélyvíz | C7: =kod!C2 -> SBS - Halcatraz - TiZo Team | D7: =SUM(D8:D13) -> 79.975 | E7: =SUM(E8:E13) -> 8 | F7: =IF(E7=0,0,D7/E7) -> 9.996875 | G7: =MAX(G8:G13) -> 18.875 | H7: =H11 -> 12.225 | I7: ÖSSZESEN | J7: =COUNTIFS($J8:$BB13,">9,99",$J8:$BB13,"<20") -> 4 | K7: =COUNTIFS($J8:$BB13,">19,99") -> 0 | L7: =COUNTIFS($J11:$BA11,">4,99",$J11:$BA11,"<9,99") -> 0 | M7: =COUNTIFS($J11:$BB11,">9,99") -> 1
A8: A1 | B8: =kod!B2 -> Gát, mélyvíz | C8: =kod!C2 -> SBS - Halcatraz - TiZo Team | D8: =SUM(J8:AZ8) -> 11.2 | E8: =COUNT(J8:AZ8) -> 1 | F8: =IF(E8=0,0,D8/E8) -> 11.2 | G8: =MAX(J8:BC8) -> 11.2 | I8: tükörponty | J8: 11.2
A9: A1 | B9: =kod!B2 -> Gát, mélyvíz | C9: =kod!C2 -> SBS - Halcatraz - TiZo Team | D9: 7.4 | E9: 1 | F9: 7.4 | G9: =MAX(J9:BC9) -> 7.4 | I9: tőponty | J9: 7.4
A10: A1 | B10: =kod!B2 -> Gát, mélyvíz | C10: =kod!C2 -> SBS - Halcatraz - TiZo Team | D10: 45.875 | E10: 4 | F10: 11.46875 | G10: 18.875 | I10: nyurgaponty | J10: 7.125 | K10: 7.475 | L10: 12.4 | M10: 18.875
A11: A1 | B11: =kod!B2 -> Gát, mélyvíz | C11: =kod!C2 -> SBS - Halcatraz - TiZo Team | D11: 12.225 | E11: 1 | F11: 12.225 | H11: =MAX(J11:AZ11) -> 12.225 | I11: koi ponty | J11: 12.225
A12: A1 | B12: =kod!B2 -> Gát, mélyvíz | C12: =kod!C2 -> SBS - Halcatraz - TiZo Team | D12: 0 | E12: 0 | F12: 0 | G12: 0 | I12: amur
A13: A1 | B13: =kod!B2 -> Gát, mélyvíz | C13: =kod!C2 -> SBS - Halcatraz - TiZo Team | D13: 3.275 | E13: 1 | F13: 3.275 | G13: 3.275 | I13: fekete amur | J13: 3.275
A14: A2 | B14: =kod!B3 -> Gát, mélyvíz | C14: =kod!C3 -> Altstadt Carp Team | D14: =SUM(D15:D20) -> 93.375 | E14: =SUM(E15:E20) -> 10 | F14: 9.3375 | G14: =MAX(G15:G20) -> 14.075 | H14: =H18 -> 12.85 | I14: ÖSSZESEN | J14: =COUNTIFS($J15:$BB20,">9,99",$J15:$BB20,"<20") -> 3 | K14: =COUNTIFS($J15:$BB20,">19,99") -> 0 | L14: =COUNTIFS($J18:$BA18,">4,99",$J18:$BA18,"<9,99") -> 0 | M14: =COUNTIFS($J18:$BB18,">9,99") -> 1
A15: A2 | B15: =kod!B3 -> Gát, mélyvíz | C15: =kod!C3 -> Altstadt Carp Team | D15: =SUM(J15:AZ15) -> 20.525 | E15: =COUNT(J15:AZ15) -> 2 | F15: 10.2625 | G15: =MAX(J15:BC15) -> 11.575 | I15: tükörponty | J15: 8.95 | K15: 11.575
A16: A2 | B16: =kod!B3 -> Gát, mélyvíz | C16: =kod!C3 -> Altstadt Carp Team | D16: 30.525 | E16: 3 | F16: 10.175 | G16: =MAX(J16:BC16) -> 14.075 | I16: tőponty | J16: 14.075 | K16: 7 | L16: 9.45
A17: A2 | B17: =kod!B3 -> Gát, mélyvíz | C17: =kod!C3 -> Altstadt Carp Team | D17: 22.3 | E17: 3 | F17: 7.433333333 | G17: =MAX(J17:BC17) -> 9.625 | I17: nyurgaponty | J17: 9.625 | K17: 5.95 | L17: 6.725
A18: A2 | B18: =kod!B3 -> Gát, mélyvíz | C18: =kod!C3 -> Altstadt Carp Team | D18: 12.85 | E18: 1 | F18: 12.85 | H18: =MAX(J18:AZ18) -> 12.85 | I18: koi ponty | J18: 12.85
A19: A2 | B19: =kod!B3 -> Gát, mélyvíz | C19: =kod!C3 -> Altstadt Carp Team | D19: 7.175 | E19: 1 | F19: 7.175 | G19: =MAX(J19:BC19) -> 7.175 | I19: amur | J19: 7.175
A20: A2 | B20: =kod!B3 -> Gát, mélyvíz | C20: =kod!C3 -> Altstadt Carp Team | D20: 0 | E20: 0 | F20: 0 | G20: =MAX(J20:BC20) -> 0 | I20: fekete amur
A21: A3 | B21: =kod!B4 -> Gát, mélyvíz | C21: =kod!C4 -> Ferma De Crap Diosig | D21: =SUM(D22:D27) -> 33.225 | E21: =SUM(E22:E27) -> 3 | F21: 11.075 | G21: =MAX(G22:G27) -> 13.125 | H21: =H25 -> 13.325 | I21: ÖSSZESEN | J21: =COUNTIFS($J22:$BB27,">9,99",$J22:$BB27,"<20") -> 2 | K21: =COUNTIFS($J22:$BB27,">19,99") -> 0 | L21: =COUNTIFS($J25:$BA25,">4,99",$J25:$BA25,"<9,99") -> 0 | M21: =COUNTIFS($J25:$BB25,">9,99") -> 1
A22: A3 | B22: =kod!B4 -> Gát, mélyvíz | C22: =kod!C4 -> Ferma De Crap Diosig | D22: =SUM(J22:AZ22) -> 0 | E22: =COUNT(J22:AZ22) -> 0 | F22: 0 | G22: =MAX(J22:BC22) -> 0 | I22: tükörponty
A23: A3 | B23: =kod!B4 -> Gát, mélyvíz | C23: =kod!C4 -> Ferma De Crap Diosig | D23: 6.775 | E23: 1 | F23: 6.775 | G23: =MAX(J23:BC23) -> 6.775 | I23: tőponty | J23: 6.775
A24: A3 | B24: =kod!B4 -> Gát, mélyvíz | C24: =kod!C4 -> Ferma De Crap Diosig | D24: 13.125 | E24: 1 | F24: 13.125 | G24: =MAX(J24:BC24) -> 13.125 | I24: nyurgaponty | J24: 13.125
A25: A3 | B25: =kod!B4 -> Gát, mélyvíz | C25: =kod!C4 -> Ferma De Crap Diosig | D25: 13.325 | E25: 1 | F25: 13.325 | H25: =MAX(J25:AZ25) -> 13.325 | I25: koi ponty | J25: 13.325
A26: A3 | B26: =kod!B4 -> Gát, mélyvíz | C26: =kod!C4 -> Ferma De Crap Diosig | D26: 0 | E26: 0 | F26: 0 | G26: =MAX(J26:BC26) -> 0 | I26: amur
A27: A3 | B27: =kod!B4 -> Gát, mélyvíz | C27: =kod!C4 -> Ferma De Crap Diosig | D27: 0 | E27: 0 | F27: 0 | G27: =MAX(J27:BC27) -> 0 | I27: fekete amur
A28: A4 | B28: =kod!B5 -> Gát, mélyvíz | C28: =kod!C5 -> Bull Tackle | D28: =SUM(D29:D34) -> 0 | E28: =SUM(E29:E34) -> 0 | F28: 0 | G28: =MAX(G29:G34) -> 0 | H28: =H32 -> 0 | I28: ÖSSZESEN | J28: =COUNTIFS($J29:$BB34,">9,99",$J29:$BB34,"<20") -> 0 | K28: =COUNTIFS($J29:$BB34,">19,99") -> 0 | L28: =COUNTIFS($J32:$BA32,">4,99",$J32:$BA32,"<9,99") -> 0 | M28: =COUNTIFS($J32:$BB32,">9,99") -> 0
A29: A4 | B29: =kod!B5 -> Gát, mélyvíz | C29: =kod!C5 -> Bull Tackle | D29: =SUM(J29:AZ29) -> 0 | E29: =COUNT(J29:AZ29) -> 0 | F29: 0 | G29: =MAX(J29:BC29) -> 0 | I29: tükörponty
A30: A4 | B30: =kod!B5 -> Gát, mélyvíz | C30: =kod!C5 -> Bull Tackle | D30: 0 | E30: 0 | F30: 0 | G30: =MAX(J30:BC30) -> 0 | I30: tőponty
A31: A4 | B31: =kod!B5 -> Gát, mélyvíz | C31: =kod!C5 -> Bull Tackle | D31: 0 | E31: 0 | F31: 0 | G31: =MAX(J31:BC31) -> 0 | I31: nyurgaponty
A32: A4 | B32: =kod!B5 -> Gát, mélyvíz | C32: =kod!C5 -> Bull Tackle | D32: 0 | E32: 0 | F32: 0 | H32: =MAX(J32:AZ32) -> 0 | I32: koi ponty
A33: A4 | B33: =kod!B5 -> Gát, mélyvíz | C33: =kod!C5 -> Bull Tackle | D33: 0 | E33: 0 | F33: 0 | G33: =MAX(J33:BC33) -> 0 | I33: amur
A34: A4 | B34: =kod!B5 -> Gát, mélyvíz | C34: =kod!C5 -> Bull Tackle | D34: 0 | E34: 0 | F34: 0 | G34: =MAX(J34:BC34) -> 0 | I34: fekete amur
A35: A5 | B35: =kod!B6 -> Gát, mélyvíz | C35: =kod!C6 -> AHFSZ Fishing Team | D35: =SUM(D36:D41) -> 0 | E35: =SUM(E36:E41) -> 0 | F35: 0 | G35: =MAX(G36:G41) -> 0 | H35: =H39 -> 0 | I35: ÖSSZESEN | J35: =COUNTIFS($J36:$BB41,">9,99",$J36:$BB41,"<20") -> 0 | K35: =COUNTIFS($J36:$BB41,">19,99") -> 0 | L35: =COUNTIFS($J39:$BA39,">4,99",$J39:$BA39,"<9,99") -> 0 | M35: =COUNTIFS($J39:$BB39,">9,99") -> 0
A36: A5 | B36: =kod!B6 -> Gát, mélyvíz | C36: =kod!C6 -> AHFSZ Fishing Team | D36: =SUM(J36:AZ36) -> 0 | E36: =COUNT(J36:AZ36) -> 0 | F36: 0 | G36: =MAX(J36:BC36) -> 0 | I36: tükörponty
A37: A5 | B37: =kod!B6 -> Gát, mélyvíz | C37: =kod!C6 -> AHFSZ Fishing Team | D37: 0 | E37: 0 | F37: 0 | G37: =MAX(J37:BC37) -> 0 | I37: tőponty
A38: A5 | B38: =kod!B6 -> Gát, mélyvíz | C38: =kod!C6 -> AHFSZ Fishing Team | D38: 0 | E38: 0 | F38: 0 | G38: =MAX(J38:BC38) -> 0 | I38: nyurgaponty
A39: A5 | B39: =kod!B6 -> Gát, mélyvíz | C39: =kod!C6 -> AHFSZ Fishing Team | D39: 0 | E39: 0 | F39: 0 | H39: =MAX(J39:AZ39) -> 0 | I39: koi ponty
A40: A5 | B40: =kod!B6 -> Gát, mélyvíz | C40: =kod!C6 -> AHFSZ Fishing Team | D40: 0 | E40: 0 | F40: 0 | G40: =MAX(J40:BC40) -> 0 | I40: amur
A41: A5 | B41: =kod!B6 -> Gát, mélyvíz | C41: =kod!C6 -> AHFSZ Fishing Team | D41: 0 | E41: 0 | F41: 0 | G41: =MAX(J41:BC41) -> 0 | I41: fekete amur
A42: A6 | B42: =kod!B7 -> Nyári kikötő, belső | C42: =kod!C7 -> Black Carp Team | D42: =SUM(D43:D48) -> 16.975 | E42: =SUM(E43:E48) -> 2 | F42: 8.4875 | G42: =MAX(G43:G48) -> 13.125 | H42: =H46 -> 0 | I42: ÖSSZESEN | J42: =COUNTIFS($J43:$BB48,">9,99",$J43:$BB48,"<20") -> 1 | K42: =COUNTIFS($J43:$BB48,">19,99") -> 0 | L42: =COUNTIFS($J46:$BA46,">4,99",$J46:$BA46,"<9,99") -> 0 | M42: =COUNTIFS($J46:$BB46,">9,99") -> 0
A43: A6 | B43: =kod!B7 -> Nyári kikötő, belső | C43: =kod!C7 -> Black Carp Team | D43: =SUM(J43:AZ43) -> 0 | E43: =COUNT(J43:AZ43) -> 0 | F43: 0 | G43: =MAX(J43:BC43) -> 0 | I43: tükörponty
A44: A6 | B44: =kod!B7 -> Nyári kikötő, belső | C44: =kod!C7 -> Black Carp Team | D44: 13.125 | E44: 1 | F44: 13.125 | G44: =MAX(J44:BC44) -> 13.125 | I44: tőponty | J44: 13.125
A45: A6 | B45: =kod!B7 -> Nyári kikötő, belső | C45: =kod!C7 -> Black Carp Team | D45: 0 | E45: 0 | F45: 0 | G45: =MAX(J45:BC45) -> 0 | I45: nyurgaponty
A46: A6 | B46: =kod!B7 -> Nyári kikötő, belső | C46: =kod!C7 -> Black Carp Team | D46: 0 | E46: 0 | F46: 0 | H46: =MAX(J46:AZ46) -> 0 | I46: koi ponty
A47: A6 | B47: =kod!B7 -> Nyári kikötő, belső | C47: =kod!C7 -> Black Carp Team | D47: 0 | E47: 0 | F47: 0 | G47: =MAX(J47:BC47) -> 0 | I47: amur
A48: A6 | B48: =kod!B7 -> Nyári kikötő, belső | C48: =kod!C7 -> Black Carp Team | D48: 3.85 | E48: 1 | F48: 3.85 | G48: =MAX(J48:BC48) -> 3.85 | I48: fekete amur | J48: 3.85
A49: A7 | B49: =kod!B8 -> Nyári kikötő, közép | C49: =kod!C8 -> USA & Mivado Carp Team | D49: =SUM(D50:D55) -> 13.825 | E49: =SUM(E50:E55) -> 4 | F49: 3.45625 | G49: =MAX(G50:G55) -> 4.25 | H49: =H53 -> 0 | I49: ÖSSZESEN | J49: =COUNTIFS($J50:$BB55,">9,99",$J50:$BB55,"<20") -> 0 | K49: =COUNTIFS($J50:$BB55,">19,99") -> 0 | L49: =COUNTIFS($J53:$BA53,">4,99",$J53:$BA53,"<9,99") -> 0 | M49: =COUNTIFS($J53:$BB53,">9,99") -> 0
A50: A7 | B50: =kod!B8 -> Nyári kikötő, közép | C50: =kod!C8 -> USA & Mivado Carp Team | D50: =SUM(J50:AZ50) -> 0 | E50: =COUNT(J50:AZ50) -> 0 | F50: 0 | G50: =MAX(J50:BC50) -> 0 | I50: tükörponty
A51: A7 | B51: =kod!B8 -> Nyári kikötő, közép | C51: =kod!C8 -> USA & Mivado Carp Team | D51: 0 | E51: 0 | F51: 0 | G51: =MAX(J51:BC51) -> 0 | I51: tőponty
A52: A7 | B52: =kod!B8 -> Nyári kikötő, közép | C52: =kod!C8 -> USA & Mivado Carp Team | D52: 0 | E52: 0 | F52: 0 | G52: =MAX(J52:BC52) -> 0 | I52: nyurgaponty
A53: A7 | B53: =kod!B8 -> Nyári kikötő, közép | C53: =kod!C8 -> USA & Mivado Carp Team | D53: 0 | E53: 0 | F53: 0 | H53: =MAX(J53:AZ53) -> 0 | I53: koi ponty
A54: A7 | B54: =kod!B8 -> Nyári kikötő, közép | C54: =kod!C8 -> USA & Mivado Carp Team | D54: 0 | E54: 0 | F54: 0 | G54: =MAX(J54:BC54) -> 0 | I54: amur
A55: A7 | B55: =kod!B8 -> Nyári kikötő, közép | C55: =kod!C8 -> USA & Mivado Carp Team | D55: 13.825 | E55: 4 | F55: 3.45625 | G55: =MAX(J55:BC55) -> 4.25 | I55: fekete amur | J55: 3.05 | K55: 3.6 | L55: 4.25 | M55: 2.925
A56: A8 | B56: =kod!B9 -> Nyári kikötő, külső | C56: =kod!C9 -> Ózdi Sporthorgász Egyesület | D56: =SUM(D57:D62) -> 39.6 | E56: =SUM(E57:E62) -> 5 | F56: 7.92 | G56: =MAX(G57:G62) -> 10.875 | H56: =H60 -> 0 | I56: ÖSSZESEN | J56: =COUNTIFS($J57:$BB62,">9,99",$J57:$BB62,"<20") -> 1 | K56: =COUNTIFS($J57:$BB62,">19,99") -> 0 | L56: =COUNTIFS($J60:$BA60,">4,99",$J60:$BA60,"<9,99") -> 0 | M56: =COUNTIFS($J60:$BB60,">9,99") -> 0
A57: A8 | B57: =kod!B9 -> Nyári kikötő, külső | C57: =kod!C9 -> Ózdi Sporthorgász Egyesület | D57: =SUM(J57:AZ57) -> 0 | E57: =COUNT(J57:AZ57) -> 0 | F57: 0 | G57: =MAX(J57:BC57) -> 0 | I57: tükörponty
A58: A8 | B58: =kod!B9 -> Nyári kikötő, külső | C58: =kod!C9 -> Ózdi Sporthorgász Egyesület | D58: 20 | E58: 3 | F58: 6.666666667 | G58: =MAX(J58:BC58) -> 7.125 | I58: tőponty | J58: 5.75 | K58: 7.125 | L58: 7.125
A59: A8 | B59: =kod!B9 -> Nyári kikötő, külső | C59: =kod!C9 -> Ózdi Sporthorgász Egyesület | D59: 8.725 | E59: 1 | F59: 8.725 | G59: =MAX(J59:BC59) -> 8.725 | I59: nyurgaponty | J59: 8.725
A60: A8 | B60: =kod!B9 -> Nyári kikötő, külső | C60: =kod!C9 -> Ózdi Sporthorgász Egyesület | D60: 0 | E60: 0 | F60: 0 | H60: =MAX(J60:AZ60) -> 0 | I60: koi ponty
A61: A8 | B61: =kod!B9 -> Nyári kikötő, külső | C61: =kod!C9 -> Ózdi Sporthorgász Egyesület | D61: 10.875 | E61: 1 | F61: 10.875 | G61: =MAX(J61:BC61) -> 10.875 | I61: amur | J61: 10.875
A62: A8 | B62: =kod!B9 -> Nyári kikötő, külső | C62: =kod!C9 -> Ózdi Sporthorgász Egyesület | D62: 0 | E62: 0 | F62: 0 | G62: =MAX(J62:BC62) -> 0 | I62: fekete amur
A63: A9 | B63: =kod!B10 -> I. sziget, bal külső | C63: =kod!C10 -> Kártékony Carp Team | D63: =SUM(D64:D69) -> 51.9 | E63: =SUM(E64:E69) -> 5 | F63: 10.38 | G63: =MAX(G64:G69) -> 15.05 | H63: =H67 -> 0 | I63: ÖSSZESEN | J63: =COUNTIFS($J64:$BB69,">9,99",$J64:$BB69,"<20") -> 3 | K63: =COUNTIFS($J64:$BB69,">19,99") -> 0 | L63: =COUNTIFS($J67:$BA67,">4,99",$J67:$BA67,"<9,99") -> 0 | M63: =COUNTIFS($J67:$BB67,">9,99") -> 0
A64: A9 | B64: =kod!B10 -> I. sziget, bal külső | C64: =kod!C10 -> Kártékony Carp Team | D64: =SUM(J64:AZ64) -> 15.05 | E64: =COUNT(J64:AZ64) -> 1 | F64: =IF(E64=0,0,D64/E64) -> 15.05 | G64: =MAX(J64:BC64) -> 15.05 | I64: tükörponty | J64: 15.05
A65: A9 | B65: =kod!B10 -> I. sziget, bal külső | C65: =kod!C10 -> Kártékony Carp Team | D65: 5.25 | E65: 1 | F65: 5.25 | G65: =MAX(J65:BC65) -> 5.25 | I65: tőponty | J65: 5.25
A66: A9 | B66: =kod!B10 -> I. sziget, bal külső | C66: =kod!C10 -> Kártékony Carp Team | D66: 31.6 | E66: 3 | F66: 10.53333333 | G66: =MAX(J66:BC66) -> 11.2 | I66: nyurgaponty | J66: 11.125 | K66: 11.2 | L66: 9.275
A67: A9 | B67: =kod!B10 -> I. sziget, bal külső | C67: =kod!C10 -> Kártékony Carp Team | D67: 0 | E67: 0 | F67: 0 | H67: =MAX(J67:AZ67) -> 0 | I67: koi ponty
A68: A9 | B68: =kod!B10 -> I. sziget, bal külső | C68: =kod!C10 -> Kártékony Carp Team | D68: 0 | E68: 0 | F68: 0 | G68: =MAX(J68:BC68) -> 0 | I68: amur
A69: A9 | B69: =kod!B10 -> I. sziget, bal külső | C69: =kod!C10 -> Kártékony Carp Team | D69: 0 | E69: 0 | F69: 0 | G69: =MAX(J69:BC69) -> 0 | I69: fekete amur
A70: A10 | B70: =kod!B11 -> I. sziget, bal | C70: =kod!C11 -> Team 5 Austria | D70: =SUM(D71:D76) -> 0 | E70: =SUM(E71:E76) -> 0 | F70: 0 | G70: =MAX(G71:G76) -> 0 | H70: =H74 -> 0 | I70: ÖSSZESEN | J70: =COUNTIFS($J71:$BB76,">9,99",$J71:$BB76,"<20") -> 0 | K70: =COUNTIFS($J71:$BB76,">19,99") -> 0 | L70: =COUNTIFS($J74:$BA74,">4,99",$J74:$BA74,"<9,99") -> 0 | M70: =COUNTIFS($J74:$BB74,">9,99") -> 0
A71: A10 | B71: =kod!B11 -> I. sziget, bal | C71: =kod!C11 -> Team 5 Austria | D71: =SUM(J71:AZ71) -> 0 | E71: =COUNT(J71:AZ71) -> 0 | F71: 0 | G71: =MAX(J71:BC71) -> 0 | I71: tükörponty
A72: A10 | B72: =kod!B11 -> I. sziget, bal | C72: =kod!C11 -> Team 5 Austria | D72: 0 | E72: 0 | F72: 0 | G72: =MAX(J72:BC72) -> 0 | I72: tőponty
A73: A10 | B73: =kod!B11 -> I. sziget, bal | C73: =kod!C11 -> Team 5 Austria | D73: 0 | E73: 0 | F73: 0 | G73: =MAX(J73:BC73) -> 0 | I73: nyurgaponty
A74: A10 | B74: =kod!B11 -> I. sziget, bal | C74: =kod!C11 -> Team 5 Austria | D74: 0 | E74: 0 | F74: 0 | H74: =MAX(J74:AZ74) -> 0 | I74: koi ponty
A75: A10 | B75: =kod!B11 -> I. sziget, bal | C75: =kod!C11 -> Team 5 Austria | D75: 0 | E75: 0 | F75: 0 | G75: =MAX(J75:BC75) -> 0 | I75: amur
A76: A10 | B76: =kod!B11 -> I. sziget, bal | C76: =kod!C11 -> Team 5 Austria | D76: 0 | E76: 0 | F76: 0 | G76: =MAX(J76:BC76) -> 0 | I76: fekete amur
A77: A11 | B77: =kod!B12 -> I. sziget, bal közép | C77: =kod!C12 -> Invader's Team Poland | D77: =SUM(D78:D83) -> 9.225 | E77: =SUM(E78:E83) -> 2 | F77: 4.6125 | G77: =MAX(G78:G83) -> 5.75 | H77: =H81 -> 0 | I77: ÖSSZESEN | J77: =COUNTIFS($J78:$BB83,">9,99",$J78:$BB83,"<20") -> 0 | K77: =COUNTIFS($J78:$BB83,">19,99") -> 0 | L77: =COUNTIFS($J81:$BA81,">4,99",$J81:$BA81,"<9,99") -> 0 | M77: =COUNTIFS($J81:$BB81,">9,99") -> 0
A78: A11 | B78: =kod!B12 -> I. sziget, bal közép | C78: =kod!C12 -> Invader's Team Poland | D78: =SUM(J78:AZ78) -> 0 | E78: =COUNT(J78:AZ78) -> 0 | F78: 0 | G78: =MAX(J78:BC78) -> 0 | I78: tükörponty
A79: A11 | B79: =kod!B12 -> I. sziget, bal közép | C79: =kod!C12 -> Invader's Team Poland | D79: 5.75 | E79: 1 | F79: 5.75 | G79: =MAX(J79:BC79) -> 5.75 | I79: tőponty | J79: 5.75
A80: A11 | B80: =kod!B12 -> I. sziget, bal közép | C80: =kod!C12 -> Invader's Team Poland | D80: 0 | E80: 0 | F80: 0 | G80: =MAX(J80:BC80) -> 0 | I80: nyurgaponty
A81: A11 | B81: =kod!B12 -> I. sziget, bal közép | C81: =kod!C12 -> Invader's Team Poland | D81: 0 | E81: 0 | F81: 0 | H81: =MAX(J81:AZ81) -> 0 | I81: koi ponty
A82: A11 | B82: =kod!B12 -> I. sziget, bal közép | C82: =kod!C12 -> Invader's Team Poland | D82: 0 | E82: 0 | F82: 0 | G82: =MAX(J82:BC82) -> 0 | I82: amur
A83: A11 | B83: =kod!B12 -> I. sziget, bal közép | C83: =kod!C12 -> Invader's Team Poland | D83: 3.475 | E83: 1 | F83: 3.475 | G83: =MAX(J83:BC83) -> 3.475 | I83: fekete amur | J83: 3.475
A84: B1 | B84: =kod!B13 -> Gát, közepes víz | C84: =kod!C13 -> Tata Nitu Carp Team | D84: =SUM(D85:D90) -> 71.625 | E84: =SUM(E85:E90) -> 14 | F84: =IF(E84=0,0,D84/E84) -> 5.116071429 | G84: =MAX(G85:G90) -> 7.8 | H84: =H88 -> 0 | I84: ÖSSZESEN | J84: =COUNTIFS($J85:$BB90,">9,99",$J85:$BB90,"<20") -> 0 | K84: =COUNTIFS($J85:$BB90,">19,99") -> 0 | L84: =COUNTIFS($J88:$BA88,">4,99",$J88:$BA88,"<9,99") -> 0 | M84: =COUNTIFS($J88:$BB88,">9,99") -> 0
A85: B1 | B85: =kod!B13 -> Gát, közepes víz | C85: =kod!C13 -> Tata Nitu Carp Team | D85: =SUM(J85:AZ85) -> 0 | E85: =COUNT(J85:AZ85) -> 0 | F85: =IF(E85=0,0,D85/E85) -> 0 | G85: =MAX(J85:BC85) -> 0 | I85: tükörponty
A86: B1 | B86: =kod!B13 -> Gát, közepes víz | C86: =kod!C13 -> Tata Nitu Carp Team | D86: 51.625 | E86: 10 | F86: 5.1625 | G86: =MAX(J86:BC86) -> 7.8 | I86: tőponty | J86: 3.375 | K86: 2.275 | L86: 2.775 | M86: 7.5 | N86: 7 | O86: 7.8 | P86: 4.05 | Q86: 6.825 | R86: 6.925 | S86: 3.1
A87: B1 | B87: =kod!B13 -> Gát, közepes víz | C87: =kod!C13 -> Tata Nitu Carp Team | D87: 9.95 | E87: 2 | F87: 4.975 | G87: =MAX(J87:BC87) -> 6.95 | I87: nyurgaponty | J87: 6.95 | K87: 3
A88: B1 | B88: =kod!B13 -> Gát, közepes víz | C88: =kod!C13 -> Tata Nitu Carp Team | D88: 0 | E88: 0 | F88: 0 | H88: =MAX(J88:AZ88) -> 0 | I88: koi ponty
A89: B1 | B89: =kod!B13 -> Gát, közepes víz | C89: =kod!C13 -> Tata Nitu Carp Team | D89: 6.65 | E89: 1 | F89: 6.65 | G89: =MAX(J89:BC89) -> 6.65 | I89: amur | J89: 6.65
A90: B1 | B90: =kod!B13 -> Gát, közepes víz | C90: =kod!C13 -> Tata Nitu Carp Team | D90: 3.4 | E90: 1 | F90: 3.4 | G90: =MAX(J90:BC90) -> 3.4 | I90: fekete amur | J90: 3.4
A91: B2 | B91: =kod!B14 -> Gát, közepes víz | C91: =kod!C14 -> Slovakia Carp Team | D91: =SUM(D92:D97) -> 1.925 | E91: =SUM(E92:E97) -> 1 | F91: 1.925 | G91: =MAX(G92:G97) -> 1.925 | H91: =H95 -> 0 | I91: ÖSSZESEN | J91: =COUNTIFS($J92:$BB97,">9,99",$J92:$BB97,"<20") -> 0 | K91: =COUNTIFS($J92:$BB97,">19,99") -> 0 | L91: =COUNTIFS($J95:$BA95,">4,99",$J95:$BA95,"<9,99") -> 0 | M91: =COUNTIFS($J95:$BB95,">9,99") -> 0
A92: B2 | B92: =kod!B14 -> Gát, közepes víz | C92: =kod!C14 -> Slovakia Carp Team | D92: =SUM(J92:AZ92) -> 0 | E92: =COUNT(J92:AZ92) -> 0 | F92: 0 | G92: =MAX(J92:BC92) -> 0 | I92: tükörponty
A93: B2 | B93: =kod!B14 -> Gát, közepes víz | C93: =kod!C14 -> Slovakia Carp Team | D93: 1.925 | E93: 1 | F93: 1.925 | G93: =MAX(J93:BC93) -> 1.925 | I93: tőponty | J93: 1.925
A94: B2 | B94: =kod!B14 -> Gát, közepes víz | C94: =kod!C14 -> Slovakia Carp Team | D94: 0 | E94: 0 | F94: 0 | G94: =MAX(J94:BC94) -> 0 | I94: nyurgaponty
A95: B2 | B95: =kod!B14 -> Gát, közepes víz | C95: =kod!C14 -> Slovakia Carp Team | D95: 0 | E95: 0 | F95: 0 | H95: =MAX(J95:AZ95) -> 0 | I95: koi ponty
A96: B2 | B96: =kod!B14 -> Gát, közepes víz | C96: =kod!C14 -> Slovakia Carp Team | D96: 0 | E96: 0 | F96: 0 | G96: =MAX(J96:BC96) -> 0 | I96: amur
A97: B2 | B97: =kod!B14 -> Gát, közepes víz | C97: =kod!C14 -> Slovakia Carp Team | D97: 0 | E97: 0 | F97: 0 | G97: =MAX(J97:BC97) -> 0 | I97: fekete amur
A98: B3 | B98: =kod!B15 -> Gát, közepes víz | C98: =kod!C15 -> WLC Hungary | D98: =SUM(D99:D104) -> 182.25 | E98: =SUM(E99:E104) -> 21 | F98: 8.678571429 | G98: =MAX(G99:G104) -> 14.8 | H98: =H102 -> 13.95 | I98: ÖSSZESEN | J98: =COUNTIFS($J99:$BB104,">9,99",$J99:$BB104,"<20") -> 7 | K98: =COUNTIFS($J99:$BB104,">19,99") -> 0 | L98: =COUNTIFS($J102:$BA102,">4,99",$J102:$BA102,"<9,99") -> 0 | M98: =COUNTIFS($J102:$BB102,">9,99") -> 1
A99: B3 | B99: =kod!B15 -> Gát, közepes víz | C99: =kod!C15 -> WLC Hungary | D99: =SUM(J99:AZ99) -> 45 | E99: =COUNT(J99:AZ99) -> 4 | F99: 11.25 | G99: =MAX(J99:BC99) -> 14 | I99: tükörponty | J99: 8.025 | K99: 10.2 | L99: 14 | M99: 12.775
A100: B3 | B100: =kod!B15 -> Gát, közepes víz | C100: =kod!C15 -> WLC Hungary | D100: 46.425 | E100: 6 | F100: 7.7375 | G100: =MAX(J100:BC100) -> 9.725 | I100: tőponty | J100: 6.95 | K100: 9.725 | L100: 6.825 | M100: 7.6 | N100: 7.1 | O100: 8.225
A101: B3 | B101: =kod!B15 -> Gát, közepes víz | C101: =kod!C15 -> WLC Hungary | D101: 64.875 | E101: 7 | F101: 9.267857143 | G101: =MAX(J101:BC101) -> 14.8 | I101: nyurgaponty | J101: 7.45 | K101: 7.65 | L101: 10.525 | M101: 7.45 | N101: 10.525 | O101: 14.8 | P101: 6.475
A102: B3 | B102: =kod!B15 -> Gát, közepes víz | C102: =kod!C15 -> WLC Hungary | D102: 13.95 | E102: 1 | F102: 13.95 | H102: =MAX(J102:AZ102) -> 13.95 | I102: koi ponty | J102: 13.95
A103: B3 | B103: =kod!B15 -> Gát, közepes víz | C103: =kod!C15 -> WLC Hungary | D103: 0 | E103: 0 | F103: 0 | G103: =MAX(J103:BC103) -> 0 | I103: amur
A104: B3 | B104: =kod!B15 -> Gát, közepes víz | C104: =kod!C15 -> WLC Hungary | D104: 12 | E104: 3 | F104: 4 | G104: =MAX(J104:BC104) -> 4.5 | I104: fekete amur | J104: 3.35 | K104: 4.5 | L104: 4.15
A105: B4 | B105: =kod!B16 -> Gát, közepes víz | C105: =kod!C16 -> Barfin Line NSD Bulgaria | D105: =SUM(D106:D111) -> 123.025 | E105: =SUM(E106:E111) -> 15 | F105: 8.201666667 | G105: =MAX(G106:G111) -> 14.275 | H105: =H109 -> 10.25 | I105: ÖSSZESEN | J105: =COUNTIFS($J106:$BB111,">9,99",$J106:$BB111,"<20") -> 5 | K105: =COUNTIFS($J106:$BB111,">19,99") -> 0 | L105: =COUNTIFS($J109:$BA109,">4,99",$J109:$BA109,"<9,99") -> 1 | M105: =COUNTIFS($J109:$BB109,">9,99") -> 1
A106: B4 | B106: =kod!B16 -> Gát, közepes víz | C106: =kod!C16 -> Barfin Line NSD Bulgaria | D106: =SUM(J106:AZ106) -> 10.175 | E106: =COUNT(J106:AZ106) -> 1 | F106: 10.175 | G106: =MAX(J106:BC106) -> 10.175 | I106: tükörponty | J106: 10.175
A107: B4 | B107: =kod!B16 -> Gát, közepes víz | C107: =kod!C16 -> Barfin Line NSD Bulgaria | D107: 30.95 | E107: 4 | F107: 7.7375 | G107: 8.825 | I107: tőponty | J107: 7.25 | K107: 6.525 | L107: 8.35 | M107: 8.825
A108: B4 | B108: =kod!B16 -> Gát, közepes víz | C108: =kod!C16 -> Barfin Line NSD Bulgaria | D108: 36.725 | E108: 4 | F108: 9.18125 | G108: 10.175 | I108: nyurgaponty | J108: 10.175 | K108: 7 | L108: 10.125 | M108: 9.425
A109: B4 | B109: =kod!B16 -> Gát, közepes víz | C109: =kod!C16 -> Barfin Line NSD Bulgaria | D109: 19.825 | E109: 2 | F109: 9.9125 | G109: 10.25 | H109: =MAX(J109:AZ109) -> 10.25 | I109: koi ponty | J109: 9.575 | K109: 10.25
A110: B4 | B110: =kod!B16 -> Gát, közepes víz | C110: =kod!C16 -> Barfin Line NSD Bulgaria | D110: 0 | E110: 0 | F110: 0 | G110: 0 | I110: amur
A111: B4 | B111: =kod!B16 -> Gát, közepes víz | C111: =kod!C16 -> Barfin Line NSD Bulgaria | D111: 25.35 | E111: 4 | F111: 6.3375 | G111: 14.275 | I111: fekete amur | J111: 14.275 | K111: 5.1 | L111: 3.2 | M111: 2.775
A112: B5 | B112: =kod!B17 -> Gát, közepes víz | C112: =kod!C17 -> Lutra Carp Hunters | D112: =SUM(D113:D118) -> 30.025 | E112: =SUM(E113:E118) -> 3 | F112: 10.00833333 | G112: =MAX(G113:G118) -> 11.55 | H112: =H116 -> 0 | I112: ÖSSZESEN | J112: =COUNTIFS($J113:$BB118,">9,99",$J113:$BB118,"<20") -> 2 | K112: =COUNTIFS($J113:$BB118,">19,99") -> 0 | L112: =COUNTIFS($J116:$BA116,">4,99",$J116:$BA116,"<9,99") -> 0 | M112: =COUNTIFS($J116:$BB116,">9,99") -> 0
A113: B5 | B113: =kod!B17 -> Gát, közepes víz | C113: =kod!C17 -> Lutra Carp Hunters | D113: =SUM(J113:AZ113) -> 0 | E113: =COUNT(J113:AZ113) -> 0 | F113: 0 | G113: =MAX(J113:BC113) -> 0 | I113: tükörponty
A114: B5 | B114: =kod!B17 -> Gát, közepes víz | C114: =kod!C17 -> Lutra Carp Hunters | D114: 0 | E114: 0 | F114: 0 | G114: =MAX(J114:BC114) -> 0 | I114: tőponty
A115: B5 | B115: =kod!B17 -> Gát, közepes víz | C115: =kod!C17 -> Lutra Carp Hunters | D115: 30.025 | E115: 3 | F115: 10.00833333 | G115: =MAX(J115:BC115) -> 11.55 | I115: nyurgaponty | J115: 8 | K115: 10.475 | L115: 11.55
A116: B5 | B116: =kod!B17 -> Gát, közepes víz | C116: =kod!C17 -> Lutra Carp Hunters | D116: 0 | E116: 0 | F116: 0 | H116: =MAX(J116:AZ116) -> 0 | I116: koi ponty
A117: B5 | B117: =kod!B17 -> Gát, közepes víz | C117: =kod!C17 -> Lutra Carp Hunters | D117: 0 | E117: 0 | F117: 0 | G117: =MAX(J117:BC117) -> 0 | I117: amur
A118: B5 | B118: =kod!B17 -> Gát, közepes víz | C118: =kod!C17 -> Lutra Carp Hunters | D118: 0 | E118: 0 | F118: 0 | G118: =MAX(J118:BC118) -> 0 | I118: fekete amur
A119: B6 | B119: =kod!B18 -> Gát, közepes víz | C119: =kod!C18 -> Xtra Carp Team | D119: =SUM(D120:D125) -> 96.6 | E119: =SUM(E120:E125) -> 9 | F119: 10.73333333 | G119: =MAX(G120:G125) -> 14.9 | H119: =H123 -> 10.25 | I119: ÖSSZESEN | J119: =COUNTIFS($J120:$BB125,">9,99",$J120:$BB125,"<20") -> 6 | K119: =COUNTIFS($J120:$BB125,">19,99") -> 0 | L119: =COUNTIFS($J123:$BA123,">4,99",$J123:$BA123,"<9,99") -> 0 | M119: =COUNTIFS($J123:$BB123,">9,99") -> 1
A120: B6 | B120: =kod!B18 -> Gát, közepes víz | C120: =kod!C18 -> Xtra Carp Team | D120: =SUM(J120:AZ120) -> 31.45 | E120: =COUNT(J120:AZ120) -> 3 | F120: 10.48333333 | G120: =MAX(J120:BC120) -> 14.9 | I120: tükörponty | J120: 4.875 | K120: 11.675 | L120: 14.9
A121: B6 | B121: =kod!B18 -> Gát, közepes víz | C121: =kod!C18 -> Xtra Carp Team | D121: 0 | E121: 0 | F121: 0 | G121: =MAX(J121:BC121) -> 0 | I121: tőponty
A122: B6 | B122: =kod!B18 -> Gát, közepes víz | C122: =kod!C18 -> Xtra Carp Team | D122: 54.9 | E122: 5 | F122: 10.98 | G122: =MAX(J122:BC122) -> 13.35 | I122: nyurgaponty | J122: 13.35 | K122: 11.25 | L122: 13.25 | M122: 9.4 | N122: 7.65
A123: B6 | B123: =kod!B18 -> Gát, közepes víz | C123: =kod!C18 -> Xtra Carp Team | D123: 10.25 | E123: 1 | F123: 10.25 | H123: =MAX(J123:AZ123) -> 10.25 | I123: koi ponty | J123: 10.25
A124: B6 | B124: =kod!B18 -> Gát, közepes víz | C124: =kod!C18 -> Xtra Carp Team | D124: 0 | E124: 0 | F124: 0 | G124: =MAX(J124:BC124) -> 0 | I124: amur
A125: B6 | B125: =kod!B18 -> Gát, közepes víz | C125: =kod!C18 -> Xtra Carp Team | D125: 0 | E125: 0 | F125: 0 | G125: =MAX(J125:BC125) -> 0 | I125: fekete amur
A126: B7 | B126: =kod!B19 -> I. sziget, jobb közép | C126: =kod!C19 -> Elite Carp Team Brasov | D126: =SUM(D127:D132) -> 102.775 | E126: =SUM(E127:E132) -> 11 | F126: 9.343181818 | G126: =MAX(G127:G132) -> 14.55 | H126: =H130 -> 7.775 | I126: ÖSSZESEN | J126: =COUNTIFS($J127:$BB132,">9,99",$J127:$BB132,"<20") -> 5 | K126: =COUNTIFS($J127:$BB132,">19,99") -> 0 | L126: =COUNTIFS($J130:$BA130,">4,99",$J130:$BA130,"<9,99") -> 1 | M126: =COUNTIFS($J130:$BB130,">9,99") -> 0
A127: B7 | B127: =kod!B19 -> I. sziget, jobb közép | C127: =kod!C19 -> Elite Carp Team Brasov | D127: =SUM(J127:AZ127) -> 24.375 | E127: =COUNT(J127:AZ127) -> 2 | F127: 12.1875 | G127: =MAX(J127:BC127) -> 13.975 | I127: tükörponty | J127: 10.4 | K127: 13.975
A128: B7 | B128: =kod!B19 -> I. sziget, jobb közép | C128: =kod!C19 -> Elite Carp Team Brasov | D128: 22.35 | E128: 3 | F128: 7.45 | G128: =MAX(J128:BC128) -> 7.85 | I128: tőponty | J128: 7.85 | K128: 7.15 | L128: 7.35
A129: B7 | B129: =kod!B19 -> I. sziget, jobb közép | C129: =kod!C19 -> Elite Carp Team Brasov | D129: 45.1 | E129: 4 | F129: 11.275 | G129: =MAX(J129:BC129) -> 14.55 | I129: nyurgaponty | J129: 14.55 | K129: 6.325 | L129: 11.6 | M129: 12.625
A130: B7 | B130: =kod!B19 -> I. sziget, jobb közép | C130: =kod!C19 -> Elite Carp Team Brasov | D130: 10.95 | E130: 2 | F130: 5.475 | H130: =MAX(J130:AZ130) -> 7.775 | I130: koi ponty | J130: 7.775 | K130: 3.175
A131: B7 | B131: =kod!B19 -> I. sziget, jobb közép | C131: =kod!C19 -> Elite Carp Team Brasov | D131: 0 | E131: 0 | F131: 0 | G131: =MAX(J131:BC131) -> 0 | I131: amur
A132: B7 | B132: =kod!B19 -> I. sziget, jobb közép | C132: =kod!C19 -> Elite Carp Team Brasov | D132: 0 | E132: 0 | F132: 0 | G132: =MAX(J132:BC132) -> 0 | I132: fekete amur
A133: B8 | B133: =kod!B20 -> I. sziget, jobb | C133: =kod!C20 -> CT777 Varna Bulgaria | D133: =SUM(D134:D139) -> 149.425 | E133: =SUM(E134:E139) -> 17 | F133: 8.789705882 | G133: =MAX(G134:G139) -> 16.575 | H133: =H137 -> 0 | I133: ÖSSZESEN | J133: =COUNTIFS($J134:$BB139,">9,99",$J134:$BB139,"<20") -> 4 | K133: =COUNTIFS($J134:$BB139,">19,99") -> 0 | L133: =COUNTIFS($J137:$BA137,">4,99",$J137:$BA137,"<9,99") -> 0 | M133: =COUNTIFS($J137:$BB137,">9,99") -> 0
A134: B8 | B134: =kod!B20 -> I. sziget, jobb | C134: =kod!C20 -> CT777 Varna Bulgaria | D134: =SUM(J134:AZ134) -> 15.6 | E134: =COUNT(J134:AZ134) -> 2 | F134: 7.8 | G134: =MAX(J134:BC134) -> 8.375 | I134: tükörponty | J134: 7.225 | K134: 8.375
A135: B8 | B135: =kod!B20 -> I. sziget, jobb | C135: =kod!C20 -> CT777 Varna Bulgaria | D135: 58.125 | E135: 7 | F135: 8.303571429 | G135: 11.55 | I135: tőponty | J135: 9.65 | K135: 7.875 | L135: 4.15 | M135: 7.525 | N135: 8.6 | O135: 8.775 | P135: 11.55
A136: B8 | B136: =kod!B20 -> I. sziget, jobb | C136: =kod!C20 -> CT777 Varna Bulgaria | D136: 71.125 | E136: 7 | F136: 10.16071429 | G136: 16.575 | I136: nyurgaponty | J136: 12.175 | K136: 8.675 | L136: 8.375 | M136: 13.3 | N136: 7.625 | O136: 4.4 | P136: 16.575
A137: B8 | B137: =kod!B20 -> I. sziget, jobb | C137: =kod!C20 -> CT777 Varna Bulgaria | D137: 0 | E137: 0 | F137: 0 | G137: 0 | H137: =MAX(J137:AZ137) -> 0 | I137: koi ponty
A138: B8 | B138: =kod!B20 -> I. sziget, jobb | C138: =kod!C20 -> CT777 Varna Bulgaria | D138: 0 | E138: 0 | F138: 0 | G138: 0 | I138: amur
A139: B8 | B139: =kod!B20 -> I. sziget, jobb | C139: =kod!C20 -> CT777 Varna Bulgaria | D139: 4.575 | E139: 1 | F139: 4.575 | G139: 4.575 | I139: fekete amur | J139: 4.575
A140: B9 | B140: =kod!B21 -> I. sziget, jobb külső | C140: =kod!C21 -> Bait Maker Team | D140: =SUM(D141:D146) -> 134.4 | E140: =SUM(E141:E146) -> 14 | F140: 9.6 | G140: =MAX(G141:G146) -> 15.45 | H140: =H144 -> 0 | I140: ÖSSZESEN | J140: =COUNTIFS($J141:$BB146,">9,99",$J141:$BB146,"<20") -> 5 | K140: =COUNTIFS($J141:$BB146,">19,99") -> 0 | L140: =COUNTIFS($J144:$BA144,">4,99",$J144:$BA144,"<9,99") -> 0 | M140: =COUNTIFS($J144:$BB144,">9,99") -> 0
A141: B9 | B141: =kod!B21 -> I. sziget, jobb külső | C141: =kod!C21 -> Bait Maker Team | D141: =SUM(J141:AZ141) -> 37 | E141: =COUNT(J141:AZ141) -> 3 | F141: =IF(E141=0,0,D141/E141) -> 12.33333333 | G141: =MAX(J141:BC141) -> 15.45 | I141: tükörponty | J141: 15.45 | K141: 8.725 | L141: 12.825
A142: B9 | B142: =kod!B21 -> I. sziget, jobb külső | C142: =kod!C21 -> Bait Maker Team | D142: 32.325 | E142: 4 | F142: 8.08125 | G142: 8.85 | I142: tőponty | J142: 7.125 | K142: 8.475 | L142: 7.875 | M142: 8.85
A143: B9 | B143: =kod!B21 -> I. sziget, jobb külső | C143: =kod!C21 -> Bait Maker Team | D143: 65.075 | E143: 7 | F143: 9.296428571 | G143: 15.175 | I143: nyurgaponty | J143: 10.075 | K143: 8.775 | L143: 7.425 | M143: 10.875 | N143: 5.825 | O143: 6.925 | P143: 15.175
A144: B9 | B144: =kod!B21 -> I. sziget, jobb külső | C144: =kod!C21 -> Bait Maker Team | D144: 0 | E144: 0 | F144: 0 | G144: 0 | H144: =MAX(J144:AZ144) -> 0 | I144: koi ponty
A145: B9 | B145: =kod!B21 -> I. sziget, jobb külső | C145: =kod!C21 -> Bait Maker Team | D145: 0 | E145: 0 | F145: 0 | G145: 0 | I145: amur
A146: B9 | B146: =kod!B21 -> I. sziget, jobb külső | C146: =kod!C21 -> Bait Maker Team | D146: 0 | E146: 0 | F146: 0 | G146: 0 | I146: fekete amur
A147: B10 | B147: =kod!B22 -> Felező-spicc, bal | C147: =kod!C22 -> SBS - SziKo Team | D147: =SUM(D148:D153) -> 7.9 | E147: =SUM(E148:E153) -> 1 | F147: 7.9 | G147: =MAX(G148:G153) -> 0 | H147: =H151 -> 7.9 | I147: ÖSSZESEN | J147: =COUNTIFS($J148:$BB153,">9,99",$J148:$BB153,"<20") -> 0 | K147: =COUNTIFS($J148:$BB153,">19,99") -> 0 | L147: =COUNTIFS($J151:$BA151,">4,99",$J151:$BA151,"<9,99") -> 1 | M147: =COUNTIFS($J151:$BB151,">9,99") -> 0
A148: B10 | B148: =kod!B22 -> Felező-spicc, bal | C148: =kod!C22 -> SBS - SziKo Team | D148: =SUM(J148:AZ148) -> 0 | E148: =COUNT(J148:AZ148) -> 0 | F148: 0 | G148: =MAX(J148:BC148) -> 0 | I148: tükörponty
A149: B10 | B149: =kod!B22 -> Felező-spicc, bal | C149: =kod!C22 -> SBS - SziKo Team | D149: 0 | E149: 0 | F149: 0 | G149: =MAX(J149:BC149) -> 0 | I149: tőponty
A150: B10 | B150: =kod!B22 -> Felező-spicc, bal | C150: =kod!C22 -> SBS - SziKo Team | D150: 0 | E150: 0 | F150: 0 | G150: =MAX(J150:BC150) -> 0 | I150: nyurgaponty
A151: B10 | B151: =kod!B22 -> Felező-spicc, bal | C151: =kod!C22 -> SBS - SziKo Team | D151: 7.9 | E151: 1 | F151: 7.9 | H151: =MAX(J151:AZ151) -> 7.9 | I151: koi ponty | J151: 7.9
A152: B10 | B152: =kod!B22 -> Felező-spicc, bal | C152: =kod!C22 -> SBS - SziKo Team | D152: 0 | E152: 0 | F152: 0 | G152: =MAX(J152:BC152) -> 0 | I152: amur
A153: B10 | B153: =kod!B22 -> Felező-spicc, bal | C153: =kod!C22 -> SBS - SziKo Team | D153: 0 | E153: 0 | F153: 0 | G153: =MAX(J153:BC153) -> 0 | I153: fekete amur
A154: B11 | B154: =kod!B23 -> Felező-spicc, közép | C154: =kod!C23 -> Síp Carp Team | D154: =SUM(D155:D160) -> 23.05 | E154: =SUM(E155:E160) -> 3 | F154: 7.683333333 | G154: =MAX(G155:G160) -> 9.1 | H154: =H158 -> 0 | I154: ÖSSZESEN | J154: =COUNTIFS($J155:$BB160,">9,99",$J155:$BB160,"<20") -> 0 | K154: =COUNTIFS($J155:$BB160,">19,99") -> 0 | L154: =COUNTIFS($J158:$BA158,">4,99",$J158:$BA158,"<9,99") -> 0 | M154: =COUNTIFS($J158:$BB158,">9,99") -> 0
A155: B11 | B155: =kod!B23 -> Felező-spicc, közép | C155: =kod!C23 -> Síp Carp Team | D155: =SUM(J155:AZ155) -> 0 | E155: =COUNT(J155:AZ155) -> 0 | F155: 0 | G155: =MAX(J155:BC155) -> 0 | I155: tükörponty
A156: B11 | B156: =kod!B23 -> Felező-spicc, közép | C156: =kod!C23 -> Síp Carp Team | D156: 15.45 | E156: 2 | F156: 7.725 | G156: 9.1 | I156: tőponty | J156: 6.35 | K156: 9.1
A157: B11 | B157: =kod!B23 -> Felező-spicc, közép | C157: =kod!C23 -> Síp Carp Team | D157: 7.6 | E157: 1 | F157: 7.6 | G157: 7.6 | I157: nyurgaponty | J157: 7.6
A158: B11 | B158: =kod!B23 -> Felező-spicc, közép | C158: =kod!C23 -> Síp Carp Team | D158: 0 | E158: 0 | F158: 0 | H158: =MAX(J158:AZ158) -> 0 | I158: koi ponty
A159: B11 | B159: =kod!B23 -> Felező-spicc, közép | C159: =kod!C23 -> Síp Carp Team | D159: 0 | E159: 0 | F159: 0 | G159: =MAX(J159:BC159) -> 0 | I159: amur
A160: B11 | B160: =kod!B23 -> Felező-spicc, közép | C160: =kod!C23 -> Síp Carp Team | D160: 0 | E160: 0 | F160: 0 | G160: 0 | I160: fekete amur
A161: C1 | B161: =kod!B24 -> Gát, sekély víz | C161: =kod!C24 -> Carp Fever Bulgaria | D161: =SUM(D162:D167) -> 76.5 | E161: =SUM(E162:E167) -> 17 | F161: =IF(E161=0,0,D161/E161) -> 4.5 | G161: =MAX(G162:G167) -> 10 | H161: =H165 -> 0 | I161: ÖSSZESEN | J161: =COUNTIFS($J162:$BB167,">9,99",$J162:$BB167,"<20") -> 1 | K161: =COUNTIFS($J162:$BB167,">19,99") -> 0 | L161: =COUNTIFS($J165:$BA165,">4,99",$J165:$BA165,"<9,99") -> 0 | M161: =COUNTIFS($J165:$BB165,">9,99") -> 0
A162: C1 | B162: =kod!B24 -> Gát, sekély víz | C162: =kod!C24 -> Carp Fever Bulgaria | D162: =SUM(J162:AZ162) -> 9.8 | E162: =COUNT(J162:AZ162) -> 2 | F162: =IF(E162=0,0,D162/E162) -> 4.9 | G162: =MAX(J162:BC162) -> 8 | I162: tükörponty | J162: 1.8 | K162: 8
A163: C1 | B163: =kod!B24 -> Gát, sekély víz | C163: =kod!C24 -> Carp Fever Bulgaria | D163: 23.75 | E163: 9 | F163: 2.638888889 | G163: =MAX(J163:BC163) -> 8.075 | I163: tőponty | J163: 2.15 | K163: 1.775 | L163: 1.875 | M163: 2.3 | N163: 1.825 | O163: 1.775 | P163: 2.6 | Q163: 1.375 | R163: 8.075
A164: C1 | B164: =kod!B24 -> Gát, sekély víz | C164: =kod!C24 -> Carp Fever Bulgaria | D164: 32.95 | E164: 5 | F164: 6.59 | G164: =MAX(J164:BC164) -> 8.7 | I164: nyurgaponty | J164: 8.7 | K164: 5.875 | L164: 5.825 | M164: 4.7 | N164: 7.85
A165: C1 | B165: =kod!B24 -> Gát, sekély víz | C165: =kod!C24 -> Carp Fever Bulgaria | D165: 0 | E165: 0 | F165: 0 | H165: =MAX(J165:AZ165) -> 0 | I165: koi ponty
A166: C1 | B166: =kod!B24 -> Gát, sekély víz | C166: =kod!C24 -> Carp Fever Bulgaria | D166: 10 | E166: 1 | F166: 10 | G166: =MAX(J166:BC166) -> 10 | I166: amur | J166: 10
A167: C1 | B167: =kod!B24 -> Gát, sekély víz | C167: =kod!C24 -> Carp Fever Bulgaria | D167: 0 | E167: 0 | F167: 0 | G167: =MAX(J167:BC167) -> 0 | I167: fekete amur
A168: C2 | B168: =kod!B25 -> Gát, sekély víz | C168: =kod!C25 -> Carpfriends Ennstal-Austria | D168: =SUM(D169:D174) -> 108.7 | E168: =SUM(E169:E174) -> 13 | F168: 8.361538462 | G168: =MAX(G169:G174) -> 11.75 | H168: =H172 -> 7.175 | I168: ÖSSZESEN | J168: =COUNTIFS($J169:$BB174,">9,99",$J169:$BB174,"<20") -> 3 | K168: =COUNTIFS($J169:$BB174,">19,99") -> 0 | L168: =COUNTIFS($J172:$BA172,">4,99",$J172:$BA172,"<9,99") -> 2 | M168: =COUNTIFS($J172:$BB172,">9,99") -> 0
A169: C2 | B169: =kod!B25 -> Gát, sekély víz | C169: =kod!C25 -> Carpfriends Ennstal-Austria | D169: =SUM(J169:AZ169) -> 43.35 | E169: =COUNT(J169:AZ169) -> 6 | F169: 7.225 | G169: =MAX(J169:BC169) -> 9.725 | I169: tükörponty | J169: 7.675 | K169: 5.7 | L169: 5.4 | M169: 7.925 | N169: 6.925 | O169: 9.725
A170: C2 | B170: =kod!B25 -> Gát, sekély víz | C170: =kod!C25 -> Carpfriends Ennstal-Austria | D170: 0 | E170: 0 | F170: 0 | G170: =MAX(J170:BC170) -> 0 | I170: tőponty
A171: C2 | B171: =kod!B25 -> Gát, sekély víz | C171: =kod!C25 -> Carpfriends Ennstal-Austria | D171: 51.025 | E171: 5 | F171: 10.205 | G171: =MAX(J171:BC171) -> 11.75 | I171: nyurgaponty | J171: 7.35 | K171: 10.575 | L171: 11.75 | M171: 9.6 | N171: 11.75
A172: C2 | B172: =kod!B25 -> Gát, sekély víz | C172: =kod!C25 -> Carpfriends Ennstal-Austria | D172: 14.325 | E172: 2 | F172: 7.1625 | H172: =MAX(J172:AZ172) -> 7.175 | I172: koi ponty | J172: 7.15 | K172: 7.175
A173: C2 | B173: =kod!B25 -> Gát, sekély víz | C173: =kod!C25 -> Carpfriends Ennstal-Austria | D173: 0 | E173: 0 | F173: 0 | G173: =MAX(J173:BC173) -> 0 | I173: amur
A174: C2 | B174: =kod!B25 -> Gát, sekély víz | C174: =kod!C25 -> Carpfriends Ennstal-Austria | D174: 0 | E174: 0 | F174: 0 | G174: =MAX(J174:BC174) -> 0 | I174: fekete amur
A175: C3 | B175: =kod!B26 -> Gát, sekély víz | C175: =kod!C26 -> Carp Team Brasov | D175: =SUM(D176:D181) -> 11.175 | E175: =SUM(E176:E181) -> 3 | F175: 3.725 | G175: =MAX(G176:G181) -> 8.025 | H175: =H179 -> 0 | I175: ÖSSZESEN | J175: =COUNTIFS($J176:$BB181,">9,99",$J176:$BB181,"<20") -> 0 | K175: =COUNTIFS($J176:$BB181,">19,99") -> 0 | L175: =COUNTIFS($J179:$BA179,">4,99",$J179:$BA179,"<9,99") -> 0 | M175: =COUNTIFS($J179:$BB179,">9,99") -> 0
A176: C3 | B176: =kod!B26 -> Gát, sekély víz | C176: =kod!C26 -> Carp Team Brasov | D176: =SUM(J176:AZ176) -> 1.425 | E176: =COUNT(J176:AZ176) -> 1 | F176: 1.425 | G176: =MAX(J176:BC176) -> 1.425 | I176: tükörponty | J176: 1.425
A177: C3 | B177: =kod!B26 -> Gát, sekély víz | C177: =kod!C26 -> Carp Team Brasov | D177: 9.75 | E177: 2 | F177: 4.875 | G177: =MAX(J177:BC177) -> 8.025 | I177: tőponty | J177: 8.025 | K177: 1.725
A178: C3 | B178: =kod!B26 -> Gát, sekély víz | C178: =kod!C26 -> Carp Team Brasov | D178: 0 | E178: 0 | F178: 0 | G178: =MAX(J178:BC178) -> 0 | I178: nyurgaponty
A179: C3 | B179: =kod!B26 -> Gát, sekély víz | C179: =kod!C26 -> Carp Team Brasov | D179: 0 | E179: 0 | F179: 0 | H179: =MAX(J179:AZ179) -> 0 | I179: koi ponty
A180: C3 | B180: =kod!B26 -> Gát, sekély víz | C180: =kod!C26 -> Carp Team Brasov | D180: 0 | E180: 0 | F180: 0 | G180: =MAX(J180:BC180) -> 0 | I180: amur
A181: C3 | B181: =kod!B26 -> Gát, sekély víz | C181: =kod!C26 -> Carp Team Brasov | D181: 0 | E181: 0 | F181: 0 | G181: =MAX(J181:BC181) -> 0 | I181: fekete amur
A182: C4 | B182: =kod!B27 -> Gát, sekély víz | C182: =kod!C27 -> As La Carp Team | D182: =SUM(D183:D188) -> 49.175 | E182: =SUM(E183:E188) -> 7 | F182: 7.025 | G182: =MAX(G183:G188) -> 14.625 | H182: =H186 -> 0 | I182: ÖSSZESEN | J182: =COUNTIFS($J183:$BB188,">9,99",$J183:$BB188,"<20") -> 1 | K182: =COUNTIFS($J183:$BB188,">19,99") -> 0 | L182: =COUNTIFS($J186:$BA186,">4,99",$J186:$BA186,"<9,99") -> 0 | M182: =COUNTIFS($J186:$BB186,">9,99") -> 0
A183: C4 | B183: =kod!B27 -> Gát, sekély víz | C183: =kod!C27 -> As La Carp Team | D183: =SUM(J183:AZ183) -> 14.625 | E183: =COUNT(J183:AZ183) -> 1 | F183: 14.625 | G183: =MAX(J183:BC183) -> 14.625 | I183: tükörponty | J183: 14.625
A184: C4 | B184: =kod!B27 -> Gát, sekély víz | C184: =kod!C27 -> As La Carp Team | D184: 28.475 | E184: 5 | F184: 5.695 | G184: 8.35 | I184: tőponty | J184: 6.7 | K184: 1.975 | L184: 4.675 | M184: 6.775 | N184: 8.35
A185: C4 | B185: =kod!B27 -> Gát, sekély víz | C185: =kod!C27 -> As La Carp Team | D185: 6.075 | E185: 1 | F185: 6.075 | G185: 6.075 | I185: nyurgaponty | J185: 6.075
A186: C4 | B186: =kod!B27 -> Gát, sekély víz | C186: =kod!C27 -> As La Carp Team | D186: 0 | E186: 0 | F186: 0 | G186: 0 | H186: =MAX(J186:AZ186) -> 0 | I186: koi ponty
A187: C4 | B187: =kod!B27 -> Gát, sekély víz | C187: =kod!C27 -> As La Carp Team | D187: 0 | E187: 0 | F187: 0 | G187: 0 | I187: amur
A188: C4 | B188: =kod!B27 -> Gát, sekély víz | C188: =kod!C27 -> As La Carp Team | D188: 0 | E188: 0 | F188: 0 | G188: 0 | I188: fekete amur
A189: C5 | B189: =kod!B28 -> Gát, sekély víz | C189: =kod!C28 -> Bojlis Főnök - Bait Bait Carp Team | D189: =SUM(D190:D195) -> 8.075 | E189: =SUM(E190:E195) -> 1 | F189: 8.075 | G189: =MAX(G190:G195) -> 8.075 | H189: =H193 -> 0 | I189: ÖSSZESEN | J189: =COUNTIFS($J190:$BB195,">9,99",$J190:$BB195,"<20") -> 0 | K189: =COUNTIFS($J190:$BB195,">19,99") -> 0 | L189: =COUNTIFS($J193:$BA193,">4,99",$J193:$BA193,"<9,99") -> 0 | M189: =COUNTIFS($J193:$BB193,">9,99") -> 0
A190: C5 | B190: =kod!B28 -> Gát, sekély víz | C190: =kod!C28 -> Bojlis Főnök - Bait Bait Carp Team | D190: =SUM(J190:AZ190) -> 0 | E190: =COUNT(J190:AZ190) -> 0 | F190: 0 | G190: =MAX(J190:BC190) -> 0 | I190: tükörponty
A191: C5 | B191: =kod!B28 -> Gát, sekély víz | C191: =kod!C28 -> Bojlis Főnök - Bait Bait Carp Team | D191: 8.075 | E191: 1 | F191: 8.075 | G191: =MAX(J191:BC191) -> 8.075 | I191: tőponty | J191: 8.075
A192: C5 | B192: =kod!B28 -> Gát, sekély víz | C192: =kod!C28 -> Bojlis Főnök - Bait Bait Carp Team | D192: 0 | E192: 0 | F192: 0 | G192: =MAX(J192:BC192) -> 0 | I192: nyurgaponty
A193: C5 | B193: =kod!B28 -> Gát, sekély víz | C193: =kod!C28 -> Bojlis Főnök - Bait Bait Carp Team | D193: 0 | E193: 0 | F193: 0 | H193: =MAX(J193:AZ193) -> 0 | I193: koi ponty
A194: C5 | B194: =kod!B28 -> Gát, sekély víz | C194: =kod!C28 -> Bojlis Főnök - Bait Bait Carp Team | D194: 0 | E194: 0 | F194: 0 | G194: =MAX(J194:BC194) -> 0 | I194: amur
A195: C5 | B195: =kod!B28 -> Gát, sekély víz | C195: =kod!C28 -> Bojlis Főnök - Bait Bait Carp Team | D195: 0 | E195: 0 | F195: 0 | G195: =MAX(J195:BC195) -> 0 | I195: fekete amur
A196: C6 | B196: =kod!B29 -> Felező-spicc, jobb | C196: =kod!C29 -> Secret Of The Carp | D196: =SUM(D197:D202) -> 52.725 | E196: =SUM(E197:E202) -> 7 | F196: 7.532142857 | G196: =MAX(G197:G202) -> 10.875 | H196: =H200 -> 0 | I196: ÖSSZESEN | J196: =COUNTIFS($J197:$BB202,">9,99",$J197:$BB202,"<20") -> 2 | K196: =COUNTIFS($J197:$BB202,">19,99") -> 0 | L196: =COUNTIFS($J200:$BA200,">4,99",$J200:$BA200,"<9,99") -> 0 | M196: =COUNTIFS($J200:$BB200,">9,99") -> 0
A197: C6 | B197: =kod!B29 -> Felező-spicc, jobb | C197: =kod!C29 -> Secret Of The Carp | D197: =SUM(J197:AZ197) -> 10.75 | E197: =COUNT(J197:AZ197) -> 1 | F197: 10.75 | G197: =MAX(J197:BC197) -> 10.75 | I197: tükörponty | J197: 10.75
A198: C6 | B198: =kod!B29 -> Felező-spicc, jobb | C198: =kod!C29 -> Secret Of The Carp | D198: 11.825 | E198: 2 | F198: 5.9125 | G198: 8.25 | I198: tőponty | J198: 3.575 | K198: 8.25
A199: C6 | B199: =kod!B29 -> Felező-spicc, jobb | C199: =kod!C29 -> Secret Of The Carp | D199: 30.15 | E199: 4 | F199: 7.5375 | G199: 10.875 | I199: nyurgaponty | J199: 10.875 | K199: 8.575 | L199: 5.475 | M199: 5.225
A200: C6 | B200: =kod!B29 -> Felező-spicc, jobb | C200: =kod!C29 -> Secret Of The Carp | D200: 0 | E200: 0 | F200: 0 | G200: 0 | H200: =MAX(J200:AZ200) -> 0 | I200: koi ponty
... 38 more rows

Sheet szakasz3
A1: =IF(kod!E2>0,kod!E2,"") -> XXI. PROFESSZIONÁLIS BOJLIS EURÓPA KUPA (EPBC)
A2: =IF(kod!E3>0,kod!E3,"") -> XXXVI. MACONKA NEMZETKÖZI BOJLIS KUPA
A3: =IF(kod!E4>0,kod!E4,"") -> Maconka, 2025.06.15. - 2025.06.20.
A4: =IF(kod!E5>0,kod!E5,"") -> 
A5: =kod!E9 -> 3. szakasz: 2025.06.16. 18:00 - 2025.06.17. 06:00
A6: Rajthely | B6: Elhelyezés | C6: Csapatnév | D6: Kg | E6: Db | F6: Átlag | G6: BC | H6: BkC | I6: Faj | J6: 10-20 kg | K6: 20+ kg | L6: koi 5-10 kg | M6: koi 10+ kg
A7: A1 | B7: =kod!B2 -> Gát, mélyvíz | C7: =kod!C2 -> SBS - Halcatraz - TiZo Team | D7: =SUM(D8:D13) -> 40.525 | E7: =SUM(E8:E13) -> 3 | F7: =IF(E7=0,0,D7/E7) -> 13.50833333 | G7: =MAX(G8:G13) -> 17 | H7: =H11 -> 0 | I7: ÖSSZESEN | J7: =COUNTIFS($J8:$BB13,">9,99",$J8:$BB13,"<20") -> 2 | K7: =COUNTIFS($J8:$BB13,">19,99") -> 0 | L7: =COUNTIFS($J11:$BA11,">4,99",$J11:$BA11,"<9,99") -> 0 | M7: =COUNTIFS($J11:$BB11,">9,99") -> 0
A8: A1 | B8: =kod!B2 -> Gát, mélyvíz | C8: =kod!C2 -> SBS - Halcatraz - TiZo Team | D8: =SUM(J8:AZ8) -> 17 | E8: =COUNT(J8:AZ8) -> 1 | F8: =IF(E8=0,0,D8/E8) -> 17 | G8: =MAX(J8:BA8) -> 17 | I8: tükörponty | J8: 17
A9: A1 | B9: =kod!B2 -> Gát, mélyvíz | C9: =kod!C2 -> SBS - Halcatraz - TiZo Team | D9: 0 | E9: 0 | F9: 0 | G9: =MAX(J9:BA9) -> 0 | I9: tőponty
A10: A1 | B10: =kod!B2 -> Gát, mélyvíz | C10: =kod!C2 -> SBS - Halcatraz - TiZo Team | D10: 23.525 | E10: 2 | F10: 11.7625 | G10: 14.05 | I10: nyurgaponty | J10: 14.05 | K10: 9.475
A11: A1 | B11: =kod!B2 -> Gát, mélyvíz | C11: =kod!C2 -> SBS - Halcatraz - TiZo Team | D11: 0 | E11: 0 | F11: 0 | H11: =MAX(J11:AZ11) -> 0 | I11: koi ponty
A12: A1 | B12: =kod!B2 -> Gát, mélyvíz | C12: =kod!C2 -> SBS - Halcatraz - TiZo Team | D12: 0 | E12: 0 | F12: 0 | G12: 0 | I12: amur
A13: A1 | B13: =kod!B2 -> Gát, mélyvíz | C13: =kod!C2 -> SBS - Halcatraz - TiZo Team | D13: 0 | E13: 0 | F13: 0 | G13: 0 | I13: fekete amur
A14: A2 | B14: =kod!B3 -> Gát, mélyvíz | C14: =kod!C3 -> Altstadt Carp Team | D14: =SUM(D15:D20) -> 11.6 | E14: =SUM(E15:E20) -> 1 | F14: 11.6 | G14: =MAX(G15:G20) -> 11.6 | H14: =H18 -> 0 | I14: ÖSSZESEN | J14: =COUNTIFS($J15:$BB20,">9,99",$J15:$BB20,"<20") -> 1 | K14: =COUNTIFS($J15:$BB20,">19,99") -> 0 | L14: =COUNTIFS($J18:$BA18,">4,99",$J18:$BA18,"<9,99") -> 0 | M14: =COUNTIFS($J18:$BB18,">9,99") -> 0
A15: A2 | B15: =kod!B3 -> Gát, mélyvíz | C15: =kod!C3 -> Altstadt Carp Team | D15: =SUM(J15:AZ15) -> 0 | E15: =COUNT(J15:AZ15) -> 0 | F15: 0 | G15: =MAX(J15:BA15) -> 0 | I15: tükörponty
A16: A2 | B16: =kod!B3 -> Gát, mélyvíz | C16: =kod!C3 -> Altstadt Carp Team | D16: 0 | E16: 0 | F16: 0 | G16: =MAX(J16:BA16) -> 0 | I16: tőponty
A17: A2 | B17: =kod!B3 -> Gát, mélyvíz | C17: =kod!C3 -> Altstadt Carp Team | D17: 11.6 | E17: 1 | F17: 11.6 | G17: =MAX(J17:BA17) -> 11.6 | I17: nyurgaponty | J17: 11.6
A18: A2 | B18: =kod!B3 -> Gát, mélyvíz | C18: =kod!C3 -> Altstadt Carp Team | D18: 0 | E18: 0 | F18: 0 | H18: =MAX(J18:AZ18) -> 0 | I18: koi ponty
A19: A2 | B19: =kod!B3 -> Gát, mélyvíz | C19: =kod!C3 -> Altstadt Carp Team | D19: 0 | E19: 0 | F19: 0 | G19: =MAX(J19:BA19) -> 0 | I19: amur
A20: A2 | B20: =kod!B3 -> Gát, mélyvíz | C20: =kod!C3 -> Altstadt Carp Team | D20: 0 | E20: 0 | F20: 0 | G20: =MAX(J20:BA20) -> 0 | I20: fekete amur
A21: A3 | B21: =kod!B4 -> Gát, mélyvíz | C21: =kod!C4 -> Ferma De Crap Diosig | D21: =SUM(D22:D27) -> 23.82 | E21: =SUM(E22:E27) -> 3 | F21: 7.94 | G21: =MAX(G22:G27) -> 8.175 | H21: =H25 -> 0 | I21: ÖSSZESEN | J21: =COUNTIFS($J22:$BB27,">9,99",$J22:$BB27,"<20") -> 0 | K21: =COUNTIFS($J22:$BB27,">19,99") -> 0 | L21: =COUNTIFS($J25:$BA25,">4,99",$J25:$BA25,"<9,99") -> 0 | M21: =COUNTIFS($J25:$BB25,">9,99") -> 0
A22: A3 | B22: =kod!B4 -> Gát, mélyvíz | C22: =kod!C4 -> Ferma De Crap Diosig | D22: =SUM(J22:AZ22) -> 7.725 | E22: =COUNT(J22:AZ22) -> 1 | F22: 7.725 | G22: =MAX(J22:BA22) -> 7.725 | I22: tükörponty | J22: 7.725
A23: A3 | B23: =kod!B4 -> Gát, mélyvíz | C23: =kod!C4 -> Ferma De Crap Diosig | D23: 8.175 | E23: 1 | F23: 8.175 | G23: =MAX(J23:BA23) -> 8.175 | I23: tőponty | J23: 8.175
A24: A3 | B24: =kod!B4 -> Gát, mélyvíz | C24: =kod!C4 -> Ferma De Crap Diosig | D24: 0 | E24: 0 | F24: 0 | G24: =MAX(J24:BA24) -> 0 | I24: nyurgaponty
A25: A3 | B25: =kod!B4 -> Gát, mélyvíz | C25: =kod!C4 -> Ferma De Crap Diosig | D25: 0 | E25: 0 | F25: 0 | H25: =MAX(J25:AZ25) -> 0 | I25: koi ponty
A26: A3 | B26: =kod!B4 -> Gát, mélyvíz | C26: =kod!C4 -> Ferma De Crap Diosig | D26: 7.92 | E26: 1 | F26: 7.92 | G26: =MAX(J26:BA26) -> 7.92 | I26: amur | J26: 7.92
A27: A3 | B27: =kod!B4 -> Gát, mélyvíz | C27: =kod!C4 -> Ferma De Crap Diosig | D27: 0 | E27: 0 | F27: 0 | G27: =MAX(J27:BA27) -> 0 | I27: fekete amur
A28: A4 | B28: =kod!B5 -> Gát, mélyvíz | C28: =kod!C5 -> Bull Tackle | D28: =SUM(D29:D34) -> 27.95 | E28: =SUM(E29:E34) -> 2 | F28: 13.975 | G28: =MAX(G29:G34) -> 14.975 | H28: =H32 -> 0 | I28: ÖSSZESEN | J28: =COUNTIFS($J29:$BB34,">9,99",$J29:$BB34,"<20") -> 2 | K28: =COUNTIFS($J29:$BB34,">19,99") -> 0 | L28: =COUNTIFS($J32:$BA32,">4,99",$J32:$BA32,"<9,99") -> 0 | M28: =COUNTIFS($J32:$BB32,">9,99") -> 0
A29: A4 | B29: =kod!B5 -> Gát, mélyvíz | C29: =kod!C5 -> Bull Tackle | D29: =SUM(J29:AZ29) -> 0 | E29: =COUNT(J29:AZ29) -> 0 | F29: 0 | G29: =MAX(J29:BA29) -> 0 | I29: tükörponty
A30: A4 | B30: =kod!B5 -> Gát, mélyvíz | C30: =kod!C5 -> Bull Tackle | D30: 0 | E30: 0 | F30: 0 | G30: =MAX(J30:BA30) -> 0 | I30: tőponty
A31: A4 | B31: =kod!B5 -> Gát, mélyvíz | C31: =kod!C5 -> Bull Tackle | D31: 27.95 | E31: 2 | F31: 13.975 | G31: =MAX(J31:BA31) -> 14.975 | I31: nyurgaponty | J31: 12.975 | K31: 14.975
A32: A4 | B32: =kod!B5 -> Gát, mélyvíz | C32: =kod!C5 -> Bull Tackle | D32: 0 | E32: 0 | F32: 0 | H32: =MAX(J32:AZ32) -> 0 | I32: koi ponty
A33: A4 | B33: =kod!B5 -> Gát, mélyvíz | C33: =kod!C5 -> Bull Tackle | D33: 0 | E33: 0 | F33: 0 | G33: =MAX(J33:BA33) -> 0 | I33: amur
A34: A4 | B34: =kod!B5 -> Gát, mélyvíz | C34: =kod!C5 -> Bull Tackle | D34: 0 | E34: 0 | F34: 0 | G34: =MAX(J34:BA34) -> 0 | I34: fekete amur
A35: A5 | B35: =kod!B6 -> Gát, mélyvíz | C35: =kod!C6 -> AHFSZ Fishing Team | D35: =SUM(D36:D41) -> 0 | E35: =SUM(E36:E41) -> 0 | F35: 0 | G35: =MAX(G36:G41) -> 0 | H35: =H39 -> 0 | I35: ÖSSZESEN | J35: =COUNTIFS($J36:$BB41,">9,99",$J36:$BB41,"<20") -> 0 | K35: =COUNTIFS($J36:$BB41,">19,99") -> 0 | L35: =COUNTIFS($J39:$BA39,">4,99",$J39:$BA39,"<9,99") -> 0 | M35: =COUNTIFS($J39:$BB39,">9,99") -> 0
A36: A5 | B36: =kod!B6 -> Gát, mélyvíz | C36: =kod!C6 -> AHFSZ Fishing Team | D36: =SUM(J36:AZ36) -> 0 | E36: =COUNT(J36:AZ36) -> 0 | F36: 0 | G36: =MAX(J36:BA36) -> 0 | I36: tükörponty
A37: A5 | B37: =kod!B6 -> Gát, mélyvíz | C37: =kod!C6 -> AHFSZ Fishing Team | D37: 0 | E37: 0 | F37: 0 | G37: =MAX(J37:BA37) -> 0 | I37: tőponty
A38: A5 | B38: =kod!B6 -> Gát, mélyvíz | C38: =kod!C6 -> AHFSZ Fishing Team | D38: 0 | E38: 0 | F38: 0 | G38: =MAX(J38:BA38) -> 0 | I38: nyurgaponty
A39: A5 | B39: =kod!B6 -> Gát, mélyvíz | C39: =kod!C6 -> AHFSZ Fishing Team | D39: 0 | E39: 0 | F39: 0 | H39: =MAX(J39:AZ39) -> 0 | I39: koi ponty
A40: A5 | B40: =kod!B6 -> Gát, mélyvíz | C40: =kod!C6 -> AHFSZ Fishing Team | D40: 0 | E40: 0 | F40: 0 | G40: =MAX(J40:BA40) -> 0 | I40: amur
A41: A5 | B41: =kod!B6 -> Gát, mélyvíz | C41: =kod!C6 -> AHFSZ Fishing Team | D41: 0 | E41: 0 | F41: 0 | G41: =MAX(J41:BA41) -> 0 | I41: fekete amur
A42: A6 | B42: =kod!B7 -> Nyári kikötő, belső | C42: =kod!C7 -> Black Carp Team | D42: =SUM(D43:D48) -> 32.125 | E42: =SUM(E43:E48) -> 6 | F42: 5.354166667 | G42: =MAX(G43:G48) -> 8.825 | H42: =H46 -> 0 | I42: ÖSSZESEN | J42: =COUNTIFS($J43:$BB48,">9,99",$J43:$BB48,"<20") -> 0 | K42: =COUNTIFS($J43:$BB48,">19,99") -> 0 | L42: =COUNTIFS($J46:$BA46,">4,99",$J46:$BA46,"<9,99") -> 0 | M42: =COUNTIFS($J46:$BB46,">9,99") -> 0
A43: A6 | B43: =kod!B7 -> Nyári kikötő, belső | C43: =kod!C7 -> Black Carp Team | D43: =SUM(J43:AZ43) -> 0 | E43: =COUNT(J43:AZ43) -> 0 | F43: 0 | G43: =MAX(J43:BA43) -> 0 | I43: tükörponty
A44: A6 | B44: =kod!B7 -> Nyári kikötő, belső | C44: =kod!C7 -> Black Carp Team | D44: 7.675 | E44: 1 | F44: 7.675 | G44: =MAX(J44:BA44) -> 7.675 | I44: tőponty | J44: 7.675
A45: A6 | B45: =kod!B7 -> Nyári kikötő, belső | C45: =kod!C7 -> Black Carp Team | D45: 8.825 | E45: 1 | F45: 8.825 | G45: =MAX(J45:BA45) -> 8.825 | I45: nyurgaponty | J45: 8.825
A46: A6 | B46: =kod!B7 -> Nyári kikötő, belső | C46: =kod!C7 -> Black Carp Team | D46: 0 | E46: 0 | F46: 0 | H46: =MAX(J46:AZ46) -> 0 | I46: koi ponty
A47: A6 | B47: =kod!B7 -> Nyári kikötő, belső | C47: =kod!C7 -> Black Carp Team | D47: 0 | E47: 0 | F47: 0 | G47: =MAX(J47:BA47) -> 0 | I47: amur
A48: A6 | B48: =kod!B7 -> Nyári kikötő, belső | C48: =kod!C7 -> Black Carp Team | D48: 15.625 | E48: 4 | F48: 3.90625 | G48: =MAX(J48:BA48) -> 4.9 | I48: fekete amur | J48: 3.35 | K48: 4.9 | L48: 3.25 | M48: 4.125
A49: A7 | B49: =kod!B8 -> Nyári kikötő, közép | C49: =kod!C8 -> USA & Mivado Carp Team | D49: =SUM(D50:D55) -> 14.875 | E49: =SUM(E50:E55) -> 2 | F49: 7.4375 | G49: =MAX(G50:G55) -> 10.2 | H49: =H53 -> 0 | I49: ÖSSZESEN | J49: =COUNTIFS($J50:$BB55,">9,99",$J50:$BB55,"<20") -> 1 | K49: =COUNTIFS($J50:$BB55,">19,99") -> 0 | L49: =COUNTIFS($J53:$BA53,">4,99",$J53:$BA53,"<9,99") -> 0 | M49: =COUNTIFS($J53:$BB53,">9,99") -> 0
A50: A7 | B50: =kod!B8 -> Nyári kikötő, közép | C50: =kod!C8 -> USA & Mivado Carp Team | D50: =SUM(J50:AZ50) -> 10.2 | E50: =COUNT(J50:AZ50) -> 1 | F50: 10.2 | G50: =MAX(J50:BA50) -> 10.2 | I50: tükörponty | J50: 10.2
A51: A7 | B51: =kod!B8 -> Nyári kikötő, közép | C51: =kod!C8 -> USA & Mivado Carp Team | D51: 4.675 | E51: 1 | F51: 4.675 | G51: =MAX(J51:BA51) -> 4.675 | I51: tőponty | J51: 4.675
A52: A7 | B52: =kod!B8 -> Nyári kikötő, közép | C52: =kod!C8 -> USA & Mivado Carp Team | D52: 0 | E52: 0 | F52: 0 | G52: =MAX(J52:BA52) -> 0 | I52: nyurgaponty
A53: A7 | B53: =kod!B8 -> Nyári kikötő, közép | C53: =kod!C8 -> USA & Mivado Carp Team | D53: 0 | E53: 0 | F53: 0 | H53: =MAX(J53:AZ53) -> 0 | I53: koi ponty
A54: A7 | B54: =kod!B8 -> Nyári kikötő, közép | C54: =kod!C8 -> USA & Mivado Carp Team | D54: 0 | E54: 0 | F54: 0 | G54: =MAX(J54:BA54) -> 0 | I54: amur
A55: A7 | B55: =kod!B8 -> Nyári kikötő, közép | C55: =kod!C8 -> USA & Mivado Carp Team | D55: 0 | E55: 0 | F55: 0 | G55: =MAX(J55:BA55) -> 0 | I55: fekete amur
A56: A8 | B56: =kod!B9 -> Nyári kikötő, külső | C56: =kod!C9 -> Ózdi Sporthorgász Egyesület | D56: =SUM(D57:D62) -> 72.425 | E56: =SUM(E57:E62) -> 8 | F56: 9.053125 | G56: =MAX(G57:G62) -> 11.425 | H56: =H60 -> 0 | I56: ÖSSZESEN | J56: =COUNTIFS($J57:$BB62,">9,99",$J57:$BB62,"<20") -> 3 | K56: =COUNTIFS($J57:$BB62,">19,99") -> 0 | L56: =COUNTIFS($J60:$BA60,">4,99",$J60:$BA60,"<9,99") -> 0 | M56: =COUNTIFS($J60:$BB60,">9,99") -> 0
A57: A8 | B57: =kod!B9 -> Nyári kikötő, külső | C57: =kod!C9 -> Ózdi Sporthorgász Egyesület | D57: =SUM(J57:AZ57) -> 0 | E57: =COUNT(J57:AZ57) -> 0 | F57: 0 | G57: =MAX(J57:BA57) -> 0 | I57: tükörponty
A58: A8 | B58: =kod!B9 -> Nyári kikötő, külső | C58: =kod!C9 -> Ózdi Sporthorgász Egyesület | D58: 61.55 | E58: 7 | F58: 8.792857143 | G58: =MAX(J58:BA58) -> 11.425 | I58: tőponty | J58: 7.175 | K58: 4.8 | L58: 8.475 | M58: 11.15 | N58: 9.075 | O58: 9.45 | P58: 11.425
A59: A8 | B59: =kod!B9 -> Nyári kikötő, külső | C59: =kod!C9 -> Ózdi Sporthorgász Egyesület | D59: 10.875 | E59: 1 | F59: 10.875 | G59: =MAX(J59:BA59) -> 10.875 | I59: nyurgaponty | J59: 10.875
A60: A8 | B60: =kod!B9 -> Nyári kikötő, külső | C60: =kod!C9 -> Ózdi Sporthorgász Egyesület | D60: 0 | E60: 0 | F60: 0 | H60: =MAX(J60:AZ60) -> 0 | I60: koi ponty
A61: A8 | B61: =kod!B9 -> Nyári kikötő, külső | C61: =kod!C9 -> Ózdi Sporthorgász Egyesület | D61: 0 | E61: 0 | F61: 0 | G61: =MAX(J61:BA61) -> 0 | I61: amur
A62: A8 | B62: =kod!B9 -> Nyári kikötő, külső | C62: =kod!C9 -> Ózdi Sporthorgász Egyesület | D62: 0 | E62: 0 | F62: 0 | G62: =MAX(J62:BA62) -> 0 | I62: fekete amur
A63: A9 | B63: =kod!B10 -> I. sziget, bal külső | C63: =kod!C10 -> Kártékony Carp Team | D63: =SUM(D64:D69) -> 181.1 | E63: =SUM(E64:E69) -> 20 | F63: 9.055 | G63: =MAX(G64:G69) -> 16.675 | H63: =H67 -> 0 | I63: ÖSSZESEN | J63: =COUNTIFS($J64:$BB69,">9,99",$J64:$BB69,"<20") -> 5 | K63: =COUNTIFS($J64:$BB69,">19,99") -> 0 | L63: =COUNTIFS($J67:$BA67,">4,99",$J67:$BA67,"<9,99") -> 0 | M63: =COUNTIFS($J67:$BB67,">9,99") -> 0
A64: A9 | B64: =kod!B10 -> I. sziget, bal külső | C64: =kod!C10 -> Kártékony Carp Team | D64: =SUM(J64:AZ64) -> 45.425 | E64: =COUNT(J64:AZ64) -> 4 | F64: =IF(E64=0,0,D64/E64) -> 11.35625 | G64: =MAX(J64:BA64) -> 16.675 | I64: tükörponty | J64: 16.675 | K64: 9.175 | L64: 5 | M64: 14.575
A65: A9 | B65: =kod!B10 -> I. sziget, bal külső | C65: =kod!C10 -> Kártékony Carp Team | D65: 123.425 | E65: 15 | F65: 8.228333333 | G65: =MAX(J65:BA65) -> 14.525 | I65: tőponty | J65: 14.5 | K65: 7.9 | L65: 5.65 | M65: 6.8 | N65: 8.9 | O65: 8.5 | P65: 4.85 | Q65: 8.325 | R65: 7.275 | S65: 8.375 | T65: 6.05 | U65: 9.6 | V65: 4.65 | W65: 7.525 | X65: 14.525
A66: A9 | B66: =kod!B10 -> I. sziget, bal külső | C66: =kod!C10 -> Kártékony Carp Team | D66: 12.25 | E66: 1 | F66: 12.25 | G66: =MAX(J66:BA66) -> 12.25 | I66: nyurgaponty | J66: 12.25
A67: A9 | B67: =kod!B10 -> I. sziget, bal külső | C67: =kod!C10 -> Kártékony Carp Team | D67: 0 | E67: 0 | F67: 0 | H67: =MAX(J67:AZ67) -> 0 | I67: koi ponty
A68: A9 | B68: =kod!B10 -> I. sziget, bal külső | C68: =kod!C10 -> Kártékony Carp Team | D68: 0 | E68: 0 | F68: 0 | G68: =MAX(J68:BA68) -> 0 | I68: amur
A69: A9 | B69: =kod!B10 -> I. sziget, bal külső | C69: =kod!C10 -> Kártékony Carp Team | D69: 0 | E69: 0 | F69: 0 | G69: =MAX(J69:BA69) -> 0 | I69: fekete amur
A70: A10 | B70: =kod!B11 -> I. sziget, bal | C70: =kod!C11 -> Team 5 Austria | D70: =SUM(D71:D76) -> 0 | E70: =SUM(E71:E76) -> 0 | F70: 0 | G70: =MAX(G71:G76) -> 0 | H70: =H74 -> 0 | I70: ÖSSZESEN | J70: =COUNTIFS($J71:$BB76,">9,99",$J71:$BB76,"<20") -> 0 | K70: =COUNTIFS($J71:$BB76,">19,99") -> 0 | L70: =COUNTIFS($J74:$BA74,">4,99",$J74:$BA74,"<9,99") -> 0 | M70: =COUNTIFS($J74:$BB74,">9,99") -> 0
A71: A10 | B71: =kod!B11 -> I. sziget, bal | C71: =kod!C11 -> Team 5 Austria | D71: =SUM(J71:AZ71) -> 0 | E71: =COUNT(J71:AZ71) -> 0 | F71: 0 | G71: =MAX(J71:BA71) -> 0 | I71: tükörponty
A72: A10 | B72: =kod!B11 -> I. sziget, bal | C72: =kod!C11 -> Team 5 Austria | D72: 0 | E72: 0 | F72: 0 | G72: =MAX(J72:BA72) -> 0 | I72: tőponty
A73: A10 | B73: =kod!B11 -> I. sziget, bal | C73: =kod!C11 -> Team 5 Austria | D73: 0 | E73: 0 | F73: 0 | G73: =MAX(J73:BA73) -> 0 | I73: nyurgaponty
A74: A10 | B74: =kod!B11 -> I. sziget, bal | C74: =kod!C11 -> Team 5 Austria | D74: 0 | E74: 0 | F74: 0 | H74: =MAX(J74:AZ74) -> 0 | I74: koi ponty
A75: A10 | B75: =kod!B11 -> I. sziget, bal | C75: =kod!C11 -> Team 5 Austria | D75: 0 | E75: 0 | F75: 0 | G75: =MAX(J75:BA75) -> 0 | I75: amur
A76: A10 | B76: =kod!B11 -> I. sziget, bal | C76: =kod!C11 -> Team 5 Austria | D76: 0 | E76: 0 | F76: 0 | G76: =MAX(J76:BA76) -> 0 | I76: fekete amur
A77: A11 | B77: =kod!B12 -> I. sziget, bal közép | C77: =kod!C12 -> Invader's Team Poland | D77: =SUM(D78:D83) -> 5.475 | E77: =SUM(E78:E83) -> 2 | F77: 2.7375 | G77: =MAX(G78:G83) -> 3.775 | H77: =H81 -> 0 | I77: ÖSSZESEN | J77: =COUNTIFS($J78:$BB83,">9,99",$J78:$BB83,"<20") -> 0 | K77: =COUNTIFS($J78:$BB83,">19,99") -> 0 | L77: =COUNTIFS($J81:$BA81,">4,99",$J81:$BA81,"<9,99") -> 0 | M77: =COUNTIFS($J81:$BB81,">9,99") -> 0
A78: A11 | B78: =kod!B12 -> I. sziget, bal közép | C78: =kod!C12 -> Invader's Team Poland | D78: =SUM(J78:AZ78) -> 1.7 | E78: =COUNT(J78:AZ78) -> 1 | F78: 1.7 | G78: =MAX(J78:BA78) -> 1.7 | I78: tükörponty | J78: 1.7
A79: A11 | B79: =kod!B12 -> I. sziget, bal közép | C79: =kod!C12 -> Invader's Team Poland | D79: 0 | E79: 0 | F79: 0 | G79: =MAX(J79:BA79) -> 0 | I79: tőponty
A80: A11 | B80: =kod!B12 -> I. sziget, bal közép | C80: =kod!C12 -> Invader's Team Poland | D80: 0 | E80: 0 | F80: 0 | G80: =MAX(J80:BA80) -> 0 | I80: nyurgaponty
A81: A11 | B81: =kod!B12 -> I. sziget, bal közép | C81: =kod!C12 -> Invader's Team Poland | D81: 0 | E81: 0 | F81: 0 | H81: =MAX(J81:AZ81) -> 0 | I81: koi ponty
A82: A11 | B82: =kod!B12 -> I. sziget, bal közép | C82: =kod!C12 -> Invader's Team Poland | D82: 0 | E82: 0 | F82: 0 | G82: =MAX(J82:BA82) -> 0 | I82: amur
A83: A11 | B83: =kod!B12 -> I. sziget, bal közép | C83: =kod!C12 -> Invader's Team Poland | D83: 3.775 | E83: 1 | F83: 3.775 | G83: =MAX(J83:BA83) -> 3.775 | I83: fekete amur | J83: 3.775
A84: B1 | B84: =kod!B13 -> Gát, közepes víz | C84: =kod!C13 -> Tata Nitu Carp Team | D84: =SUM(D85:D90) -> 19.4 | E84: =SUM(E85:E90) -> 3 | F84: =IF(E84=0,0,D84/E84) -> 6.466666667 | G84: =MAX(G85:G90) -> 9.3 | H84: =H88 -> 0 | I84: ÖSSZESEN | J84: =COUNTIFS($J85:$BB90,">9,99",$J85:$BB90,"<20") -> 0 | K84: =COUNTIFS($J85:$BB90,">19,99") -> 0 | L84: =COUNTIFS($J88:$BA88,">4,99",$J88:$BA88,"<9,99") -> 0 | M84: =COUNTIFS($J88:$BB88,">9,99") -> 0
A85: B1 | B85: =kod!B13 -> Gát, közepes víz | C85: =kod!C13 -> Tata Nitu Carp Team | D85: =SUM(J85:AZ85) -> 0 | E85: =COUNT(J85:AZ85) -> 0 | F85: =IF(E85=0,0,D85/E85) -> 0 | G85: =MAX(J85:BA85) -> 0 | I85: tükörponty
A86: B1 | B86: =kod!B13 -> Gát, közepes víz | C86: =kod!C13 -> Tata Nitu Carp Team | D86: 6.5 | E86: 1 | F86: 6.5 | G86: =MAX(J86:BA86) -> 6.5 | I86: tőponty | J86: 6.5
A87: B1 | B87: =kod!B13 -> Gát, közepes víz | C87: =kod!C13 -> Tata Nitu Carp Team | D87: 12.9 | E87: 2 | F87: 6.45 | G87: =MAX(J87:BA87) -> 9.3 | I87: nyurgaponty | J87: 9.3 | K87: 3.6
A88: B1 | B88: =kod!B13 -> Gát, közepes víz | C88: =kod!C13 -> Tata Nitu Carp Team | D88: 0 | E88: 0 | F88: 0 | H88: =MAX(J88:AZ88) -> 0 | I88: koi ponty
A89: B1 | B89: =kod!B13 -> Gát, közepes víz | C89: =kod!C13 -> Tata Nitu Carp Team | D89: 0 | E89: 0 | F89: 0 | G89: =MAX(J89:BA89) -> 0 | I89: amur
A90: B1 | B90: =kod!B13 -> Gát, közepes víz | C90: =kod!C13 -> Tata Nitu Carp Team | D90: 0 | E90: 0 | F90: 0 | G90: =MAX(J90:BA90) -> 0 | I90: fekete amur
A91: B2 | B91: =kod!B14 -> Gát, közepes víz | C91: =kod!C14 -> Slovakia Carp Team | D91: =SUM(D92:D97) -> 0 | E91: =SUM(E92:E97) -> 0 | F91: 0 | G91: =MAX(G92:G97) -> 0 | H91: =H95 -> 0 | I91: ÖSSZESEN | J91: =COUNTIFS($J92:$BB97,">9,99",$J92:$BB97,"<20") -> 0 | K91: =COUNTIFS($J92:$BB97,">19,99") -> 0 | L91: =COUNTIFS($J95:$BA95,">4,99",$J95:$BA95,"<9,99") -> 0 | M91: =COUNTIFS($J95:$BB95,">9,99") -> 0
A92: B2 | B92: =kod!B14 -> Gát, közepes víz | C92: =kod!C14 -> Slovakia Carp Team | D92: =SUM(J92:AZ92) -> 0 | E92: =COUNT(J92:AZ92) -> 0 | F92: 0 | G92: =MAX(J92:BA92) -> 0 | I92: tükörponty
A93: B2 | B93: =kod!B14 -> Gát, közepes víz | C93: =kod!C14 -> Slovakia Carp Team | D93: 0 | E93: 0 | F93: 0 | G93: =MAX(J93:BA93) -> 0 | I93: tőponty
A94: B2 | B94: =kod!B14 -> Gát, közepes víz | C94: =kod!C14 -> Slovakia Carp Team | D94: 0 | E94: 0 | F94: 0 | G94: =MAX(J94:BA94) -> 0 | I94: nyurgaponty
A95: B2 | B95: =kod!B14 -> Gát, közepes víz | C95: =kod!C14 -> Slovakia Carp Team | D95: 0 | E95: 0 | F95: 0 | H95: =MAX(J95:AZ95) -> 0 | I95: koi ponty
A96: B2 | B96: =kod!B14 -> Gát, közepes víz | C96: =kod!C14 -> Slovakia Carp Team | D96: 0 | E96: 0 | F96: 0 | G96: =MAX(J96:BA96) -> 0 | I96: amur
A97: B2 | B97: =kod!B14 -> Gát, közepes víz | C97: =kod!C14 -> Slovakia Carp Team | D97: 0 | E97: 0 | F97: 0 | G97: =MAX(J97:BA97) -> 0 | I97: fekete amur
A98: B3 | B98: =kod!B15 -> Gát, közepes víz | C98: =kod!C15 -> WLC Hungary | D98: =SUM(D99:D104) -> 32.525 | E98: =SUM(E99:E104) -> 4 | F98: 8.13125 | G98: =MAX(G99:G104) -> 12.275 | H98: =H102 -> 0 | I98: ÖSSZESEN | J98: =COUNTIFS($J99:$BB104,">9,99",$J99:$BB104,"<20") -> 2 | K98: =COUNTIFS($J99:$BB104,">19,99") -> 0 | L98: =COUNTIFS($J102:$BA102,">4,99",$J102:$BA102,"<9,99") -> 0 | M98: =COUNTIFS($J102:$BB102,">9,99") -> 0
A99: B3 | B99: =kod!B15 -> Gát, közepes víz | C99: =kod!C15 -> WLC Hungary | D99: =SUM(J99:AZ99) -> 0 | E99: =COUNT(J99:AZ99) -> 0 | F99: 0 | G99: =MAX(J99:BA99) -> 0 | I99: tükörponty
A100: B3 | B100: =kod!B15 -> Gát, közepes víz | C100: =kod!C15 -> WLC Hungary | D100: 0 | E100: 0 | F100: 0 | G100: =MAX(J100:BA100) -> 0 | I100: tőponty
A101: B3 | B101: =kod!B15 -> Gát, közepes víz | C101: =kod!C15 -> WLC Hungary | D101: 24.15 | E101: 2 | F101: 12.075 | G101: =MAX(J101:BA101) -> 12.275 | I101: nyurgaponty | J101: 11.875 | K101: 12.275
A102: B3 | B102: =kod!B15 -> Gát, közepes víz | C102: =kod!C15 -> WLC Hungary | D102: 0 | E102: 0 | F102: 0 | H102: =MAX(J102:AZ102) -> 0 | I102: koi ponty
A103: B3 | B103: =kod!B15 -> Gát, közepes víz | C103: =kod!C15 -> WLC Hungary | D103: 0 | E103: 0 | F103: 0 | G103: =MAX(J103:BA103) -> 0 | I103: amur
A104: B3 | B104: =kod!B15 -> Gát, közepes víz | C104: =kod!C15 -> WLC Hungary | D104: 8.375 | E104: 2 | F104: 4.1875 | G104: =MAX(J104:BA104) -> 4.8 | I104: fekete amur | J104: 3.575 | K104: 4.8
A105: B4 | B105: =kod!B16 -> Gát, közepes víz | C105: =kod!C16 -> Barfin Line NSD Bulgaria | D105: =SUM(D106:D111) -> 44.675 | E105: =SUM(E106:E111) -> 5 | F105: 8.935 | G105: =MAX(G106:G111) -> 11.8 | H105: =H109 -> 0 | I105: ÖSSZESEN | J105: =COUNTIFS($J106:$BB111,">9,99",$J106:$BB111,"<20") -> 2 | K105: =COUNTIFS($J106:$BB111,">19,99") -> 0 | L105: =COUNTIFS($J109:$BA109,">4,99",$J109:$BA109,"<9,99") -> 0 | M105: =COUNTIFS($J109:$BB109,">9,99") -> 0
A106: B4 | B106: =kod!B16 -> Gát, közepes víz | C106: =kod!C16 -> Barfin Line NSD Bulgaria | D106: =SUM(J106:AZ106) -> 7.2 | E106: =COUNT(J106:AZ106) -> 1 | F106: 7.2 | G106: =MAX(J106:BA106) -> 7.2 | I106: tükörponty | J106: 7.2
A107: B4 | B107: =kod!B16 -> Gát, közepes víz | C107: =kod!C16 -> Barfin Line NSD Bulgaria | D107: 15.275 | E107: 2 | F107: 7.6375 | G107: 8.575 | I107: tőponty | J107: 8.575 | K107: 6.7
A108: B4 | B108: =kod!B16 -> Gát, közepes víz | C108: =kod!C16 -> Barfin Line NSD Bulgaria | D108: 22.2 | E108: 2 | F108: 11.1 | G108: 11.8 | I108: nyurgaponty | J108: 11.8 | K108: 10.4
A109: B4 | B109: =kod!B16 -> Gát, közepes víz | C109: =kod!C16 -> Barfin Line NSD Bulgaria | D109: 0 | E109: 0 | F109: 0 | G109: 0 | H109: =MAX(J109:AZ109) -> 0 | I109: koi ponty
A110: B4 | B110: =kod!B16 -> Gát, közepes víz | C110: =kod!C16 -> Barfin Line NSD Bulgaria | D110: 0 | E110: 0 | F110: 0 | G110: 0 | I110: amur
A111: B4 | B111: =kod!B16 -> Gát, közepes víz | C111: =kod!C16 -> Barfin Line NSD Bulgaria | D111: 0 | E111: 0 | F111: 0 | G111: 0 | I111: fekete amur
A112: B5 | B112: =kod!B17 -> Gát, közepes víz | C112: =kod!C17 -> Lutra Carp Hunters | D112: =SUM(D113:D118) -> 28.025 | E112: =SUM(E113:E118) -> 4 | F112: 7.00625 | G112: =MAX(G113:G118) -> 11.375 | H112: =H116 -> 0 | I112: ÖSSZESEN | J112: =COUNTIFS($J113:$BB118,">9,99",$J113:$BB118,"<20") -> 1 | K112: =COUNTIFS($J113:$BB118,">19,99") -> 0 | L112: =COUNTIFS($J116:$BA116,">4,99",$J116:$BA116,"<9,99") -> 0 | M112: =COUNTIFS($J116:$BB116,">9,99") -> 0
A113: B5 | B113: =kod!B17 -> Gát, közepes víz | C113: =kod!C17 -> Lutra Carp Hunters | D113: =SUM(J113:AZ113) -> 0 | E113: =COUNT(J113:AZ113) -> 0 | F113: 0 | G113: =MAX(J113:BA113) -> 0 | I113: tükörponty
A114: B5 | B114: =kod!B17 -> Gát, közepes víz | C114: =kod!C17 -> Lutra Carp Hunters | D114: 7.975 | E114: 1 | F114: 7.975 | G114: =MAX(J114:BA114) -> 7.975 | I114: tőponty | J114: 7.975
A115: B5 | B115: =kod!B17 -> Gát, közepes víz | C115: =kod!C17 -> Lutra Carp Hunters | D115: 11.375 | E115: 1 | F115: 11.375 | G115: =MAX(J115:BA115) -> 11.375 | I115: nyurgaponty | J115: 11.375
A116: B5 | B116: =kod!B17 -> Gát, közepes víz | C116: =kod!C17 -> Lutra Carp Hunters | D116: 0 | E116: 0 | F116: 0 | H116: =MAX(J116:AZ116) -> 0 | I116: koi ponty
A117: B5 | B117: =kod!B17 -> Gát, közepes víz | C117: =kod!C17 -> Lutra Carp Hunters | D117: 0 | E117: 0 | F117: 0 | G117: =MAX(J117:BA117) -> 0 | I117: amur
A118: B5 | B118: =kod!B17 -> Gát, közepes víz | C118: =kod!C17 -> Lutra Carp Hunters | D118: 8.675 | E118: 2 | F118: 4.3375 | G118: =MAX(J118:BA118) -> 4.35 | I118: fekete amur | J118: 4.325 | K118: 4.35
A119: B6 | B119: =kod!B18 -> Gát, közepes víz | C119: =kod!C18 -> Xtra Carp Team | D119: =SUM(D120:D125) -> 60.85 | E119: =SUM(E120:E125) -> 5 | F119: 12.17 | G119: =MAX(G120:G125) -> 19.45 | H119: =H123 -> 0 | I119: ÖSSZESEN | J119: =COUNTIFS($J120:$BB125,">9,99",$J120:$BB125,"<20") -> 4 | K119: =COUNTIFS($J120:$BB125,">19,99") -> 0 | L119: =COUNTIFS($J123:$BA123,">4,99",$J123:$BA123,"<9,99") -> 0 | M119: =COUNTIFS($J123:$BB123,">9,99") -> 0
A120: B6 | B120: =kod!B18 -> Gát, közepes víz | C120: =kod!C18 -> Xtra Carp Team | D120: =SUM(J120:AZ120) -> 19.45 | E120: =COUNT(J120:AZ120) -> 1 | F120: 19.45 | G120: =MAX(J120:BA120) -> 19.45 | I120: tükörponty | J120: 19.45
A121: B6 | B121: =kod!B18 -> Gát, közepes víz | C121: =kod!C18 -> Xtra Carp Team | D121: 17.9 | E121: 1 | F121: 17.9 | G121: =MAX(J121:BA121) -> 17.9 | I121: tőponty | J121: 17.9
A122: B6 | B122: =kod!B18 -> Gát, közepes víz | C122: =kod!C18 -> Xtra Carp Team | D122: 0 | E122: 0 | F122: 0 | G122: =MAX(J122:BA122) -> 0 | I122: nyurgaponty
A123: B6 | B123: =kod!B18 -> Gát, közepes víz | C123: =kod!C18 -> Xtra Carp Team | D123: 0 | E123: 0 | F123: 0 | H123: =MAX(J123:AZ123) -> 0 | I123: koi ponty
A124: B6 | B124: =kod!B18 -> Gát, közepes víz | C124: =kod!C18 -> Xtra Carp Team | D124: 20.625 | E124: 2 | F124: 10.3125 | G124: =MAX(J124:BA124) -> 10.525 | I124: amur | J124: 10.525 | K124: 10.1
A125: B6 | B125: =kod!B18 -> Gát, közepes víz | C125: =kod!C18 -> Xtra Carp Team | D125: 2.875 | E125: 1 | F125: 2.875 | G125: =MAX(J125:BA125) -> 2.875 | I125: fekete amur | J125: 2.875
A126: B7 | B126: =kod!B19 -> I. sziget, jobb közép | C126: =kod!C19 -> Elite Carp Team Brasov | D126: =SUM(D127:D132) -> 71.6 | E126: =SUM(E127:E132) -> 9 | F126: 7.955555556 | G126: =MAX(G127:G132) -> 11.05 | H126: =H130 -> 10.3 | I126: ÖSSZESEN | J126: =COUNTIFS($J127:$BB132,">9,99",$J127:$BB132,"<20") -> 2 | K126: =COUNTIFS($J127:$BB132,">19,99") -> 0 | L126: =COUNTIFS($J130:$BA130,">4,99",$J130:$BA130,"<9,99") -> 0 | M126: =COUNTIFS($J130:$BB130,">9,99") -> 1
A127: B7 | B127: =kod!B19 -> I. sziget, jobb közép | C127: =kod!C19 -> Elite Carp Team Brasov | D127: =SUM(J127:AZ127) -> 5.675 | E127: =COUNT(J127:AZ127) -> 1 | F127: 5.675 | G127: =MAX(J127:BA127) -> 5.675 | I127: tükörponty | J127: 5.675
A128: B7 | B128: =kod!B19 -> I. sziget, jobb közép | C128: =kod!C19 -> Elite Carp Team Brasov | D128: 27.95 | E128: 4 | F128: 6.9875 | G128: =MAX(J128:BA128) -> 9.9 | I128: tőponty | J128: 7.3 | K128: 3 | L128: 9.9 | M128: 7.75
A129: B7 | B129: =kod!B19 -> I. sziget, jobb közép | C129: =kod!C19 -> Elite Carp Team Brasov | D129: 27.675 | E129: 3 | F129: 9.225 | G129: =MAX(J129:BA129) -> 11.05 | I129: nyurgaponty | J129: 8.125 | K129: 8.5 | L129: 11.05
A130: B7 | B130: =kod!B19 -> I. sziget, jobb közép | C130: =kod!C19 -> Elite Carp Team Brasov | D130: 10.3 | E130: 1 | F130: 10.3 | H130: =MAX(J130:AZ130) -> 10.3 | I130: koi ponty | J130: 10.3
A131: B7 | B131: =kod!B19 -> I. sziget, jobb közép | C131: =kod!C19 -> Elite Carp Team Brasov | D131: 0 | E131: 0 | F131: 0 | G131: =MAX(J131:BA131) -> 0 | I131: amur
A132: B7 | B132: =kod!B19 -> I. sziget, jobb közép | C132: =kod!C19 -> Elite Carp Team Brasov | D132: 0 | E132: 0 | F132: 0 | G132: =MAX(J132:BA132) -> 0 | I132: fekete amur
A133: B8 | B133: =kod!B20 -> I. sziget, jobb | C133: =kod!C20 -> CT777 Varna Bulgaria | D133: =SUM(D134:D139) -> 54.875 | E133: =SUM(E134:E139) -> 6 | F133: 9.145833333 | G133: =MAX(G134:G139) -> 12.175 | H133: =H137 -> 0 | I133: ÖSSZESEN | J133: =COUNTIFS($J134:$BB139,">9,99",$J134:$BB139,"<20") -> 2 | K133: =COUNTIFS($J134:$BB139,">19,99") -> 0 | L133: =COUNTIFS($J137:$BA137,">4,99",$J137:$BA137,"<9,99") -> 0 | M133: =COUNTIFS($J137:$BB137,">9,99") -> 0
A134: B8 | B134: =kod!B20 -> I. sziget, jobb | C134: =kod!C20 -> CT777 Varna Bulgaria | D134: =SUM(J134:AZ134) -> 8.95 | E134: =COUNT(J134:AZ134) -> 1 | F134: 8.95 | G134: =MAX(J134:BA134) -> 8.95 | I134: tükörponty | J134: 8.95
A135: B8 | B135: =kod!B20 -> I. sziget, jobb | C135: =kod!C20 -> CT777 Varna Bulgaria | D135: 28.4 | E135: 3 | F135: 9.466666667 | G135: =MAX(J135:BA135) -> 12.175 | I135: tőponty | J135: 7.35 | K135: 8.875 | L135: 12.175
A136: B8 | B136: =kod!B20 -> I. sziget, jobb | C136: =kod!C20 -> CT777 Varna Bulgaria | D136: 10.35 | E136: 1 | F136: 10.35 | G136: =MAX(J136:BA136) -> 10.35 | I136: nyurgaponty | J136: 10.35
A137: B8 | B137: =kod!B20 -> I. sziget, jobb | C137: =kod!C20 -> CT777 Varna Bulgaria | D137: 0 | E137: 0 | F137: 0 | H137: =MAX(J137:AZ137) -> 0 | I137: koi ponty
A138: B8 | B138: =kod!B20 -> I. sziget, jobb | C138: =kod!C20 -> CT777 Varna Bulgaria | D138: 7.175 | E138: 1 | F138: 7.175 | G138: =MAX(J138:BA138) -> 7.175 | I138: amur | J138: 7.175
A139: B8 | B139: =kod!B20 -> I. sziget, jobb | C139: =kod!C20 -> CT777 Varna Bulgaria | D139: 0 | E139: 0 | F139: 0 | G139: =MAX(J139:BA139) -> 0 | I139: fekete amur
A140: B9 | B140: =kod!B21 -> I. sziget, jobb külső | C140: =kod!C21 -> Bait Maker Team | D140: =SUM(D141:D146) -> 101.075 | E140: =SUM(E141:E146) -> 11 | F140: 9.188636364 | G140: =MAX(G141:G146) -> 15.15 | H140: =H144 -> 0 | I140: ÖSSZESEN | J140: =COUNTIFS($J141:$BB146,">9,99",$J141:$BB146,"<20") -> 3 | K140: =COUNTIFS($J141:$BB146,">19,99") -> 0 | L140: =COUNTIFS($J144:$BA144,">4,99",$J144:$BA144,"<9,99") -> 0 | M140: =COUNTIFS($J144:$BB144,">9,99") -> 0
A141: B9 | B141: =kod!B21 -> I. sziget, jobb külső | C141: =kod!C21 -> Bait Maker Team | D141: =SUM(J141:AZ141) -> 40.15 | E141: =COUNT(J141:AZ141) -> 5 | F141: =IF(E141=0,0,D141/E141) -> 8.03 | G141: =MAX(J141:BA141) -> 10.65 | I141: tükörponty | J141: 10.65 | K141: 6.4 | L141: 7.35 | M141: 9.4 | N141: 6.35
A142: B9 | B142: =kod!B21 -> I. sziget, jobb külső | C142: =kod!C21 -> Bait Maker Team | D142: 60.925 | E142: 6 | F142: 10.15416667 | G142: =MAX(J142:BA142) -> 15.15 | I142: tőponty | J142: 8.125 | K142: 8.9 | L142: 8.9 | M142: 11.925 | N142: 15.15 | O142: 7.925
A143: B9 | B143: =kod!B21 -> I. sziget, jobb külső | C143: =kod!C21 -> Bait Maker Team | D143: 0 | E143: 0 | F143: 0 | G143: =MAX(J143:BA143) -> 0 | I143: nyurgaponty
A144: B9 | B144: =kod!B21 -> I. sziget, jobb külső | C144: =kod!C21 -> Bait Maker Team | D144: 0 | E144: 0 | F144: 0 | H144: =MAX(J144:AZ144) -> 0 | I144: koi ponty
A145: B9 | B145: =kod!B21 -> I. sziget, jobb külső | C145: =kod!C21 -> Bait Maker Team | D145: 0 | E145: 0 | F145: 0 | G145: =MAX(J145:BA145) -> 0 | I145: amur
A146: B9 | B146: =kod!B21 -> I. sziget, jobb külső | C146: =kod!C21 -> Bait Maker Team | D146: 0 | E146: 0 | F146: 0 | G146: =MAX(J146:BA146) -> 0 | I146: fekete amur
A147: B10 | B147: =kod!B22 -> Felező-spicc, bal | C147: =kod!C22 -> SBS - SziKo Team | D147: =SUM(D148:D153) -> 19.65 | E147: =SUM(E148:E153) -> 3 | F147: 6.55 | G147: =MAX(G148:G153) -> 10.225 | H147: =H151 -> 0 | I147: ÖSSZESEN | J147: =COUNTIFS($J148:$BB153,">9,99",$J148:$BB153,"<20") -> 1 | K147: =COUNTIFS($J148:$BB153,">19,99") -> 0 | L147: =COUNTIFS($J151:$BA151,">4,99",$J151:$BA151,"<9,99") -> 0 | M147: =COUNTIFS($J151:$BB151,">9,99") -> 0
A148: B10 | B148: =kod!B22 -> Felező-spicc, bal | C148: =kod!C22 -> SBS - SziKo Team | D148: =SUM(J148:AZ148) -> 10.225 | E148: =COUNT(J148:AZ148) -> 1 | F148: 10.225 | G148: =MAX(J148:BA148) -> 10.225 | I148: tükörponty | J148: 10.225
A149: B10 | B149: =kod!B22 -> Felező-spicc, bal | C149: =kod!C22 -> SBS - SziKo Team | D149: 9.425 | E149: 2 | F149: 4.7125 | G149: =MAX(J149:BA149) -> 7.3 | I149: tőponty | J149: 2.125 | K149: 7.3
A150: B10 | B150: =kod!B22 -> Felező-spicc, bal | C150: =kod!C22 -> SBS - SziKo Team | D150: 0 | E150: 0 | F150: 0 | G150: =MAX(J150:BA150) -> 0 | I150: nyurgaponty
A151: B10 | B151: =kod!B22 -> Felező-spicc, bal | C151: =kod!C22 -> SBS - SziKo Team | D151: 0 | E151: 0 | F151: 0 | H151: =MAX(J151:AZ151) -> 0 | I151: koi ponty
A152: B10 | B152: =kod!B22 -> Felező-spicc, bal | C152: =kod!C22 -> SBS - SziKo Team | D152: 0 | E152: 0 | F152: 0 | G152: =MAX(J152:BA152) -> 0 | I152: amur
A153: B10 | B153: =kod!B22 -> Felező-spicc, bal | C153: =kod!C22 -> SBS - SziKo Team | D153: 0 | E153: 0 | F153: 0 | G153: =MAX(J153:BA153) -> 0 | I153: fekete amur
A154: B11 | B154: =kod!B23 -> Felező-spicc, közép | C154: =kod!C23 -> Síp Carp Team | D154: =SUM(D155:D160) -> 22.15 | E154: =SUM(E155:E160) -> 3 | F154: 7.383333333 | G154: =MAX(G155:G160) -> 8.5 | H154: =H158 -> 0 | I154: ÖSSZESEN | J154: =COUNTIFS($J155:$BB160,">9,99",$J155:$BB160,"<20") -> 0 | K154: =COUNTIFS($J155:$BB160,">19,99") -> 0 | L154: =COUNTIFS($J158:$BA158,">4,99",$J158:$BA158,"<9,99") -> 0 | M154: =COUNTIFS($J158:$BB158,">9,99") -> 0
A155: B11 | B155: =kod!B23 -> Felező-spicc, közép | C155: =kod!C23 -> Síp Carp Team | D155: =SUM(J155:AZ155) -> 6.95 | E155: 1 | F155: 6.95 | G155: =MAX(J155:BA155) -> 6.95 | I155: tükörponty | J155: 6.95
A156: B11 | B156: =kod!B23 -> Felező-spicc, közép | C156: =kod!C23 -> Síp Carp Team | D156: 15.2 | E156: 2 | F156: 7.6 | G156: 8.5 | I156: tőponty | J156: 8.5 | K156: 6.7
A157: B11 | B157: =kod!B23 -> Felező-spicc, közép | C157: =kod!C23 -> Síp Carp Team | D157: 0 | E157: 0 | F157: 0 | G157: 0 | I157: nyurgaponty
A158: B11 | B158: =kod!B23 -> Felező-spicc, közép | C158: =kod!C23 -> Síp Carp Team | D158: 0 | E158: 0 | F158: 0 | H158: =MAX(J158:AZ158) -> 0 | I158: koi ponty
A159: B11 | B159: =kod!B23 -> Felező-spicc, közép | C159: =kod!C23 -> Síp Carp Team | D159: 0 | E159: 0 | F159: 0 | G159: =MAX(J159:BA159) -> 0 | I159: amur
A160: B11 | B160: =kod!B23 -> Felező-spicc, közép | C160: =kod!C23 -> Síp Carp Team | D160: 0 | E160: 0 | F160: 0 | G160: 0 | I160: fekete amur
A161: C1 | B161: =kod!B24 -> Gát, sekély víz | C161: =kod!C24 -> Carp Fever Bulgaria | D161: =SUM(D162:D167) -> 27.875 | E161: =SUM(E162:E167) -> 5 | F161: =IF(E161=0,0,D161/E161) -> 5.575 | G161: =MAX(G162:G167) -> 8.175 | H161: =H165 -> 0 | I161: ÖSSZESEN | J161: =COUNTIFS($J162:$BB167,">9,99",$J162:$BB167,"<20") -> 0 | K161: =COUNTIFS($J162:$BB167,">19,99") -> 0 | L161: =COUNTIFS($J165:$BA165,">4,99",$J165:$BA165,"<9,99") -> 0 | M161: =COUNTIFS($J165:$BB165,">9,99") -> 0
A162: C1 | B162: =kod!B24 -> Gát, sekély víz | C162: =kod!C24 -> Carp Fever Bulgaria | D162: =SUM(J162:AZ162) -> 6.95 | E162: =COUNT(J162:AZ162) -> 1 | F162: =IF(E162=0,0,D162/E162) -> 6.95 | G162: =MAX(J162:BA162) -> 6.95 | I162: tükörponty | J162: 6.95
A163: C1 | B163: =kod!B24 -> Gát, sekély víz | C163: =kod!C24 -> Carp Fever Bulgaria | D163: 12.75 | E163: 3 | F163: 4.25 | G163: =MAX(J163:BA163) -> 6.6 | I163: tőponty | J163: 3.375 | K163: 2.775 | L163: 6.6
A164: C1 | B164: =kod!B24 -> Gát, sekély víz | C164: =kod!C24 -> Carp Fever Bulgaria | D164: 8.175 | E164: 1 | F164: 8.175 | G164: =MAX(J164:BA164) -> 8.175 | I164: nyurgaponty | J164: 8.175
A165: C1 | B165: =kod!B24 -> Gát, sekély víz | C165: =kod!C24 -> Carp Fever Bulgaria | D165: 0 | E165: 0 | F165: 0 | H165: =MAX(J165:AZ165) -> 0 | I165: koi ponty
A166: C1 | B166: =kod!B24 -> Gát, sekély víz | C166: =kod!C24 -> Carp Fever Bulgaria | D166: 0 | E166: 0 | F166: 0 | G166: =MAX(J166:BA166) -> 0 | I166: amur
A167: C1 | B167: =kod!B24 -> Gát, sekély víz | C167: =kod!C24 -> Carp Fever Bulgaria | D167: 0 | E167: 0 | F167: 0 | G167: =MAX(J167:BA167) -> 0 | I167: fekete amur
A168: C2 | B168: =kod!B25 -> Gát, sekély víz | C168: =kod!C25 -> Carpfriends Ennstal-Austria | D168: =SUM(D169:D174) -> 24.9 | E168: =SUM(E169:E174) -> 3 | F168: 8.3 | G168: =MAX(G169:G174) -> 10.425 | H168: =H172 -> 0 | I168: ÖSSZESEN | J168: =COUNTIFS($J169:$BB174,">9,99",$J169:$BB174,"<20") -> 1 | K168: =COUNTIFS($J169:$BB174,">19,99") -> 0 | L168: =COUNTIFS($J172:$BA172,">4,99",$J172:$BA172,"<9,99") -> 0 | M168: =COUNTIFS($J172:$BB172,">9,99") -> 0
A169: C2 | B169: =kod!B25 -> Gát, sekély víz | C169: =kod!C25 -> Carpfriends Ennstal-Austria | D169: =SUM(J169:AZ169) -> 0 | E169: =COUNT(J169:AZ169) -> 0 | F169: 0 | G169: =MAX(J169:BA169) -> 0 | I169: tükörponty
A170: C2 | B170: =kod!B25 -> Gát, sekély víz | C170: =kod!C25 -> Carpfriends Ennstal-Austria | D170: 0 | E170: 0 | F170: 0 | G170: =MAX(J170:BA170) -> 0 | I170: tőponty
A171: C2 | B171: =kod!B25 -> Gát, sekély víz | C171: =kod!C25 -> Carpfriends Ennstal-Austria | D171: 24.9 | E171: 3 | F171: 8.3 | G171: =MAX(J171:BA171) -> 10.425 | I171: nyurgaponty | J171: 5.275 | K171: 9.2 | L171: 10.425
A172: C2 | B172: =kod!B25 -> Gát, sekély víz | C172: =kod!C25 -> Carpfriends Ennstal-Austria | D172: 0 | E172: 0 | F172: 0 | H172: =MAX(J172:AZ172) -> 0 | I172: koi ponty
A173: C2 | B173: =kod!B25 -> Gát, sekély víz | C173: =kod!C25 -> Carpfriends Ennstal-Austria | D173: 0 | E173: 0 | F173: 0 | G173: =MAX(J173:BA173) -> 0 | I173: amur
A174: C2 | B174: =kod!B25 -> Gát, sekély víz | C174: =kod!C25 -> Carpfriends Ennstal-Austria | D174: 0 | E174: 0 | F174: 0 | G174: =MAX(J174:BA174) -> 0 | I174: fekete amur
A175: C3 | B175: =kod!B26 -> Gát, sekély víz | C175: =kod!C26 -> Carp Team Brasov | D175: =SUM(D176:D181) -> 20.075 | E175: =SUM(E176:E181) -> 2 | F175: 10.0375 | G175: =MAX(G176:G181) -> 11.475 | H175: =H179 -> 0 | I175: ÖSSZESEN | J175: =COUNTIFS($J176:$BB181,">9,99",$J176:$BB181,"<20") -> 1 | K175: =COUNTIFS($J176:$BB181,">19,99") -> 0 | L175: =COUNTIFS($J179:$BA179,">4,99",$J179:$BA179,"<9,99") -> 0 | M175: =COUNTIFS($J179:$BB179,">9,99") -> 0
A176: C3 | B176: =kod!B26 -> Gát, sekély víz | C176: =kod!C26 -> Carp Team Brasov | D176: =SUM(J176:AZ176) -> 0 | E176: =COUNT(J176:AZ176) -> 0 | F176: 0 | G176: =MAX(J176:BA176) -> 0 | I176: tükörponty
A177: C3 | B177: =kod!B26 -> Gát, sekély víz | C177: =kod!C26 -> Carp Team Brasov | D177: 0 | E177: 0 | F177: 0 | G177: =MAX(J177:BA177) -> 0 | I177: tőponty
A178: C3 | B178: =kod!B26 -> Gát, sekély víz | C178: =kod!C26 -> Carp Team Brasov | D178: 20.075 | E178: 2 | F178: 10.0375 | G178: =MAX(J178:BA178) -> 11.475 | I178: nyurgaponty | J178: 8.6 | K178: 11.475
A179: C3 | B179: =kod!B26 -> Gát, sekély víz | C179: =kod!C26 -> Carp Team Brasov | D179: 0 | E179: 0 | F179: 0 | H179: =MAX(J179:AZ179) -> 0 | I179: koi ponty
A180: C3 | B180: =kod!B26 -> Gát, sekély víz | C180: =kod!C26 -> Carp Team Brasov | D180: 0 | E180: 0 | F180: 0 | G180: =MAX(J180:BA180) -> 0 | I180: amur
A181: C3 | B181: =kod!B26 -> Gát, sekély víz | C181: =kod!C26 -> Carp Team Brasov | D181: 0 | E181: 0 | F181: 0 | G181: =MAX(J181:BA181) -> 0 | I181: fekete amur
A182: C4 | B182: =kod!B27 -> Gát, sekély víz | C182: =kod!C27 -> As La Carp Team | D182: =SUM(D183:D188) -> 18.975 | E182: =SUM(E183:E188) -> 3 | F182: 6.325 | G182: =MAX(G183:G188) -> 6.825 | H182: =H186 -> 0 | I182: ÖSSZESEN | J182: =COUNTIFS($J183:$BB188,">9,99",$J183:$BB188,"<20") -> 0 | K182: =COUNTIFS($J183:$BB188,">19,99") -> 0 | L182: =COUNTIFS($J186:$BA186,">4,99",$J186:$BA186,"<9,99") -> 0 | M182: =COUNTIFS($J186:$BB186,">9,99") -> 0
A183: C4 | B183: =kod!B27 -> Gát, sekély víz | C183: =kod!C27 -> As La Carp Team | D183: =SUM(J183:AZ183) -> 6.825 | E183: =COUNT(J183:AZ183) -> 1 | F183: 6.825 | G183: =MAX(J183:BA183) -> 6.825 | I183: tükörponty | J183: 6.825
A184: C4 | B184: =kod!B27 -> Gát, sekély víz | C184: =kod!C27 -> As La Carp Team | D184: 6.1 | E184: 1 | F184: 6.1 | G184: 6.1 | I184: tőponty | J184: 6.1
A185: C4 | B185: =kod!B27 -> Gát, sekély víz | C185: =kod!C27 -> As La Carp Team | D185: 6.05 | E185: 1 | F185: 6.05 | G185: 6.05 | I185: nyurgaponty | J185: 6.05
A186: C4 | B186: =kod!B27 -> Gát, sekély víz | C186: =kod!C27 -> As La Carp Team | D186: 0 | E186: 0 | F186: 0 | G186: 0 | H186: =MAX(J186:AZ186) -> 0 | I186: koi ponty
A187: C4 | B187: =kod!B27 -> Gát, sekély víz | C187: =kod!C27 -> As La Carp Team | D187: 0 | E187: 0 | F187: 0 | G187: 0 | I187: amur
A188: C4 | B188: =kod!B27 -> Gát, sekély víz | C188: =kod!C27 -> As La Carp Team | D188: 0 | E188: 0 | F188: 0 | G188: 0 | I188: fekete amur
A189: C5 | B189: =kod!B28 -> Gát, sekély víz | C189: =kod!C28 -> Bojlis Főnök - Bait Bait Carp Team | D189: =SUM(D190:D195) -> 15.05 | E189: =SUM(E190:E195) -> 2 | F189: 7.525 | G189: =MAX(G190:G195) -> 7.55 | H189: =H193 -> 0 | I189: ÖSSZESEN | J189: =COUNTIFS($J190:$BB195,">9,99",$J190:$BB195,"<20") -> 0 | K189: =COUNTIFS($J190:$BB195,">19,99") -> 0 | L189: =COUNTIFS($J193:$BA193,">4,99",$J193:$BA193,"<9,99") -> 0 | M189: =COUNTIFS($J193:$BB193,">9,99") -> 0
A190: C5 | B190: =kod!B28 -> Gát, sekély víz | C190: =kod!C28 -> Bojlis Főnök - Bait Bait Carp Team | D190: =SUM(J190:AZ190) -> 0 | E190: =COUNT(J190:AZ190) -> 0 | F190: 0 | G190: =MAX(J190:BA190) -> 0 | I190: tükörponty
A191: C5 | B191: =kod!B28 -> Gát, sekély víz | C191: =kod!C28 -> Bojlis Főnök - Bait Bait Carp Team | D191: 15.05 | E191: 2 | F191: 7.525 | G191: =MAX(J191:BA191) -> 7.55 | I191: tőponty | J191: 7.5 | K191: 7.55
A192: C5 | B192: =kod!B28 -> Gát, sekély víz | C192: =kod!C28 -> Bojlis Főnök - Bait Bait Carp Team | D192: 0 | E192: 0 | F192: 0 | G192: =MAX(J192:BA192) -> 0 | I192: nyurgaponty
A193: C5 | B193: =kod!B28 -> Gát, sekély víz | C193: =kod!C28 -> Bojlis Főnök - Bait Bait Carp Team | D193: 0 | E193: 0 | F193: 0 | H193: =MAX(J193:AZ193) -> 0 | I193: koi ponty
A194: C5 | B194: =kod!B28 -> Gát, sekély víz | C194: =kod!C28 -> Bojlis Főnök - Bait Bait Carp Team | D194: 0 | E194: 0 | F194: 0 | G194: =MAX(J194:BA194) -> 0 | I194: amur
A195: C5 | B195: =kod!B28 -> Gát, sekély víz | C195: =kod!C28 -> Bojlis Főnök - Bait Bait Carp Team | D195: 0 | E195: 0 | F195: 0 | G195: =MAX(J195:BA195) -> 0 | I195: fekete amur
A196: C6 | B196: =kod!B29 -> Felező-spicc, jobb | C196: =kod!C29 -> Secret Of The Carp | D196: =SUM(D197:D202) -> 31.325 | E196: =SUM(E197:E202) -> 4 | F196: 7.83125 | G196: =MAX(G197:G202) -> 9.75 | H196: =H200 -> 3.025 | I196: ÖSSZESEN | J196: =COUNTIFS($J197:$BB202,">9,99",$J197:$BB202,"<20") -> 0 | K196: =COUNTIFS($J197:$BB202,">19,99") -> 0 | L196: =COUNTIFS($J200:$BA200,">4,99",$J200:$BA200,"<9,99") -> 0 | M196: =COUNTIFS($J200:$BB200,">9,99") -> 0
A197: C6 | B197: =kod!B29 -> Felező-spicc, jobb | C197: =kod!C29 -> Secret Of The Carp | D197: =SUM(J197:AZ197) -> 9.55 | E197: =COUNT(J197:AZ197) -> 1 | F197: 9.55 | G197: =MAX(J197:BA197) -> 9.55 | I197: tükörponty | J197: 9.55
A198: C6 | B198: =kod!B29 -> Felező-spicc, jobb | C198: =kod!C29 -> Secret Of The Carp | D198: 18.75 | E198: 2 | F198: 9.375 | G198: 9.75 | I198: tőponty | J198: 9 | K198: 9.75
A199: C6 | B199: =kod!B29 -> Felező-spicc, jobb | C199: =kod!C29 -> Secret Of The Carp | D199: 0 | E199: 0 | F199: 0 | G199: 0 | I199: nyurgaponty
A200: C6 | B200: =kod!B29 -> Felező-spicc, jobb | C200: =kod!C29 -> Secret Of The Carp | D200: 3.025 | E200: 1 | F200: 3.025 | G200: 3.025 | H200: =MAX(J200:AZ200) -> 3.025 | I200: koi ponty | J200: 3.025
... 38 more rows

Sheet szakasz4
A1: =IF(kod!E2>0,kod!E2,"") -> XXI. PROFESSZIONÁLIS BOJLIS EURÓPA KUPA (EPBC)
A2: =IF(kod!E3>0,kod!E3,"") -> XXXVI. MACONKA NEMZETKÖZI BOJLIS KUPA
A3: =IF(kod!E4>0,kod!E4,"") -> Maconka, 2025.06.15. - 2025.06.20.
A4: =IF(kod!E5>0,kod!E5,"") -> 
A5: =kod!E10 -> 4. szakasz: 2025.06.17. 06:00 - 2025.06.17. 18:00
A6: Rajthely | B6: Elhelyezés | C6: Csapatnév | D6: Kg | E6: Db | F6: Átlag | G6: BC | H6: BkC | I6: Faj | J6: 10-20 kg | K6: 20+ kg | L6: koi 5-10 kg | M6: koi 10+ kg
A7: A1 | B7: =kod!B2 -> Gát, mélyvíz | C7: =kod!C2 -> SBS - Halcatraz - TiZo Team | D7: =SUM(D8:D13) -> 51.95 | E7: =SUM(E8:E13) -> 5 | F7: =IF(E7=0,0,D7/E7) -> 10.39 | G7: =MAX(G8:G13) -> 15.575 | H7: =H11 -> 0 | I7: ÖSSZESEN | J7: =COUNTIFS($J8:$BB13,">9,99",$J8:$BB13,"<20") -> 3 | K7: =COUNTIFS($J8:$BB13,">19,99") -> 0 | L7: =COUNTIFS($J11:$BA11,">4,99",$J11:$BA11,"<9,99") -> 0 | M7: =COUNTIFS($J11:$BB11,">9,99") -> 0
A8: A1 | B8: =kod!B2 -> Gát, mélyvíz | C8: =kod!C2 -> SBS - Halcatraz - TiZo Team | D8: =SUM(J8:AZ8) -> 15.575 | E8: =COUNT(J8:AZ8) -> 1 | F8: =IF(E8=0,0,D8/E8) -> 15.575 | G8: =MAX(J8:BA8) -> 15.575 | I8: tükörponty | J8: 15.575
A9: A1 | B9: =kod!B2 -> Gát, mélyvíz | C9: =kod!C2 -> SBS - Halcatraz - TiZo Team | D9: 13.2 | E9: 1 | F9: 13.2 | G9: =MAX(J9:BA9) -> 13.2 | I9: tőponty | J9: 13.2
A10: A1 | B10: =kod!B2 -> Gát, mélyvíz | C10: =kod!C2 -> SBS - Halcatraz - TiZo Team | D10: 20.075 | E10: 2 | F10: 10.0375 | G10: 11.325 | I10: nyurgaponty | J10: 8.75 | K10: 11.325
A11: A1 | B11: =kod!B2 -> Gát, mélyvíz | C11: =kod!C2 -> SBS - Halcatraz - TiZo Team | D11: 0 | E11: 0 | F11: 0 | H11: =MAX(J11:AZ11) -> 0 | I11: koi ponty
A12: A1 | B12: =kod!B2 -> Gát, mélyvíz | C12: =kod!C2 -> SBS - Halcatraz - TiZo Team | D12: 0 | E12: 0 | F12: 0 | G12: 0 | I12: amur
A13: A1 | B13: =kod!B2 -> Gát, mélyvíz | C13: =kod!C2 -> SBS - Halcatraz - TiZo Team | D13: 3.1 | E13: 1 | F13: 3.1 | G13: 3.1 | I13: fekete amur | J13: 3.1
A14: A2 | B14: =kod!B3 -> Gát, mélyvíz | C14: =kod!C3 -> Altstadt Carp Team | D14: =SUM(D15:D20) -> 26.15 | E14: =SUM(E15:E20) -> 5 | F14: 5.23 | G14: =MAX(G15:G20) -> 6.7 | H14: =H18 -> 0 | I14: ÖSSZESEN | J14: =COUNTIFS($J15:$BB20,">9,99",$J15:$BB20,"<20") -> 0 | K14: =COUNTIFS($J15:$BB20,">19,99") -> 0 | L14: =COUNTIFS($J18:$BA18,">4,99",$J18:$BA18,"<9,99") -> 0 | M14: =COUNTIFS($J18:$BB18,">9,99") -> 0
A15: A2 | B15: =kod!B3 -> Gát, mélyvíz | C15: =kod!C3 -> Altstadt Carp Team | D15: =SUM(J15:AZ15) -> 6.7 | E15: =COUNT(J15:AZ15) -> 1 | F15: 6.7 | G15: =MAX(J15:BA15) -> 6.7 | I15: tükörponty | J15: 6.7
A16: A2 | B16: =kod!B3 -> Gát, mélyvíz | C16: =kod!C3 -> Altstadt Carp Team | D16: 6.325 | E16: 1 | F16: 6.325 | G16: =MAX(J16:BA16) -> 6.325 | I16: tőponty | J16: 6.325
A17: A2 | B17: =kod!B3 -> Gát, mélyvíz | C17: =kod!C3 -> Altstadt Carp Team | D17: 6.675 | E17: 1 | F17: 6.675 | G17: =MAX(J17:BA17) -> 6.675 | I17: nyurgaponty | J17: 6.675
A18: A2 | B18: =kod!B3 -> Gát, mélyvíz | C18: =kod!C3 -> Altstadt Carp Team | D18: 0 | E18: 0 | F18: 0 | H18: =MAX(J18:AZ18) -> 0 | I18: koi ponty
A19: A2 | B19: =kod!B3 -> Gát, mélyvíz | C19: =kod!C3 -> Altstadt Carp Team | D19: 0 | E19: 0 | F19: 0 | G19: =MAX(J19:BA19) -> 0 | I19: amur
A20: A2 | B20: =kod!B3 -> Gát, mélyvíz | C20: =kod!C3 -> Altstadt Carp Team | D20: 6.45 | E20: 2 | F20: 3.225 | G20: =MAX(J20:BA20) -> 3.3 | I20: fekete amur | J20: 3.15 | K20: 3.3
A21: A3 | B21: =kod!B4 -> Gát, mélyvíz | C21: =kod!C4 -> Ferma De Crap Diosig | D21: =SUM(D22:D27) -> 31.225 | E21: =SUM(E22:E27) -> 3 | F21: 10.40833333 | G21: =MAX(G22:G27) -> 18.225 | H21: =H25 -> 0 | I21: ÖSSZESEN | J21: =COUNTIFS($J22:$BB27,">9,99",$J22:$BB27,"<20") -> 1 | K21: =COUNTIFS($J22:$BB27,">19,99") -> 0 | L21: =COUNTIFS($J25:$BA25,">4,99",$J25:$BA25,"<9,99") -> 0 | M21: =COUNTIFS($J25:$BB25,">9,99") -> 0
A22: A3 | B22: =kod!B4 -> Gát, mélyvíz | C22: =kod!C4 -> Ferma De Crap Diosig | D22: =SUM(J22:AZ22) -> 0 | E22: =COUNT(J22:AZ22) -> 0 | F22: 0 | G22: =MAX(J22:BA22) -> 0 | I22: tükörponty
A23: A3 | B23: =kod!B4 -> Gát, mélyvíz | C23: =kod!C4 -> Ferma De Crap Diosig | D23: 27.3 | E23: 2 | F23: 13.65 | G23: =MAX(J23:BA23) -> 18.225 | I23: tőponty | J23: 9.075 | K23: 18.225
A24: A3 | B24: =kod!B4 -> Gát, mélyvíz | C24: =kod!C4 -> Ferma De Crap Diosig | D24: 0 | E24: 0 | F24: 0 | G24: =MAX(J24:BA24) -> 0 | I24: nyurgaponty
A25: A3 | B25: =kod!B4 -> Gát, mélyvíz | C25: =kod!C4 -> Ferma De Crap Diosig | D25: 0 | E25: 0 | F25: 0 | H25: =MAX(J25:AZ25) -> 0 | I25: koi ponty
A26: A3 | B26: =kod!B4 -> Gát, mélyvíz | C26: =kod!C4 -> Ferma De Crap Diosig | D26: 0 | E26: 0 | F26: 0 | G26: =MAX(J26:BA26) -> 0 | I26: amur
A27: A3 | B27: =kod!B4 -> Gát, mélyvíz | C27: =kod!C4 -> Ferma De Crap Diosig | D27: 3.925 | E27: 1 | F27: 3.925 | G27: =MAX(J27:BA27) -> 3.925 | I27: fekete amur | J27: 3.925
A28: A4 | B28: =kod!B5 -> Gát, mélyvíz | C28: =kod!C5 -> Bull Tackle | D28: =SUM(D29:D34) -> 24.565 | E28: =SUM(E29:E34) -> 2 | F28: 12.2825 | G28: =MAX(G29:G34) -> 16.665 | H28: =H32 -> 0 | I28: ÖSSZESEN | J28: =COUNTIFS($J29:$BB34,">9,99",$J29:$BB34,"<20") -> 1 | K28: =COUNTIFS($J29:$BB34,">19,99") -> 0 | L28: =COUNTIFS($J32:$BA32,">4,99",$J32:$BA32,"<9,99") -> 0 | M28: =COUNTIFS($J32:$BB32,">9,99") -> 0
A29: A4 | B29: =kod!B5 -> Gát, mélyvíz | C29: =kod!C5 -> Bull Tackle | D29: =SUM(J29:AZ29) -> 16.665 | E29: =COUNT(J29:AZ29) -> 1 | F29: 16.665 | G29: =MAX(J29:BA29) -> 16.665 | I29: tükörponty | J29: 16.665
A30: A4 | B30: =kod!B5 -> Gát, mélyvíz | C30: =kod!C5 -> Bull Tackle | D30: 0 | E30: 0 | F30: 0 | G30: =MAX(J30:BA30) -> 0 | I30: tőponty
A31: A4 | B31: =kod!B5 -> Gát, mélyvíz | C31: =kod!C5 -> Bull Tackle | D31: 7.9 | E31: 1 | F31: 7.9 | G31: =MAX(J31:BA31) -> 7.9 | I31: nyurgaponty | J31: 7.9
A32: A4 | B32: =kod!B5 -> Gát, mélyvíz | C32: =kod!C5 -> Bull Tackle | D32: 0 | E32: 0 | F32: 0 | H32: =MAX(J32:AZ32) -> 0 | I32: koi ponty
A33: A4 | B33: =kod!B5 -> Gát, mélyvíz | C33: =kod!C5 -> Bull Tackle | D33: 0 | E33: 0 | F33: 0 | G33: =MAX(J33:BA33) -> 0 | I33: amur
A34: A4 | B34: =kod!B5 -> Gát, mélyvíz | C34: =kod!C5 -> Bull Tackle | D34: 0 | E34: 0 | F34: 0 | G34: =MAX(J34:BA34) -> 0 | I34: fekete amur
A35: A5 | B35: =kod!B6 -> Gát, mélyvíz | C35: =kod!C6 -> AHFSZ Fishing Team | D35: =SUM(D36:D41) -> 2.95 | E35: =SUM(E36:E41) -> 1 | F35: 2.95 | G35: =MAX(G36:G41) -> 2.95 | H35: =H39 -> 0 | I35: ÖSSZESEN | J35: =COUNTIFS($J36:$BB41,">9,99",$J36:$BB41,"<20") -> 0 | K35: =COUNTIFS($J36:$BB41,">19,99") -> 0 | L35: =COUNTIFS($J39:$BA39,">4,99",$J39:$BA39,"<9,99") -> 0 | M35: =COUNTIFS($J39:$BB39,">9,99") -> 0
A36: A5 | B36: =kod!B6 -> Gát, mélyvíz | C36: =kod!C6 -> AHFSZ Fishing Team | D36: =SUM(J36:AZ36) -> 0 | E36: =COUNT(J36:AZ36) -> 0 | F36: 0 | G36: =MAX(J36:BA36) -> 0 | I36: tükörponty
A37: A5 | B37: =kod!B6 -> Gát, mélyvíz | C37: =kod!C6 -> AHFSZ Fishing Team | D37: 0 | E37: 0 | F37: 0 | G37: =MAX(J37:BA37) -> 0 | I37: tőponty
A38: A5 | B38: =kod!B6 -> Gát, mélyvíz | C38: =kod!C6 -> AHFSZ Fishing Team | D38: 0 | E38: 0 | F38: 0 | G38: =MAX(J38:BA38) -> 0 | I38: nyurgaponty
A39: A5 | B39: =kod!B6 -> Gát, mélyvíz | C39: =kod!C6 -> AHFSZ Fishing Team | D39: 0 | E39: 0 | F39: 0 | H39: =MAX(J39:AZ39) -> 0 | I39: koi ponty
A40: A5 | B40: =kod!B6 -> Gát, mélyvíz | C40: =kod!C6 -> AHFSZ Fishing Team | D40: 0 | E40: 0 | F40: 0 | G40: =MAX(J40:BA40) -> 0 | I40: amur
A41: A5 | B41: =kod!B6 -> Gát, mélyvíz | C41: =kod!C6 -> AHFSZ Fishing Team | D41: 2.95 | E41: 1 | F41: 2.95 | G41: =MAX(J41:BA41) -> 2.95 | I41: fekete amur | J41: 2.95
A42: A6 | B42: =kod!B7 -> Nyári kikötő, belső | C42: =kod!C7 -> Black Carp Team | D42: =SUM(D43:D48) -> 136.75 | E42: =SUM(E43:E48) -> 22 | F42: 6.215909091 | G42: =MAX(G43:G48) -> 13.075 | H42: =H46 -> 0 | I42: ÖSSZESEN | J42: =COUNTIFS($J43:$BB48,">9,99",$J43:$BB48,"<20") -> 3 | K42: =COUNTIFS($J43:$BB48,">19,99") -> 0 | L42: =COUNTIFS($J46:$BA46,">4,99",$J46:$BA46,"<9,99") -> 0 | M42: =COUNTIFS($J46:$BB46,">9,99") -> 0
A43: A6 | B43: =kod!B7 -> Nyári kikötő, belső | C43: =kod!C7 -> Black Carp Team | D43: =SUM(J43:AZ43) -> 0 | E43: =COUNT(J43:AZ43) -> 0 | F43: 0 | G43: =MAX(J43:BA43) -> 0 | I43: tükörponty
A44: A6 | B44: =kod!B7 -> Nyári kikötő, belső | C44: =kod!C7 -> Black Carp Team | D44: 8.375 | E44: 1 | F44: 8.375 | G44: =MAX(J44:BA44) -> 8.375 | I44: tőponty | J44: 8.375
A45: A6 | B45: =kod!B7 -> Nyári kikötő, belső | C45: =kod!C7 -> Black Carp Team | D45: 45.7 | E45: 6 | F45: 7.616666667 | G45: =MAX(J45:BA45) -> 12.25 | I45: nyurgaponty | J45: 12.25 | K45: 7.425 | L45: 5.2 | M45: 8.225 | N45: 7.4 | O45: 5.2
A46: A6 | B46: =kod!B7 -> Nyári kikötő, belső | C46: =kod!C7 -> Black Carp Team | D46: 0 | E46: 0 | F46: 0 | H46: =MAX(J46:AZ46) -> 0 | I46: koi ponty
A47: A6 | B47: =kod!B7 -> Nyári kikötő, belső | C47: =kod!C7 -> Black Carp Team | D47: 25.45 | E47: 2 | F47: 12.725 | G47: =MAX(J47:BA47) -> 13.075 | I47: amur | J47: 13.075 | K47: 12.375
A48: A6 | B48: =kod!B7 -> Nyári kikötő, belső | C48: =kod!C7 -> Black Carp Team | D48: 57.225 | E48: 13 | F48: 4.401923077 | G48: =MAX(J48:BA48) -> 8.85 | I48: fekete amur | J48: 4.225 | K48: 8.85 | L48: 3.575 | M48: 4.225 | N48: 3.35 | O48: 4.25 | P48: 3.525 | Q48: 3.275 | R48: 2.975 | S48: 8.575 | T48: 2.875 | U48: 4.475 | V48: 3.05
A49: A7 | B49: =kod!B8 -> Nyári kikötő, közép | C49: =kod!C8 -> USA & Mivado Carp Team | D49: =SUM(D50:D55) -> 3.9 | E49: =SUM(E50:E55) -> 1 | F49: 3.9 | G49: =MAX(G50:G55) -> 3.9 | H49: =H53 -> 0 | I49: ÖSSZESEN | J49: =J46 -> 0 | K49: =COUNTIFS($J50:$BB55,">19,99") -> 0 | L49: =COUNTIFS($J53:$BA53,">4,99",$J53:$BA53,"<9,99") -> 0 | M49: =COUNTIFS($J53:$BB53,">9,99") -> 0
A50: A7 | B50: =kod!B8 -> Nyári kikötő, közép | C50: =kod!C8 -> USA & Mivado Carp Team | D50: =SUM(J50:AZ50) -> 0 | E50: =COUNT(J50:AZ50) -> 0 | F50: 0 | G50: =MAX(J50:BA50) -> 0 | I50: tükörponty
A51: A7 | B51: =kod!B8 -> Nyári kikötő, közép | C51: =kod!C8 -> USA & Mivado Carp Team | D51: 0 | E51: 0 | F51: 0 | G51: =MAX(J51:BA51) -> 0 | I51: tőponty
A52: A7 | B52: =kod!B8 -> Nyári kikötő, közép | C52: =kod!C8 -> USA & Mivado Carp Team | D52: 0 | E52: 0 | F52: 0 | G52: =MAX(J52:BA52) -> 0 | I52: nyurgaponty
A53: A7 | B53: =kod!B8 -> Nyári kikötő, közép | C53: =kod!C8 -> USA & Mivado Carp Team | D53: 0 | E53: 0 | F53: 0 | H53: =MAX(J53:AZ53) -> 0 | I53: koi ponty
A54: A7 | B54: =kod!B8 -> Nyári kikötő, közép | C54: =kod!C8 -> USA & Mivado Carp Team | D54: 0 | E54: 0 | F54: 0 | G54: =MAX(J54:BA54) -> 0 | I54: amur
A55: A7 | B55: =kod!B8 -> Nyári kikötő, közép | C55: =kod!C8 -> USA & Mivado Carp Team | D55: 3.9 | E55: 1 | F55: 3.9 | G55: =MAX(J55:BA55) -> 3.9 | I55: fekete amur | J55: 3.9
A56: A8 | B56: =kod!B9 -> Nyári kikötő, külső | C56: =kod!C9 -> Ózdi Sporthorgász Egyesület | D56: =SUM(D57:D62) -> 27.05 | E56: =SUM(E57:E62) -> 3 | F56: 9.016666667 | G56: =MAX(G57:G62) -> 10.475 | H56: =H60 -> 0 | I56: ÖSSZESEN | J56: =COUNTIFS($J57:$BB62,">9,99",$J57:$BB62,"<20") -> 1 | K56: =COUNTIFS($J57:$BB62,">19,99") -> 0 | L56: =COUNTIFS($J60:$BA60,">4,99",$J60:$BA60,"<9,99") -> 0 | M56: =COUNTIFS($J60:$BB60,">9,99") -> 0
A57: A8 | B57: =kod!B9 -> Nyári kikötő, külső | C57: =kod!C9 -> Ózdi Sporthorgász Egyesület | D57: =SUM(J57:AZ57) -> 7.3 | E57: =COUNT(J57:AZ57) -> 1 | F57: 7.3 | G57: =MAX(J57:BA57) -> 7.3 | I57: tükörponty | J57: 7.3
A58: A8 | B58: =kod!B9 -> Nyári kikötő, külső | C58: =kod!C9 -> Ózdi Sporthorgász Egyesület | D58: 0 | E58: 0 | F58: 0 | G58: =MAX(J58:BA58) -> 0 | I58: tőponty
A59: A8 | B59: =kod!B9 -> Nyári kikötő, külső | C59: =kod!C9 -> Ózdi Sporthorgász Egyesület | D59: 19.75 | E59: 2 | F59: 9.875 | G59: =MAX(J59:BA59) -> 10.475 | I59: nyurgaponty | J59: 10.475 | K59: 9.275
A60: A8 | B60: =kod!B9 -> Nyári kikötő, külső | C60: =kod!C9 -> Ózdi Sporthorgász Egyesület | D60: 0 | E60: 0 | F60: 0 | H60: =MAX(J60:AZ60) -> 0 | I60: koi ponty
A61: A8 | B61: =kod!B9 -> Nyári kikötő, külső | C61: =kod!C9 -> Ózdi Sporthorgász Egyesület | D61: 0 | E61: 0 | F61: 0 | G61: =MAX(J61:BA61) -> 0 | I61: amur
A62: A8 | B62: =kod!B9 -> Nyári kikötő, külső | C62: =kod!C9 -> Ózdi Sporthorgász Egyesület | D62: 0 | E62: 0 | F62: 0 | G62: =MAX(J62:BA62) -> 0 | I62: fekete amur
A63: A9 | B63: =kod!B10 -> I. sziget, bal külső | C63: =kod!C10 -> Kártékony Carp Team | D63: =SUM(D64:D69) -> 116.55 | E63: =SUM(E64:E69) -> 13 | F63: 8.965384615 | G63: =MAX(G64:G69) -> 12.95 | H63: =H67 -> 0 | I63: ÖSSZESEN | J63: =COUNTIFS($J64:$BB69,">9,99",$J64:$BB69,"<20") -> 4 | K63: =COUNTIFS($J64:$BB69,">19,99") -> 0 | L63: =COUNTIFS($J67:$BA67,">4,99",$J67:$BA67,"<9,99") -> 0 | M63: =COUNTIFS($J67:$BB67,">9,99") -> 0
A64: A9 | B64: =kod!B10 -> I. sziget, bal külső | C64: =kod!C10 -> Kártékony Carp Team | D64: =SUM(J64:AZ64) -> 16.175 | E64: =COUNT(J64:AZ64) -> 2 | F64: =IF(E64=0,0,D64/E64) -> 8.0875 | G64: =MAX(J64:BA64) -> 8.175 | I64: tükörponty | J64: 8.175 | K64: 8
A65: A9 | B65: =kod!B10 -> I. sziget, bal külső | C65: =kod!C10 -> Kártékony Carp Team | D65: 52.45 | E65: 7 | F65: 7.492857143 | G65: =MAX(J65:BA65) -> 8.25 | I65: tőponty | J65: 7.225 | K65: 7.95 | L65: 7.1 | M65: 7.6 | N65: 7.95 | O65: 8.25 | P65: 6.375
A66: A9 | B66: =kod!B10 -> I. sziget, bal külső | C66: =kod!C10 -> Kártékony Carp Team | D66: 47.925 | E66: 4 | F66: 11.98125 | G66: =MAX(J66:BA66) -> 12.95 | I66: nyurgaponty | J66: 12.95 | K66: 12.275 | L66: 10.925 | M66: 11.775
A67: A9 | B67: =kod!B10 -> I. sziget, bal külső | C67: =kod!C10 -> Kártékony Carp Team | D67: 0 | E67: 0 | F67: 0 | H67: =MAX(J67:AZ67) -> 0 | I67: koi ponty
A68: A9 | B68: =kod!B10 -> I. sziget, bal külső | C68: =kod!C10 -> Kártékony Carp Team | D68: 0 | E68: 0 | F68: 0 | G68: =MAX(J68:BA68) -> 0 | I68: amur
A69: A9 | B69: =kod!B10 -> I. sziget, bal külső | C69: =kod!C10 -> Kártékony Carp Team | D69: 0 | E69: 0 | F69: 0 | G69: =MAX(J69:BA69) -> 0 | I69: fekete amur
A70: A10 | B70: =kod!B11 -> I. sziget, bal | C70: =kod!C11 -> Team 5 Austria | D70: =SUM(D71:D76) -> 7.275 | E70: =SUM(E71:E76) -> 1 | F70: 7.275 | G70: =MAX(G71:G76) -> 7.275 | H70: =H74 -> 0 | I70: ÖSSZESEN | J70: =COUNTIFS($J71:$BB76,">9,99",$J71:$BB76,"<20") -> 0 | K70: =COUNTIFS($J71:$BB76,">19,99") -> 0 | L70: =COUNTIFS($J74:$BA74,">4,99",$J74:$BA74,"<9,99") -> 0 | M70: =COUNTIFS($J74:$BB74,">9,99") -> 0
A71: A10 | B71: =kod!B11 -> I. sziget, bal | C71: =kod!C11 -> Team 5 Austria | D71: =SUM(J71:AZ71) -> 0 | E71: =COUNT(J71:AZ71) -> 0 | F71: 0 | G71: =MAX(J71:BA71) -> 0 | I71: tükörponty
A72: A10 | B72: =kod!B11 -> I. sziget, bal | C72: =kod!C11 -> Team 5 Austria | D72: 0 | E72: 0 | F72: 0 | G72: =MAX(J72:BA72) -> 0 | I72: tőponty
A73: A10 | B73: =kod!B11 -> I. sziget, bal | C73: =kod!C11 -> Team 5 Austria | D73: 0 | E73: 0 | F73: 0 | G73: =MAX(J73:BA73) -> 0 | I73: nyurgaponty
A74: A10 | B74: =kod!B11 -> I. sziget, bal | C74: =kod!C11 -> Team 5 Austria | D74: 0 | E74: 0 | F74: 0 | H74: =MAX(J74:AZ74) -> 0 | I74: koi ponty
A75: A10 | B75: =kod!B11 -> I. sziget, bal | C75: =kod!C11 -> Team 5 Austria | D75: 7.275 | E75: 1 | F75: 7.275 | G75: =MAX(J75:BA75) -> 7.275 | I75: amur | J75: 7.275
A76: A10 | B76: =kod!B11 -> I. sziget, bal | C76: =kod!C11 -> Team 5 Austria | D76: 0 | E76: 0 | F76: 0 | G76: =MAX(J76:BA76) -> 0 | I76: fekete amur
A77: A11 | B77: =kod!B12 -> I. sziget, bal közép | C77: =kod!C12 -> Invader's Team Poland | D77: =SUM(D78:D83) -> 37.1 | E77: =SUM(E78:E83) -> 4 | F77: 9.275 | G77: =MAX(G78:G83) -> 12.725 | H77: =H81 -> 0 | I77: ÖSSZESEN | J77: =COUNTIFS($J78:$BB83,">9,99",$J78:$BB83,"<20") -> 3 | K77: =COUNTIFS($J78:$BB83,">19,99") -> 0 | L77: =COUNTIFS($J81:$BA81,">4,99",$J81:$BA81,"<9,99") -> 0 | M77: =COUNTIFS($J81:$BB81,">9,99") -> 0
A78: A11 | B78: =kod!B12 -> I. sziget, bal közép | C78: =kod!C12 -> Invader's Team Poland | D78: =SUM(J78:AZ78) -> 0 | E78: =COUNT(J78:AZ78) -> 0 | F78: 0 | G78: =MAX(J78:BA78) -> 0 | I78: tükörponty
A79: A11 | B79: =kod!B12 -> I. sziget, bal közép | C79: =kod!C12 -> Invader's Team Poland | D79: 0 | E79: 0 | F79: 0 | G79: =MAX(J79:BA79) -> 0 | I79: tőponty
A80: A11 | B80: =kod!B12 -> I. sziget, bal közép | C80: =kod!C12 -> Invader's Team Poland | D80: 10.525 | E80: 1 | F80: 10.525 | G80: =MAX(J80:BA80) -> 10.525 | I80: nyurgaponty | J80: 10.525
A81: A11 | B81: =kod!B12 -> I. sziget, bal közép | C81: =kod!C12 -> Invader's Team Poland | D81: 0 | E81: 0 | F81: 0 | H81: =MAX(J81:AZ81) -> 0 | I81: koi ponty
A82: A11 | B82: =kod!B12 -> I. sziget, bal közép | C82: =kod!C12 -> Invader's Team Poland | D82: 12.725 | E82: 1 | F82: 12.725 | G82: =MAX(J82:BA82) -> 12.725 | I82: amur | J82: 12.725
A83: A11 | B83: =kod!B12 -> I. sziget, bal közép | C83: =kod!C12 -> Invader's Team Poland | D83: 13.85 | E83: 2 | F83: 6.925 | G83: =MAX(J83:BA83) -> 10.9 | I83: fekete amur | J83: 2.95 | K83: 10.9
A84: B1 | B84: =kod!B13 -> Gát, közepes víz | C84: =kod!C13 -> Tata Nitu Carp Team | D84: =SUM(D85:D90) -> 16.65 | E84: =SUM(E85:E90) -> 4 | F84: =IF(E84=0,0,D84/E84) -> 4.1625 | G84: =MAX(G85:G90) -> 5.75 | H84: =H88 -> 0 | I84: ÖSSZESEN | J84: =COUNTIFS($J85:$BB90,">9,99",$J85:$BB90,"<20") -> 0 | K84: =COUNTIFS($J85:$BB90,">19,99") -> 0 | L84: =COUNTIFS($J88:$BA88,">4,99",$J88:$BA88,"<9,99") -> 0 | M84: =COUNTIFS($J88:$BB88,">9,99") -> 0
A85: B1 | B85: =kod!B13 -> Gát, közepes víz | C85: =kod!C13 -> Tata Nitu Carp Team | D85: =SUM(J85:AZ85) -> 7.925 | E85: =COUNT(J85:AZ85) -> 2 | F85: =IF(E85=0,0,D85/E85) -> 3.9625 | G85: =MAX(J85:BA85) -> 5.35 | I85: tükörponty | J85: 2.575 | K85: 5.35
A86: B1 | B86: =kod!B13 -> Gát, közepes víz | C86: =kod!C13 -> Tata Nitu Carp Team | D86: 2.975 | E86: 1 | F86: 2.975 | G86: =MAX(J86:BA86) -> 2.975 | I86: tőponty | J86: 2.975
A87: B1 | B87: =kod!B13 -> Gát, közepes víz | C87: =kod!C13 -> Tata Nitu Carp Team | D87: 5.75 | E87: 1 | F87: 5.75 | G87: =MAX(J87:BA87) -> 5.75 | I87: nyurgaponty | J87: 5.75
A88: B1 | B88: =kod!B13 -> Gát, közepes víz | C88: =kod!C13 -> Tata Nitu Carp Team | D88: 0 | E88: 0 | F88: 0 | H88: =MAX(J88:AZ88) -> 0 | I88: koi ponty
A89: B1 | B89: =kod!B13 -> Gát, közepes víz | C89: =kod!C13 -> Tata Nitu Carp Team | D89: 0 | E89: 0 | F89: 0 | G89: =MAX(J89:BA89) -> 0 | I89: amur
A90: B1 | B90: =kod!B13 -> Gát, közepes víz | C90: =kod!C13 -> Tata Nitu Carp Team | D90: 0 | E90: 0 | F90: 0 | G90: =MAX(J90:BA90) -> 0 | I90: fekete amur
A91: B2 | B91: =kod!B14 -> Gát, közepes víz | C91: =kod!C14 -> Slovakia Carp Team | D91: =SUM(D92:D97) -> 9.4 | E91: =SUM(E92:E97) -> 3 | F91: 3.133333333 | G91: =MAX(G92:G97) -> 6.025 | H91: =H95 -> 0 | I91: ÖSSZESEN | J91: =COUNTIFS($J92:$BB97,">9,99",$J92:$BB97,"<20") -> 0 | K91: =COUNTIFS($J92:$BB97,">19,99") -> 0 | L91: =COUNTIFS($J95:$BA95,">4,99",$J95:$BA95,"<9,99") -> 0 | M91: =COUNTIFS($J95:$BB95,">9,99") -> 0
A92: B2 | B92: =kod!B14 -> Gát, közepes víz | C92: =kod!C14 -> Slovakia Carp Team | D92: =SUM(J92:AZ92) -> 0 | E92: =COUNT(J92:AZ92) -> 0 | F92: 0 | G92: =MAX(J92:BA92) -> 0 | I92: tükörponty
A93: B2 | B93: =kod!B14 -> Gát, közepes víz | C93: =kod!C14 -> Slovakia Carp Team | D93: 9.4 | E93: 3 | F93: 3.133333333 | G93: =MAX(J93:BA93) -> 6.025 | I93: tőponty | J93: 6.025 | K93: 1.85 | L93: 1.525
A94: B2 | B94: =kod!B14 -> Gát, közepes víz | C94: =kod!C14 -> Slovakia Carp Team | D94: 0 | E94: 0 | F94: 0 | G94: =MAX(J94:BA94) -> 0 | I94: nyurgaponty
A95: B2 | B95: =kod!B14 -> Gát, közepes víz | C95: =kod!C14 -> Slovakia Carp Team | D95: 0 | E95: 0 | F95: 0 | H95: =MAX(J95:AZ95) -> 0 | I95: koi ponty
A96: B2 | B96: =kod!B14 -> Gát, közepes víz | C96: =kod!C14 -> Slovakia Carp Team | D96: 0 | E96: 0 | F96: 0 | G96: =MAX(J96:BA96) -> 0 | I96: amur
A97: B2 | B97: =kod!B14 -> Gát, közepes víz | C97: =kod!C14 -> Slovakia Carp Team | D97: 0 | E97: 0 | F97: 0 | G97: =MAX(J97:BA97) -> 0 | I97: fekete amur
A98: B3 | B98: =kod!B15 -> Gát, közepes víz | C98: =kod!C15 -> WLC Hungary | D98: =SUM(D99:D104) -> 165.15 | E98: =SUM(E99:E104) -> 15 | F98: 11.01 | G98: =MAX(G99:G104) -> 21.7 | H98: =H102 -> 0 | I98: ÖSSZESEN | J98: =COUNTIFS($J99:$BB104,">9,99",$J99:$BB104,"<20") -> 8 | K98: =COUNTIFS($J99:$BB104,">19,99") -> 1 | L98: =COUNTIFS($J102:$BA102,">4,99",$J102:$BA102,"<9,99") -> 0 | M98: =COUNTIFS($J102:$BB102,">9,99") -> 0
A99: B3 | B99: =kod!B15 -> Gát, közepes víz | C99: =kod!C15 -> WLC Hungary | D99: =SUM(J99:AZ99) -> 72.625 | E99: =COUNT(J99:AZ99) -> 6 | F99: 12.10416667 | G99: =MAX(J99:BA99) -> 21.7 | I99: tükörponty | J99: 8.075 | K99: 8.675 | L99: 21.7 | M99: 12.8 | N99: 10.825 | O99: 10.55
A100: B3 | B100: =kod!B15 -> Gát, közepes víz | C100: =kod!C15 -> WLC Hungary | D100: 25.075 | E100: 2 | F100: 12.5375 | G100: =MAX(J100:BA100) -> 13.95 | I100: tőponty | J100: 11.125 | K100: 13.95
A101: B3 | B101: =kod!B15 -> Gát, közepes víz | C101: =kod!C15 -> WLC Hungary | D101: 56.15 | E101: 5 | F101: 11.23 | G101: =MAX(J101:BA101) -> 13.975 | I101: nyurgaponty | J101: 13.975 | K101: 7.45 | L101: 9.05 | M101: 12.575 | N101: 13.1
A102: B3 | B102: =kod!B15 -> Gát, közepes víz | C102: =kod!C15 -> WLC Hungary | D102: 0 | E102: 0 | F102: 0 | H102: =MAX(J102:AZ102) -> 0 | I102: koi ponty
A103: B3 | B103: =kod!B15 -> Gát, közepes víz | C103: =kod!C15 -> WLC Hungary | D103: 11.3 | E103: 2 | F103: 5.65 | G103: =MAX(J103:BA103) -> 5.925 | I103: amur | J103: 5.375 | K103: 5.925
A104: B3 | B104: =kod!B15 -> Gát, közepes víz | C104: =kod!C15 -> WLC Hungary | D104: 0 | E104: 0 | F104: 0 | G104: =MAX(J104:BA104) -> 0 | I104: fekete amur
A105: B4 | B105: =kod!B16 -> Gát, közepes víz | C105: =kod!C16 -> Barfin Line NSD Bulgaria | D105: =SUM(D106:D111) -> 13.875 | E105: =SUM(E106:E111) -> 2 | F105: 6.9375 | G105: =MAX(G106:G111) -> 12.25 | H105: =H109 -> 0 | I105: ÖSSZESEN | J105: =COUNTIFS($J106:$BB111,">9,99",$J106:$BB111,"<20") -> 1 | K105: =COUNTIFS($J106:$BB111,">19,99") -> 0 | L105: =COUNTIFS($J109:$BA109,">4,99",$J109:$BA109,"<9,99") -> 0 | M105: =COUNTIFS($J109:$BB109,">9,99") -> 0
A106: B4 | B106: =kod!B16 -> Gát, közepes víz | C106: =kod!C16 -> Barfin Line NSD Bulgaria | D106: =SUM(J106:AZ106) -> 0 | E106: =COUNT(J106:AZ106) -> 0 | F106: 0 | G106: =MAX(J106:BA106) -> 0 | I106: tükörponty
A107: B4 | B107: =kod!B16 -> Gát, közepes víz | C107: =kod!C16 -> Barfin Line NSD Bulgaria | D107: 13.875 | E107: 2 | F107: 6.9375 | G107: 12.25 | I107: tőponty | J107: 12.25 | K107: 1.625
A108: B4 | B108: =kod!B16 -> Gát, közepes víz | C108: =kod!C16 -> Barfin Line NSD Bulgaria | D108: 0 | E108: 0 | F108: 0 | G108: 0 | I108: nyurgaponty
A109: B4 | B109: =kod!B16 -> Gát, közepes víz | C109: =kod!C16 -> Barfin Line NSD Bulgaria | D109: 0 | E109: 0 | F109: 0 | G109: 0 | H109: =MAX(J109:AZ109) -> 0 | I109: koi ponty
A110: B4 | B110: =kod!B16 -> Gát, közepes víz | C110: =kod!C16 -> Barfin Line NSD Bulgaria | D110: 0 | E110: 0 | F110: 0 | G110: 0 | I110: amur
A111: B4 | B111: =kod!B16 -> Gát, közepes víz | C111: =kod!C16 -> Barfin Line NSD Bulgaria | D111: 0 | E111: 0 | F111: 0 | G111: 0 | I111: fekete amur
A112: B5 | B112: =kod!B17 -> Gát, közepes víz | C112: =kod!C17 -> Lutra Carp Hunters | D112: =SUM(D113:D118) -> 0 | E112: =SUM(E113:E118) -> 0 | F112: 0 | G112: =MAX(G113:G118) -> 0 | H112: =H116 -> 0 | I112: ÖSSZESEN | J112: =COUNTIFS($J113:$BB118,">9,99",$J113:$BB118,"<20") -> 0 | K112: =COUNTIFS($J113:$BB118,">19,99") -> 0 | L112: =COUNTIFS($J116:$BA116,">4,99",$J116:$BA116,"<9,99") -> 0 | M112: =COUNTIFS($J116:$BB116,">9,99") -> 0
A113: B5 | B113: =kod!B17 -> Gát, közepes víz | C113: =kod!C17 -> Lutra Carp Hunters | D113: =SUM(J113:AZ113) -> 0 | E113: =COUNT(J113:AZ113) -> 0 | F113: 0 | G113: =MAX(J113:BA113) -> 0 | I113: tükörponty
A114: B5 | B114: =kod!B17 -> Gát, közepes víz | C114: =kod!C17 -> Lutra Carp Hunters | D114: 0 | E114: 0 | F114: 0 | G114: =MAX(J114:BA114) -> 0 | I114: tőponty
A115: B5 | B115: =kod!B17 -> Gát, közepes víz | C115: =kod!C17 -> Lutra Carp Hunters | D115: 0 | E115: 0 | F115: 0 | G115: =MAX(J115:BA115) -> 0 | I115: nyurgaponty
A116: B5 | B116: =kod!B17 -> Gát, közepes víz | C116: =kod!C17 -> Lutra Carp Hunters | D116: 0 | E116: 0 | F116: 0 | H116: =MAX(J116:AZ116) -> 0 | I116: koi ponty
A117: B5 | B117: =kod!B17 -> Gát, közepes víz | C117: =kod!C17 -> Lutra Carp Hunters | D117: 0 | E117: 0 | F117: 0 | G117: =MAX(J117:BA117) -> 0 | I117: amur
A118: B5 | B118: =kod!B17 -> Gát, közepes víz | C118: =kod!C17 -> Lutra Carp Hunters | D118: 0 | E118: 0 | F118: 0 | G118: =MAX(J118:BA118) -> 0 | I118: fekete amur
A119: B6 | B119: =kod!B18 -> Gát, közepes víz | C119: =kod!C18 -> Xtra Carp Team | D119: =SUM(D120:D125) -> 113.625 | E119: =SUM(E120:E125) -> 12 | F119: 9.46875 | G119: =MAX(G120:G125) -> 17.4 | H119: =H123 -> 0 | I119: ÖSSZESEN | J119: =COUNTIFS($J120:$BB125,">9,99",$J120:$BB125,"<20") -> 6 | K119: =COUNTIFS($J120:$BB125,">19,99") -> 0 | L119: =COUNTIFS($J123:$BA123,">4,99",$J123:$BA123,"<9,99") -> 0 | M119: =COUNTIFS($J123:$BB123,">9,99") -> 0
A120: B6 | B120: =kod!B18 -> Gát, közepes víz | C120: =kod!C18 -> Xtra Carp Team | D120: =SUM(J120:AZ120) -> 23.1 | E120: =COUNT(J120:AZ120) -> 2 | F120: 11.55 | G120: =MAX(J120:BA120) -> 14.225 | I120: tükörponty | J120: 8.875 | K120: 14.225
A121: B6 | B121: =kod!B18 -> Gát, közepes víz | C121: =kod!C18 -> Xtra Carp Team | D121: 34.45 | E121: 2 | F121: 17.225 | G121: =MAX(J121:BA121) -> 17.4 | I121: tőponty | J121: 17.05 | K121: 17.4
A122: B6 | B122: =kod!B18 -> Gát, közepes víz | C122: =kod!C18 -> Xtra Carp Team | D122: 28.4 | E122: 3 | F122: 9.466666667 | G122: =MAX(J122:BA122) -> 11.05 | I122: nyurgaponty | J122: 10.575 | K122: 6.775 | L122: 11.05
A123: B6 | B123: =kod!B18 -> Gát, közepes víz | C123: =kod!C18 -> Xtra Carp Team | D123: 0 | E123: 0 | F123: 0 | H123: =MAX(J123:AZ123) -> 0 | I123: koi ponty
A124: B6 | B124: =kod!B18 -> Gát, közepes víz | C124: =kod!C18 -> Xtra Carp Team | D124: 17.925 | E124: 2 | F124: 8.9625 | G124: =MAX(J124:BA124) -> 10.45 | I124: amur | J124: 10.45 | K124: 7.475
A125: B6 | B125: =kod!B18 -> Gát, közepes víz | C125: =kod!C18 -> Xtra Carp Team | D125: 9.75 | E125: 3 | F125: 3.25 | G125: =MAX(J125:BA125) -> 3.975 | I125: fekete amur | J125: 3.175 | K125: 2.6 | L125: 3.975
A126: B7 | B126: =kod!B19 -> I. sziget, jobb közép | C126: =kod!C19 -> Elite Carp Team Brasov | D126: =SUM(D127:D132) -> 110.325 | E126: =SUM(E127:E132) -> 11 | F126: 10.02954545 | G126: =MAX(G127:G132) -> 17.075 | H126: =H130 -> 5.525 | I126: ÖSSZESEN | J126: =COUNTIFS($J127:$BB132,">9,99",$J127:$BB132,"<20") -> 5 | K126: =COUNTIFS($J127:$BB132,">19,99") -> 0 | L126: =COUNTIFS($J130:$BA130,">4,99",$J130:$BA130,"<9,99") -> 1 | M126: =COUNTIFS($J130:$BB130,">9,99") -> 0
A127: B7 | B127: =kod!B19 -> I. sziget, jobb közép | C127: =kod!C19 -> Elite Carp Team Brasov | D127: =SUM(J127:AZ127) -> 28.7 | E127: =COUNT(J127:AZ127) -> 3 | F127: 9.566666667 | G127: =MAX(J127:BA127) -> 13 | I127: tükörponty | J127: 8.875 | K127: 6.825 | L127: 13
A128: B7 | B128: =kod!B19 -> I. sziget, jobb közép | C128: =kod!C19 -> Elite Carp Team Brasov | D128: 17.15 | E128: 2 | F128: 8.575 | G128: 8.95 | I128: tőponty | J128: 8.95 | K128: 8.2
A129: B7 | B129: =kod!B19 -> I. sziget, jobb közép | C129: =kod!C19 -> Elite Carp Team Brasov | D129: 37.525 | E129: 3 | F129: 12.50833333 | G129: 13.2 | I129: nyurgaponty | J129: 11.925 | K129: 12.4 | L129: 13.2
A130: B7 | B130: =kod!B19 -> I. sziget, jobb közép | C130: =kod!C19 -> Elite Carp Team Brasov | D130: 9.875 | E130: 2 | F130: 4.9375 | G130: 5.525 | H130: =MAX(J130:AZ130) -> 5.525 | I130: koi ponty | J130: 4.35 | K130: 5.525
A131: B7 | B131: =kod!B19 -> I. sziget, jobb közép | C131: =kod!C19 -> Elite Carp Team Brasov | D131: 0 | E131: 0 | F131: 0 | G131: 0 | I131: amur
A132: B7 | B132: =kod!B19 -> I. sziget, jobb közép | C132: =kod!C19 -> Elite Carp Team Brasov | D132: 17.075 | E132: 1 | F132: 17.075 | G132: 17.075 | I132: fekete amur | J132: 17.075
A133: B8 | B133: =kod!B20 -> I. sziget, jobb | C133: =kod!C20 -> CT777 Varna Bulgaria | D133: =SUM(D134:D139) -> 56.525 | E133: =SUM(E134:E139) -> 8 | F133: 7.065625 | G133: =MAX(G134:G139) -> 13.65 | H133: =H137 -> 9.9 | I133: ÖSSZESEN | J133: =COUNTIFS($J134:$BB139,">9,99",$J134:$BB139,"<20") -> 1 | K133: =COUNTIFS($J134:$BB139,">19,99") -> 0 | L133: =COUNTIFS($J137:$BA137,">4,99",$J137:$BA137,"<9,99") -> 1 | M133: =COUNTIFS($J137:$BB137,">9,99") -> 0
A134: B8 | B134: =kod!B20 -> I. sziget, jobb | C134: =kod!C20 -> CT777 Varna Bulgaria | D134: =SUM(J134:AZ134) -> 13.625 | E134: =COUNT(J134:AZ134) -> 2 | F134: 6.8125 | G134: =MAX(J134:BA134) -> 8.45 | I134: tükörponty | J134: 5.175 | K134: 8.45
A135: B8 | B135: =kod!B20 -> I. sziget, jobb | C135: =kod!C20 -> CT777 Varna Bulgaria | D135: 9.875 | E135: 2 | F135: 4.9375 | G135: =MAX(J135:BA135) -> 8.05 | I135: tőponty | J135: 1.825 | K135: 8.05
A136: B8 | B136: =kod!B20 -> I. sziget, jobb | C136: =kod!C20 -> CT777 Varna Bulgaria | D136: 20.275 | E136: 2 | F136: 10.1375 | G136: =MAX(J136:BA136) -> 13.65 | I136: nyurgaponty | J136: 6.625 | K136: 13.65
A137: B8 | B137: =kod!B20 -> I. sziget, jobb | C137: =kod!C20 -> CT777 Varna Bulgaria | D137: 9.9 | E137: 1 | F137: 9.9 | H137: =MAX(J137:AZ137) -> 9.9 | I137: koi ponty | J137: 9.9
A138: B8 | B138: =kod!B20 -> I. sziget, jobb | C138: =kod!C20 -> CT777 Varna Bulgaria | D138: 0 | E138: 0 | F138: 0 | G138: =MAX(J138:BA138) -> 0 | I138: amur
A139: B8 | B139: =kod!B20 -> I. sziget, jobb | C139: =kod!C20 -> CT777 Varna Bulgaria | D139: 2.85 | E139: 1 | F139: 2.85 | G139: =MAX(J139:BA139) -> 2.85 | I139: fekete amur | J139: 2.85
A140: B9 | B140: =kod!B21 -> I. sziget, jobb külső | C140: =kod!C21 -> Bait Maker Team | D140: =SUM(D141:D146) -> 42.425 | E140: =SUM(E141:E146) -> 6 | F140: 7.070833333 | G140: =MAX(G141:G146) -> 10.625 | H140: =H144 -> 0 | I140: ÖSSZESEN | J140: =COUNTIFS($J141:$BB146,">9,99",$J141:$BB146,"<20") -> 1 | K140: =COUNTIFS($J141:$BB146,">19,99") -> 0 | L140: =COUNTIFS($J144:$BA144,">4,99",$J144:$BA144,"<9,99") -> 0 | M140: =COUNTIFS($J144:$BB144,">9,99") -> 0
A141: B9 | B141: =kod!B21 -> I. sziget, jobb külső | C141: =kod!C21 -> Bait Maker Team | D141: =SUM(J141:AZ141) -> 19.525 | E141: =COUNT(J141:AZ141) -> 2 | F141: =IF(E141=0,0,D141/E141) -> 9.7625 | G141: =MAX(J141:BA141) -> 10.625 | I141: tükörponty | J141: 8.9 | K141: 10.625
A142: B9 | B142: =kod!B21 -> I. sziget, jobb külső | C142: =kod!C21 -> Bait Maker Team | D142: 12.35 | E142: 2 | F142: 6.175 | G142: 7.225 | I142: tőponty | J142: 7.225 | K142: 5.125
A143: B9 | B143: =kod!B21 -> I. sziget, jobb külső | C143: =kod!C21 -> Bait Maker Team | D143: 7 | E143: 1 | F143: 7 | G143: 7 | I143: nyurgaponty | J143: 7
A144: B9 | B144: =kod!B21 -> I. sziget, jobb külső | C144: =kod!C21 -> Bait Maker Team | D144: 0 | E144: 0 | F144: 0 | G144: 0 | H144: =MAX(J144:AZ144) -> 0 | I144: koi ponty
A145: B9 | B145: =kod!B21 -> I. sziget, jobb külső | C145: =kod!C21 -> Bait Maker Team | D145: 0 | E145: 0 | F145: 0 | G145: 0 | I145: amur
A146: B9 | B146: =kod!B21 -> I. sziget, jobb külső | C146: =kod!C21 -> Bait Maker Team | D146: 3.55 | E146: 1 | F146: 3.55 | G146: 3.55 | I146: fekete amur | J146: 3.55
A147: B10 | B147: =kod!B22 -> Felező-spicc, bal | C147: =kod!C22 -> SBS - SziKo Team | D147: =SUM(D148:D153) -> 12.55 | E147: =SUM(E148:E153) -> 3 | F147: 4.183333333 | G147: =MAX(G148:G153) -> 6.525 | H147: =H151 -> 0 | I147: ÖSSZESEN | J147: =COUNTIFS($J148:$BB153,">9,99",$J148:$BB153,"<20") -> 0 | K147: =COUNTIFS($J148:$BB153,">19,99") -> 0 | L147: =COUNTIFS($J151:$BA151,">4,99",$J151:$BA151,"<9,99") -> 0 | M147: =COUNTIFS($J151:$BB151,">9,99") -> 0
A148: B10 | B148: =kod!B22 -> Felező-spicc, bal | C148: =kod!C22 -> SBS - SziKo Team | D148: =SUM(J148:AZ148) -> 0 | E148: =COUNT(J148:AZ148) -> 0 | F148: 0 | G148: =MAX(J148:BA148) -> 0 | I148: tükörponty
A149: B10 | B149: =kod!B22 -> Felező-spicc, bal | C149: =kod!C22 -> SBS - SziKo Team | D149: 12.55 | E149: 3 | F149: 4.183333333 | G149: 6.525 | I149: tőponty | J149: 3.775 | K149: 6.525 | L149: 2.25
A150: B10 | B150: =kod!B22 -> Felező-spicc, bal | C150: =kod!C22 -> SBS - SziKo Team | D150: 0 | E150: 0 | F150: 0 | G150: 0 | I150: nyurgaponty
A151: B10 | B151: =kod!B22 -> Felező-spicc, bal | C151: =kod!C22 -> SBS - SziKo Team | D151: 0 | E151: 0 | F151: 0 | G151: 0 | H151: =MAX(J151:AZ151) -> 0 | I151: koi ponty
A152: B10 | B152: =kod!B22 -> Felező-spicc, bal | C152: =kod!C22 -> SBS - SziKo Team | D152: 0 | E152: 0 | F152: 0 | G152: 0 | I152: amur
A153: B10 | B153: =kod!B22 -> Felező-spicc, bal | C153: =kod!C22 -> SBS - SziKo Team | D153: 0 | E153: 0 | F153: 0 | G153: 0 | I153: fekete amur
A154: B11 | B154: =kod!B23 -> Felező-spicc, közép | C154: =kod!C23 -> Síp Carp Team | D154: =SUM(D155:D160) -> 30.175 | E154: =SUM(E155:E160) -> 3 | F154: 10.05833333 | G154: =MAX(G155:G160) -> 17.35 | H154: =H158 -> 0 | I154: ÖSSZESEN | J154: =COUNTIFS($J155:$BB160,">9,99",$J155:$BB160,"<20") -> 1 | K154: =COUNTIFS($J155:$BB160,">19,99") -> 0 | L154: =COUNTIFS($J158:$BA158,">4,99",$J158:$BA158,"<9,99") -> 0 | M154: =COUNTIFS($J158:$BB158,">9,99") -> 0
A155: B11 | B155: =kod!B23 -> Felező-spicc, közép | C155: =kod!C23 -> Síp Carp Team | D155: =SUM(J155:AZ155) -> 17.35 | E155: 1 | F155: 17.35 | G155: =MAX(J155:BA155) -> 17.35 | I155: tükörponty | J155: 17.35
A156: B11 | B156: =kod!B23 -> Felező-spicc, közép | C156: =kod!C23 -> Síp Carp Team | D156: 6.325 | E156: 1 | F156: 6.325 | G156: 6.325 | I156: tőponty | J156: 6.325
A157: B11 | B157: =kod!B23 -> Felező-spicc, közép | C157: =kod!C23 -> Síp Carp Team | D157: 0 | E157: 0 | F157: 0 | G157: 0 | I157: nyurgaponty
A158: B11 | B158: =kod!B23 -> Felező-spicc, közép | C158: =kod!C23 -> Síp Carp Team | D158: 0 | E158: 0 | F158: 0 | H158: =MAX(J158:AZ158) -> 0 | I158: koi ponty
A159: B11 | B159: =kod!B23 -> Felező-spicc, közép | C159: =kod!C23 -> Síp Carp Team | D159: 6.5 | E159: 1 | F159: 6.5 | G159: =MAX(J159:BA159) -> 6.5 | I159: amur | J159: 6.5
A160: B11 | B160: =kod!B23 -> Felező-spicc, közép | C160: =kod!C23 -> Síp Carp Team | D160: 0 | E160: 0 | F160: 0 | G160: 0 | I160: fekete amur
A161: C1 | B161: =kod!B24 -> Gát, sekély víz | C161: =kod!C24 -> Carp Fever Bulgaria | D161: =SUM(D162:D167) -> 101 | E161: =SUM(E162:E167) -> 17 | F161: =IF(E161=0,0,D161/E161) -> 5.941176471 | G161: =MAX(G162:G167) -> 8.9 | H161: =H165 -> 8.9 | I161: ÖSSZESEN | J161: =COUNTIFS($J162:$BB167,">9,99",$J162:$BB167,"<20") -> 0 | K161: =COUNTIFS($J162:$BB167,">19,99") -> 0 | L161: =COUNTIFS($J165:$BA165,">4,99",$J165:$BA165,"<9,99") -> 3 | M161: =COUNTIFS($J165:$BB165,">9,99") -> 0
A162: C1 | B162: =kod!B24 -> Gát, sekély víz | C162: =kod!C24 -> Carp Fever Bulgaria | D162: =SUM(J162:AZ162) -> 10.15 | E162: =COUNT(J162:AZ162) -> 2 | F162: =IF(E162=0,0,D162/E162) -> 5.075 | G162: =MAX(J162:BA162) -> 7.8 | I162: tükörponty | J162: 2.35 | K162: 7.8
A163: C1 | B163: =kod!B24 -> Gát, sekély víz | C163: =kod!C24 -> Carp Fever Bulgaria | D163: 22.325 | E163: 5 | F163: 4.465 | G163: 7.925 | I163: tőponty | J163: 7.925 | K163: 2.975 | L163: 7.5 | M163: 1.225 | N163: 2.7
A164: C1 | B164: =kod!B24 -> Gát, sekély víz | C164: =kod!C24 -> Carp Fever Bulgaria | D164: 39.925 | E164: 6 | F164: 6.654166667 | G164: 7.9 | I164: nyurgaponty | J164: 7.375 | K164: 7.625 | L164: 4.2 | M164: 7.9 | N164: 6.325 | O164: 6.5
A165: C1 | B165: =kod!B24 -> Gát, sekély víz | C165: =kod!C24 -> Carp Fever Bulgaria | D165: 28.6 | E165: 4 | F165: 7.15 | G165: 8.9 | H165: =MAX(J165:AZ165) -> 8.9 | I165: koi ponty | J165: 4.525 | K165: 8.9 | L165: 7.075 | M165: 8.1
A166: C1 | B166: =kod!B24 -> Gát, sekély víz | C166: =kod!C24 -> Carp Fever Bulgaria | D166: 0 | E166: 0 | F166: 0 | G166: 0 | I166: amur
A167: C1 | B167: =kod!B24 -> Gát, sekély víz | C167: =kod!C24 -> Carp Fever Bulgaria | D167: 0 | E167: 0 | F167: 0 | G167: 0 | I167: fekete amur
A168: C2 | B168: =kod!B25 -> Gát, sekély víz | C168: =kod!C25 -> Carpfriends Ennstal-Austria | D168: =SUM(D169:D174) -> 49.6 | E168: =SUM(E169:E174) -> 5 | F168: 9.92 | G168: =MAX(G169:G174) -> 12.9 | H168: =H172 -> 0 | I168: ÖSSZESEN | J168: =COUNTIFS($J169:$BB174,">9,99",$J169:$BB174,"<20") -> 3 | K168: =COUNTIFS($J169:$BB174,">19,99") -> 0 | L168: =COUNTIFS($J172:$BA172,">4,99",$J172:$BA172,"<9,99") -> 0 | M168: =COUNTIFS($J172:$BB172,">9,99") -> 0
A169: C2 | B169: =kod!B25 -> Gát, sekély víz | C169: =kod!C25 -> Carpfriends Ennstal-Austria | D169: =SUM(J169:AZ169) -> 17.65 | E169: =COUNT(J169:AZ169) -> 2 | F169: 8.825 | G169: =MAX(J169:BA169) -> 10.875 | I169: tükörponty | J169: 6.775 | K169: 10.875
A170: C2 | B170: =kod!B25 -> Gát, sekély víz | C170: =kod!C25 -> Carpfriends Ennstal-Austria | D170: 0 | E170: 0 | F170: 0 | G170: 0 | I170: tőponty
A171: C2 | B171: =kod!B25 -> Gát, sekély víz | C171: =kod!C25 -> Carpfriends Ennstal-Austria | D171: 31.95 | E171: 3 | F171: 10.65 | G171: 12.9 | I171: nyurgaponty | J171: 11.375 | K171: 12.9 | L171: 7.675
A172: C2 | B172: =kod!B25 -> Gát, sekély víz | C172: =kod!C25 -> Carpfriends Ennstal-Austria | D172: 0 | E172: 0 | F172: 0 | G172: 0 | H172: =MAX(J172:AZ172) -> 0 | I172: koi ponty
A173: C2 | B173: =kod!B25 -> Gát, sekély víz | C173: =kod!C25 -> Carpfriends Ennstal-Austria | D173: 0 | E173: 0 | F173: 0 | G173: 0 | I173: amur
A174: C2 | B174: =kod!B25 -> Gát, sekély víz | C174: =kod!C25 -> Carpfriends Ennstal-Austria | D174: 0 | E174: 0 | F174: 0 | G174: 0 | I174: fekete amur
A175: C3 | B175: =kod!B26 -> Gát, sekély víz | C175: =kod!C26 -> Carp Team Brasov | D175: =SUM(D176:D181) -> 86.075 | E175: =SUM(E176:E181) -> 10 | F175: 8.6075 | G175: =MAX(G176:G181) -> 17.4 | H175: =H179 -> 12.7 | I175: ÖSSZESEN | J175: =COUNTIFS($J176:$BB181,">9,99",$J176:$BB181,"<20") -> 2 | K175: =COUNTIFS($J176:$BB181,">19,99") -> 0 | L175: =COUNTIFS($J179:$BA179,">4,99",$J179:$BA179,"<9,99") -> 1 | M175: =COUNTIFS($J179:$BB179,">9,99") -> 1
A176: C3 | B176: =kod!B26 -> Gát, sekély víz | C176: =kod!C26 -> Carp Team Brasov | D176: =SUM(J176:AZ176) -> 0 | E176: =COUNT(J176:AZ176) -> 0 | F176: 0 | G176: =MAX(J176:BA176) -> 0 | I176: tükörponty
A177: C3 | B177: =kod!B26 -> Gát, sekély víz | C177: =kod!C26 -> Carp Team Brasov | D177: 50.65 | E177: 6 | F177: 8.441666667 | G177: =MAX(J177:BA177) -> 17.4 | I177: tőponty | J177: 17.4 | K177: 7.5 | L177: 4.875 | M177: 5.025 | N177: 8.625 | O177: 7.225
A178: C3 | B178: =kod!B26 -> Gát, sekély víz | C178: =kod!C26 -> Carp Team Brasov | D178: 13.525 | E178: 2 | F178: 6.7625 | G178: =MAX(J178:BA178) -> 7.175 | I178: nyurgaponty | J178: 6.35 | K178: 7.175
A179: C3 | B179: =kod!B26 -> Gát, sekély víz | C179: =kod!C26 -> Carp Team Brasov | D179: 21.9 | E179: 2 | F179: 10.95 | H179: =MAX(J179:AZ179) -> 12.7 | I179: koi ponty | J179: 9.2 | K179: 12.7
A180: C3 | B180: =kod!B26 -> Gát, sekély víz | C180: =kod!C26 -> Carp Team Brasov | D180: 0 | E180: 0 | F180: 0 | G180: =MAX(J180:BA180) -> 0 | I180: amur
A181: C3 | B181: =kod!B26 -> Gát, sekély víz | C181: =kod!C26 -> Carp Team Brasov | D181: 0 | E181: 0 | F181: 0 | G181: =MAX(J181:BA181) -> 0 | I181: fekete amur
A182: C4 | B182: =kod!B27 -> Gát, sekély víz | C182: =kod!C27 -> As La Carp Team | D182: =SUM(D183:D188) -> 38.4 | E182: =SUM(E183:E188) -> 5 | F182: 7.68 | G182: =MAX(G183:G188) -> 11.225 | H182: =H186 -> 10.55 | I182: ÖSSZESEN | J182: =COUNTIFS($J183:$BB188,">9,99",$J183:$BB188,"<20") -> 2 | K182: =COUNTIFS($J183:$BB188,">19,99") -> 0 | L182: =COUNTIFS($J186:$BA186,">4,99",$J186:$BA186,"<9,99") -> 1 | M182: =COUNTIFS($J186:$BB186,">9,99") -> 1
A183: C4 | B183: =kod!B27 -> Gát, sekély víz | C183: =kod!C27 -> As La Carp Team | D183: =SUM(J183:AZ183) -> 17.4 | E183: =COUNT(J183:AZ183) -> 2 | F183: 8.7 | G183: =MAX(J183:BA183) -> 11.225 | I183: tükörponty | J183: 6.175 | K183: 11.225
A184: C4 | B184: =kod!B27 -> Gát, sekély víz | C184: =kod!C27 -> As La Carp Team | D184: 1.75 | E184: 1 | F184: 1.75 | G184: 1.75 | I184: tőponty | J184: 1.75
A185: C4 | B185: =kod!B27 -> Gát, sekély víz | C185: =kod!C27 -> As La Carp Team | D185: 0 | E185: 0 | F185: 0 | G185: 0 | I185: nyurgaponty
A186: C4 | B186: =kod!B27 -> Gát, sekély víz | C186: =kod!C27 -> As La Carp Team | D186: 19.25 | E186: 2 | F186: 9.625 | G186: 10.55 | H186: =MAX(J186:AZ186) -> 10.55 | I186: koi ponty | J186: 10.55 | K186: 8.7
A187: C4 | B187: =kod!B27 -> Gát, sekély víz | C187: =kod!C27 -> As La Carp Team | D187: 0 | E187: 0 | F187: 0 | G187: 0 | I187: amur
A188: C4 | B188: =kod!B27 -> Gát, sekély víz | C188: =kod!C27 -> As La Carp Team | D188: 0 | E188: 0 | F188: 0 | G188: 0 | I188: fekete amur
A189: C5 | B189: =kod!B28 -> Gát, sekély víz | C189: =kod!C28 -> Bojlis Főnök - Bait Bait Carp Team | D189: =SUM(D190:D195) -> 29.575 | E189: =SUM(E190:E195) -> 7 | F189: 4.225 | G189: =MAX(G190:G195) -> 8.475 | H189: =H193 -> 0 | I189: ÖSSZESEN | J189: =COUNTIFS($J190:$BB195,">9,99",$J190:$BB195,"<20") -> 0 | K189: =COUNTIFS($J190:$BB195,">19,99") -> 0 | L189: =COUNTIFS($J193:$BA193,">4,99",$J193:$BA193,"<9,99") -> 0 | M189: =COUNTIFS($J193:$BB193,">9,99") -> 0
A190: C5 | B190: =kod!B28 -> Gát, sekély víz | C190: =kod!C28 -> Bojlis Főnök - Bait Bait Carp Team | D190: =SUM(J190:AZ190) -> 9.675 | E190: =COUNT(J190:AZ190) -> 3 | F190: 3.225 | G190: =MAX(J190:BA190) -> 5.9 | I190: tükörponty | J190: 1.475 | K190: 2.3 | L190: 5.9
A191: C5 | B191: =kod!B28 -> Gát, sekély víz | C191: =kod!C28 -> Bojlis Főnök - Bait Bait Carp Team | D191: 11.425 | E191: 3 | F191: 3.808333333 | G191: =MAX(J191:BA191) -> 8.1 | I191: tőponty | J191: 1.9 | K191: 1.425 | L191: 8.1
A192: C5 | B192: =kod!B28 -> Gát, sekély víz | C192: =kod!C28 -> Bojlis Főnök - Bait Bait Carp Team | D192: 8.475 | E192: 1 | F192: 8.475 | G192: =MAX(J192:BA192) -> 8.475 | I192: nyurgaponty | J192: 8.475
A193: C5 | B193: =kod!B28 -> Gát, sekély víz | C193: =kod!C28 -> Bojlis Főnök - Bait Bait Carp Team | D193: 0 | E193: 0 | F193: 0 | H193: =MAX(J193:AZ193) -> 0 | I193: koi ponty
A194: C5 | B194: =kod!B28 -> Gát, sekély víz | C194: =kod!C28 -> Bojlis Főnök - Bait Bait Carp Team | D194: 0 | E194: 0 | F194: 0 | G194: =MAX(J194:BA194) -> 0 | I194: amur
A195: C5 | B195: =kod!B28 -> Gát, sekély víz | C195: =kod!C28 -> Bojlis Főnök - Bait Bait Carp Team | D195: 0 | E195: 0 | F195: 0 | G195: =MAX(J195:BA195) -> 0 | I195: fekete amur
A196: C6 | B196: =kod!B29 -> Felező-spicc, jobb | C196: =kod!C29 -> Secret Of The Carp | D196: =SUM(D197:D202) -> 40.2 | E196: =SUM(E197:E202) -> 4 | F196: 10.05 | G196: =MAX(G197:G202) -> 16.3 | H196: =H200 -> 0 | I196: ÖSSZESEN | J196: =COUNTIFS($J197:$BB202,">9,99",$J197:$BB202,"<20") -> 1 | K196: =COUNTIFS($J197:$BB202,">19,99") -> 0 | L196: =COUNTIFS($J200:$BA200,">4,99",$J200:$BA200,"<9,99") -> 0 | M196: =COUNTIFS($J200:$BB200,">9,99") -> 0
A197: C6 | B197: =kod!B29 -> Felező-spicc, jobb | C197: =kod!C29 -> Secret Of The Carp | D197: =SUM(J197:AZ197) -> 8.825 | E197: =COUNT(J197:AZ197) -> 1 | F197: 8.825 | G197: =MAX(J197:BA197) -> 8.825 | I197: tükörponty | J197: 8.825
A198: C6 | B198: =kod!B29 -> Felező-spicc, jobb | C198: =kod!C29 -> Secret Of The Carp | D198: 7.075 | E198: 1 | F198: 7.075 | G198: 7.075 | I198: tőponty | J198: 7.075
A199: C6 | B199: =kod!B29 -> Felező-spicc, jobb | C199: =kod!C29 -> Secret Of The Carp | D199: 24.3 | E199: 2 | F199: 12.15 | G199: 16.3 | I199: nyurgaponty | J199: 8 | K199: 16.3
A200: C6 | B200: =kod!B29 -> Felező-spicc, jobb | C200: =kod!C29 -> Secret Of The Carp | D200: 0 | E200: 0 | F200: 0 | G200: 0 | H200: =MAX(J200:AZ200) -> 0 | I200: koi ponty
... 38 more rows

Sheet szakasz5
A1: =IF(kod!E2>0,kod!E2,"") -> XXI. PROFESSZIONÁLIS BOJLIS EURÓPA KUPA (EPBC)
A2: =IF(kod!E3>0,kod!E3,"") -> XXXVI. MACONKA NEMZETKÖZI BOJLIS KUPA
A3: =IF(kod!E4>0,kod!E4,"") -> Maconka, 2025.06.15. - 2025.06.20.
A4: =IF(kod!E5>0,kod!E5,"") -> 
A5: =kod!E11 -> 5. szakasz: 2025.06.17. 18:00 - 2025.06.18. 06:00
A6: Rajthely | B6: Elhelyezés | C6: Csapatnév | D6: Kg | E6: Db | F6: Átlag | G6: BC | H6: BkC | I6: Faj | J6: 10-20 kg | K6: 20+ kg | L6: koi 5-10 kg | M6: koi 10+ kg
A7: A1 | B7: =kod!B2 -> Gát, mélyvíz | C7: =kod!C2 -> SBS - Halcatraz - TiZo Team | D7: =SUM(D8:D13) -> 0 | E7: =SUM(E8:E13) -> 0 | F7: =IF(E7=0,0,D7/E7) -> 0 | G7: =MAX(G8:G13) -> 0 | H7: =H11 -> 0 | I7: ÖSSZESEN | J7: =COUNTIFS($J8:$BB13,">9,99",$J8:$BB13,"<20") -> 0 | K7: =COUNTIFS($J8:$BB13,">19,99") -> 0 | L7: =COUNTIFS($J11:$BA11,">4,99",$J11:$BA11,"<9,99") -> 0 | M7: =COUNTIFS($J11:$BB11,">9,99") -> 0
A8: A1 | B8: =kod!B2 -> Gát, mélyvíz | C8: =kod!C2 -> SBS - Halcatraz - TiZo Team | D8: =SUM(J8:AZ8) -> 0 | E8: =COUNT(J8:AZ8) -> 0 | F8: =IF(E8=0,0,D8/E8) -> 0 | G8: =MAX(J8:BA8) -> 0 | I8: tükörponty
A9: A1 | B9: =kod!B2 -> Gát, mélyvíz | C9: =kod!C2 -> SBS - Halcatraz - TiZo Team | D9: 0 | E9: 0 | F9: 0 | G9: =MAX(J9:BA9) -> 0 | I9: tőponty
A10: A1 | B10: =kod!B2 -> Gát, mélyvíz | C10: =kod!C2 -> SBS - Halcatraz - TiZo Team | D10: 0 | E10: 0 | F10: 0 | G10: 0 | I10: nyurgaponty
A11: A1 | B11: =kod!B2 -> Gát, mélyvíz | C11: =kod!C2 -> SBS - Halcatraz - TiZo Team | D11: 0 | E11: 0 | F11: 0 | H11: =MAX(J11:AZ11) -> 0 | I11: koi ponty
A12: A1 | B12: =kod!B2 -> Gát, mélyvíz | C12: =kod!C2 -> SBS - Halcatraz - TiZo Team | D12: 0 | E12: 0 | F12: 0 | G12: 0 | I12: amur
A13: A1 | B13: =kod!B2 -> Gát, mélyvíz | C13: =kod!C2 -> SBS - Halcatraz - TiZo Team | D13: 0 | E13: 0 | F13: 0 | G13: 0 | I13: fekete amur
A14: A2 | B14: =kod!B3 -> Gát, mélyvíz | C14: =kod!C3 -> Altstadt Carp Team | D14: =SUM(D15:D20) -> 36.525 | E14: =SUM(E15:E20) -> 4 | F14: 9.13125 | G14: =MAX(G15:G20) -> 10.325 | H14: =H18 -> 12.375 | I14: ÖSSZESEN | J14: =COUNTIFS($J15:$BB20,">9,99",$J15:$BB20,"<20") -> 2 | K14: =COUNTIFS($J15:$BB20,">19,99") -> 0 | L14: =COUNTIFS($J18:$BA18,">4,99",$J18:$BA18,"<9,99") -> 0 | M14: =COUNTIFS($J18:$BB18,">9,99") -> 1
A15: A2 | B15: =kod!B3 -> Gát, mélyvíz | C15: =kod!C3 -> Altstadt Carp Team | D15: =SUM(J15:AZ15) -> 0 | E15: =COUNT(J15:AZ15) -> 0 | F15: 0 | G15: =MAX(J15:BA15) -> 0 | I15: tükörponty
A16: A2 | B16: =kod!B3 -> Gát, mélyvíz | C16: =kod!C3 -> Altstadt Carp Team | D16: 0 | E16: 0 | F16: 0 | G16: =MAX(J16:BA16) -> 0 | I16: tőponty
A17: A2 | B17: =kod!B3 -> Gát, mélyvíz | C17: =kod!C3 -> Altstadt Carp Team | D17: 9.6 | E17: 1 | F17: 9.6 | G17: =MAX(J17:BA17) -> 9.6 | I17: nyurgaponty | J17: 9.6
A18: A2 | B18: =kod!B3 -> Gát, mélyvíz | C18: =kod!C3 -> Altstadt Carp Team | D18: 12.375 | E18: 1 | F18: 12.375 | H18: =MAX(J18:AZ18) -> 12.375 | I18: koi ponty | J18: 12.375
A19: A2 | B19: =kod!B3 -> Gát, mélyvíz | C19: =kod!C3 -> Altstadt Carp Team | D19: 10.325 | E19: 1 | F19: 10.325 | G19: =MAX(J19:BA19) -> 10.325 | I19: amur | J19: 10.325
A20: A2 | B20: =kod!B3 -> Gát, mélyvíz | C20: =kod!C3 -> Altstadt Carp Team | D20: 4.225 | E20: 1 | F20: 4.225 | G20: =MAX(J20:BA20) -> 4.225 | I20: fekete amur | J20: 4.225
A21: A3 | B21: =kod!B4 -> Gát, mélyvíz | C21: =kod!C4 -> Ferma De Crap Diosig | D21: =SUM(D22:D27) -> 0 | E21: =SUM(E22:E27) -> 0 | F21: 0 | G21: =MAX(G22:G27) -> 0 | H21: =H25 -> 0 | I21: ÖSSZESEN | J21: =COUNTIFS($J22:$BB27,">9,99",$J22:$BB27,"<20") -> 0 | K21: =COUNTIFS($J22:$BB27,">19,99") -> 0 | L21: =COUNTIFS($J25:$BA25,">4,99",$J25:$BA25,"<9,99") -> 0 | M21: =COUNTIFS($J25:$BB25,">9,99") -> 0
A22: A3 | B22: =kod!B4 -> Gát, mélyvíz | C22: =kod!C4 -> Ferma De Crap Diosig | D22: =SUM(J22:AZ22) -> 0 | E22: =COUNT(J22:AZ22) -> 0 | F22: 0 | G22: =MAX(J22:BA22) -> 0 | I22: tükörponty
A23: A3 | B23: =kod!B4 -> Gát, mélyvíz | C23: =kod!C4 -> Ferma De Crap Diosig | D23: 0 | E23: 0 | F23: 0 | G23: =MAX(J23:BA23) -> 0 | I23: tőponty
A24: A3 | B24: =kod!B4 -> Gát, mélyvíz | C24: =kod!C4 -> Ferma De Crap Diosig | D24: 0 | E24: 0 | F24: 0 | G24: =MAX(J24:BA24) -> 0 | I24: nyurgaponty
A25: A3 | B25: =kod!B4 -> Gát, mélyvíz | C25: =kod!C4 -> Ferma De Crap Diosig | D25: 0 | E25: 0 | F25: 0 | H25: =MAX(J25:AZ25) -> 0 | I25: koi ponty
A26: A3 | B26: =kod!B4 -> Gát, mélyvíz | C26: =kod!C4 -> Ferma De Crap Diosig | D26: 0 | E26: 0 | F26: 0 | G26: =MAX(J26:BA26) -> 0 | I26: amur
A27: A3 | B27: =kod!B4 -> Gát, mélyvíz | C27: =kod!C4 -> Ferma De Crap Diosig | D27: 0 | E27: 0 | F27: 0 | G27: =MAX(J27:BA27) -> 0 | I27: fekete amur
A28: A4 | B28: =kod!B5 -> Gát, mélyvíz | C28: =kod!C5 -> Bull Tackle | D28: =SUM(D29:D34) -> 79.525 | E28: =SUM(E29:E34) -> 6 | F28: 13.25416667 | G28: =MAX(G29:G34) -> 21.675 | H28: =H32 -> 13.25 | I28: ÖSSZESEN | J28: =COUNTIFS($J29:$BB34,">9,99",$J29:$BB34,"<20") -> 4 | K28: =COUNTIFS($J29:$BB34,">19,99") -> 1 | L28: =COUNTIFS($J32:$BA32,">4,99",$J32:$BA32,"<9,99") -> 0 | M28: =COUNTIFS($J32:$BB32,">9,99") -> 1
A29: A4 | B29: =kod!B5 -> Gát, mélyvíz | C29: =kod!C5 -> Bull Tackle | D29: =SUM(J29:AZ29) -> 0 | E29: =COUNT(J29:AZ29) -> 0 | F29: 0 | G29: =MAX(J29:BA29) -> 0 | I29: tükörponty
A30: A4 | B30: =kod!B5 -> Gát, mélyvíz | C30: =kod!C5 -> Bull Tackle | D30: 12.2 | E30: 1 | F30: 12.2 | G30: =MAX(J30:BA30) -> 12.2 | I30: tőponty | J30: 12.2
A31: A4 | B31: =kod!B5 -> Gát, mélyvíz | C31: =kod!C5 -> Bull Tackle | D31: 30.675 | E31: 2 | F31: 15.3375 | G31: =MAX(J31:BA31) -> 21.675 | I31: nyurgaponty | J31: 21.675 | K31: 9
A32: A4 | B32: =kod!B5 -> Gát, mélyvíz | C32: =kod!C5 -> Bull Tackle | D32: 13.25 | E32: 1 | F32: 13.25 | H32: =MAX(J32:AZ32) -> 13.25 | I32: koi ponty | J32: 13.25
A33: A4 | B33: =kod!B5 -> Gát, mélyvíz | C33: =kod!C5 -> Bull Tackle | D33: 0 | E33: 0 | F33: 0 | G33: =MAX(J33:BA33) -> 0 | I33: amur
A34: A4 | B34: =kod!B5 -> Gát, mélyvíz | C34: =kod!C5 -> Bull Tackle | D34: 23.4 | E34: 2 | F34: 11.7 | G34: =MAX(J34:BA34) -> 13.3 | I34: fekete amur | J34: 13.3 | K34: 10.1
A35: A5 | B35: =kod!B6 -> Gát, mélyvíz | C35: =kod!C6 -> AHFSZ Fishing Team | D35: =SUM(D36:D41) -> 0 | E35: =SUM(E36:E41) -> 0 | F35: 0 | G35: =MAX(G36:G41) -> 0 | H35: =H39 -> 0 | I35: ÖSSZESEN | J35: =COUNTIFS($J36:$BB41,">9,99",$J36:$BB41,"<20") -> 0 | K35: =COUNTIFS($J36:$BB41,">19,99") -> 0 | L35: =COUNTIFS($J39:$BA39,">4,99",$J39:$BA39,"<9,99") -> 0 | M35: =COUNTIFS($J39:$BB39,">9,99") -> 0
A36: A5 | B36: =kod!B6 -> Gát, mélyvíz | C36: =kod!C6 -> AHFSZ Fishing Team | D36: =SUM(J36:AZ36) -> 0 | E36: =COUNT(J36:AZ36) -> 0 | F36: 0 | G36: =MAX(J36:BA36) -> 0 | I36: tükörponty
A37: A5 | B37: =kod!B6 -> Gát, mélyvíz | C37: =kod!C6 -> AHFSZ Fishing Team | D37: 0 | E37: 0 | F37: 0 | G37: =MAX(J37:BA37) -> 0 | I37: tőponty
A38: A5 | B38: =kod!B6 -> Gát, mélyvíz | C38: =kod!C6 -> AHFSZ Fishing Team | D38: 0 | E38: 0 | F38: 0 | G38: =MAX(J38:BA38) -> 0 | I38: nyurgaponty
A39: A5 | B39: =kod!B6 -> Gát, mélyvíz | C39: =kod!C6 -> AHFSZ Fishing Team | D39: 0 | E39: 0 | F39: 0 | H39: =MAX(J39:AZ39) -> 0 | I39: koi ponty
A40: A5 | B40: =kod!B6 -> Gát, mélyvíz | C40: =kod!C6 -> AHFSZ Fishing Team | D40: 0 | E40: 0 | F40: 0 | G40: =MAX(J40:BA40) -> 0 | I40: amur
A41: A5 | B41: =kod!B6 -> Gát, mélyvíz | C41: =kod!C6 -> AHFSZ Fishing Team | D41: 0 | E41: 0 | F41: 0 | G41: =MAX(J41:BA41) -> 0 | I41: fekete amur
A42: A6 | B42: =kod!B7 -> Nyári kikötő, belső | C42: =kod!C7 -> Black Carp Team | D42: =SUM(D43:D48) -> 56.85 | E42: =SUM(E43:E48) -> 8 | F42: 7.10625 | G42: =MAX(G43:G48) -> 11.575 | H42: =H46 -> 0 | I42: ÖSSZESEN | J42: =COUNTIFS($J43:$BB48,">9,99",$J43:$BB48,"<20") -> 1 | K42: =COUNTIFS($J43:$BB48,">19,99") -> 0 | L42: =COUNTIFS($J46:$BA46,">4,99",$J46:$BA46,"<9,99") -> 0 | M42: =COUNTIFS($J46:$BB46,">9,99") -> 0
A43: A6 | B43: =kod!B7 -> Nyári kikötő, belső | C43: =kod!C7 -> Black Carp Team | D43: =SUM(J43:AZ43) -> 0 | E43: =COUNT(J43:AZ43) -> 0 | F43: 0 | G43: =MAX(J43:BA43) -> 0 | I43: tükörponty
A44: A6 | B44: =kod!B7 -> Nyári kikötő, belső | C44: =kod!C7 -> Black Carp Team | D44: 39.625 | E44: 5 | F44: 7.925 | G44: =MAX(J44:BA44) -> 11.575 | I44: tőponty | J44: 7.125 | K44: 6.65 | L44: 4.725 | M44: 9.55 | N44: 11.575
A45: A6 | B45: =kod!B7 -> Nyári kikötő, belső | C45: =kod!C7 -> Black Carp Team | D45: 0 | E45: 0 | F45: 0 | G45: =MAX(J45:BA45) -> 0 | I45: nyurgaponty
A46: A6 | B46: =kod!B7 -> Nyári kikötő, belső | C46: =kod!C7 -> Black Carp Team | D46: 0 | E46: 0 | F46: 0 | H46: =MAX(J46:AZ46) -> 0 | I46: koi ponty
A47: A6 | B47: =kod!B7 -> Nyári kikötő, belső | C47: =kod!C7 -> Black Carp Team | D47: 0 | E47: 0 | F47: 0 | G47: =MAX(J47:BA47) -> 0 | I47: amur
A48: A6 | B48: =kod!B7 -> Nyári kikötő, belső | C48: =kod!C7 -> Black Carp Team | D48: 17.225 | E48: 3 | F48: 5.741666667 | G48: =MAX(J48:BA48) -> 9.475 | I48: fekete amur | J48: 3.325 | K48: 4.425 | L48: 9.475
A49: A7 | B49: =kod!B8 -> Nyári kikötő, közép | C49: =kod!C8 -> USA & Mivado Carp Team | D49: =SUM(D50:D55) -> 50.955 | E49: =SUM(E50:E55) -> 5 | F49: 10.191 | G49: =MAX(G50:G55) -> 15.78 | H49: =H53 -> 0 | I49: ÖSSZESEN | J49: =COUNTIFS($J50:$BB55,">9,99",$J50:$BB55,"<20") -> 3 | K49: =COUNTIFS($J50:$BB55,">19,99") -> 0 | L49: =COUNTIFS($J53:$BA53,">4,99",$J53:$BA53,"<9,99") -> 0 | M49: =COUNTIFS($J53:$BB53,">9,99") -> 0
A50: A7 | B50: =kod!B8 -> Nyári kikötő, közép | C50: =kod!C8 -> USA & Mivado Carp Team | D50: =SUM(J50:AZ50) -> 0 | E50: =COUNT(J50:AZ50) -> 0 | F50: 0 | G50: =MAX(J50:BA50) -> 0 | I50: tükörponty
A51: A7 | B51: =kod!B8 -> Nyári kikötő, közép | C51: =kod!C8 -> USA & Mivado Carp Team | D51: 19.1 | E51: 2 | F51: 9.55 | G51: =MAX(J51:BA51) -> 10.3 | I51: tőponty | J51: 10.3 | K51: 8.8
A52: A7 | B52: =kod!B8 -> Nyári kikötő, közép | C52: =kod!C8 -> USA & Mivado Carp Team | D52: 10.575 | E52: 1 | F52: 10.575 | G52: =MAX(J52:BA52) -> 10.575 | I52: nyurgaponty | J52: 10.575
A53: A7 | B53: =kod!B8 -> Nyári kikötő, közép | C53: =kod!C8 -> USA & Mivado Carp Team | D53: 0 | E53: 0 | F53: 0 | H53: =MAX(J53:AZ53) -> 0 | I53: koi ponty
A54: A7 | B54: =kod!B8 -> Nyári kikötő, közép | C54: =kod!C8 -> USA & Mivado Carp Team | D54: 0 | E54: 0 | F54: 0 | G54: =MAX(J54:BA54) -> 0 | I54: amur
A55: A7 | B55: =kod!B8 -> Nyári kikötő, közép | C55: =kod!C8 -> USA & Mivado Carp Team | D55: 21.28 | E55: 2 | F55: 10.64 | G55: =MAX(J55:BA55) -> 15.78 | I55: fekete amur | J55: 15.78 | K55: 5.5
A56: A8 | B56: =kod!B9 -> Nyári kikötő, külső | C56: =kod!C9 -> Ózdi Sporthorgász Egyesület | D56: =SUM(D57:D62) -> 11.25 | E56: =SUM(E57:E62) -> 1 | F56: 11.25 | G56: =MAX(G57:G62) -> 11.25 | H56: =H60 -> 0 | I56: ÖSSZESEN | J56: =COUNTIFS($J57:$BB62,">9,99",$J57:$BB62,"<20") -> 1 | K56: =COUNTIFS($J57:$BB62,">19,99") -> 0 | L56: =COUNTIFS($J60:$BA60,">4,99",$J60:$BA60,"<9,99") -> 0 | M56: =COUNTIFS($J60:$BB60,">9,99") -> 0
A57: A8 | B57: =kod!B9 -> Nyári kikötő, külső | C57: =kod!C9 -> Ózdi Sporthorgász Egyesület | D57: =SUM(J57:AZ57) -> 0 | E57: =COUNT(J57:AZ57) -> 0 | F57: 0 | G57: =MAX(J57:BA57) -> 0 | I57: tükörponty
A58: A8 | B58: =kod!B9 -> Nyári kikötő, külső | C58: =kod!C9 -> Ózdi Sporthorgász Egyesület | D58: 11.25 | E58: 1 | F58: 11.25 | G58: =MAX(J58:BA58) -> 11.25 | I58: tőponty | J58: 11.25
A59: A8 | B59: =kod!B9 -> Nyári kikötő, külső | C59: =kod!C9 -> Ózdi Sporthorgász Egyesület | D59: 0 | E59: 0 | F59: 0 | G59: =MAX(J59:BA59) -> 0 | I59: nyurgaponty
A60: A8 | B60: =kod!B9 -> Nyári kikötő, külső | C60: =kod!C9 -> Ózdi Sporthorgász Egyesület | D60: 0 | E60: 0 | F60: 0 | H60: =MAX(J60:AZ60) -> 0 | I60: koi ponty
A61: A8 | B61: =kod!B9 -> Nyári kikötő, külső | C61: =kod!C9 -> Ózdi Sporthorgász Egyesület | D61: 0 | E61: 0 | F61: 0 | G61: =MAX(J61:BA61) -> 0 | I61: amur
A62: A8 | B62: =kod!B9 -> Nyári kikötő, külső | C62: =kod!C9 -> Ózdi Sporthorgász Egyesület | D62: 0 | E62: 0 | F62: 0 | G62: =MAX(J62:BA62) -> 0 | I62: fekete amur
A63: A9 | B63: =kod!B10 -> I. sziget, bal külső | C63: =kod!C10 -> Kártékony Carp Team | D63: =SUM(D64:D69) -> 176.525 | E63: =SUM(E64:E69) -> 22 | F63: 8.023863636 | G63: =MAX(G64:G69) -> 15.8 | H63: =H67 -> 10.075 | I63: ÖSSZESEN | J63: =COUNTIFS($J64:$BB69,">9,99",$J64:$BB69,"<20") -> 5 | K63: =COUNTIFS($J64:$BB69,">19,99") -> 0 | L63: =COUNTIFS($J67:$BA67,">4,99",$J67:$BA67,"<9,99") -> 0 | M63: =COUNTIFS($J67:$BB67,">9,99") -> 1
A64: A9 | B64: =kod!B10 -> I. sziget, bal külső | C64: =kod!C10 -> Kártékony Carp Team | D64: =SUM(J64:AZ64) -> 44.675 | E64: =COUNT(J64:AZ64) -> 5 | F64: =IF(E64=0,0,D64/E64) -> 8.935 | G64: =MAX(J64:BA64) -> 12.475 | I64: tükörponty | J64: 12.475 | K64: 6.1 | L64: 12.4 | M64: 5.5 | N64: 8.2
A65: A9 | B65: =kod!B10 -> I. sziget, bal külső | C65: =kod!C10 -> Kártékony Carp Team | D65: 105.85 | E65: 14 | F65: 7.560714286 | G65: =MAX(J65:BA65) -> 15.8 | I65: tőponty | J65: 7.1 | K65: 7.225 | L65: 5.025 | M65: 7.1 | N65: 6.6 | O65: 7.15 | P65: 6.35 | Q65: 15.8 | R65: 7.8 | S65: 6.5 | T65: 9.925 | U65: 2.725 | V65: 9.65 | W65: 6.9
A66: A9 | B66: =kod!B10 -> I. sziget, bal külső | C66: =kod!C10 -> Kártékony Carp Team | D66: 11.4 | E66: 1 | F66: 11.4 | G66: =MAX(J66:BA66) -> 11.4 | I66: nyurgaponty | J66: 11.4
A67: A9 | B67: =kod!B10 -> I. sziget, bal külső | C67: =kod!C10 -> Kártékony Carp Team | D67: 14.6 | E67: 2 | F67: 7.3 | H67: =MAX(J67:AZ67) -> 10.075 | I67: koi ponty | J67: 10.075 | K67: 4.525
A68: A9 | B68: =kod!B10 -> I. sziget, bal külső | C68: =kod!C10 -> Kártékony Carp Team | D68: 0 | E68: 0 | F68: 0 | G68: =MAX(J68:BA68) -> 0 | I68: amur
A69: A9 | B69: =kod!B10 -> I. sziget, bal külső | C69: =kod!C10 -> Kártékony Carp Team | D69: 0 | E69: 0 | F69: 0 | G69: =MAX(J69:BA69) -> 0 | I69: fekete amur
A70: A10 | B70: =kod!B11 -> I. sziget, bal | C70: =kod!C11 -> Team 5 Austria | D70: =SUM(D71:D76) -> 72.6 | E70: =SUM(E71:E76) -> 6 | F70: 12.1 | G70: =MAX(G71:G76) -> 22.55 | H70: =H74 -> 0 | I70: ÖSSZESEN | J70: =COUNTIFS($J71:$BB76,">9,99",$J71:$BB76,"<20") -> 3 | K70: =COUNTIFS($J71:$BB76,">19,99") -> 1 | L70: =COUNTIFS($J74:$BA74,">4,99",$J74:$BA74,"<9,99") -> 0 | M70: =COUNTIFS($J74:$BB74,">9,99") -> 0
A71: A10 | B71: =kod!B11 -> I. sziget, bal | C71: =kod!C11 -> Team 5 Austria | D71: =SUM(J71:AZ71) -> 0 | E71: =COUNT(J71:AZ71) -> 0 | F71: 0 | G71: =MAX(J71:BA71) -> 0 | I71: tükörponty
A72: A10 | B72: =kod!B11 -> I. sziget, bal | C72: =kod!C11 -> Team 5 Austria | D72: 31.925 | E72: 3 | F72: 10.64166667 | G72: =MAX(J72:BA72) -> 12.75 | I72: tőponty | J72: 12.75 | K72: 10.275 | L72: 8.9
A73: A10 | B73: =kod!B11 -> I. sziget, bal | C73: =kod!C11 -> Team 5 Austria | D73: 22.55 | E73: 1 | F73: 22.55 | G73: =MAX(J73:BA73) -> 22.55 | I73: nyurgaponty | J73: 22.55
A74: A10 | B74: =kod!B11 -> I. sziget, bal | C74: =kod!C11 -> Team 5 Austria | D74: 0 | E74: 0 | F74: 0 | H74: =MAX(J74:AZ74) -> 0 | I74: koi ponty
A75: A10 | B75: =kod!B11 -> I. sziget, bal | C75: =kod!C11 -> Team 5 Austria | D75: 18.125 | E75: 2 | F75: 9.0625 | G75: =MAX(J75:BA75) -> 12.475 | I75: amur | J75: 5.65 | K75: 12.475
A76: A10 | B76: =kod!B11 -> I. sziget, bal | C76: =kod!C11 -> Team 5 Austria | D76: 0 | E76: 0 | F76: 0 | G76: =MAX(J76:BA76) -> 0 | I76: fekete amur
A77: A11 | B77: =kod!B12 -> I. sziget, bal közép | C77: =kod!C12 -> Invader's Team Poland | D77: =SUM(D78:D83) -> 32.07 | E77: =SUM(E78:E83) -> 6 | F77: 5.345 | G77: =MAX(G78:G83) -> 10.5 | H77: =H81 -> 0 | I77: ÖSSZESEN | J77: =COUNTIFS($J78:$BB83,">9,99",$J78:$BB83,"<20") -> 1 | K77: =COUNTIFS($J78:$BB83,">19,99") -> 0 | L77: =COUNTIFS($J81:$BA81,">4,99",$J81:$BA81,"<9,99") -> 0 | M77: =COUNTIFS($J81:$BB81,">9,99") -> 0
A78: A11 | B78: =kod!B12 -> I. sziget, bal közép | C78: =kod!C12 -> Invader's Team Poland | D78: =SUM(J78:AZ78) -> 6.825 | E78: =COUNT(J78:AZ78) -> 1 | F78: 6.825 | G78: =MAX(J78:BA78) -> 6.825 | I78: tükörponty | J78: 6.825
A79: A11 | B79: =kod!B12 -> I. sziget, bal közép | C79: =kod!C12 -> Invader's Team Poland | D79: 5.62 | E79: 3 | F79: 1.873333333 | G79: =MAX(J79:BA79) -> 3.35 | I79: tőponty | J79: 3.35 | K79: 1.07 | L79: 1.2
A80: A11 | B80: =kod!B12 -> I. sziget, bal közép | C80: =kod!C12 -> Invader's Team Poland | D80: 10.5 | E80: 1 | F80: 10.5 | G80: =MAX(J80:BA80) -> 10.5 | I80: nyurgaponty | J80: 10.5
A81: A11 | B81: =kod!B12 -> I. sziget, bal közép | C81: =kod!C12 -> Invader's Team Poland | D81: 0 | E81: 0 | F81: 0 | H81: =MAX(J81:AZ81) -> 0 | I81: koi ponty
A82: A11 | B82: =kod!B12 -> I. sziget, bal közép | C82: =kod!C12 -> Invader's Team Poland | D82: 9.125 | E82: 1 | F82: 9.125 | G82: =MAX(J82:BA82) -> 9.125 | I82: amur | J82: 9.125
A83: A11 | B83: =kod!B12 -> I. sziget, bal közép | C83: =kod!C12 -> Invader's Team Poland | D83: 0 | E83: 0 | F83: 0 | G83: =MAX(J83:BA83) -> 0 | I83: fekete amur
A84: B1 | B84: =kod!B13 -> Gát, közepes víz | C84: =kod!C13 -> Tata Nitu Carp Team | D84: =SUM(D85:D90) -> 22.925 | E84: =SUM(E85:E90) -> 3 | F84: =IF(E84=0,0,D84/E84) -> 7.641666667 | G84: =MAX(G85:G90) -> 15 | H84: =H88 -> 0 | I84: ÖSSZESEN | J84: =COUNTIFS($J85:$BB90,">9,99",$J85:$BB90,"<20") -> 1 | K84: =COUNTIFS($J85:$BB90,">19,99") -> 0 | L84: =COUNTIFS($J88:$BA88,">4,99",$J88:$BA88,"<9,99") -> 0 | M84: =COUNTIFS($J88:$BB88,">9,99") -> 0
A85: B1 | B85: =kod!B13 -> Gát, közepes víz | C85: =kod!C13 -> Tata Nitu Carp Team | D85: =SUM(J85:AZ85) -> 0 | E85: =COUNT(J85:AZ85) -> 0 | F85: =IF(E85=0,0,D85/E85) -> 0 | G85: =MAX(J85:BA85) -> 0 | I85: tükörponty
A86: B1 | B86: =kod!B13 -> Gát, közepes víz | C86: =kod!C13 -> Tata Nitu Carp Team | D86: 7.925 | E86: 2 | F86: 3.9625 | G86: =MAX(J86:BA86) -> 6.45 | I86: tőponty | J86: 1.475 | K86: 6.45
A87: B1 | B87: =kod!B13 -> Gát, közepes víz | C87: =kod!C13 -> Tata Nitu Carp Team | D87: 0 | E87: 0 | F87: 0 | G87: =MAX(J87:BA87) -> 0 | I87: nyurgaponty
A88: B1 | B88: =kod!B13 -> Gát, közepes víz | C88: =kod!C13 -> Tata Nitu Carp Team | D88: 0 | E88: 0 | F88: 0 | H88: =MAX(J88:AZ88) -> 0 | I88: koi ponty
A89: B1 | B89: =kod!B13 -> Gát, közepes víz | C89: =kod!C13 -> Tata Nitu Carp Team | D89: 15 | E89: 1 | F89: 15 | G89: =MAX(J89:BA89) -> 15 | I89: amur | J89: 15
A90: B1 | B90: =kod!B13 -> Gát, közepes víz | C90: =kod!C13 -> Tata Nitu Carp Team | D90: 0 | E90: 0 | F90: 0 | G90: =MAX(J90:BA90) -> 0 | I90: fekete amur
A91: B2 | B91: =kod!B14 -> Gát, közepes víz | C91: =kod!C14 -> Slovakia Carp Team | D91: =SUM(D92:D97) -> 0 | E91: =SUM(E92:E97) -> 0 | F91: 0 | G91: =MAX(G92:G97) -> 0 | H91: =H95 -> 0 | I91: ÖSSZESEN | J91: =COUNTIFS($J92:$BB97,">9,99",$J92:$BB97,"<20") -> 0 | K91: =COUNTIFS($J92:$BB97,">19,99") -> 0 | L91: =COUNTIFS($J95:$BA95,">4,99",$J95:$BA95,"<9,99") -> 0 | M91: =COUNTIFS($J95:$BB95,">9,99") -> 0
A92: B2 | B92: =kod!B14 -> Gát, közepes víz | C92: =kod!C14 -> Slovakia Carp Team | D92: =SUM(J92:AZ92) -> 0 | E92: =COUNT(J92:AZ92) -> 0 | F92: 0 | G92: =MAX(J92:BA92) -> 0 | I92: tükörponty
A93: B2 | B93: =kod!B14 -> Gát, közepes víz | C93: =kod!C14 -> Slovakia Carp Team | D93: 0 | E93: 0 | F93: 0 | G93: =MAX(J93:BA93) -> 0 | I93: tőponty
A94: B2 | B94: =kod!B14 -> Gát, közepes víz | C94: =kod!C14 -> Slovakia Carp Team | D94: 0 | E94: 0 | F94: 0 | G94: =MAX(J94:BA94) -> 0 | I94: nyurgaponty
A95: B2 | B95: =kod!B14 -> Gát, közepes víz | C95: =kod!C14 -> Slovakia Carp Team | D95: 0 | E95: 0 | F95: 0 | H95: =MAX(J95:AZ95) -> 0 | I95: koi ponty
A96: B2 | B96: =kod!B14 -> Gát, közepes víz | C96: =kod!C14 -> Slovakia Carp Team | D96: 0 | E96: 0 | F96: 0 | G96: =MAX(J96:BA96) -> 0 | I96: amur
A97: B2 | B97: =kod!B14 -> Gát, közepes víz | C97: =kod!C14 -> Slovakia Carp Team | D97: 0 | E97: 0 | F97: 0 | G97: =MAX(J97:BA97) -> 0 | I97: fekete amur
A98: B3 | B98: =kod!B15 -> Gát, közepes víz | C98: =kod!C15 -> WLC Hungary | D98: =SUM(D99:D104) -> 97.675 | E98: =SUM(E99:E104) -> 9 | F98: 10.85277778 | G98: =MAX(G99:G104) -> 15.85 | H98: =H102 -> 10.225 | I98: ÖSSZESEN | J98: =COUNTIFS($J99:$BB104,">9,99",$J99:$BB104,"<20") -> 7 | K98: =COUNTIFS($J99:$BB104,">19,99") -> 0 | L98: =COUNTIFS($J102:$BA102,">4,99",$J102:$BA102,"<9,99") -> 0 | M98: =COUNTIFS($J102:$BB102,">9,99") -> 1
A99: B3 | B99: =kod!B15 -> Gát, közepes víz | C99: =kod!C15 -> WLC Hungary | D99: =SUM(J99:AZ99) -> 0 | E99: =COUNT(J99:AZ99) -> 0 | F99: 0 | G99: =MAX(J99:BA99) -> 0 | I99: tükörponty
A100: B3 | B100: =kod!B15 -> Gát, közepes víz | C100: =kod!C15 -> WLC Hungary | D100: 0 | E100: 0 | F100: 0 | G100: =MAX(J100:BA100) -> 0 | I100: tőponty
A101: B3 | B101: =kod!B15 -> Gát, közepes víz | C101: =kod!C15 -> WLC Hungary | D101: 83.975 | E101: 7 | F101: 11.99642857 | G101: =MAX(J101:BA101) -> 15.85 | I101: nyurgaponty | J101: 10.475 | K101: 12.925 | L101: 8.225 | M101: 10.7 | N101: 13.2 | O101: 12.6 | P101: 15.85
A102: B3 | B102: =kod!B15 -> Gát, közepes víz | C102: =kod!C15 -> WLC Hungary | D102: 10.225 | E102: 1 | F102: 10.225 | H102: =MAX(J102:AZ102) -> 10.225 | I102: koi ponty | J102: 10.225
A103: B3 | B103: =kod!B15 -> Gát, közepes víz | C103: =kod!C15 -> WLC Hungary | D103: 0 | E103: 0 | F103: 0 | G103: =MAX(J103:BA103) -> 0 | I103: amur
A104: B3 | B104: =kod!B15 -> Gát, közepes víz | C104: =kod!C15 -> WLC Hungary | D104: 3.475 | E104: 1 | F104: 3.475 | G104: =MAX(J104:BA104) -> 3.475 | I104: fekete amur | J104: 3.475
A105: B4 | B105: =kod!B16 -> Gát, közepes víz | C105: =kod!C16 -> Barfin Line NSD Bulgaria | D105: =SUM(D106:D111) -> 12.3 | E105: =SUM(E106:E111) -> 1 | F105: 12.3 | G105: =MAX(G106:G111) -> 12.3 | H105: =H109 -> 0 | I105: ÖSSZESEN | J105: =COUNTIFS($J106:$BB111,">9,99",$J106:$BB111,"<20") -> 1 | K105: =COUNTIFS($J106:$BB111,">19,99") -> 0 | L105: =COUNTIFS($J109:$BA109,">4,99",$J109:$BA109,"<9,99") -> 0 | M105: =COUNTIFS($J109:$BB109,">9,99") -> 0
A106: B4 | B106: =kod!B16 -> Gát, közepes víz | C106: =kod!C16 -> Barfin Line NSD Bulgaria | D106: =SUM(J106:AZ106) -> 0 | E106: =COUNT(J106:AZ106) -> 0 | F106: 0 | G106: =MAX(J106:BA106) -> 0 | I106: tükörponty
A107: B4 | B107: =kod!B16 -> Gát, közepes víz | C107: =kod!C16 -> Barfin Line NSD Bulgaria | D107: 0 | E107: 0 | F107: 0 | G107: 0 | I107: tőponty
A108: B4 | B108: =kod!B16 -> Gát, közepes víz | C108: =kod!C16 -> Barfin Line NSD Bulgaria | D108: 12.3 | E108: 1 | F108: 12.3 | G108: 12.3 | I108: nyurgaponty | J108: 12.3
A109: B4 | B109: =kod!B16 -> Gát, közepes víz | C109: =kod!C16 -> Barfin Line NSD Bulgaria | D109: 0 | E109: 0 | F109: 0 | G109: 0 | H109: =MAX(J109:AZ109) -> 0 | I109: koi ponty
A110: B4 | B110: =kod!B16 -> Gát, közepes víz | C110: =kod!C16 -> Barfin Line NSD Bulgaria | D110: 0 | E110: 0 | F110: 0 | G110: 0 | I110: amur
A111: B4 | B111: =kod!B16 -> Gát, közepes víz | C111: =kod!C16 -> Barfin Line NSD Bulgaria | D111: 0 | E111: 0 | F111: 0 | G111: 0 | I111: fekete amur
A112: B5 | B112: =kod!B17 -> Gát, közepes víz | C112: =kod!C17 -> Lutra Carp Hunters | D112: =SUM(D113:D118) -> 0 | E112: =SUM(E113:E118) -> 0 | F112: 0 | G112: =MAX(G113:G118) -> 0 | H112: =H116 -> 0 | I112: ÖSSZESEN | J112: =COUNTIFS($J113:$BB118,">9,99",$J113:$BB118,"<20") -> 0 | K112: =COUNTIFS($J113:$BB118,">19,99") -> 0 | L112: =COUNTIFS($J116:$BA116,">4,99",$J116:$BA116,"<9,99") -> 0 | M112: =COUNTIFS($J116:$BB116,">9,99") -> 0
A113: B5 | B113: =kod!B17 -> Gát, közepes víz | C113: =kod!C17 -> Lutra Carp Hunters | D113: =SUM(J113:AZ113) -> 0 | E113: =COUNT(J113:AZ113) -> 0 | F113: 0 | G113: =MAX(J113:BA113) -> 0 | I113: tükörponty
A114: B5 | B114: =kod!B17 -> Gát, közepes víz | C114: =kod!C17 -> Lutra Carp Hunters | D114: 0 | E114: 0 | F114: 0 | G114: =MAX(J114:BA114) -> 0 | I114: tőponty
A115: B5 | B115: =kod!B17 -> Gát, közepes víz | C115: =kod!C17 -> Lutra Carp Hunters | D115: 0 | E115: 0 | F115: 0 | G115: =MAX(J115:BA115) -> 0 | I115: nyurgaponty
A116: B5 | B116: =kod!B17 -> Gát, közepes víz | C116: =kod!C17 -> Lutra Carp Hunters | D116: 0 | E116: 0 | F116: 0 | H116: =MAX(J116:AZ116) -> 0 | I116: koi ponty
A117: B5 | B117: =kod!B17 -> Gát, közepes víz | C117: =kod!C17 -> Lutra Carp Hunters | D117: 0 | E117: 0 | F117: 0 | G117: =MAX(J117:BA117) -> 0 | I117: amur
A118: B5 | B118: =kod!B17 -> Gát, közepes víz | C118: =kod!C17 -> Lutra Carp Hunters | D118: 0 | E118: 0 | F118: 0 | G118: =MAX(J118:BA118) -> 0 | I118: fekete amur
A119: B6 | B119: =kod!B18 -> Gát, közepes víz | C119: =kod!C18 -> Xtra Carp Team | D119: =SUM(D120:D125) -> 7.85 | E119: =SUM(E120:E125) -> 1 | F119: 7.85 | G119: =MAX(G120:G125) -> 7.85 | H119: =H123 -> 0 | I119: ÖSSZESEN | J119: =COUNTIFS($J120:$BB125,">9,99",$J120:$BB125,"<20") -> 0 | K119: =COUNTIFS($J120:$BB125,">19,99") -> 0 | L119: =COUNTIFS($J123:$BA123,">4,99",$J123:$BA123,"<9,99") -> 0 | M119: =COUNTIFS($J123:$BB123,">9,99") -> 0
A120: B6 | B120: =kod!B18 -> Gát, közepes víz | C120: =kod!C18 -> Xtra Carp Team | D120: =SUM(J120:AZ120) -> 0 | E120: =COUNT(J120:AZ120) -> 0 | F120: 0 | G120: =MAX(J120:BA120) -> 0 | I120: tükörponty
A121: B6 | B121: =kod!B18 -> Gát, közepes víz | C121: =kod!C18 -> Xtra Carp Team | D121: 0 | E121: 0 | F121: 0 | G121: =MAX(J121:BA121) -> 0 | I121: tőponty
A122: B6 | B122: =kod!B18 -> Gát, közepes víz | C122: =kod!C18 -> Xtra Carp Team | D122: 7.85 | E122: 1 | F122: 7.85 | G122: =MAX(J122:BA122) -> 7.85 | I122: nyurgaponty | J122: 7.85
A123: B6 | B123: =kod!B18 -> Gát, közepes víz | C123: =kod!C18 -> Xtra Carp Team | D123: 0 | E123: 0 | F123: 0 | H123: =MAX(J123:AZ123) -> 0 | I123: koi ponty
A124: B6 | B124: =kod!B18 -> Gát, közepes víz | C124: =kod!C18 -> Xtra Carp Team | D124: 0 | E124: 0 | F124: 0 | G124: =MAX(J124:BA124) -> 0 | I124: amur
A125: B6 | B125: =kod!B18 -> Gát, közepes víz | C125: =kod!C18 -> Xtra Carp Team | D125: 0 | E125: 0 | F125: 0 | G125: =MAX(J125:BA125) -> 0 | I125: fekete amur
A126: B7 | B126: =kod!B19 -> I. sziget, jobb közép | C126: =kod!C19 -> Elite Carp Team Brasov | D126: =SUM(D127:D132) -> 98.925 | E126: =SUM(E127:E132) -> 9 | F126: 10.99166667 | G126: =MAX(G127:G132) -> 17.3 | H126: =H130 -> 0 | I126: ÖSSZESEN | J126: =COUNTIFS($J127:$BB132,">9,99",$J127:$BB132,"<20") -> 5 | K126: =COUNTIFS($J127:$BB132,">19,99") -> 0 | L126: =COUNTIFS($J130:$BA130,">4,99",$J130:$BA130,"<9,99") -> 0 | M126: =COUNTIFS($J130:$BB130,">9,99") -> 0
A127: B7 | B127: =kod!B19 -> I. sziget, jobb közép | C127: =kod!C19 -> Elite Carp Team Brasov | D127: =SUM(J127:AZ127) -> 0 | E127: =COUNT(J127:AZ127) -> 0 | F127: 0 | G127: =MAX(J127:BA127) -> 0 | I127: tükörponty
A128: B7 | B128: =kod!B19 -> I. sziget, jobb közép | C128: =kod!C19 -> Elite Carp Team Brasov | D128: 41.3 | E128: 5 | F128: 8.26 | G128: =MAX(J128:BA128) -> 12.225 | I128: tőponty | J128: 7.5 | K128: 7.6 | L128: 8.075 | M128: 12.225 | N128: 5.9
A129: B7 | B129: =kod!B19 -> I. sziget, jobb közép | C129: =kod!C19 -> Elite Carp Team Brasov | D129: 57.625 | E129: 4 | F129: 14.40625 | G129: =MAX(J129:BA129) -> 17.3 | I129: nyurgaponty | J129: 12.75 | K129: 17.3 | L129: 13 | M129: 14.575
A130: B7 | B130: =kod!B19 -> I. sziget, jobb közép | C130: =kod!C19 -> Elite Carp Team Brasov | D130: 0 | E130: 0 | F130: 0 | H130: =MAX(J130:AZ130) -> 0 | I130: koi ponty
A131: B7 | B131: =kod!B19 -> I. sziget, jobb közép | C131: =kod!C19 -> Elite Carp Team Brasov | D131: 0 | E131: 0 | F131: 0 | G131: =MAX(J131:BA131) -> 0 | I131: amur
A132: B7 | B132: =kod!B19 -> I. sziget, jobb közép | C132: =kod!C19 -> Elite Carp Team Brasov | D132: 0 | E132: 0 | F132: 0 | G132: =MAX(J132:BA132) -> 0 | I132: fekete amur
A133: B8 | B133: =kod!B20 -> I. sziget, jobb | C133: =kod!C20 -> CT777 Varna Bulgaria | D133: =SUM(D134:D139) -> 21.75 | E133: =SUM(E134:E139) -> 2 | F133: 10.875 | G133: =MAX(G134:G139) -> 12.375 | H133: =H137 -> 0 | I133: ÖSSZESEN | J133: =COUNTIFS($J134:$BB139,">9,99",$J134:$BB139,"<20") -> 1 | K133: =COUNTIFS($J134:$BB139,">19,99") -> 0 | L133: =COUNTIFS($J137:$BA137,">4,99",$J137:$BA137,"<9,99") -> 0 | M133: =COUNTIFS($J137:$BB137,">9,99") -> 0
A134: B8 | B134: =kod!B20 -> I. sziget, jobb | C134: =kod!C20 -> CT777 Varna Bulgaria | D134: =SUM(J134:AZ134) -> 0 | E134: =COUNT(J134:AZ134) -> 0 | F134: 0 | G134: =MAX(J134:BA134) -> 0 | I134: tükörponty
A135: B8 | B135: =kod!B20 -> I. sziget, jobb | C135: =kod!C20 -> CT777 Varna Bulgaria | D135: 9.375 | E135: 1 | F135: 9.375 | G135: =MAX(J135:BA135) -> 9.375 | I135: tőponty | J135: 9.375
A136: B8 | B136: =kod!B20 -> I. sziget, jobb | C136: =kod!C20 -> CT777 Varna Bulgaria | D136: 12.375 | E136: 1 | F136: 12.375 | G136: =MAX(J136:BA136) -> 12.375 | I136: nyurgaponty | J136: 12.375
A137: B8 | B137: =kod!B20 -> I. sziget, jobb | C137: =kod!C20 -> CT777 Varna Bulgaria | D137: 0 | E137: 0 | F137: 0 | H137: =MAX(J137:AZ137) -> 0 | I137: koi ponty
A138: B8 | B138: =kod!B20 -> I. sziget, jobb | C138: =kod!C20 -> CT777 Varna Bulgaria | D138: 0 | E138: 0 | F138: 0 | G138: =MAX(J138:BA138) -> 0 | I138: amur
A139: B8 | B139: =kod!B20 -> I. sziget, jobb | C139: =kod!C20 -> CT777 Varna Bulgaria | D139: 0 | E139: 0 | F139: 0 | G139: =MAX(J139:BA139) -> 0 | I139: fekete amur
A140: B9 | B140: =kod!B21 -> I. sziget, jobb külső | C140: =kod!C21 -> Bait Maker Team | D140: =SUM(D141:D146) -> 31.225 | E140: =SUM(E141:E146) -> 4 | F140: 7.80625 | G140: =MAX(G141:G146) -> 9.225 | H140: =H144 -> 0 | I140: ÖSSZESEN | J140: =COUNTIFS($J141:$BB146,">9,99",$J141:$BB146,"<20") -> 0 | K140: =COUNTIFS($J141:$BB146,">19,99") -> 0 | L140: =COUNTIFS($J144:$BA144,">4,99",$J144:$BA144,"<9,99") -> 0 | M140: =COUNTIFS($J144:$BB144,">9,99") -> 0
A141: B9 | B141: =kod!B21 -> I. sziget, jobb külső | C141: =kod!C21 -> Bait Maker Team | D141: =SUM(J141:AZ141) -> 7.75 | E141: =COUNT(J141:AZ141) -> 1 | F141: =IF(E141=0,0,D141/E141) -> 7.75 | G141: =MAX(J141:BA141) -> 7.75 | I141: tükörponty | J141: 7.75
A142: B9 | B142: =kod!B21 -> I. sziget, jobb külső | C142: =kod!C21 -> Bait Maker Team | D142: 16.1 | E142: 2 | F142: 8.05 | G142: =MAX(J142:BA142) -> 9.225 | I142: tőponty | J142: 6.875 | K142: 9.225
A143: B9 | B143: =kod!B21 -> I. sziget, jobb külső | C143: =kod!C21 -> Bait Maker Team | D143: 0 | E143: 0 | F143: 0 | G143: =MAX(J143:BA143) -> 0 | I143: nyurgaponty
A144: B9 | B144: =kod!B21 -> I. sziget, jobb külső | C144: =kod!C21 -> Bait Maker Team | D144: 0 | E144: 0 | F144: 0 | H144: =MAX(J144:AZ144) -> 0 | I144: koi ponty
A145: B9 | B145: =kod!B21 -> I. sziget, jobb külső | C145: =kod!C21 -> Bait Maker Team | D145: 7.375 | E145: 1 | F145: 7.375 | G145: =MAX(J145:BA145) -> 7.375 | I145: amur | J145: 7.375
A146: B9 | B146: =kod!B21 -> I. sziget, jobb külső | C146: =kod!C21 -> Bait Maker Team | D146: 0 | E146: 0 | F146: 0 | G146: =MAX(J146:BA146) -> 0 | I146: fekete amur
A147: B10 | B147: =kod!B22 -> Felező-spicc, bal | C147: =kod!C22 -> SBS - SziKo Team | D147: =SUM(D148:D153) -> 44.9 | E147: =SUM(E148:E153) -> 8 | F147: 5.6125 | G147: =MAX(G148:G153) -> 7.425 | H147: =H151 -> 0 | I147: ÖSSZESEN | J147: =COUNTIFS($J148:$BB153,">9,99",$J148:$BB153,"<20") -> 0 | K147: =COUNTIFS($J148:$BB153,">19,99") -> 0 | L147: =COUNTIFS($J151:$BA151,">4,99",$J151:$BA151,"<9,99") -> 0 | M147: =COUNTIFS($J151:$BB151,">9,99") -> 0
A148: B10 | B148: =kod!B22 -> Felező-spicc, bal | C148: =kod!C22 -> SBS - SziKo Team | D148: =SUM(J148:AZ148) -> 22.875 | E148: =COUNT(J148:AZ148) -> 4 | F148: 5.71875 | G148: =MAX(J148:BA148) -> 6.35 | I148: tükörponty | J148: 6.35 | K148: 6.25 | L148: 4.15 | M148: 6.125
A149: B10 | B149: =kod!B22 -> Felező-spicc, bal | C149: =kod!C22 -> SBS - SziKo Team | D149: 22.025 | E149: 4 | F149: 5.50625 | G149: =MAX(J149:BA149) -> 7.425 | I149: tőponty | J149: 4.675 | K149: 4.7 | L149: 7.425 | M149: 5.225
A150: B10 | B150: =kod!B22 -> Felező-spicc, bal | C150: =kod!C22 -> SBS - SziKo Team | D150: 0 | E150: 0 | F150: 0 | G150: =MAX(J150:BA150) -> 0 | I150: nyurgaponty
A151: B10 | B151: =kod!B22 -> Felező-spicc, bal | C151: =kod!C22 -> SBS - SziKo Team | D151: 0 | E151: 0 | F151: 0 | H151: =MAX(J151:AZ151) -> 0 | I151: koi ponty
A152: B10 | B152: =kod!B22 -> Felező-spicc, bal | C152: =kod!C22 -> SBS - SziKo Team | D152: 0 | E152: 0 | F152: 0 | G152: =MAX(J152:BA152) -> 0 | I152: amur
A153: B10 | B153: =kod!B22 -> Felező-spicc, bal | C153: =kod!C22 -> SBS - SziKo Team | D153: 0 | E153: 0 | F153: 0 | G153: =MAX(J153:BA153) -> 0 | I153: fekete amur
A154: B11 | B154: =kod!B23 -> Felező-spicc, közép | C154: =kod!C23 -> Síp Carp Team | D154: =SUM(D155:D160) -> 17.075 | E154: =SUM(E155:E160) -> 3 | F154: 5.691666667 | G154: =MAX(G155:G160) -> 6.075 | H154: =H158 -> 0 | I154: ÖSSZESEN | J154: =COUNTIFS($J155:$BB160,">9,99",$J155:$BB160,"<20") -> 0 | K154: =COUNTIFS($J155:$BB160,">19,99") -> 0 | L154: =COUNTIFS($J158:$BA158,">4,99",$J158:$BA158,"<9,99") -> 0 | M154: =COUNTIFS($J158:$BB158,">9,99") -> 0
A155: B11 | B155: =kod!B23 -> Felező-spicc, közép | C155: =kod!C23 -> Síp Carp Team | D155: =SUM(J155:AZ155) -> 5.425 | E155: 1 | F155: 5.425 | G155: =MAX(J155:BA155) -> 5.425 | I155: tükörponty | J155: 5.425
A156: B11 | B156: =kod!B23 -> Felező-spicc, közép | C156: =kod!C23 -> Síp Carp Team | D156: 11.65 | E156: 2 | F156: 5.825 | G156: 6.075 | I156: tőponty | J156: 6.075 | K156: 5.575
A157: B11 | B157: =kod!B23 -> Felező-spicc, közép | C157: =kod!C23 -> Síp Carp Team | D157: 0 | E157: 0 | F157: 0 | G157: 0 | I157: nyurgaponty
A158: B11 | B158: =kod!B23 -> Felező-spicc, közép | C158: =kod!C23 -> Síp Carp Team | D158: 0 | E158: 0 | F158: 0 | H158: =MAX(J158:AZ158) -> 0 | I158: koi ponty
A159: B11 | B159: =kod!B23 -> Felező-spicc, közép | C159: =kod!C23 -> Síp Carp Team | D159: 0 | E159: 0 | F159: 0 | G159: =MAX(J159:BA159) -> 0 | I159: amur
A160: B11 | B160: =kod!B23 -> Felező-spicc, közép | C160: =kod!C23 -> Síp Carp Team | D160: 0 | E160: 0 | F160: 0 | G160: 0 | I160: fekete amur
A161: C1 | B161: =kod!B24 -> Gát, sekély víz | C161: =kod!C24 -> Carp Fever Bulgaria | D161: =SUM(D162:D167) -> 52.3 | E161: =SUM(E162:E167) -> 7 | F161: =IF(E161=0,0,D161/E161) -> 7.471428571 | G161: =MAX(G162:G167) -> 11.775 | H161: =H165 -> 0 | I161: ÖSSZESEN | J161: =COUNTIFS($J162:$BB167,">9,99",$J162:$BB167,"<20") -> 1 | K161: =COUNTIFS($J162:$BB167,">19,99") -> 0 | L161: =COUNTIFS($J165:$BA165,">4,99",$J165:$BA165,"<9,99") -> 0 | M161: =COUNTIFS($J165:$BB165,">9,99") -> 0
A162: C1 | B162: =kod!B24 -> Gát, sekély víz | C162: =kod!C24 -> Carp Fever Bulgaria | D162: =SUM(J162:AZ162) -> 6.575 | E162: =COUNT(J162:AZ162) -> 1 | F162: =IF(E162=0,0,D162/E162) -> 6.575 | G162: =MAX(J162:BA162) -> 6.575 | I162: tükörponty | J162: 6.575
A163: C1 | B163: =kod!B24 -> Gát, sekély víz | C163: =kod!C24 -> Carp Fever Bulgaria | D163: 14.25 | E163: 2 | F163: 7.125 | G163: =MAX(J163:BA163) -> 9 | I163: tőponty | J163: 5.25 | K163: 9
A164: C1 | B164: =kod!B24 -> Gát, sekély víz | C164: =kod!C24 -> Carp Fever Bulgaria | D164: 31.475 | E164: 4 | F164: 7.86875 | G164: =MAX(J164:BA164) -> 11.775 | I164: nyurgaponty | J164: 6.55 | K164: 9.925 | L164: 11.775 | M164: 3.225
A165: C1 | B165: =kod!B24 -> Gát, sekély víz | C165: =kod!C24 -> Carp Fever Bulgaria | D165: 0 | E165: 0 | F165: 0 | H165: =MAX(J165:AZ165) -> 0 | I165: koi ponty
A166: C1 | B166: =kod!B24 -> Gát, sekély víz | C166: =kod!C24 -> Carp Fever Bulgaria | D166: 0 | E166: 0 | F166: 0 | G166: =MAX(J166:BA166) -> 0 | I166: amur
A167: C1 | B167: =kod!B24 -> Gát, sekély víz | C167: =kod!C24 -> Carp Fever Bulgaria | D167: 0 | E167: 0 | F167: 0 | G167: =MAX(J167:BA167) -> 0 | I167: fekete amur
A168: C2 | B168: =kod!B25 -> Gát, sekély víz | C168: =kod!C25 -> Carpfriends Ennstal-Austria | D168: =SUM(D169:D174) -> 77.55 | E168: =SUM(E169:E174) -> 9 | F168: 8.616666667 | G168: =MAX(G169:G174) -> 16.45 | H168: =H172 -> 4.975 | I168: ÖSSZESEN | J168: =COUNTIFS($J169:$BB174,">9,99",$J169:$BB174,"<20") -> 3 | K168: =COUNTIFS($J169:$BB174,">19,99") -> 0 | L168: =COUNTIFS($J172:$BA172,">4,99",$J172:$BA172,"<9,99") -> 0 | M168: =COUNTIFS($J172:$BB172,">9,99") -> 0
A169: C2 | B169: =kod!B25 -> Gát, sekély víz | C169: =kod!C25 -> Carpfriends Ennstal-Austria | D169: =SUM(J169:AZ169) -> 16.825 | E169: =COUNT(J169:AZ169) -> 2 | F169: 8.4125 | G169: =MAX(J169:BA169) -> 8.725 | I169: tükörponty | J169: 8.1 | K169: 8.725
A170: C2 | B170: =kod!B25 -> Gát, sekély víz | C170: =kod!C25 -> Carpfriends Ennstal-Austria | D170: 0 | E170: 0 | F170: 0 | G170: =MAX(J170:BA170) -> 0 | I170: tőponty
A171: C2 | B171: =kod!B25 -> Gát, sekély víz | C171: =kod!C25 -> Carpfriends Ennstal-Austria | D171: 52.75 | E171: 5 | F171: 10.55 | G171: =MAX(J171:BA171) -> 16.45 | I171: nyurgaponty | J171: 12.675 | K171: 16.45 | L171: 10.425 | M171: 6.525 | N171: 6.675
A172: C2 | B172: =kod!B25 -> Gát, sekély víz | C172: =kod!C25 -> Carpfriends Ennstal-Austria | D172: 7.975 | E172: 2 | F172: 3.9875 | H172: =MAX(J172:AZ172) -> 4.975 | I172: koi ponty | J172: 3 | K172: 4.975
A173: C2 | B173: =kod!B25 -> Gát, sekély víz | C173: =kod!C25 -> Carpfriends Ennstal-Austria | D173: 0 | E173: 0 | F173: 0 | G173: =MAX(J173:BA173) -> 0 | I173: amur
A174: C2 | B174: =kod!B25 -> Gát, sekély víz | C174: =kod!C25 -> Carpfriends Ennstal-Austria | D174: 0 | E174: 0 | F174: 0 | G174: =MAX(J174:BA174) -> 0 | I174: fekete amur
A175: C3 | B175: =kod!B26 -> Gát, sekély víz | C175: =kod!C26 -> Carp Team Brasov | D175: =SUM(D176:D181) -> 15.55 | E175: =SUM(E176:E181) -> 3 | F175: 5.183333333 | G175: =MAX(G176:G181) -> 5.85 | H175: =H179 -> 4.375 | I175: ÖSSZESEN | J175: =COUNTIFS($J176:$BB181,">9,99",$J176:$BB181,"<20") -> 0 | K175: =COUNTIFS($J176:$BB181,">19,99") -> 0 | L175: =COUNTIFS($J179:$BA179,">4,99",$J179:$BA179,"<9,99") -> 0 | M175: =COUNTIFS($J179:$BB179,">9,99") -> 0
A176: C3 | B176: =kod!B26 -> Gát, sekély víz | C176: =kod!C26 -> Carp Team Brasov | D176: =SUM(J176:AZ176) -> 0 | E176: =COUNT(J176:AZ176) -> 0 | F176: 0 | G176: =MAX(J176:BA176) -> 0 | I176: tükörponty
A177: C3 | B177: =kod!B26 -> Gát, sekély víz | C177: =kod!C26 -> Carp Team Brasov | D177: 11.175 | E177: 2 | F177: 5.5875 | G177: =MAX(J177:BA177) -> 5.85 | I177: tőponty | J177: 5.325 | K177: 5.85
A178: C3 | B178: =kod!B26 -> Gát, sekély víz | C178: =kod!C26 -> Carp Team Brasov | D178: 0 | E178: 0 | F178: 0 | G178: =MAX(J178:BA178) -> 0 | I178: nyurgaponty
A179: C3 | B179: =kod!B26 -> Gát, sekély víz | C179: =kod!C26 -> Carp Team Brasov | D179: 4.375 | E179: 1 | F179: 4.375 | H179: =MAX(J179:AZ179) -> 4.375 | I179: koi ponty | J179: 4.375
A180: C3 | B180: =kod!B26 -> Gát, sekély víz | C180: =kod!C26 -> Carp Team Brasov | D180: 0 | E180: 0 | F180: 0 | G180: =MAX(J180:BA180) -> 0 | I180: amur
A181: C3 | B181: =kod!B26 -> Gát, sekély víz | C181: =kod!C26 -> Carp Team Brasov | D181: 0 | E181: 0 | F181: 0 | G181: =MAX(J181:BA181) -> 0 | I181: fekete amur
A182: C4 | B182: =kod!B27 -> Gát, sekély víz | C182: =kod!C27 -> As La Carp Team | D182: =SUM(D183:D188) -> 7.125 | E182: =SUM(E183:E188) -> 1 | F182: 7.125 | G182: =MAX(G183:G188) -> 7.125 | H182: =H186 -> 7.125 | I182: ÖSSZESEN | J182: =COUNTIFS($J183:$BB188,">9,99",$J183:$BB188,"<20") -> 0 | K182: =COUNTIFS($J183:$BB188,">19,99") -> 0 | L182: =COUNTIFS($J186:$BA186,">4,99",$J186:$BA186,"<9,99") -> 1 | M182: =COUNTIFS($J186:$BB186,">9,99") -> 0
A183: C4 | B183: =kod!B27 -> Gát, sekély víz | C183: =kod!C27 -> As La Carp Team | D183: =SUM(J183:AZ183) -> 0 | E183: =COUNT(J183:AZ183) -> 0 | F183: 0 | G183: =MAX(J183:BA183) -> 0 | I183: tükörponty
A184: C4 | B184: =kod!B27 -> Gát, sekély víz | C184: =kod!C27 -> As La Carp Team | D184: 0 | E184: 0 | F184: 0 | G184: 0 | I184: tőponty
A185: C4 | B185: =kod!B27 -> Gát, sekély víz | C185: =kod!C27 -> As La Carp Team | D185: 0 | E185: 0 | F185: 0 | G185: 0 | I185: nyurgaponty
A186: C4 | B186: =kod!B27 -> Gát, sekély víz | C186: =kod!C27 -> As La Carp Team | D186: 7.125 | E186: 1 | F186: 7.125 | G186: 7.125 | H186: =MAX(J186:AZ186) -> 7.125 | I186: koi ponty | J186: 7.125
A187: C4 | B187: =kod!B27 -> Gát, sekély víz | C187: =kod!C27 -> As La Carp Team | D187: 0 | E187: 0 | F187: 0 | G187: 0 | I187: amur
A188: C4 | B188: =kod!B27 -> Gát, sekély víz | C188: =kod!C27 -> As La Carp Team | D188: 0 | E188: 0 | F188: 0 | G188: 0 | I188: fekete amur
A189: C5 | B189: =kod!B28 -> Gát, sekély víz | C189: =kod!C28 -> Bojlis Főnök - Bait Bait Carp Team | D189: =SUM(D190:D195) -> 2.425 | E189: =SUM(E190:E195) -> 2 | F189: 1.2125 | G189: =MAX(G190:G195) -> 1.3 | H189: =H193 -> 0 | I189: ÖSSZESEN | J189: =COUNTIFS($J190:$BB195,">9,99",$J190:$BB195,"<20") -> 0 | K189: =COUNTIFS($J190:$BB195,">19,99") -> 0 | L189: =COUNTIFS($J193:$BA193,">4,99",$J193:$BA193,"<9,99") -> 0 | M189: =COUNTIFS($J193:$BB193,">9,99") -> 0
A190: C5 | B190: =kod!B28 -> Gát, sekély víz | C190: =kod!C28 -> Bojlis Főnök - Bait Bait Carp Team | D190: =SUM(J190:AZ190) -> 0 | E190: =COUNT(J190:AZ190) -> 0 | F190: 0 | G190: =MAX(J190:BA190) -> 0 | I190: tükörponty
A191: C5 | B191: =kod!B28 -> Gát, sekély víz | C191: =kod!C28 -> Bojlis Főnök - Bait Bait Carp Team | D191: 2.425 | E191: 2 | F191: 1.2125 | G191: =MAX(J191:BA191) -> 1.3 | I191: tőponty | J191: 1.3 | K191: 1.125
A192: C5 | B192: =kod!B28 -> Gát, sekély víz | C192: =kod!C28 -> Bojlis Főnök - Bait Bait Carp Team | D192: 0 | E192: 0 | F192: 0 | G192: =MAX(J192:BA192) -> 0 | I192: nyurgaponty
A193: C5 | B193: =kod!B28 -> Gát, sekély víz | C193: =kod!C28 -> Bojlis Főnök - Bait Bait Carp Team | D193: 0 | E193: 0 | F193: 0 | H193: =MAX(J193:AZ193) -> 0 | I193: koi ponty
A194: C5 | B194: =kod!B28 -> Gát, sekély víz | C194: =kod!C28 -> Bojlis Főnök - Bait Bait Carp Team | D194: 0 | E194: 0 | F194: 0 | G194: =MAX(J194:BA194) -> 0 | I194: amur
A195: C5 | B195: =kod!B28 -> Gát, sekély víz | C195: =kod!C28 -> Bojlis Főnök - Bait Bait Carp Team | D195: 0 | E195: 0 | F195: 0 | G195: =MAX(J195:BA195) -> 0 | I195: fekete amur
A196: C6 | B196: =kod!B29 -> Felező-spicc, jobb | C196: =kod!C29 -> Secret Of The Carp | D196: =SUM(D197:D202) -> 6.9 | E196: =SUM(E197:E202) -> 1 | F196: 6.9 | G196: =MAX(G197:G202) -> 6.9 | H196: =H200 -> 0 | I196: ÖSSZESEN | J196: =COUNTIFS($J197:$BB202,">9,99",$J197:$BB202,"<20") -> 0 | K196: =COUNTIFS($J197:$BB202,">19,99") -> 0 | L196: =COUNTIFS($J200:$BA200,">4,99",$J200:$BA200,"<9,99") -> 0 | M196: =COUNTIFS($J200:$BB200,">9,99") -> 0
A197: C6 | B197: =kod!B29 -> Felező-spicc, jobb | C197: =kod!C29 -> Secret Of The Carp | D197: =SUM(J197:AZ197) -> 0 | E197: =COUNT(J197:AZ197) -> 0 | F197: 0 | G197: =MAX(J197:BA197) -> 0 | I197: tükörponty
A198: C6 | B198: =kod!B29 -> Felező-spicc, jobb | C198: =kod!C29 -> Secret Of The Carp | D198: 6.9 | E198: 1 | F198: 6.9 | G198: 6.9 | I198: tőponty | J198: 6.9
A199: C6 | B199: =kod!B29 -> Felező-spicc, jobb | C199: =kod!C29 -> Secret Of The Carp | D199: 0 | E199: 0 | F199: 0 | G199: 0 | I199: nyurgaponty
A200: C6 | B200: =kod!B29 -> Felező-spicc, jobb | C200: =kod!C29 -> Secret Of The Carp | D200: 0 | E200: 0 | F200: 0 | G200: 0 | H200: =MAX(J200:AZ200) -> 0 | I200: koi ponty
... 38 more rows

Sheet szakasz6
A1: =IF(kod!E2>0,kod!E2,"") -> XXI. PROFESSZIONÁLIS BOJLIS EURÓPA KUPA (EPBC)
A2: =IF(kod!E3>0,kod!E3,"") -> XXXVI. MACONKA NEMZETKÖZI BOJLIS KUPA
A3: =IF(kod!E4>0,kod!E4,"") -> Maconka, 2025.06.15. - 2025.06.20.
A4: =IF(kod!E5>0,kod!E5,"") -> 
A5: =kod!E12 -> 6. szakasz: 2025.06.18. 06:00 - 2025.06.18. 18:00
A6: Rajthely | B6: Elhelyezés | C6: Csapatnév | D6: Kg | E6: Db | F6: Átlag | G6: BC | H6: BkC | I6: Faj | J6: 10-20 kg | K6: 20+ kg | L6: koi 5-10 kg | M6: koi 10+ kg
A7: A1 | B7: =kod!B2 -> Gát, mélyvíz | C7: =kod!C2 -> SBS - Halcatraz - TiZo Team | D7: =SUM(D8:D13) -> 97.325 | E7: =SUM(E8:E13) -> 8 | F7: =IF(E7=0,0,D7/E7) -> 12.165625 | G7: =MAX(G8:G13) -> 17.55 | H7: =H11 -> 0 | I7: ÖSSZESEN | J7: =COUNTIFS($J8:$BB13,">9,99",$J8:$BB13,"<20") -> 5 | K7: =COUNTIFS($J8:$BB13,">19,99") -> 0 | L7: =COUNTIFS($J11:$BA11,">4,99",$J11:$BA11,"<9,99") -> 0 | M7: =COUNTIFS($J11:$BB11,">9,99") -> 0
A8: A1 | B8: =kod!B2 -> Gát, mélyvíz | C8: =kod!C2 -> SBS - Halcatraz - TiZo Team | D8: =SUM(J8:AZ8) -> 35.425 | E8: =COUNT(J8:AZ8) -> 3 | F8: =IF(E8=0,0,D8/E8) -> 11.80833333 | G8: =MAX(J8:BA8) -> 15.55 | I8: tükörponty | J8: 11.275 | K8: 15.55 | L8: 8.6
A9: A1 | B9: =kod!B2 -> Gát, mélyvíz | C9: =kod!C2 -> SBS - Halcatraz - TiZo Team | D9: 0 | E9: 0 | F9: 0 | G9: =MAX(J9:BA9) -> 0 | I9: tőponty
A10: A1 | B10: =kod!B2 -> Gát, mélyvíz | C10: =kod!C2 -> SBS - Halcatraz - TiZo Team | D10: 61.9 | E10: 5 | F10: 12.38 | G10: 17.55 | I10: nyurgaponty | J10: 9.725 | K10: 17.55 | L10: 9.325 | M10: 13.55 | N10: 11.75
A11: A1 | B11: =kod!B2 -> Gát, mélyvíz | C11: =kod!C2 -> SBS - Halcatraz - TiZo Team | D11: 0 | E11: 0 | F11: 0 | H11: =MAX(J11:AZ11) -> 0 | I11: koi ponty
A12: A1 | B12: =kod!B2 -> Gát, mélyvíz | C12: =kod!C2 -> SBS - Halcatraz - TiZo Team | D12: 0 | E12: 0 | F12: 0 | G12: 0 | I12: amur
A13: A1 | B13: =kod!B2 -> Gát, mélyvíz | C13: =kod!C2 -> SBS - Halcatraz - TiZo Team | D13: 0 | E13: 0 | F13: 0 | G13: 0 | I13: fekete amur
A14: A2 | B14: =kod!B3 -> Gát, mélyvíz | C14: =kod!C3 -> Altstadt Carp Team | D14: =SUM(D15:D20) -> 79.975 | E14: =SUM(E15:E20) -> 7 | F14: 11.425 | G14: =MAX(G15:G20) -> 20 | H14: =H18 -> 0 | I14: ÖSSZESEN | J14: =COUNTIFS($J15:$BB20,">9,99",$J15:$BB20,"<20") -> 2 | K14: =COUNTIFS($J15:$BB20,">19,99") -> 1 | L14: =COUNTIFS($J18:$BA18,">4,99",$J18:$BA18,"<9,99") -> 0 | M14: =COUNTIFS($J18:$BB18,">9,99") -> 0
A15: A2 | B15: =kod!B3 -> Gát, mélyvíz | C15: =kod!C3 -> Altstadt Carp Team | D15: =SUM(J15:AZ15) -> 20 | E15: =COUNT(J15:AZ15) -> 1 | F15: 20 | G15: =MAX(J15:BA15) -> 20 | I15: tükörponty | J15: 20
A16: A2 | B16: =kod!B3 -> Gát, mélyvíz | C16: =kod!C3 -> Altstadt Carp Team | D16: 7.775 | E16: 1 | F16: 7.775 | G16: =MAX(J16:BA16) -> 7.775 | I16: tőponty | J16: 7.775
A17: A2 | B17: =kod!B3 -> Gát, mélyvíz | C17: =kod!C3 -> Altstadt Carp Team | D17: 44.025 | E17: 4 | F17: 11.00625 | G17: =MAX(J17:BA17) -> 14.775 | I17: nyurgaponty | J17: 8.7 | K17: 14.775 | L17: 9.225 | M17: 11.325
A18: A2 | B18: =kod!B3 -> Gát, mélyvíz | C18: =kod!C3 -> Altstadt Carp Team | D18: 0 | E18: 0 | F18: 0 | H18: =MAX(J18:AZ18) -> 0 | I18: koi ponty
A19: A2 | B19: =kod!B3 -> Gát, mélyvíz | C19: =kod!C3 -> Altstadt Carp Team | D19: 0 | E19: 0 | F19: 0 | G19: =MAX(J19:BA19) -> 0 | I19: amur
A20: A2 | B20: =kod!B3 -> Gát, mélyvíz | C20: =kod!C3 -> Altstadt Carp Team | D20: 8.175 | E20: 1 | F20: 8.175 | G20: =MAX(J20:BA20) -> 8.175 | I20: fekete amur | J20: 8.175
A21: A3 | B21: =kod!B4 -> Gát, mélyvíz | C21: =kod!C4 -> Ferma De Crap Diosig | D21: =SUM(D22:D27) -> 5.7 | E21: =SUM(E22:E27) -> 1 | F21: 5.7 | G21: =MAX(G22:G27) -> 5.7 | H21: =H25 -> 0 | I21: ÖSSZESEN | J21: =COUNTIFS($J22:$BB27,">9,99",$J22:$BB27,"<20") -> 0 | K21: =COUNTIFS($J22:$BB27,">19,99") -> 0 | L21: =COUNTIFS($J25:$BA25,">4,99",$J25:$BA25,"<9,99") -> 0 | M21: =COUNTIFS($J25:$BB25,">9,99") -> 0
A22: A3 | B22: =kod!B4 -> Gát, mélyvíz | C22: =kod!C4 -> Ferma De Crap Diosig | D22: =SUM(J22:AZ22) -> 0 | E22: =COUNT(J22:AZ22) -> 0 | F22: 0 | G22: =MAX(J22:BA22) -> 0 | I22: tükörponty
A23: A3 | B23: =kod!B4 -> Gát, mélyvíz | C23: =kod!C4 -> Ferma De Crap Diosig | D23: 5.7 | E23: 1 | F23: 5.7 | G23: =MAX(J23:BA23) -> 5.7 | I23: tőponty | J23: 5.7
A24: A3 | B24: =kod!B4 -> Gát, mélyvíz | C24: =kod!C4 -> Ferma De Crap Diosig | D24: 0 | E24: 0 | F24: 0 | G24: =MAX(J24:BA24) -> 0 | I24: nyurgaponty
A25: A3 | B25: =kod!B4 -> Gát, mélyvíz | C25: =kod!C4 -> Ferma De Crap Diosig | D25: 0 | E25: 0 | F25: 0 | H25: =MAX(J25:AZ25) -> 0 | I25: koi ponty
A26: A3 | B26: =kod!B4 -> Gát, mélyvíz | C26: =kod!C4 -> Ferma De Crap Diosig | D26: 0 | E26: 0 | F26: 0 | G26: =MAX(J26:BA26) -> 0 | I26: amur
A27: A3 | B27: =kod!B4 -> Gát, mélyvíz | C27: =kod!C4 -> Ferma De Crap Diosig | D27: 0 | E27: 0 | F27: 0 | G27: =MAX(J27:BA27) -> 0 | I27: fekete amur
A28: A4 | B28: =kod!B5 -> Gát, mélyvíz | C28: =kod!C5 -> Bull Tackle | D28: =SUM(D29:D34) -> 52.1 | E28: =SUM(E29:E34) -> 5 | F28: 10.42 | G28: =MAX(G29:G34) -> 17.825 | H28: =H32 -> 0 | I28: ÖSSZESEN | J28: =COUNTIFS($J29:$BB34,">9,99",$J29:$BB34,"<20") -> 3 | K28: =COUNTIFS($J29:$BB34,">19,99") -> 0 | L28: =COUNTIFS($J32:$BA32,">4,99",$J32:$BA32,"<9,99") -> 0 | M28: =COUNTIFS($J32:$BB32,">9,99") -> 0
A29: A4 | B29: =kod!B5 -> Gát, mélyvíz | C29: =kod!C5 -> Bull Tackle | D29: =SUM(J29:AZ29) -> 0 | E29: =COUNT(J29:AZ29) -> 0 | F29: 0 | G29: =MAX(J29:BA29) -> 0 | I29: tükörponty
A30: A4 | B30: =kod!B5 -> Gát, mélyvíz | C30: =kod!C5 -> Bull Tackle | D30: 17.825 | E30: 1 | F30: 17.825 | G30: =MAX(J30:BA30) -> 17.825 | I30: tőponty | J30: 17.825
A31: A4 | B31: =kod!B5 -> Gát, mélyvíz | C31: =kod!C5 -> Bull Tackle | D31: 12.525 | E31: 1 | F31: 12.525 | G31: =MAX(J31:BA31) -> 12.525 | I31: nyurgaponty | J31: 12.525
A32: A4 | B32: =kod!B5 -> Gát, mélyvíz | C32: =kod!C5 -> Bull Tackle | D32: 0 | E32: 0 | F32: 0 | H32: =MAX(J32:AZ32) -> 0 | I32: koi ponty
A33: A4 | B33: =kod!B5 -> Gát, mélyvíz | C33: =kod!C5 -> Bull Tackle | D33: 14.45 | E33: 1 | F33: 14.45 | G33: =MAX(J33:BA33) -> 14.45 | I33: amur | J33: 14.45
A34: A4 | B34: =kod!B5 -> Gát, mélyvíz | C34: =kod!C5 -> Bull Tackle | D34: 7.3 | E34: 2 | F34: 3.65 | G34: =MAX(J34:BA34) -> 4.225 | I34: fekete amur | J34: 3.075 | K34: 4.225
A35: A5 | B35: =kod!B6 -> Gát, mélyvíz | C35: =kod!C6 -> AHFSZ Fishing Team | D35: =SUM(D36:D41) -> 10.85 | E35: =SUM(E36:E41) -> 1 | F35: 10.85 | G35: =MAX(G36:G41) -> 10.85 | H35: =H39 -> 0 | I35: ÖSSZESEN | J35: =COUNTIFS($J36:$BB41,">9,99",$J36:$BB41,"<20") -> 1 | K35: =COUNTIFS($J36:$BB41,">19,99") -> 0 | L35: =COUNTIFS($J39:$BA39,">4,99",$J39:$BA39,"<9,99") -> 0 | M35: =COUNTIFS($J39:$BB39,">9,99") -> 0
A36: A5 | B36: =kod!B6 -> Gát, mélyvíz | C36: =kod!C6 -> AHFSZ Fishing Team | D36: =SUM(J36:AZ36) -> 0 | E36: =COUNT(J36:AZ36) -> 0 | F36: 0 | G36: =MAX(J36:BA36) -> 0 | I36: tükörponty
A37: A5 | B37: =kod!B6 -> Gát, mélyvíz | C37: =kod!C6 -> AHFSZ Fishing Team | D37: 0 | E37: 0 | F37: 0 | G37: =MAX(J37:BA37) -> 0 | I37: tőponty
A38: A5 | B38: =kod!B6 -> Gát, mélyvíz | C38: =kod!C6 -> AHFSZ Fishing Team | D38: 0 | E38: 0 | F38: 0 | G38: =MAX(J38:BA38) -> 0 | I38: nyurgaponty
A39: A5 | B39: =kod!B6 -> Gát, mélyvíz | C39: =kod!C6 -> AHFSZ Fishing Team | D39: 0 | E39: 0 | F39: 0 | H39: =MAX(J39:AZ39) -> 0 | I39: koi ponty
A40: A5 | B40: =kod!B6 -> Gát, mélyvíz | C40: =kod!C6 -> AHFSZ Fishing Team | D40: 10.85 | E40: 1 | F40: 10.85 | G40: =MAX(J40:BA40) -> 10.85 | I40: amur | J40: 10.85
A41: A5 | B41: =kod!B6 -> Gát, mélyvíz | C41: =kod!C6 -> AHFSZ Fishing Team | D41: 0 | E41: 0 | F41: 0 | G41: =MAX(J41:BA41) -> 0 | I41: fekete amur
A42: A6 | B42: =kod!B7 -> Nyári kikötő, belső | C42: =kod!C7 -> Black Carp Team | D42: =SUM(D43:D48) -> 73.4 | E42: =SUM(E43:E48) -> 14 | F42: 5.242857143 | G42: =MAX(G43:G48) -> 11.775 | H42: =H46 -> 0 | I42: ÖSSZESEN | J42: =COUNTIFS($J43:$BB48,">9,99",$J43:$BB48,"<20") -> 1 | K42: =COUNTIFS($J43:$BB48,">19,99") -> 0 | L42: =COUNTIFS($J46:$BA46,">4,99",$J46:$BA46,"<9,99") -> 0 | M42: =COUNTIFS($J46:$BB46,">9,99") -> 0
A43: A6 | B43: =kod!B7 -> Nyári kikötő, belső | C43: =kod!C7 -> Black Carp Team | D43: =SUM(J43:AZ43) -> 0 | E43: =COUNT(J43:AZ43) -> 0 | F43: 0 | G43: =MAX(J43:BA43) -> 0 | I43: tükörponty
A44: A6 | B44: =kod!B7 -> Nyári kikötő, belső | C44: =kod!C7 -> Black Carp Team | D44: 5.15 | E44: 2 | F44: 2.575 | G44: =MAX(J44:BA44) -> 3 | I44: tőponty | J44: 2.15 | K44: 3
A45: A6 | B45: =kod!B7 -> Nyári kikötő, belső | C45: =kod!C7 -> Black Carp Team | D45: 8.75 | E45: 1 | F45: 8.75 | G45: =MAX(J45:BA45) -> 8.75 | I45: nyurgaponty | J45: 8.75
A46: A6 | B46: =kod!B7 -> Nyári kikötő, belső | C46: =kod!C7 -> Black Carp Team | D46: 0 | E46: 0 | F46: 0 | H46: =MAX(J46:AZ46) -> 0 | I46: koi ponty
A47: A6 | B47: =kod!B7 -> Nyári kikötő, belső | C47: =kod!C7 -> Black Carp Team | D47: 6.925 | E47: 1 | F47: 6.925 | G47: =MAX(J47:BA47) -> 6.925 | I47: amur | J47: 6.925
A48: A6 | B48: =kod!B7 -> Nyári kikötő, belső | C48: =kod!C7 -> Black Carp Team | D48: 52.575 | E48: 10 | F48: 5.2575 | G48: =MAX(J48:BA48) -> 11.775 | I48: fekete amur | J48: 3.925 | K48: 2.775 | L48: 11.775 | M48: 3.7 | N48: 3.175 | O48: 9.6 | P48: 3.45 | Q48: 4.625 | R48: 5.6 | S48: 3.95
A49: A7 | B49: =kod!B8 -> Nyári kikötő, közép | C49: =kod!C8 -> USA & Mivado Carp Team | D49: =SUM(D50:D55) -> 28.9 | E49: =SUM(E50:E55) -> 4 | F49: 7.225 | G49: =MAX(G50:G55) -> 11.25 | H49: =H53 -> 0 | I49: ÖSSZESEN | J49: =COUNTIFS($J50:$BB55,">9,99",$J50:$BB55,"<20") -> 2 | K49: =COUNTIFS($J50:$BB55,">19,99") -> 0 | L49: =COUNTIFS($J53:$BA53,">4,99",$J53:$BA53,"<9,99") -> 0 | M49: =COUNTIFS($J53:$BB53,">9,99") -> 0
A50: A7 | B50: =kod!B8 -> Nyári kikötő, közép | C50: =kod!C8 -> USA & Mivado Carp Team | D50: =SUM(J50:AZ50) -> 0 | E50: =COUNT(J50:AZ50) -> 0 | F50: 0 | G50: =MAX(J50:BA50) -> 0 | I50: tükörponty
A51: A7 | B51: =kod!B8 -> Nyári kikötő, közép | C51: =kod!C8 -> USA & Mivado Carp Team | D51: 0 | E51: 0 | F51: 0 | G51: =MAX(J51:BA51) -> 0 | I51: tőponty
A52: A7 | B52: =kod!B8 -> Nyári kikötő, közép | C52: =kod!C8 -> USA & Mivado Carp Team | D52: 11.125 | E52: 1 | F52: 11.125 | G52: =MAX(J52:BA52) -> 11.125 | I52: nyurgaponty | J52: 11.125
A53: A7 | B53: =kod!B8 -> Nyári kikötő, közép | C53: =kod!C8 -> USA & Mivado Carp Team | D53: 0 | E53: 0 | F53: 0 | H53: =MAX(J53:AZ53) -> 0 | I53: koi ponty
A54: A7 | B54: =kod!B8 -> Nyári kikötő, közép | C54: =kod!C8 -> USA & Mivado Carp Team | D54: 0 | E54: 0 | F54: 0 | G54: =MAX(J54:BA54) -> 0 | I54: amur
A55: A7 | B55: =kod!B8 -> Nyári kikötő, közép | C55: =kod!C8 -> USA & Mivado Carp Team | D55: 17.775 | E55: 3 | F55: 5.925 | G55: =MAX(J55:BA55) -> 11.25 | I55: fekete amur | J55: 3.025 | K55: 11.25 | L55: 3.5
A56: A8 | B56: =kod!B9 -> Nyári kikötő, külső | C56: =kod!C9 -> Ózdi Sporthorgász Egyesület | D56: =SUM(D57:D62) -> 26.95 | E56: =SUM(E57:E62) -> 4 | F56: 6.7375 | G56: =MAX(G57:G62) -> 12.5 | H56: =H60 -> 0 | I56: ÖSSZESEN | J56: =COUNTIFS($J57:$BB62,">9,99",$J57:$BB62,"<20") -> 1 | K56: =COUNTIFS($J57:$BB62,">19,99") -> 0 | L56: =COUNTIFS($J60:$BA60,">4,99",$J60:$BA60,"<9,99") -> 0 | M56: =COUNTIFS($J60:$BB60,">9,99") -> 0
A57: A8 | B57: =kod!B9 -> Nyári kikötő, külső | C57: =kod!C9 -> Ózdi Sporthorgász Egyesület | D57: =SUM(J57:AZ57) -> 0 | E57: =COUNT(J57:AZ57) -> 0 | F57: 0 | G57: =MAX(J57:BA57) -> 0 | I57: tükörponty
A58: A8 | B58: =kod!B9 -> Nyári kikötő, külső | C58: =kod!C9 -> Ózdi Sporthorgász Egyesület | D58: 0 | E58: 0 | F58: 0 | G58: =MAX(J58:BA58) -> 0 | I58: tőponty
A59: A8 | B59: =kod!B9 -> Nyári kikötő, külső | C59: =kod!C9 -> Ózdi Sporthorgász Egyesület | D59: 20.65 | E59: 2 | F59: 10.325 | G59: =MAX(J59:BA59) -> 12.5 | I59: nyurgaponty | J59: 8.15 | K59: 12.5
A60: A8 | B60: =kod!B9 -> Nyári kikötő, külső | C60: =kod!C9 -> Ózdi Sporthorgász Egyesület | D60: 0 | E60: 0 | F60: 0 | H60: =MAX(J60:AZ60) -> 0 | I60: koi ponty
A61: A8 | B61: =kod!B9 -> Nyári kikötő, külső | C61: =kod!C9 -> Ózdi Sporthorgász Egyesület | D61: 0 | E61: 0 | F61: 0 | G61: =MAX(J61:BA61) -> 0 | I61: amur
A62: A8 | B62: =kod!B9 -> Nyári kikötő, külső | C62: =kod!C9 -> Ózdi Sporthorgász Egyesület | D62: 6.3 | E62: 2 | F62: 3.15 | G62: =MAX(J62:BA62) -> 3.6 | I62: fekete amur | J62: 2.7 | K62: 3.6
A63: A9 | B63: =kod!B10 -> I. sziget, bal külső | C63: =kod!C10 -> Kártékony Carp Team | D63: =SUM(D64:D69) -> 214.575 | E63: =SUM(E64:E69) -> 26 | F63: 8.252884615 | G63: =MAX(G64:G69) -> 13.875 | H63: =H67 -> 11.525 | I63: ÖSSZESEN | J63: =COUNTIFS($J64:$BB69,">9,99",$J64:$BB69,"<20") -> 8 | K63: =COUNTIFS($J64:$BB69,">19,99") -> 0 | L63: =COUNTIFS($J67:$BA67,">4,99",$J67:$BA67,"<9,99") -> 0 | M63: =COUNTIFS($J67:$BB67,">9,99") -> 1
A64: A9 | B64: =kod!B10 -> I. sziget, bal külső | C64: =kod!C10 -> Kártékony Carp Team | D64: =SUM(J64:AZ64) -> 36.425 | E64: =COUNT(J64:AZ64) -> 4 | F64: =IF(E64=0,0,D64/E64) -> 9.10625 | G64: =MAX(J64:BA64) -> 13.1 | I64: tükörponty | J64: 7.225 | K64: 13.1 | L64: 9.15 | M64: 6.95
A65: A9 | B65: =kod!B10 -> I. sziget, bal külső | C65: =kod!C10 -> Kártékony Carp Team | D65: 47.525 | E65: 7 | F65: 6.789285714 | G65: =MAX(J65:BA65) -> 9.275 | I65: tőponty | J65: 9.275 | K65: 4.95 | L65: 7.775 | M65: 7.575 | N65: 6.775 | O65: 6.625 | P65: 4.55
A66: A9 | B66: =kod!B10 -> I. sziget, bal külső | C66: =kod!C10 -> Kártékony Carp Team | D66: 114.825 | E66: 13 | F66: 8.832692308 | G66: =MAX(J66:BA66) -> 13.875 | I66: nyurgaponty | J66: 13.875 | K66: 10.55 | L66: 7.75 | M66: 11.225 | N66: 6.05 | O66: 5 | P66: 10.825 | Q66: 8.5 | R66: 10.175 | S66: 10.425 | T66: 6.675 | U66: 6 | V66: 7.775
A67: A9 | B67: =kod!B10 -> I. sziget, bal külső | C67: =kod!C10 -> Kártékony Carp Team | D67: 15.8 | E67: 2 | F67: 7.9 | H67: =MAX(J67:AZ67) -> 11.525 | I67: koi ponty | J67: 11.525 | K67: 4.275
A68: A9 | B68: =kod!B10 -> I. sziget, bal külső | C68: =kod!C10 -> Kártékony Carp Team | D68: 0 | E68: 0 | F68: 0 | G68: =MAX(J68:BA68) -> 0 | I68: amur
A69: A9 | B69: =kod!B10 -> I. sziget, bal külső | C69: =kod!C10 -> Kártékony Carp Team | D69: 0 | E69: 0 | F69: 0 | G69: =MAX(J69:BA69) -> 0 | I69: fekete amur
A70: A10 | B70: =kod!B11 -> I. sziget, bal | C70: =kod!C11 -> Team 5 Austria | D70: =SUM(D71:D76) -> 8.5 | E70: =SUM(E71:E76) -> 1 | F70: 8.5 | G70: =MAX(G71:G76) -> 8.5 | H70: =H74 -> 0 | I70: ÖSSZESEN | J70: =COUNTIFS($J71:$BB76,">9,99",$J71:$BB76,"<20") -> 0 | K70: =COUNTIFS($J71:$BB76,">19,99") -> 0 | L70: =COUNTIFS($J74:$BA74,">4,99",$J74:$BA74,"<9,99") -> 0 | M70: =COUNTIFS($J74:$BB74,">9,99") -> 0
A71: A10 | B71: =kod!B11 -> I. sziget, bal | C71: =kod!C11 -> Team 5 Austria | D71: =SUM(J71:AZ71) -> 8.5 | E71: =COUNT(J71:AZ71) -> 1 | F71: 8.5 | G71: =MAX(J71:BA71) -> 8.5 | I71: tükörponty | J71: 8.5
A72: A10 | B72: =kod!B11 -> I. sziget, bal | C72: =kod!C11 -> Team 5 Austria | D72: 0 | E72: 0 | F72: 0 | G72: =MAX(J72:BA72) -> 0 | I72: tőponty
A73: A10 | B73: =kod!B11 -> I. sziget, bal | C73: =kod!C11 -> Team 5 Austria | D73: 0 | E73: 0 | F73: 0 | G73: =MAX(J73:BA73) -> 0 | I73: nyurgaponty
A74: A10 | B74: =kod!B11 -> I. sziget, bal | C74: =kod!C11 -> Team 5 Austria | D74: 0 | E74: 0 | F74: 0 | H74: =MAX(J74:AZ74) -> 0 | I74: koi ponty
A75: A10 | B75: =kod!B11 -> I. sziget, bal | C75: =kod!C11 -> Team 5 Austria | D75: 0 | E75: 0 | F75: 0 | G75: =MAX(J75:BA75) -> 0 | I75: amur
A76: A10 | B76: =kod!B11 -> I. sziget, bal | C76: =kod!C11 -> Team 5 Austria | D76: 0 | E76: 0 | F76: 0 | G76: =MAX(J76:BA76) -> 0 | I76: fekete amur
A77: A11 | B77: =kod!B12 -> I. sziget, bal közép | C77: =kod!C12 -> Invader's Team Poland | D77: =SUM(D78:D83) -> 55.545 | E77: =SUM(E78:E83) -> 7 | F77: 7.935 | G77: =MAX(G78:G83) -> 11.675 | H77: =H81 -> 10.8 | I77: ÖSSZESEN | J77: =COUNTIFS($J78:$BB83,">9,99",$J78:$BB83,"<20") -> 3 | K77: =COUNTIFS($J78:$BB83,">19,99") -> 0 | L77: =COUNTIFS($J81:$BA81,">4,99",$J81:$BA81,"<9,99") -> 0 | M77: =COUNTIFS($J81:$BB81,">9,99") -> 1
A78: A11 | B78: =kod!B12 -> I. sziget, bal közép | C78: =kod!C12 -> Invader's Team Poland | D78: =SUM(J78:AZ78) -> 10.45 | E78: =COUNT(J78:AZ78) -> 1 | F78: 10.45 | G78: =MAX(J78:BA78) -> 10.45 | I78: tükörponty | J78: 10.45
A79: A11 | B79: =kod!B12 -> I. sziget, bal közép | C79: =kod!C12 -> Invader's Team Poland | D79: 1.1 | E79: 1 | F79: 1.1 | G79: =MAX(J79:BA79) -> 1.1 | I79: tőponty | J79: 1.1
A80: A11 | B80: =kod!B12 -> I. sziget, bal közép | C80: =kod!C12 -> Invader's Team Poland | D80: 9.975 | E80: 1 | F80: 9.975 | G80: =MAX(J80:BA80) -> 9.975 | I80: nyurgaponty | J80: 9.975
A81: A11 | B81: =kod!B12 -> I. sziget, bal közép | C81: =kod!C12 -> Invader's Team Poland | D81: 10.8 | E81: 1 | F81: 10.8 | H81: =MAX(J81:AZ81) -> 10.8 | I81: koi ponty | J81: 10.8
A82: A11 | B82: =kod!B12 -> I. sziget, bal közép | C82: =kod!C12 -> Invader's Team Poland | D82: 23.22 | E82: 3 | F82: 7.74 | G82: =MAX(J82:BA82) -> 11.675 | I82: amur | J82: 4.375 | K82: 11.675 | L82: 7.17
A83: A11 | B83: =kod!B12 -> I. sziget, bal közép | C83: =kod!C12 -> Invader's Team Poland | D83: 0 | E83: 0 | F83: 0 | G83: =MAX(J83:BA83) -> 0 | I83: fekete amur
A84: B1 | B84: =kod!B13 -> Gát, közepes víz | C84: =kod!C13 -> Tata Nitu Carp Team | D84: =SUM(D85:D90) -> 19.87 | E84: =SUM(E85:E90) -> 4 | F84: =IF(E84=0,0,D84/E84) -> 4.9675 | G84: =MAX(G85:G90) -> 6.4 | H84: =H88 -> 0 | I84: ÖSSZESEN | J84: =COUNTIFS($J85:$BB90,">9,99",$J85:$BB90,"<20") -> 0 | K84: =COUNTIFS($J85:$BB90,">19,99") -> 0 | L84: =COUNTIFS($J88:$BA88,">4,99",$J88:$BA88,"<9,99") -> 0 | M84: =COUNTIFS($J88:$BB88,">9,99") -> 0
A85: B1 | B85: =kod!B13 -> Gát, közepes víz | C85: =kod!C13 -> Tata Nitu Carp Team | D85: =SUM(J85:AZ85) -> 0 | E85: =COUNT(J85:AZ85) -> 0 | F85: =IF(E85=0,0,D85/E85) -> 0 | G85: =MAX(J85:BA85) -> 0 | I85: tükörponty
A86: B1 | B86: =kod!B13 -> Gát, közepes víz | C86: =kod!C13 -> Tata Nitu Carp Team | D86: 16.045 | E86: 3 | F86: 5.348333333 | G86: =MAX(J86:BA86) -> 6.4 | I86: tőponty | J86: 6.4 | K86: 4.07 | L86: 5.575
A87: B1 | B87: =kod!B13 -> Gát, közepes víz | C87: =kod!C13 -> Tata Nitu Carp Team | D87: 0 | E87: 0 | F87: 0 | G87: =MAX(J87:BA87) -> 0 | I87: nyurgaponty
A88: B1 | B88: =kod!B13 -> Gát, közepes víz | C88: =kod!C13 -> Tata Nitu Carp Team | D88: 0 | E88: 0 | F88: 0 | H88: =MAX(J88:AZ88) -> 0 | I88: koi ponty
A89: B1 | B89: =kod!B13 -> Gát, közepes víz | C89: =kod!C13 -> Tata Nitu Carp Team | D89: 0 | E89: 0 | F89: 0 | G89: =MAX(J89:BA89) -> 0 | I89: amur
A90: B1 | B90: =kod!B13 -> Gát, közepes víz | C90: =kod!C13 -> Tata Nitu Carp Team | D90: 3.825 | E90: 1 | F90: 3.825 | G90: =MAX(J90:BA90) -> 3.825 | I90: fekete amur | J90: 3.825
A91: B2 | B91: =kod!B14 -> Gát, közepes víz | C91: =kod!C14 -> Slovakia Carp Team | D91: =SUM(D92:D97) -> 33.15 | E91: =SUM(E92:E97) -> 6 | F91: 5.525 | G91: =MAX(G92:G97) -> 15.55 | H91: =H95 -> 0 | I91: ÖSSZESEN | J91: =COUNTIFS($J92:$BB97,">9,99",$J92:$BB97,"<20") -> 1 | K91: =COUNTIFS($J92:$BB97,">19,99") -> 0 | L91: =COUNTIFS($J95:$BA95,">4,99",$J95:$BA95,"<9,99") -> 0 | M91: =COUNTIFS($J95:$BB95,">9,99") -> 0
A92: B2 | B92: =kod!B14 -> Gát, közepes víz | C92: =kod!C14 -> Slovakia Carp Team | D92: =SUM(J92:AZ92) -> 15.55 | E92: =COUNT(J92:AZ92) -> 1 | F92: 15.55 | G92: =MAX(J92:BA92) -> 15.55 | I92: tükörponty | J92: 15.55
A93: B2 | B93: =kod!B14 -> Gát, közepes víz | C93: =kod!C14 -> Slovakia Carp Team | D93: 0 | E93: 0 | F93: 0 | G93: =MAX(J93:BA93) -> 0 | I93: tőponty
A94: B2 | B94: =kod!B14 -> Gát, közepes víz | C94: =kod!C14 -> Slovakia Carp Team | D94: 4.8 | E94: 1 | F94: 4.8 | G94: =MAX(J94:BA94) -> 4.8 | I94: nyurgaponty | J94: 4.8
A95: B2 | B95: =kod!B14 -> Gát, közepes víz | C95: =kod!C14 -> Slovakia Carp Team | D95: 0 | E95: 0 | F95: 0 | H95: =MAX(J95:AZ95) -> 0 | I95: koi ponty
A96: B2 | B96: =kod!B14 -> Gát, közepes víz | C96: =kod!C14 -> Slovakia Carp Team | D96: 0 | E96: 0 | F96: 0 | G96: =MAX(J96:BA96) -> 0 | I96: amur
A97: B2 | B97: =kod!B14 -> Gát, közepes víz | C97: =kod!C14 -> Slovakia Carp Team | D97: 12.8 | E97: 4 | F97: 3.2 | G97: =MAX(J97:BA97) -> 3.7 | I97: fekete amur | J97: 3.175 | K97: 3.3 | L97: 2.625 | M97: 3.7
A98: B3 | B98: =kod!B15 -> Gát, közepes víz | C98: =kod!C15 -> WLC Hungary | D98: =SUM(D99:D104) -> 138.155 | E98: =SUM(E99:E104) -> 18 | F98: 7.675277778 | G98: =MAX(G99:G104) -> 12.95 | H98: =H102 -> 14.05 | I98: ÖSSZESEN | J98: =COUNTIFS($J99:$BB104,">9,99",$J99:$BB104,"<20") -> 5 | K98: =COUNTIFS($J99:$BB104,">19,99") -> 0 | L98: =COUNTIFS($J102:$BA102,">4,99",$J102:$BA102,"<9,99") -> 0 | M98: =COUNTIFS($J102:$BB102,">9,99") -> 1
A99: B3 | B99: =kod!B15 -> Gát, közepes víz | C99: =kod!C15 -> WLC Hungary | D99: =SUM(J99:AZ99) -> 8.355 | E99: =COUNT(J99:AZ99) -> 1 | F99: 8.355 | G99: =MAX(J99:BA99) -> 8.355 | I99: tükörponty | J99: 8.355
A100: B3 | B100: =kod!B15 -> Gát, közepes víz | C100: =kod!C15 -> WLC Hungary | D100: 16.1 | E100: 2 | F100: 8.05 | G100: =MAX(J100:BA100) -> 12.625 | I100: tőponty | J100: 3.475 | K100: 12.625
A101: B3 | B101: =kod!B15 -> Gát, közepes víz | C101: =kod!C15 -> WLC Hungary | D101: 73.325 | E101: 7 | F101: 10.475 | G101: =MAX(J101:BA101) -> 12.95 | I101: nyurgaponty | J101: 9.65 | K101: 8.75 | L101: 9.725 | M101: 7.75 | N101: 12.95 | O101: 11.75 | P101: 12.75
A102: B3 | B102: =kod!B15 -> Gát, közepes víz | C102: =kod!C15 -> WLC Hungary | D102: 18.45 | E102: 2 | F102: 9.225 | H102: =MAX(J102:AZ102) -> 14.05 | I102: koi ponty | J102: 4.4 | K102: 14.05
A103: B3 | B103: =kod!B15 -> Gát, közepes víz | C103: =kod!C15 -> WLC Hungary | D103: 0 | E103: 0 | F103: 0 | G103: =MAX(J103:BA103) -> 0 | I103: amur
A104: B3 | B104: =kod!B15 -> Gát, közepes víz | C104: =kod!C15 -> WLC Hungary | D104: 21.925 | E104: 6 | F104: 3.654166667 | G104: =MAX(J104:BA104) -> 4.875 | I104: fekete amur | J104: 3.5 | K104: 3.125 | L104: 4.875 | M104: 3.5 | N104: 3.275 | O104: 3.65
A105: B4 | B105: =kod!B16 -> Gát, közepes víz | C105: =kod!C16 -> Barfin Line NSD Bulgaria | D105: =SUM(D106:D111) -> 100.775 | E105: =SUM(E106:E111) -> 9 | F105: 11.19722222 | G105: =MAX(G106:G111) -> 22.975 | H105: =H109 -> 10.525 | I105: ÖSSZESEN | J105: =COUNTIFS($J106:$BB111,">9,99",$J106:$BB111,"<20") -> 3 | K105: =COUNTIFS($J106:$BB111,">19,99") -> 1 | L105: =COUNTIFS($J109:$BA109,">4,99",$J109:$BA109,"<9,99") -> 0 | M105: =COUNTIFS($J109:$BB109,">9,99") -> 1
A106: B4 | B106: =kod!B16 -> Gát, közepes víz | C106: =kod!C16 -> Barfin Line NSD Bulgaria | D106: =SUM(J106:AZ106) -> 22.975 | E106: =COUNT(J106:AZ106) -> 1 | F106: 22.975 | G106: =MAX(J106:BA106) -> 22.975 | I106: tükörponty | J106: 22.975
A107: B4 | B107: =kod!B16 -> Gát, közepes víz | C107: =kod!C16 -> Barfin Line NSD Bulgaria | D107: 4.8 | E107: 1 | F107: 4.8 | G107: 4.8 | I107: tőponty | J107: 4.8
A108: B4 | B108: =kod!B16 -> Gát, közepes víz | C108: =kod!C16 -> Barfin Line NSD Bulgaria | D108: 55.075 | E108: 5 | F108: 11.015 | G108: 18.475 | I108: nyurgaponty | J108: 18.475 | K108: 10.5 | L108: 8.925 | M108: 8.35 | N108: 8.825
A109: B4 | B109: =kod!B16 -> Gát, közepes víz | C109: =kod!C16 -> Barfin Line NSD Bulgaria | D109: 10.525 | E109: 1 | F109: 10.525 | G109: 10.525 | H109: =MAX(J109:AZ109) -> 10.525 | I109: koi ponty | J109: 10.525
A110: B4 | B110: =kod!B16 -> Gát, közepes víz | C110: =kod!C16 -> Barfin Line NSD Bulgaria | D110: 7.4 | E110: 1 | F110: 7.4 | G110: 7.4 | I110: amur | J110: 7.4
A111: B4 | B111: =kod!B16 -> Gát, közepes víz | C111: =kod!C16 -> Barfin Line NSD Bulgaria | D111: 0 | E111: 0 | F111: 0 | G111: 0 | I111: fekete amur
A112: B5 | B112: =kod!B17 -> Gát, közepes víz | C112: =kod!C17 -> Lutra Carp Hunters | D112: =SUM(D113:D118) -> 24.4 | E112: =SUM(E113:E118) -> 2 | F112: 12.2 | G112: =MAX(G113:G118) -> 13.725 | H112: =H116 -> 0 | I112: ÖSSZESEN | J112: =COUNTIFS($J113:$BB118,">9,99",$J113:$BB118,"<20") -> 2 | K112: =COUNTIFS($J113:$BB118,">19,99") -> 0 | L112: =COUNTIFS($J116:$BA116,">4,99",$J116:$BA116,"<9,99") -> 0 | M112: =COUNTIFS($J116:$BB116,">9,99") -> 0
A113: B5 | B113: =kod!B17 -> Gát, közepes víz | C113: =kod!C17 -> Lutra Carp Hunters | D113: =SUM(J113:AZ113) -> 24.4 | E113: =COUNT(J113:AZ113) -> 2 | F113: 12.2 | G113: =MAX(J113:BA113) -> 13.725 | I113: tükörponty | J113: 10.675 | K113: 13.725
A114: B5 | B114: =kod!B17 -> Gát, közepes víz | C114: =kod!C17 -> Lutra Carp Hunters | D114: 0 | E114: 0 | F114: 0 | G114: =MAX(J114:BA114) -> 0 | I114: tőponty
A115: B5 | B115: =kod!B17 -> Gát, közepes víz | C115: =kod!C17 -> Lutra Carp Hunters | D115: 0 | E115: 0 | F115: 0 | G115: =MAX(J115:BA115) -> 0 | I115: nyurgaponty
A116: B5 | B116: =kod!B17 -> Gát, közepes víz | C116: =kod!C17 -> Lutra Carp Hunters | D116: 0 | E116: 0 | F116: 0 | H116: =MAX(J116:AZ116) -> 0 | I116: koi ponty
A117: B5 | B117: =kod!B17 -> Gát, közepes víz | C117: =kod!C17 -> Lutra Carp Hunters | D117: 0 | E117: 0 | F117: 0 | G117: =MAX(J117:BA117) -> 0 | I117: amur
A118: B5 | B118: =kod!B17 -> Gát, közepes víz | C118: =kod!C17 -> Lutra Carp Hunters | D118: 0 | E118: 0 | F118: 0 | G118: =MAX(J118:BA118) -> 0 | I118: fekete amur
A119: B6 | B119: =kod!B18 -> Gát, közepes víz | C119: =kod!C18 -> Xtra Carp Team | D119: =SUM(D120:D125) -> 151.625 | E119: =SUM(E120:E125) -> 12 | F119: 12.63541667 | G119: =MAX(G120:G125) -> 20.325 | H119: =H123 -> 0 | I119: ÖSSZESEN | J119: =COUNTIFS($J120:$BB125,">9,99",$J120:$BB125,"<20") -> 8 | K119: =COUNTIFS($J120:$BB125,">19,99") -> 1 | L119: =COUNTIFS($J123:$BA123,">4,99",$J123:$BA123,"<9,99") -> 0 | M119: =COUNTIFS($J123:$BB123,">9,99") -> 0
A120: B6 | B120: =kod!B18 -> Gát, közepes víz | C120: =kod!C18 -> Xtra Carp Team | D120: =SUM(J120:AZ120) -> 40.625 | E120: =COUNT(J120:AZ120) -> 3 | F120: 13.54166667 | G120: =MAX(J120:BA120) -> 16.775 | I120: tükörponty | J120: 10.025 | K120: 13.825 | L120: 16.775
A121: B6 | B121: =kod!B18 -> Gát, közepes víz | C121: =kod!C18 -> Xtra Carp Team | D121: 47.3 | E121: 3 | F121: 15.76666667 | G121: =MAX(J121:BA121) -> 20.325 | I121: tőponty | J121: 12.875 | K121: 14.1 | L121: 20.325
A122: B6 | B122: =kod!B18 -> Gát, közepes víz | C122: =kod!C18 -> Xtra Carp Team | D122: 63.7 | E122: 6 | F122: 10.61666667 | G122: =MAX(J122:BA122) -> 15.8 | I122: nyurgaponty | J122: 12 | K122: 9.675 | L122: 6.225 | M122: 15.8 | N122: 7.45 | O122: 12.55
A123: B6 | B123: =kod!B18 -> Gát, közepes víz | C123: =kod!C18 -> Xtra Carp Team | D123: 0 | E123: 0 | F123: 0 | H123: =MAX(J123:AZ123) -> 0 | I123: koi ponty
A124: B6 | B124: =kod!B18 -> Gát, közepes víz | C124: =kod!C18 -> Xtra Carp Team | D124: 0 | E124: 0 | F124: 0 | G124: =MAX(J124:BA124) -> 0 | I124: amur
A125: B6 | B125: =kod!B18 -> Gát, közepes víz | C125: =kod!C18 -> Xtra Carp Team | D125: 0 | E125: 0 | F125: 0 | G125: =MAX(J125:BA125) -> 0 | I125: fekete amur
A126: B7 | B126: =kod!B19 -> I. sziget, jobb közép | C126: =kod!C19 -> Elite Carp Team Brasov | D126: =SUM(D127:D132) -> 96.025 | E126: =SUM(E127:E132) -> 9 | F126: 10.66944444 | G126: =MAX(G127:G132) -> 13.25 | H126: =H130 -> 0 | I126: ÖSSZESEN | J126: =COUNTIFS($J127:$BB132,">9,99",$J127:$BB132,"<20") -> 5 | K126: =COUNTIFS($J127:$BB132,">19,99") -> 0 | L126: =COUNTIFS($J130:$BA130,">4,99",$J130:$BA130,"<9,99") -> 0 | M126: =COUNTIFS($J130:$BB130,">9,99") -> 0
A127: B7 | B127: =kod!B19 -> I. sziget, jobb közép | C127: =kod!C19 -> Elite Carp Team Brasov | D127: =SUM(J127:AZ127) -> 0 | E127: =COUNT(J127:AZ127) -> 0 | F127: 0 | G127: =MAX(J127:BA127) -> 0 | I127: tükörponty
A128: B7 | B128: =kod!B19 -> I. sziget, jobb közép | C128: =kod!C19 -> Elite Carp Team Brasov | D128: 8.025 | E128: 1 | F128: 8.025 | G128: =MAX(J128:BA128) -> 8.025 | I128: tőponty | J128: 8.025
A129: B7 | B129: =kod!B19 -> I. sziget, jobb közép | C129: =kod!C19 -> Elite Carp Team Brasov | D129: 88 | E129: 8 | F129: 11 | G129: =MAX(J129:BA129) -> 13.25 | I129: nyurgaponty | J129: 13.15 | K129: 13.25 | L129: 12.325 | M129: 9.6 | N129: 10.75 | O129: 12.1 | P129: 8.225 | Q129: 8.6
A130: B7 | B130: =kod!B19 -> I. sziget, jobb közép | C130: =kod!C19 -> Elite Carp Team Brasov | D130: 0 | E130: 0 | F130: 0 | H130: =MAX(J130:AZ130) -> 0 | I130: koi ponty
A131: B7 | B131: =kod!B19 -> I. sziget, jobb közép | C131: =kod!C19 -> Elite Carp Team Brasov | D131: 0 | E131: 0 | F131: 0 | G131: =MAX(J131:BA131) -> 0 | I131: amur
A132: B7 | B132: =kod!B19 -> I. sziget, jobb közép | C132: =kod!C19 -> Elite Carp Team Brasov | D132: 0 | E132: 0 | F132: 0 | G132: =MAX(J132:BA132) -> 0 | I132: fekete amur
A133: B8 | B133: =kod!B20 -> I. sziget, jobb | C133: =kod!C20 -> CT777 Varna Bulgaria | D133: =SUM(D134:D139) -> 101.575 | E133: =SUM(E134:E139) -> 13 | F133: 7.813461538 | G133: =MAX(G134:G139) -> 13.375 | H133: =H137 -> 8.8 | I133: ÖSSZESEN | J133: =COUNTIFS($J134:$BB139,">9,99",$J134:$BB139,"<20") -> 3 | K133: =COUNTIFS($J134:$BB139,">19,99") -> 0 | L133: =COUNTIFS($J137:$BA137,">4,99",$J137:$BA137,"<9,99") -> 2 | M133: =COUNTIFS($J137:$BB137,">9,99") -> 0
A134: B8 | B134: =kod!B20 -> I. sziget, jobb | C134: =kod!C20 -> CT777 Varna Bulgaria | D134: =SUM(J134:AZ134) -> 13.375 | E134: =COUNT(J134:AZ134) -> 1 | F134: 13.375 | G134: =MAX(J134:BA134) -> 13.375 | I134: tükörponty | J134: 13.375
A135: B8 | B135: =kod!B20 -> I. sziget, jobb | C135: =kod!C20 -> CT777 Varna Bulgaria | D135: 31.775 | E135: 4 | F135: 7.94375 | G135: =MAX(J135:BA135) -> 9.175 | I135: tőponty | J135: 7.95 | K135: 6.325 | L135: 8.325 | M135: 9.175
A136: B8 | B136: =kod!B20 -> I. sziget, jobb | C136: =kod!C20 -> CT777 Varna Bulgaria | D136: 20.775 | E136: 2 | F136: 10.3875 | G136: =MAX(J136:BA136) -> 10.4 | I136: nyurgaponty | J136: 10.375 | K136: 10.4
A137: B8 | B137: =kod!B20 -> I. sziget, jobb | C137: =kod!C20 -> CT777 Varna Bulgaria | D137: 15.675 | E137: 2 | F137: 7.8375 | H137: =MAX(J137:AZ137) -> 8.8 | I137: koi ponty | J137: 6.875 | K137: 8.8
A138: B8 | B138: =kod!B20 -> I. sziget, jobb | C138: =kod!C20 -> CT777 Varna Bulgaria | D138: 9.725 | E138: 1 | F138: 9.725 | G138: =MAX(J138:BA138) -> 9.725 | I138: amur | J138: 9.725
A139: B8 | B139: =kod!B20 -> I. sziget, jobb | C139: =kod!C20 -> CT777 Varna Bulgaria | D139: 10.25 | E139: 3 | F139: 3.416666667 | G139: =MAX(J139:BA139) -> 4.125 | I139: fekete amur | J139: 4.125 | K139: 2.8 | L139: 3.325
A140: B9 | B140: =kod!B21 -> I. sziget, jobb külső | C140: =kod!C21 -> Bait Maker Team | D140: =SUM(D141:D146) -> 67.4 | E140: =SUM(E141:E146) -> 10 | F140: 6.74 | G140: =MAX(G141:G146) -> 11.45 | H140: =H144 -> 0 | I140: ÖSSZESEN | J140: =COUNTIFS($J141:$BB146,">9,99",$J141:$BB146,"<20") -> 3 | K140: =COUNTIFS($J141:$BB146,">19,99") -> 0 | L140: =COUNTIFS($J144:$BA144,">4,99",$J144:$BA144,"<9,99") -> 0 | M140: =COUNTIFS($J144:$BB144,">9,99") -> 0
A141: B9 | B141: =kod!B21 -> I. sziget, jobb külső | C141: =kod!C21 -> Bait Maker Team | D141: =SUM(J141:AZ141) -> 9.725 | E141: =COUNT(J141:AZ141) -> 2 | F141: =IF(E141=0,0,D141/E141) -> 4.8625 | G141: =MAX(J141:BA141) -> 8.375 | I141: tükörponty | J141: 1.35 | K141: 8.375
A142: B9 | B142: =kod!B21 -> I. sziget, jobb külső | C142: =kod!C21 -> Bait Maker Team | D142: 27.075 | E142: 4 | F142: 6.76875 | G142: =MAX(J142:BA142) -> 10.25 | I142: tőponty | J142: 10.25 | K142: 7.7 | L142: 5.6 | M142: 3.525
A143: B9 | B143: =kod!B21 -> I. sziget, jobb külső | C143: =kod!C21 -> Bait Maker Team | D143: 28.15 | E143: 3 | F143: 9.383333333 | G143: =MAX(J143:BA143) -> 11.45 | I143: nyurgaponty | J143: 10.75 | K143: 11.45 | L143: 5.95
A144: B9 | B144: =kod!B21 -> I. sziget, jobb külső | C144: =kod!C21 -> Bait Maker Team | D144: 0 | E144: 0 | F144: 0 | H144: =MAX(J144:AZ144) -> 0 | I144: koi ponty
A145: B9 | B145: =kod!B21 -> I. sziget, jobb külső | C145: =kod!C21 -> Bait Maker Team | D145: 0 | E145: 0 | F145: 0 | G145: =MAX(J145:BA145) -> 0 | I145: amur
A146: B9 | B146: =kod!B21 -> I. sziget, jobb külső | C146: =kod!C21 -> Bait Maker Team | D146: 2.45 | E146: 1 | F146: 2.45 | G146: =MAX(J146:BA146) -> 2.45 | I146: fekete amur | J146: 2.45
A147: B10 | B147: =kod!B22 -> Felező-spicc, bal | C147: =kod!C22 -> SBS - SziKo Team | D147: =SUM(D148:D153) -> 23.25 | E147: =SUM(E148:E153) -> 3 | F147: 7.75 | G147: =MAX(G148:G153) -> 10.5 | H147: =H151 -> 0 | I147: ÖSSZESEN | J147: =COUNTIFS($J148:$BB153,">9,99",$J148:$BB153,"<20") -> 1 | K147: =COUNTIFS($J148:$BB153,">19,99") -> 0 | L147: =COUNTIFS($J151:$BA151,">4,99",$J151:$BA151,"<9,99") -> 0 | M147: =COUNTIFS($J151:$BB151,">9,99") -> 0
A148: B10 | B148: =kod!B22 -> Felező-spicc, bal | C148: =kod!C22 -> SBS - SziKo Team | D148: =SUM(J148:AZ148) -> 10.5 | E148: =COUNT(J148:AZ148) -> 1 | F148: 10.5 | G148: =MAX(J148:BA148) -> 10.5 | I148: tükörponty | J148: 10.5
A149: B10 | B149: =kod!B22 -> Felező-spicc, bal | C149: =kod!C22 -> SBS - SziKo Team | D149: 12.75 | E149: 2 | F149: 6.375 | G149: =MAX(J149:BA149) -> 6.5 | I149: tőponty | J149: 6.25 | K149: 6.5
A150: B10 | B150: =kod!B22 -> Felező-spicc, bal | C150: =kod!C22 -> SBS - SziKo Team | D150: 0 | E150: 0 | F150: 0 | G150: =MAX(J150:BA150) -> 0 | I150: nyurgaponty
A151: B10 | B151: =kod!B22 -> Felező-spicc, bal | C151: =kod!C22 -> SBS - SziKo Team | D151: 0 | E151: 0 | F151: 0 | H151: =MAX(J151:AZ151) -> 0 | I151: koi ponty
A152: B10 | B152: =kod!B22 -> Felező-spicc, bal | C152: =kod!C22 -> SBS - SziKo Team | D152: 0 | E152: 0 | F152: 0 | G152: =MAX(J152:BA152) -> 0 | I152: amur
A153: B10 | B153: =kod!B22 -> Felező-spicc, bal | C153: =kod!C22 -> SBS - SziKo Team | D153: 0 | E153: 0 | F153: 0 | G153: =MAX(J153:BA153) -> 0 | I153: fekete amur
A154: B11 | B154: =kod!B23 -> Felező-spicc, közép | C154: =kod!C23 -> Síp Carp Team | D154: =SUM(D155:D160) -> 12.45 | E154: =SUM(E155:E160) -> 3 | F154: 4.15 | G154: =MAX(G155:G160) -> 5.75 | H154: =H158 -> 0 | I154: ÖSSZESEN | J154: =COUNTIFS($J155:$BB160,">9,99",$J155:$BB160,"<20") -> 0 | K154: =COUNTIFS($J155:$BB160,">19,99") -> 0 | L154: =COUNTIFS($J158:$BA158,">4,99",$J158:$BA158,"<9,99") -> 0 | M154: =COUNTIFS($J158:$BB158,">9,99") -> 0
A155: B11 | B155: =kod!B23 -> Felező-spicc, közép | C155: =kod!C23 -> Síp Carp Team | D155: =SUM(J155:AZ155) -> 0 | E155: 0 | F155: 0 | G155: =MAX(J155:BA155) -> 0 | I155: tükörponty
A156: B11 | B156: =kod!B23 -> Felező-spicc, közép | C156: =kod!C23 -> Síp Carp Team | D156: 7.6 | E156: 2 | F156: 3.8 | G156: 5.75 | I156: tőponty | J156: 1.85 | K156: 5.75
A157: B11 | B157: =kod!B23 -> Felező-spicc, közép | C157: =kod!C23 -> Síp Carp Team | D157: 0 | E157: 0 | F157: 0 | G157: 0 | I157: nyurgaponty
A158: B11 | B158: =kod!B23 -> Felező-spicc, közép | C158: =kod!C23 -> Síp Carp Team | D158: 0 | E158: 0 | F158: 0 | H158: =MAX(J158:AZ158) -> 0 | I158: koi ponty
A159: B11 | B159: =kod!B23 -> Felező-spicc, közép | C159: =kod!C23 -> Síp Carp Team | D159: 0 | E159: 0 | F159: 0 | G159: =MAX(J159:BA159) -> 0 | I159: amur
A160: B11 | B160: =kod!B23 -> Felező-spicc, közép | C160: =kod!C23 -> Síp Carp Team | D160: 4.85 | E160: 1 | F160: 4.85 | G160: 4.85 | I160: fekete amur | J160: 4.85
A161: C1 | B161: =kod!B24 -> Gát, sekély víz | C161: =kod!C24 -> Carp Fever Bulgaria | D161: =SUM(D162:D167) -> 118.025 | E161: =SUM(E162:E167) -> 16 | F161: =IF(E161=0,0,D161/E161) -> 7.3765625 | G161: =MAX(G162:G167) -> 12.2 | H161: =H165 -> 8.4 | I161: ÖSSZESEN | J161: =COUNTIFS($J162:$BB167,">9,99",$J162:$BB167,"<20") -> 1 | K161: =COUNTIFS($J162:$BB167,">19,99") -> 0 | L161: =COUNTIFS($J165:$BA165,">4,99",$J165:$BA165,"<9,99") -> 1 | M161: =COUNTIFS($J165:$BB165,">9,99") -> 0
A162: C1 | B162: =kod!B24 -> Gát, sekély víz | C162: =kod!C24 -> Carp Fever Bulgaria | D162: =SUM(J162:AZ162) -> 63.025 | E162: =COUNT(J162:AZ162) -> 9 | F162: =IF(E162=0,0,D162/E162) -> 7.002777778 | G162: =MAX(J162:BA162) -> 9.2 | I162: tükörponty | J162: 9.2 | K162: 4 | L162: 6.325 | M162: 5.825 | N162: 7.75 | O162: 7.7 | P162: 8.975 | Q162: 6.6 | R162: 6.65
A163: C1 | B163: =kod!B24 -> Gát, sekély víz | C163: =kod!C24 -> Carp Fever Bulgaria | D163: 19.825 | E163: 3 | F163: 6.608333333 | G163: =MAX(J163:BA163) -> 8.075 | I163: tőponty | J163: 8.075 | K163: 5.675 | L163: 6.075
A164: C1 | B164: =kod!B24 -> Gát, sekély víz | C164: =kod!C24 -> Carp Fever Bulgaria | D164: 26.775 | E164: 3 | F164: 8.925 | G164: =MAX(J164:BA164) -> 12.2 | I164: nyurgaponty | J164: 12.2 | K164: 8.425 | L164: 6.15
A165: C1 | B165: =kod!B24 -> Gát, sekély víz | C165: =kod!C24 -> Carp Fever Bulgaria | D165: 8.4 | E165: 1 | F165: 8.4 | H165: =MAX(J165:AZ165) -> 8.4 | I165: koi ponty | J165: 8.4
A166: C1 | B166: =kod!B24 -> Gát, sekély víz | C166: =kod!C24 -> Carp Fever Bulgaria | D166: 0 | E166: 0 | F166: 0 | G166: =MAX(J166:BA166) -> 0 | I166: amur
A167: C1 | B167: =kod!B24 -> Gát, sekély víz | C167: =kod!C24 -> Carp Fever Bulgaria | D167: 0 | E167: 0 | F167: 0 | G167: =MAX(J167:BA167) -> 0 | I167: fekete amur
A168: C2 | B168: =kod!B25 -> Gát, sekély víz | C168: =kod!C25 -> Carpfriends Ennstal-Austria | D168: =SUM(D169:D174) -> 90.825 | E168: =SUM(E169:E174) -> 12 | F168: 7.56875 | G168: =MAX(G169:G174) -> 13.625 | H168: =H172 -> 0 | I168: ÖSSZESEN | J168: =COUNTIFS($J169:$BB174,">9,99",$J169:$BB174,"<20") -> 1 | K168: =COUNTIFS($J169:$BB174,">19,99") -> 0 | L168: =COUNTIFS($J172:$BA172,">4,99",$J172:$BA172,"<9,99") -> 0 | M168: =COUNTIFS($J172:$BB172,">9,99") -> 0
A169: C2 | B169: =kod!B25 -> Gát, sekély víz | C169: =kod!C25 -> Carpfriends Ennstal-Austria | D169: =SUM(J169:AZ169) -> 37.1 | E169: =COUNT(J169:AZ169) -> 5 | F169: 7.42 | G169: =MAX(J169:BA169) -> 8.375 | I169: tükörponty | J169: 7.825 | K169: 8.375 | L169: 7.125 | M169: 5.525 | N169: 8.25
A170: C2 | B170: =kod!B25 -> Gát, sekély víz | C170: =kod!C25 -> Carpfriends Ennstal-Austria | D170: 14.225 | E170: 2 | F170: 7.1125 | G170: =MAX(J170:BA170) -> 7.375 | I170: tőponty | J170: 7.375 | K170: 6.85
A171: C2 | B171: =kod!B25 -> Gát, sekély víz | C171: =kod!C25 -> Carpfriends Ennstal-Austria | D171: 39.5 | E171: 5 | F171: 7.9 | G171: =MAX(J171:BA171) -> 13.625 | I171: nyurgaponty | J171: 7.075 | K171: 6.925 | L171: 6.675 | M171: 5.2 | N171: 13.625
A172: C2 | B172: =kod!B25 -> Gát, sekély víz | C172: =kod!C25 -> Carpfriends Ennstal-Austria | D172: 0 | E172: 0 | F172: 0 | H172: =MAX(J172:AZ172) -> 0 | I172: koi ponty
A173: C2 | B173: =kod!B25 -> Gát, sekély víz | C173: =kod!C25 -> Carpfriends Ennstal-Austria | D173: 0 | E173: 0 | F173: 0 | G173: =MAX(J173:BA173) -> 0 | I173: amur
A174: C2 | B174: =kod!B25 -> Gát, sekély víz | C174: =kod!C25 -> Carpfriends Ennstal-Austria | D174: 0 | E174: 0 | F174: 0 | G174: =MAX(J174:BA174) -> 0 | I174: fekete amur
A175: C3 | B175: =kod!B26 -> Gát, sekély víz | C175: =kod!C26 -> Carp Team Brasov | D175: =SUM(D176:D181) -> 19.875 | E175: =SUM(E176:E181) -> 4 | F175: 4.96875 | G175: =MAX(G176:G181) -> 6.75 | H175: =H179 -> 0 | I175: ÖSSZESEN | J175: =COUNTIFS($J176:$BB181,">9,99",$J176:$BB181,"<20") -> 0 | K175: =COUNTIFS($J176:$BB181,">19,99") -> 0 | L175: =COUNTIFS($J179:$BA179,">4,99",$J179:$BA179,"<9,99") -> 0 | M175: =COUNTIFS($J179:$BB179,">9,99") -> 0
A176: C3 | B176: =kod!B26 -> Gát, sekély víz | C176: =kod!C26 -> Carp Team Brasov | D176: =SUM(J176:AZ176) -> 0 | E176: =COUNT(J176:AZ176) -> 0 | F176: 0 | G176: =MAX(J176:BA176) -> 0 | I176: tükörponty
A177: C3 | B177: =kod!B26 -> Gát, sekély víz | C177: =kod!C26 -> Carp Team Brasov | D177: 8.85 | E177: 2 | F177: 4.425 | G177: =MAX(J177:BA177) -> 6.75 | I177: tőponty | J177: 6.75 | K177: 2.1
A178: C3 | B178: =kod!B26 -> Gát, sekély víz | C178: =kod!C26 -> Carp Team Brasov | D178: 11.025 | E178: 2 | F178: 5.5125 | G178: =MAX(J178:BA178) -> 5.6 | I178: nyurgaponty | J178: 5.425 | K178: 5.6
A179: C3 | B179: =kod!B26 -> Gát, sekély víz | C179: =kod!C26 -> Carp Team Brasov | D179: 0 | E179: 0 | F179: 0 | H179: =MAX(J179:AZ179) -> 0 | I179: koi ponty
A180: C3 | B180: =kod!B26 -> Gát, sekély víz | C180: =kod!C26 -> Carp Team Brasov | D180: 0 | E180: 0 | F180: 0 | G180: =MAX(J180:BA180) -> 0 | I180: amur
A181: C3 | B181: =kod!B26 -> Gát, sekély víz | C181: =kod!C26 -> Carp Team Brasov | D181: 0 | E181: 0 | F181: 0 | G181: =MAX(J181:BA181) -> 0 | I181: fekete amur
A182: C4 | B182: =kod!B27 -> Gát, sekély víz | C182: =kod!C27 -> As La Carp Team | D182: =SUM(D183:D188) -> 18.075 | E182: =SUM(E183:E188) -> 2 | F182: 9.0375 | G182: =MAX(G183:G188) -> 16.225 | H182: =H186 -> 16.225 | I182: ÖSSZESEN | J182: =COUNTIFS($J183:$BB188,">9,99",$J183:$BB188,"<20") -> 1 | K182: =COUNTIFS($J183:$BB188,">19,99") -> 0 | L182: =COUNTIFS($J186:$BA186,">4,99",$J186:$BA186,"<9,99") -> 0 | M182: =COUNTIFS($J186:$BB186,">9,99") -> 1
A183: C4 | B183: =kod!B27 -> Gát, sekély víz | C183: =kod!C27 -> As La Carp Team | D183: =SUM(J183:AZ183) -> 0 | E183: =COUNT(J183:AZ183) -> 0 | F183: 0 | G183: =MAX(J183:BA183) -> 0 | I183: tükörponty
A184: C4 | B184: =kod!B27 -> Gát, sekély víz | C184: =kod!C27 -> As La Carp Team | D184: 1.85 | E184: 1 | F184: 1.85 | G184: 1.85 | I184: tőponty | J184: 1.85
A185: C4 | B185: =kod!B27 -> Gát, sekély víz | C185: =kod!C27 -> As La Carp Team | D185: 0 | E185: 0 | F185: 0 | G185: 0 | I185: nyurgaponty
A186: C4 | B186: =kod!B27 -> Gát, sekély víz | C186: =kod!C27 -> As La Carp Team | D186: 16.225 | E186: 1 | F186: 16.225 | G186: 16.225 | H186: =MAX(J186:AZ186) -> 16.225 | I186: koi ponty | J186: 16.225
A187: C4 | B187: =kod!B27 -> Gát, sekély víz | C187: =kod!C27 -> As La Carp Team | D187: 0 | E187: 0 | F187: 0 | G187: 0 | I187: amur
A188: C4 | B188: =kod!B27 -> Gát, sekély víz | C188: =kod!C27 -> As La Carp Team | D188: 0 | E188: 0 | F188: 0 | G188: 0 | I188: fekete amur
A189: C5 | B189: =kod!B28 -> Gát, sekély víz | C189: =kod!C28 -> Bojlis Főnök - Bait Bait Carp Team | D189: =SUM(D190:D195) -> 31.275 | E189: =SUM(E190:E195) -> 4 | F189: 7.81875 | G189: =MAX(G190:G195) -> 12.55 | H189: =H193 -> 0 | I189: ÖSSZESEN | J189: =COUNTIFS($J190:$BB195,">9,99",$J190:$BB195,"<20") -> 1 | K189: =COUNTIFS($J190:$BB195,">19,99") -> 0 | L189: =COUNTIFS($J193:$BA193,">4,99",$J193:$BA193,"<9,99") -> 0 | M189: =COUNTIFS($J193:$BB193,">9,99") -> 0
A190: C5 | B190: =kod!B28 -> Gát, sekély víz | C190: =kod!C28 -> Bojlis Főnök - Bait Bait Carp Team | D190: =SUM(J190:AZ190) -> 18.45 | E190: =COUNT(J190:AZ190) -> 2 | F190: 9.225 | G190: =MAX(J190:BA190) -> 12.55 | I190: tükörponty | J190: 5.9 | K190: 12.55
A191: C5 | B191: =kod!B28 -> Gát, sekély víz | C191: =kod!C28 -> Bojlis Főnök - Bait Bait Carp Team | D191: 2.9 | E191: 1 | F191: 2.9 | G191: =MAX(J191:BA191) -> 2.9 | I191: tőponty | J191: 2.9
A192: C5 | B192: =kod!B28 -> Gát, sekély víz | C192: =kod!C28 -> Bojlis Főnök - Bait Bait Carp Team | D192: 9.925 | E192: 1 | F192: 9.925 | G192: =MAX(J192:BA192) -> 9.925 | I192: nyurgaponty | J192: 9.925
A193: C5 | B193: =kod!B28 -> Gát, sekély víz | C193: =kod!C28 -> Bojlis Főnök - Bait Bait Carp Team | D193: 0 | E193: 0 | F193: 0 | H193: =MAX(J193:AZ193) -> 0 | I193: koi ponty
A194: C5 | B194: =kod!B28 -> Gát, sekély víz | C194: =kod!C28 -> Bojlis Főnök - Bait Bait Carp Team | D194: 0 | E194: 0 | F194: 0 | G194: =MAX(J194:BA194) -> 0 | I194: amur
A195: C5 | B195: =kod!B28 -> Gát, sekély víz | C195: =kod!C28 -> Bojlis Főnök - Bait Bait Carp Team | D195: 0 | E195: 0 | F195: 0 | G195: =MAX(J195:BA195) -> 0 | I195: fekete amur
A196: C6 | B196: =kod!B29 -> Felező-spicc, jobb | C196: =kod!C29 -> Secret Of The Carp | D196: =SUM(D197:D202) -> 13.875 | E196: =SUM(E197:E202) -> 2 | F196: 6.9375 | G196: =MAX(G197:G202) -> 7.525 | H196: =H200 -> 0 | I196: ÖSSZESEN | J196: =COUNTIFS($J197:$BB202,">9,99",$J197:$BB202,"<20") -> 0 | K196: =COUNTIFS($J197:$BB202,">19,99") -> 0 | L196: =COUNTIFS($J200:$BA200,">4,99",$J200:$BA200,"<9,99") -> 0 | M196: =COUNTIFS($J200:$BB200,">9,99") -> 0
A197: C6 | B197: =kod!B29 -> Felező-spicc, jobb | C197: =kod!C29 -> Secret Of The Carp | D197: =SUM(J197:AZ197) -> 0 | E197: =COUNT(J197:AZ197) -> 0 | F197: 0 | G197: =MAX(J197:BA197) -> 0 | I197: tükörponty
A198: C6 | B198: =kod!B29 -> Felező-spicc, jobb | C198: =kod!C29 -> Secret Of The Carp | D198: 13.875 | E198: 2 | F198: 6.9375 | G198: 7.525 | I198: tőponty | J198: 7.525 | K198: 6.35
A199: C6 | B199: =kod!B29 -> Felező-spicc, jobb | C199: =kod!C29 -> Secret Of The Carp | D199: 0 | E199: 0 | F199: 0 | G199: 0 | I199: nyurgaponty
A200: C6 | B200: =kod!B29 -> Felező-spicc, jobb | C200: =kod!C29 -> Secret Of The Carp | D200: 0 | E200: 0 | F200: 0 | G200: 0 | H200: =MAX(J200:AZ200) -> 0 | I200: koi ponty
... 38 more rows

Sheet szakasz7
A1: =IF(kod!E2>0,kod!E2,"") -> XXI. PROFESSZIONÁLIS BOJLIS EURÓPA KUPA (EPBC)
A2: =IF(kod!E3>0,kod!E3,"") -> XXXVI. MACONKA NEMZETKÖZI BOJLIS KUPA
A3: =IF(kod!E4>0,kod!E4,"") -> Maconka, 2025.06.15. - 2025.06.20.
A4: =IF(kod!E5>0,kod!E5,"") -> 
A5: =kod!E13 -> 7. szakasz: 2025.06.18. 18:00 - 2025.06.19. 06:00
A6: Rajthely | B6: Elhelyezés | C6: Csapatnév | D6: Kg | E6: Db | F6: Átlag | G6: BC | H6: BkC | I6: Faj | J6: 10-20 kg | K6: 20+ kg | L6: koi 5-10 kg | M6: koi 10+ kg
A7: A1 | B7: =kod!B2 -> Gát, mélyvíz | C7: =kod!C2 -> SBS - Halcatraz - TiZo Team | D7: =SUM(D8:D13) -> 62.95 | E7: =SUM(E8:E13) -> 5 | F7: =IF(E7=0,0,D7/E7) -> 12.59 | G7: =MAX(G8:G13) -> 16.425 | H7: =H11 -> 11.175 | I7: ÖSSZESEN | J7: =COUNTIFS($J8:$BB13,">9,99",$J8:$BB13,"<20") -> 5 | K7: =COUNTIFS($J8:$BB13,">19,99") -> 0 | L7: =COUNTIFS($J11:$BA11,">4,99",$J11:$BA11,"<9,99") -> 0 | M7: =COUNTIFS($J11:$BB11,">9,99") -> 1
A8: A1 | B8: =kod!B2 -> Gát, mélyvíz | C8: =kod!C2 -> SBS - Halcatraz - TiZo Team | D8: =SUM(J8:AZ8) -> 0 | E8: =COUNT(J8:AZ8) -> 0 | F8: =IF(E8=0,0,D8/E8) -> 0 | G8: =MAX(J8:BA8) -> 0 | I8: tükörponty
A9: A1 | B9: =kod!B2 -> Gát, mélyvíz | C9: =kod!C2 -> SBS - Halcatraz - TiZo Team | D9: 10.325 | E9: 1 | F9: 10.325 | G9: =MAX(J9:BA9) -> 10.325 | I9: tőponty | J9: 10.325
A10: A1 | B10: =kod!B2 -> Gát, mélyvíz | C10: =kod!C2 -> SBS - Halcatraz - TiZo Team | D10: 26.975 | E10: 2 | F10: 13.4875 | G10: 16.425 | I10: nyurgaponty | J10: 16.425 | K10: 10.55
A11: A1 | B11: =kod!B2 -> Gát, mélyvíz | C11: =kod!C2 -> SBS - Halcatraz - TiZo Team | D11: 11.175 | E11: 1 | F11: 11.175 | H11: =MAX(J11:AZ11) -> 11.175 | I11: koi ponty | J11: 11.175
A12: A1 | B12: =kod!B2 -> Gát, mélyvíz | C12: =kod!C2 -> SBS - Halcatraz - TiZo Team | D12: 0 | E12: 0 | F12: 0 | G12: 0 | I12: amur
A13: A1 | B13: =kod!B2 -> Gát, mélyvíz | C13: =kod!C2 -> SBS - Halcatraz - TiZo Team | D13: 14.475 | E13: 1 | F13: 14.475 | G13: 14.475 | I13: fekete amur | J13: 14.475
A14: A2 | B14: =kod!B3 -> Gát, mélyvíz | C14: =kod!C3 -> Altstadt Carp Team | D14: =SUM(D15:D20) -> 16.15 | E14: =SUM(E15:E20) -> 2 | F14: 8.075 | G14: =MAX(G15:G20) -> 13.3 | H14: =H18 -> 0 | I14: ÖSSZESEN | J14: =COUNTIFS($J15:$BB20,">9,99",$J15:$BB20,"<20") -> 1 | K14: =COUNTIFS($J15:$BB20,">19,99") -> 0 | L14: =COUNTIFS($J18:$BA18,">4,99",$J18:$BA18,"<9,99") -> 0 | M14: =COUNTIFS($J18:$BB18,">9,99") -> 0
A15: A2 | B15: =kod!B3 -> Gát, mélyvíz | C15: =kod!C3 -> Altstadt Carp Team | D15: =SUM(J15:AZ15) -> 0 | E15: =COUNT(J15:AZ15) -> 0 | F15: 0 | G15: =MAX(J15:BA15) -> 0 | I15: tükörponty
A16: A2 | B16: =kod!B3 -> Gát, mélyvíz | C16: =kod!C3 -> Altstadt Carp Team | D16: 0 | E16: 0 | F16: 0 | G16: =MAX(J16:BA16) -> 0 | I16: tőponty
A17: A2 | B17: =kod!B3 -> Gát, mélyvíz | C17: =kod!C3 -> Altstadt Carp Team | D17: 13.3 | E17: 1 | F17: 13.3 | G17: =MAX(J17:BA17) -> 13.3 | I17: nyurgaponty | J17: 13.3
A18: A2 | B18: =kod!B3 -> Gát, mélyvíz | C18: =kod!C3 -> Altstadt Carp Team | D18: 0 | E18: 0 | F18: 0 | H18: =MAX(J18:AZ18) -> 0 | I18: koi ponty
A19: A2 | B19: =kod!B3 -> Gát, mélyvíz | C19: =kod!C3 -> Altstadt Carp Team | D19: 0 | E19: 0 | F19: 0 | G19: =MAX(J19:BA19) -> 0 | I19: amur
A20: A2 | B20: =kod!B3 -> Gát, mélyvíz | C20: =kod!C3 -> Altstadt Carp Team | D20: 2.85 | E20: 1 | F20: 2.85 | G20: =MAX(J20:BA20) -> 2.85 | I20: fekete amur | J20: 2.85
A21: A3 | B21: =kod!B4 -> Gát, mélyvíz | C21: =kod!C4 -> Ferma De Crap Diosig | D21: =SUM(D22:D27) -> 0 | E21: =SUM(E22:E27) -> 0 | F21: 0 | G21: =MAX(G22:G27) -> 0 | H21: =H25 -> 0 | I21: ÖSSZESEN | J21: =COUNTIFS($J22:$BB27,">9,99",$J22:$BB27,"<20") -> 0 | K21: =COUNTIFS($J22:$BB27,">19,99") -> 0 | L21: =COUNTIFS($J25:$BA25,">4,99",$J25:$BA25,"<9,99") -> 0 | M21: =COUNTIFS($J25:$BB25,">9,99") -> 0
A22: A3 | B22: =kod!B4 -> Gát, mélyvíz | C22: =kod!C4 -> Ferma De Crap Diosig | D22: =SUM(J22:AZ22) -> 0 | E22: =COUNT(J22:AZ22) -> 0 | F22: 0 | G22: =MAX(J22:BA22) -> 0 | I22: tükörponty
A23: A3 | B23: =kod!B4 -> Gát, mélyvíz | C23: =kod!C4 -> Ferma De Crap Diosig | D23: 0 | E23: 0 | F23: 0 | G23: =MAX(J23:BA23) -> 0 | I23: tőponty
A24: A3 | B24: =kod!B4 -> Gát, mélyvíz | C24: =kod!C4 -> Ferma De Crap Diosig | D24: 0 | E24: 0 | F24: 0 | G24: =MAX(J24:BA24) -> 0 | I24: nyurgaponty
A25: A3 | B25: =kod!B4 -> Gát, mélyvíz | C25: =kod!C4 -> Ferma De Crap Diosig | D25: 0 | E25: 0 | F25: 0 | H25: =MAX(J25:AZ25) -> 0 | I25: koi ponty
A26: A3 | B26: =kod!B4 -> Gát, mélyvíz | C26: =kod!C4 -> Ferma De Crap Diosig | D26: 0 | E26: 0 | F26: 0 | G26: =MAX(J26:BA26) -> 0 | I26: amur
A27: A3 | B27: =kod!B4 -> Gát, mélyvíz | C27: =kod!C4 -> Ferma De Crap Diosig | D27: 0 | E27: 0 | F27: 0 | G27: =MAX(J27:BA27) -> 0 | I27: fekete amur
A28: A4 | B28: =kod!B5 -> Gát, mélyvíz | C28: =kod!C5 -> Bull Tackle | D28: =SUM(D29:D34) -> 47.4 | E28: =SUM(E29:E34) -> 4 | F28: 11.85 | G28: =MAX(G29:G34) -> 18.1 | H28: =H32 -> 0 | I28: ÖSSZESEN | J28: =COUNTIFS($J29:$BB34,">9,99",$J29:$BB34,"<20") -> 2 | K28: =COUNTIFS($J29:$BB34,">19,99") -> 0 | L28: =COUNTIFS($J32:$BA32,">4,99",$J32:$BA32,"<9,99") -> 0 | M28: =COUNTIFS($J32:$BB32,">9,99") -> 0
A29: A4 | B29: =kod!B5 -> Gát, mélyvíz | C29: =kod!C5 -> Bull Tackle | D29: =SUM(J29:AZ29) -> 0 | E29: =COUNT(J29:AZ29) -> 0 | F29: 0 | G29: =MAX(J29:BA29) -> 0 | I29: tükörponty
A30: A4 | B30: =kod!B5 -> Gát, mélyvíz | C30: =kod!C5 -> Bull Tackle | D30: 18.1 | E30: 1 | F30: 18.1 | G30: =MAX(J30:BA30) -> 18.1 | I30: tőponty | J30: 18.1
A31: A4 | B31: =kod!B5 -> Gát, mélyvíz | C31: =kod!C5 -> Bull Tackle | D31: 29.3 | E31: 3 | F31: 9.766666667 | G31: =MAX(J31:BA31) -> 13.075 | I31: nyurgaponty | J31: 13.075 | K31: 6.95 | L31: 9.275
A32: A4 | B32: =kod!B5 -> Gát, mélyvíz | C32: =kod!C5 -> Bull Tackle | D32: 0 | E32: 0 | F32: 0 | H32: =MAX(J32:AZ32) -> 0 | I32: koi ponty
A33: A4 | B33: =kod!B5 -> Gát, mélyvíz | C33: =kod!C5 -> Bull Tackle | D33: 0 | E33: 0 | F33: 0 | G33: =MAX(J33:BA33) -> 0 | I33: amur
A34: A4 | B34: =kod!B5 -> Gát, mélyvíz | C34: =kod!C5 -> Bull Tackle | D34: 0 | E34: 0 | F34: 0 | G34: =MAX(J34:BA34) -> 0 | I34: fekete amur
A35: A5 | B35: =kod!B6 -> Gát, mélyvíz | C35: =kod!C6 -> AHFSZ Fishing Team | D35: =SUM(D36:D41) -> 15.975 | E35: =SUM(E36:E41) -> 1 | F35: 15.975 | G35: =MAX(G36:G41) -> 15.975 | H35: =H39 -> 0 | I35: ÖSSZESEN | J35: =COUNTIFS($J36:$BB41,">9,99",$J36:$BB41,"<20") -> 1 | K35: =COUNTIFS($J36:$BB41,">19,99") -> 0 | L35: =COUNTIFS($J39:$BA39,">4,99",$J39:$BA39,"<9,99") -> 0 | M35: =COUNTIFS($J39:$BB39,">9,99") -> 0
A36: A5 | B36: =kod!B6 -> Gát, mélyvíz | C36: =kod!C6 -> AHFSZ Fishing Team | D36: =SUM(J36:AZ36) -> 0 | E36: =COUNT(J36:AZ36) -> 0 | F36: 0 | G36: =MAX(J36:BA36) -> 0 | I36: tükörponty
A37: A5 | B37: =kod!B6 -> Gát, mélyvíz | C37: =kod!C6 -> AHFSZ Fishing Team | D37: 0 | E37: 0 | F37: 0 | G37: =MAX(J37:BA37) -> 0 | I37: tőponty
A38: A5 | B38: =kod!B6 -> Gát, mélyvíz | C38: =kod!C6 -> AHFSZ Fishing Team | D38: 15.975 | E38: 1 | F38: 15.975 | G38: =MAX(J38:BA38) -> 15.975 | I38: nyurgaponty | J38: 15.975
A39: A5 | B39: =kod!B6 -> Gát, mélyvíz | C39: =kod!C6 -> AHFSZ Fishing Team | D39: 0 | E39: 0 | F39: 0 | H39: =MAX(J39:AZ39) -> 0 | I39: koi ponty
A40: A5 | B40: =kod!B6 -> Gát, mélyvíz | C40: =kod!C6 -> AHFSZ Fishing Team | D40: 0 | E40: 0 | F40: 0 | G40: =MAX(J40:BA40) -> 0 | I40: amur
A41: A5 | B41: =kod!B6 -> Gát, mélyvíz | C41: =kod!C6 -> AHFSZ Fishing Team | D41: 0 | E41: 0 | F41: 0 | G41: =MAX(J41:BA41) -> 0 | I41: fekete amur
A42: A6 | B42: =kod!B7 -> Nyári kikötő, belső | C42: =kod!C7 -> Black Carp Team | D42: =SUM(D43:D48) -> 71.65 | E42: =SUM(E43:E48) -> 8 | F42: 8.95625 | G42: =MAX(G43:G48) -> 17.025 | H42: =H46 -> 7.75 | I42: ÖSSZESEN | J42: =COUNTIFS($J43:$BB48,">9,99",$J43:$BB48,"<20") -> 4 | K42: =COUNTIFS($J43:$BB48,">19,99") -> 0 | L42: =COUNTIFS($J46:$BA46,">4,99",$J46:$BA46,"<9,99") -> 1 | M42: =COUNTIFS($J46:$BB46,">9,99") -> 0
A43: A6 | B43: =kod!B7 -> Nyári kikötő, belső | C43: =kod!C7 -> Black Carp Team | D43: =SUM(J43:AZ43) -> 0 | E43: =COUNT(J43:AZ43) -> 0 | F43: 0 | G43: =MAX(J43:BA43) -> 0 | I43: tükörponty
A44: A6 | B44: =kod!B7 -> Nyári kikötő, belső | C44: =kod!C7 -> Black Carp Team | D44: 12.05 | E44: 1 | F44: 12.05 | G44: =MAX(J44:BA44) -> 12.05 | I44: tőponty | J44: 12.05
A45: A6 | B45: =kod!B7 -> Nyári kikötő, belső | C45: =kod!C7 -> Black Carp Team | D45: 0 | E45: 0 | F45: 0 | G45: =MAX(J45:BA45) -> 0 | I45: nyurgaponty
A46: A6 | B46: =kod!B7 -> Nyári kikötő, belső | C46: =kod!C7 -> Black Carp Team | D46: 7.75 | E46: 1 | F46: 7.75 | H46: =MAX(J46:AZ46) -> 7.75 | I46: koi ponty | J46: 7.75
A47: A6 | B47: =kod!B7 -> Nyári kikötő, belső | C47: =kod!C7 -> Black Carp Team | D47: 0 | E47: 0 | F47: 0 | G47: =MAX(J47:BA47) -> 0 | I47: amur
A48: A6 | B48: =kod!B7 -> Nyári kikötő, belső | C48: =kod!C7 -> Black Carp Team | D48: 51.85 | E48: 6 | F48: 8.641666667 | G48: =MAX(J48:BA48) -> 17.025 | I48: fekete amur | J48: 17.025 | K48: 13.575 | L48: 11.9 | M48: 3.05 | N48: 3.575 | O48: 2.725
A49: A7 | B49: =kod!B8 -> Nyári kikötő, közép | C49: =kod!C8 -> USA & Mivado Carp Team | D49: =SUM(D50:D55) -> 26.9 | E49: =SUM(E50:E55) -> 4 | F49: 6.725 | G49: =MAX(G50:G55) -> 9.075 | H49: =H53 -> 0 | I49: ÖSSZESEN | J49: =COUNTIFS($J50:$BB55,">9,99",$J50:$BB55,"<20") -> 0 | K49: =COUNTIFS($J50:$BB55,">19,99") -> 0 | L49: =COUNTIFS($J53:$BA53,">4,99",$J53:$BA53,"<9,99") -> 0 | M49: =COUNTIFS($J53:$BB53,">9,99") -> 0
A50: A7 | B50: =kod!B8 -> Nyári kikötő, közép | C50: =kod!C8 -> USA & Mivado Carp Team | D50: =SUM(J50:AZ50) -> 0 | E50: =COUNT(J50:AZ50) -> 0 | F50: 0 | G50: =MAX(J50:BA50) -> 0 | I50: tükörponty
A51: A7 | B51: =kod!B8 -> Nyári kikötő, közép | C51: =kod!C8 -> USA & Mivado Carp Team | D51: 19.95 | E51: 3 | F51: 6.65 | G51: =MAX(J51:BA51) -> 9.075 | I51: tőponty | J51: 5.675 | K51: 9.075 | L51: 5.2
A52: A7 | B52: =kod!B8 -> Nyári kikötő, közép | C52: =kod!C8 -> USA & Mivado Carp Team | D52: 0 | E52: 0 | F52: 0 | G52: =MAX(J52:BA52) -> 0 | I52: nyurgaponty
A53: A7 | B53: =kod!B8 -> Nyári kikötő, közép | C53: =kod!C8 -> USA & Mivado Carp Team | D53: 0 | E53: 0 | F53: 0 | H53: =MAX(J53:AZ53) -> 0 | I53: koi ponty
A54: A7 | B54: =kod!B8 -> Nyári kikötő, közép | C54: =kod!C8 -> USA & Mivado Carp Team | D54: 6.95 | E54: 1 | F54: 6.95 | G54: =MAX(J54:BA54) -> 6.95 | I54: amur | J54: 6.95
A55: A7 | B55: =kod!B8 -> Nyári kikötő, közép | C55: =kod!C8 -> USA & Mivado Carp Team | D55: 0 | E55: 0 | F55: 0 | G55: =MAX(J55:BA55) -> 0 | I55: fekete amur
A56: A8 | B56: =kod!B9 -> Nyári kikötő, külső | C56: =kod!C9 -> Ózdi Sporthorgász Egyesület | D56: =SUM(D57:D62) -> 19.475 | E56: =SUM(E57:E62) -> 2 | F56: 9.7375 | G56: =MAX(G57:G62) -> 16.725 | H56: =H60 -> 0 | I56: ÖSSZESEN | J56: =COUNTIFS($J57:$BB62,">9,99",$J57:$BB62,"<20") -> 1 | K56: =COUNTIFS($J57:$BB62,">19,99") -> 0 | L56: =COUNTIFS($J60:$BA60,">4,99",$J60:$BA60,"<9,99") -> 0 | M56: =COUNTIFS($J60:$BB60,">9,99") -> 0
A57: A8 | B57: =kod!B9 -> Nyári kikötő, külső | C57: =kod!C9 -> Ózdi Sporthorgász Egyesület | D57: =SUM(J57:AZ57) -> 0 | E57: =COUNT(J57:AZ57) -> 0 | F57: 0 | G57: =MAX(J57:BA57) -> 0 | I57: tükörponty
A58: A8 | B58: =kod!B9 -> Nyári kikötő, külső | C58: =kod!C9 -> Ózdi Sporthorgász Egyesület | D58: 0 | E58: 0 | F58: 0 | G58: =MAX(J58:BA58) -> 0 | I58: tőponty
A59: A8 | B59: =kod!B9 -> Nyári kikötő, külső | C59: =kod!C9 -> Ózdi Sporthorgász Egyesület | D59: 16.725 | E59: 1 | F59: 16.725 | G59: =MAX(J59:BA59) -> 16.725 | I59: nyurgaponty | J59: 16.725
A60: A8 | B60: =kod!B9 -> Nyári kikötő, külső | C60: =kod!C9 -> Ózdi Sporthorgász Egyesület | D60: 0 | E60: 0 | F60: 0 | H60: =MAX(J60:AZ60) -> 0 | I60: koi ponty
A61: A8 | B61: =kod!B9 -> Nyári kikötő, külső | C61: =kod!C9 -> Ózdi Sporthorgász Egyesület | D61: 0 | E61: 0 | F61: 0 | G61: =MAX(J61:BA61) -> 0 | I61: amur
A62: A8 | B62: =kod!B9 -> Nyári kikötő, külső | C62: =kod!C9 -> Ózdi Sporthorgász Egyesület | D62: 2.75 | E62: 1 | F62: 2.75 | G62: =MAX(J62:BA62) -> 2.75 | I62: fekete amur | J62: 2.75
A63: A9 | B63: =kod!B10 -> I. sziget, bal külső | C63: =kod!C10 -> Kártékony Carp Team | D63: =SUM(D64:D69) -> 106.775 | E63: =SUM(E64:E69) -> 16 | F63: 6.6734375 | G63: =MAX(G64:G69) -> 9.775 | H63: =H67 -> 0 | I63: ÖSSZESEN | J63: =COUNTIFS($J64:$BB69,">9,99",$J64:$BB69,"<20") -> 0 | K63: =COUNTIFS($J64:$BB69,">19,99") -> 0 | L63: =COUNTIFS($J67:$BA67,">4,99",$J67:$BA67,"<9,99") -> 0 | M63: =COUNTIFS($J67:$BB67,">9,99") -> 0
A64: A9 | B64: =kod!B10 -> I. sziget, bal külső | C64: =kod!C10 -> Kártékony Carp Team | D64: =SUM(J64:AZ64) -> 34.1 | E64: =COUNT(J64:AZ64) -> 6 | F64: 5.683333333 | G64: =MAX(J64:BA64) -> 8.375 | I64: tükörponty | J64: 8.375 | K64: 5.25 | L64: 5.025 | M64: 5.225 | N64: 5.5 | O64: 4.725
A65: A9 | B65: =kod!B10 -> I. sziget, bal külső | C65: =kod!C10 -> Kártékony Carp Team | D65: 66.625 | E65: 9 | F65: 7.402777778 | G65: =MAX(J65:BA65) -> 9.775 | I65: tőponty | J65: 9.4 | K65: 5.05 | L65: 6.5 | M65: 9.775 | N65: 6.85 | O65: 8.4 | P65: 5.5 | Q65: 6.9 | R65: 8.25
A66: A9 | B66: =kod!B10 -> I. sziget, bal külső | C66: =kod!C10 -> Kártékony Carp Team | D66: 6.05 | E66: 1 | F66: 6.05 | G66: =MAX(J66:BA66) -> 6.05 | I66: nyurgaponty | J66: 6.05
A67: A9 | B67: =kod!B10 -> I. sziget, bal külső | C67: =kod!C10 -> Kártékony Carp Team | D67: 0 | E67: 0 | F67: 0 | H67: =MAX(J67:AZ67) -> 0 | I67: koi ponty
A68: A9 | B68: =kod!B10 -> I. sziget, bal külső | C68: =kod!C10 -> Kártékony Carp Team | D68: 0 | E68: 0 | F68: 0 | G68: =MAX(J68:BA68) -> 0 | I68: amur
A69: A9 | B69: =kod!B10 -> I. sziget, bal külső | C69: =kod!C10 -> Kártékony Carp Team | D69: 0 | E69: 0 | F69: 0 | G69: =MAX(J69:BA69) -> 0 | I69: fekete amur
A70: A10 | B70: =kod!B11 -> I. sziget, bal | C70: =kod!C11 -> Team 5 Austria | D70: =SUM(D71:D76) -> 9.4 | E70: =SUM(E71:E76) -> 1 | F70: 9.4 | G70: =MAX(G71:G76) -> 9.4 | H70: =H74 -> 0 | I70: ÖSSZESEN | J70: =COUNTIFS($J71:$BB76,">9,99",$J71:$BB76,"<20") -> 0 | K70: =COUNTIFS($J71:$BB76,">19,99") -> 0 | L70: =COUNTIFS($J74:$BA74,">4,99",$J74:$BA74,"<9,99") -> 0 | M70: =COUNTIFS($J74:$BB74,">9,99") -> 0
A71: A10 | B71: =kod!B11 -> I. sziget, bal | C71: =kod!C11 -> Team 5 Austria | D71: =SUM(J71:AZ71) -> 9.4 | E71: =COUNT(J71:AZ71) -> 1 | F71: 9.4 | G71: =MAX(J71:BA71) -> 9.4 | I71: tükörponty | J71: 9.4
A72: A10 | B72: =kod!B11 -> I. sziget, bal | C72: =kod!C11 -> Team 5 Austria | D72: 0 | E72: 0 | F72: =IF(E72=0,0,D72/E72) -> 0 | G72: =MAX(J72:BA72) -> 0 | I72: tőponty
A73: A10 | B73: =kod!B11 -> I. sziget, bal | C73: =kod!C11 -> Team 5 Austria | D73: 0 | E73: 0 | F73: 0 | G73: =MAX(J73:BA73) -> 0 | I73: nyurgaponty
A74: A10 | B74: =kod!B11 -> I. sziget, bal | C74: =kod!C11 -> Team 5 Austria | D74: 0 | E74: 0 | F74: 0 | H74: =MAX(J74:AZ74) -> 0 | I74: koi ponty
A75: A10 | B75: =kod!B11 -> I. sziget, bal | C75: =kod!C11 -> Team 5 Austria | D75: 0 | E75: 0 | F75: 0 | G75: =MAX(J75:BA75) -> 0 | I75: amur
A76: A10 | B76: =kod!B11 -> I. sziget, bal | C76: =kod!C11 -> Team 5 Austria | D76: 0 | E76: 0 | F76: 0 | G76: =MAX(J76:BA76) -> 0 | I76: fekete amur
A77: A11 | B77: =kod!B12 -> I. sziget, bal közép | C77: =kod!C12 -> Invader's Team Poland | D77: =SUM(D78:D83) -> 56.575 | E77: =SUM(E78:E83) -> 5 | F77: 11.315 | G77: =MAX(G78:G83) -> 14.075 | H77: =H81 -> 0 | I77: ÖSSZESEN | J77: =COUNTIFS($J78:$BB83,">9,99",$J78:$BB83,"<20") -> 3 | K77: =COUNTIFS($J78:$BB83,">19,99") -> 0 | L77: =COUNTIFS($J81:$BA81,">4,99",$J81:$BA81,"<9,99") -> 0 | M77: =COUNTIFS($J81:$BB81,">9,99") -> 0
A78: A11 | B78: =kod!B12 -> I. sziget, bal közép | C78: =kod!C12 -> Invader's Team Poland | D78: =SUM(J78:AZ78) -> 9.725 | E78: =COUNT(J78:AZ78) -> 1 | F78: 9.725 | G78: =MAX(J78:BA78) -> 9.725 | I78: tükörponty | J78: 9.725
A79: A11 | B79: =kod!B12 -> I. sziget, bal közép | C79: =kod!C12 -> Invader's Team Poland | D79: 7.375 | E79: 1 | F79: 7.375 | G79: =MAX(J79:BA79) -> 7.375 | I79: tőponty | J79: 7.375
A80: A11 | B80: =kod!B12 -> I. sziget, bal közép | C80: =kod!C12 -> Invader's Team Poland | D80: 12.35 | E80: 1 | F80: 12.35 | G80: =MAX(J80:BA80) -> 12.35 | I80: nyurgaponty | J80: 12.35
A81: A11 | B81: =kod!B12 -> I. sziget, bal közép | C81: =kod!C12 -> Invader's Team Poland | D81: 0 | E81: 0 | F81: 0 | H81: =MAX(J81:AZ81) -> 0 | I81: koi ponty
A82: A11 | B82: =kod!B12 -> I. sziget, bal közép | C82: =kod!C12 -> Invader's Team Poland | D82: 27.125 | E82: 2 | F82: 13.5625 | G82: =MAX(J82:BA82) -> 14.075 | I82: amur | J82: 13.05 | K82: 14.075
A83: A11 | B83: =kod!B12 -> I. sziget, bal közép | C83: =kod!C12 -> Invader's Team Poland | D83: 0 | E83: 0 | F83: 0 | G83: =MAX(J83:BA83) -> 0 | I83: fekete amur
A84: B1 | B84: =kod!B13 -> Gát, közepes víz | C84: =kod!C13 -> Tata Nitu Carp Team | D84: =SUM(D85:D90) -> 37.75 | E84: =SUM(E85:E90) -> 5 | F84: =IF(E84=0,0,D84/E84) -> 7.55 | G84: =MAX(G85:G90) -> 13.7 | H84: =H88 -> 0 | I84: ÖSSZESEN | J84: =COUNTIFS($J85:$BB90,">9,99",$J85:$BB90,"<20") -> 1 | K84: =COUNTIFS($J85:$BB90,">19,99") -> 0 | L84: =COUNTIFS($J88:$BA88,">4,99",$J88:$BA88,"<9,99") -> 0 | M84: =COUNTIFS($J88:$BB88,">9,99") -> 0
A85: B1 | B85: =kod!B13 -> Gát, közepes víz | C85: =kod!C13 -> Tata Nitu Carp Team | D85: =SUM(J85:AZ85) -> 0 | E85: =COUNT(J85:AZ85) -> 0 | F85: =IF(E85=0,0,D85/E85) -> 0 | G85: =MAX(J85:BA85) -> 0 | I85: tükörponty
A86: B1 | B86: =kod!B13 -> Gát, közepes víz | C86: =kod!C13 -> Tata Nitu Carp Team | D86: 9.05 | E86: 2 | F86: 4.525 | G86: =MAX(J86:BA86) -> 7.875 | I86: tőponty | J86: 7.875 | K86: 1.175
A87: B1 | B87: =kod!B13 -> Gát, közepes víz | C87: =kod!C13 -> Tata Nitu Carp Team | D87: 15 | E87: 2 | F87: 7.5 | G87: =MAX(J87:BA87) -> 8.075 | I87: nyurgaponty | J87: 6.925 | K87: 8.075
A88: B1 | B88: =kod!B13 -> Gát, közepes víz | C88: =kod!C13 -> Tata Nitu Carp Team | D88: 0 | E88: 0 | F88: 0 | H88: =MAX(J88:AZ88) -> 0 | I88: koi ponty
A89: B1 | B89: =kod!B13 -> Gát, közepes víz | C89: =kod!C13 -> Tata Nitu Carp Team | D89: 13.7 | E89: 1 | F89: 13.7 | G89: =MAX(J89:BA89) -> 13.7 | I89: amur | J89: 13.7
A90: B1 | B90: =kod!B13 -> Gát, közepes víz | C90: =kod!C13 -> Tata Nitu Carp Team | D90: 0 | E90: 0 | F90: 0 | G90: =MAX(J90:BA90) -> 0 | I90: fekete amur
A91: B2 | B91: =kod!B14 -> Gát, közepes víz | C91: =kod!C14 -> Slovakia Carp Team | D91: =SUM(D92:D97) -> 69.925 | E91: =SUM(E92:E97) -> 7 | F91: 9.989285714 | G91: =MAX(G92:G97) -> 15.375 | H91: =H95 -> 0 | I91: ÖSSZESEN | J91: =COUNTIFS($J92:$BB97,">9,99",$J92:$BB97,"<20") -> 3 | K91: =COUNTIFS($J92:$BB97,">19,99") -> 0 | L91: =COUNTIFS($J95:$BA95,">4,99",$J95:$BA95,"<9,99") -> 0 | M91: =COUNTIFS($J95:$BB95,">9,99") -> 0
A92: B2 | B92: =kod!B14 -> Gát, közepes víz | C92: =kod!C14 -> Slovakia Carp Team | D92: =SUM(J92:AZ92) -> 0 | E92: =COUNT(J92:AZ92) -> 0 | F92: 0 | G92: =MAX(J92:BA92) -> 0 | I92: tükörponty
A93: B2 | B93: =kod!B14 -> Gát, közepes víz | C93: =kod!C14 -> Slovakia Carp Team | D93: 14.525 | E93: 2 | F93: 7.2625 | G93: =MAX(J93:BA93) -> 8.225 | I93: tőponty | J93: 6.3 | K93: 8.225
A94: B2 | B94: =kod!B14 -> Gát, közepes víz | C94: =kod!C14 -> Slovakia Carp Team | D94: 45.6 | E94: 4 | F94: 11.4 | G94: =MAX(J94:BA94) -> 15.375 | I94: nyurgaponty | J94: 13.025 | K94: 11.35 | L94: 5.85 | M94: 15.375
A95: B2 | B95: =kod!B14 -> Gát, közepes víz | C95: =kod!C14 -> Slovakia Carp Team | D95: 0 | E95: 0 | F95: 0 | H95: =MAX(J95:AZ95) -> 0 | I95: koi ponty
A96: B2 | B96: =kod!B14 -> Gát, közepes víz | C96: =kod!C14 -> Slovakia Carp Team | D96: 9.8 | E96: 1 | F96: 9.8 | G96: =MAX(J96:BA96) -> 9.8 | I96: amur | J96: 9.8
A97: B2 | B97: =kod!B14 -> Gát, közepes víz | C97: =kod!C14 -> Slovakia Carp Team | D97: 0 | E97: 0 | F97: 0 | G97: =MAX(J97:BA97) -> 0 | I97: fekete amur
A98: B3 | B98: =kod!B15 -> Gát, közepes víz | C98: =kod!C15 -> WLC Hungary | D98: =SUM(D99:D104) -> 54.625 | E98: =SUM(E99:E104) -> 8 | F98: 6.828125 | G98: =MAX(G99:G104) -> 12.975 | H98: =H102 -> 0 | I98: ÖSSZESEN | J98: =COUNTIFS($J99:$BB104,">9,99",$J99:$BB104,"<20") -> 1 | K98: =COUNTIFS($J99:$BB104,">19,99") -> 0 | L98: =COUNTIFS($J102:$BA102,">4,99",$J102:$BA102,"<9,99") -> 0 | M98: =COUNTIFS($J102:$BB102,">9,99") -> 0
A99: B3 | B99: =kod!B15 -> Gát, közepes víz | C99: =kod!C15 -> WLC Hungary | D99: =SUM(J99:AZ99) -> 0 | E99: =COUNT(J99:AZ99) -> 0 | F99: 0 | G99: =MAX(J99:BA99) -> 0 | I99: tükörponty
A100: B3 | B100: =kod!B15 -> Gát, közepes víz | C100: =kod!C15 -> WLC Hungary | D100: 20.375 | E100: 3 | F100: 6.791666667 | G100: =MAX(J100:BA100) -> 9.925 | I100: tőponty | J100: 9.925 | K100: 6.025 | L100: 4.425
A101: B3 | B101: =kod!B15 -> Gát, közepes víz | C101: =kod!C15 -> WLC Hungary | D101: 25.5 | E101: 3 | F101: 8.5 | G101: =MAX(J101:BA101) -> 12.975 | I101: nyurgaponty | J101: 12.975 | K101: 5.025 | L101: 7.5
A102: B3 | B102: =kod!B15 -> Gát, közepes víz | C102: =kod!C15 -> WLC Hungary | D102: 0 | E102: 0 | F102: 0 | H102: =MAX(J102:AZ102) -> 0 | I102: koi ponty
A103: B3 | B103: =kod!B15 -> Gát, közepes víz | C103: =kod!C15 -> WLC Hungary | D103: 5.025 | E103: 1 | F103: 5.025 | G103: =MAX(J103:BA103) -> 5.025 | I103: amur | J103: 5.025
A104: B3 | B104: =kod!B15 -> Gát, közepes víz | C104: =kod!C15 -> WLC Hungary | D104: 3.725 | E104: 1 | F104: 3.725 | G104: =MAX(J104:BA104) -> 3.725 | I104: fekete amur | J104: 3.725
A105: B4 | B105: =kod!B16 -> Gát, közepes víz | C105: =kod!C16 -> Barfin Line NSD Bulgaria | D105: =SUM(D106:D111) -> 21.825 | E105: =SUM(E106:E111) -> 2 | F105: 10.9125 | G105: =MAX(G106:G111) -> 15.625 | H105: =H109 -> 0 | I105: ÖSSZESEN | J105: =COUNTIFS($J106:$BB111,">9,99",$J106:$BB111,"<20") -> 1 | K105: =COUNTIFS($J106:$BB111,">19,99") -> 0 | L105: =COUNTIFS($J109:$BA109,">4,99",$J109:$BA109,"<9,99") -> 0 | M105: =COUNTIFS($J109:$BB109,">9,99") -> 0
A106: B4 | B106: =kod!B16 -> Gát, közepes víz | C106: =kod!C16 -> Barfin Line NSD Bulgaria | D106: =SUM(J106:AZ106) -> 0 | E106: =COUNT(J106:AZ106) -> 0 | F106: 0 | G106: =MAX(J106:BA106) -> 0 | I106: tükörponty
A107: B4 | B107: =kod!B16 -> Gát, közepes víz | C107: =kod!C16 -> Barfin Line NSD Bulgaria | D107: 6.2 | E107: 1 | F107: 6.2 | G107: 6.2 | I107: tőponty | J107: 6.2
A108: B4 | B108: =kod!B16 -> Gát, közepes víz | C108: =kod!C16 -> Barfin Line NSD Bulgaria | D108: 15.625 | E108: 1 | F108: 15.625 | G108: 15.625 | I108: nyurgaponty | J108: 15.625
A109: B4 | B109: =kod!B16 -> Gát, közepes víz | C109: =kod!C16 -> Barfin Line NSD Bulgaria | D109: 0 | E109: 0 | F109: 0 | G109: 0 | H109: =MAX(J109:AZ109) -> 0 | I109: koi ponty
A110: B4 | B110: =kod!B16 -> Gát, közepes víz | C110: =kod!C16 -> Barfin Line NSD Bulgaria | D110: 0 | E110: 0 | F110: 0 | G110: 0 | I110: amur
A111: B4 | B111: =kod!B16 -> Gát, közepes víz | C111: =kod!C16 -> Barfin Line NSD Bulgaria | D111: 0 | E111: 0 | F111: 0 | G111: 0 | I111: fekete amur
A112: B5 | B112: =kod!B17 -> Gát, közepes víz | C112: =kod!C17 -> Lutra Carp Hunters | D112: =SUM(D113:D118) -> 0 | E112: =SUM(E113:E118) -> 0 | F112: 0 | G112: =MAX(G113:G118) -> 0 | H112: =H116 -> 0 | I112: ÖSSZESEN | J112: =COUNTIFS($J113:$BB118,">9,99",$J113:$BB118,"<20") -> 0 | K112: =COUNTIFS($J113:$BB118,">19,99") -> 0 | L112: =COUNTIFS($J116:$BA116,">4,99",$J116:$BA116,"<9,99") -> 0 | M112: =COUNTIFS($J116:$BB116,">9,99") -> 0
A113: B5 | B113: =kod!B17 -> Gát, közepes víz | C113: =kod!C17 -> Lutra Carp Hunters | D113: =SUM(J113:AZ113) -> 0 | E113: =COUNT(J113:AZ113) -> 0 | F113: 0 | G113: =MAX(J113:BA113) -> 0 | I113: tükörponty
A114: B5 | B114: =kod!B17 -> Gát, közepes víz | C114: =kod!C17 -> Lutra Carp Hunters | D114: 0 | E114: 0 | F114: 0 | G114: =MAX(J114:BA114) -> 0 | I114: tőponty
A115: B5 | B115: =kod!B17 -> Gát, közepes víz | C115: =kod!C17 -> Lutra Carp Hunters | D115: 0 | E115: 0 | F115: 0 | G115: =MAX(J115:BA115) -> 0 | I115: nyurgaponty
A116: B5 | B116: =kod!B17 -> Gát, közepes víz | C116: =kod!C17 -> Lutra Carp Hunters | D116: 0 | E116: 0 | F116: 0 | H116: =MAX(J116:AZ116) -> 0 | I116: koi ponty
A117: B5 | B117: =kod!B17 -> Gát, közepes víz | C117: =kod!C17 -> Lutra Carp Hunters | D117: 0 | E117: 0 | F117: 0 | G117: =MAX(J117:BA117) -> 0 | I117: amur
A118: B5 | B118: =kod!B17 -> Gát, közepes víz | C118: =kod!C17 -> Lutra Carp Hunters | D118: 0 | E118: 0 | F118: 0 | G118: =MAX(J118:BA118) -> 0 | I118: fekete amur
A119: B6 | B119: =kod!B18 -> Gát, közepes víz | C119: =kod!C18 -> Xtra Carp Team | D119: =SUM(D120:D125) -> 111.975 | E119: =SUM(E120:E125) -> 10 | F119: 11.1975 | G119: =MAX(G120:G125) -> 16.95 | H119: =H123 -> 0 | I119: ÖSSZESEN | J119: =COUNTIFS($J120:$BB125,">9,99",$J120:$BB125,"<20") -> 6 | K119: =COUNTIFS($J120:$BB125,">19,99") -> 0 | L119: =COUNTIFS($J123:$BA123,">4,99",$J123:$BA123,"<9,99") -> 0 | M119: =COUNTIFS($J123:$BB123,">9,99") -> 0
A120: B6 | B120: =kod!B18 -> Gát, közepes víz | C120: =kod!C18 -> Xtra Carp Team | D120: =SUM(J120:AZ120) -> 22.575 | E120: =COUNT(J120:AZ120) -> 2 | F120: 11.2875 | G120: =MAX(J120:BA120) -> 12.875 | I120: tükörponty | J120: 9.7 | K120: 12.875
A121: B6 | B121: =kod!B18 -> Gát, közepes víz | C121: =kod!C18 -> Xtra Carp Team | D121: 18.65 | E121: 2 | F121: 9.325 | G121: =MAX(J121:BA121) -> 11.425 | I121: tőponty | J121: 11.425 | K121: 7.225
A122: B6 | B122: =kod!B18 -> Gát, közepes víz | C122: =kod!C18 -> Xtra Carp Team | D122: 70.75 | E122: 6 | F122: 11.79166667 | G122: =MAX(J122:BA122) -> 16.95 | I122: nyurgaponty | J122: 12.4 | K122: 7.825 | L122: 10.15 | M122: 16.95 | N122: 9.975 | O122: 13.45
A123: B6 | B123: =kod!B18 -> Gát, közepes víz | C123: =kod!C18 -> Xtra Carp Team | D123: 0 | E123: 0 | F123: 0 | H123: =MAX(J123:AZ123) -> 0 | I123: koi ponty
A124: B6 | B124: =kod!B18 -> Gát, közepes víz | C124: =kod!C18 -> Xtra Carp Team | D124: 0 | E124: 0 | F124: 0 | G124: =MAX(J124:BA124) -> 0 | I124: amur
A125: B6 | B125: =kod!B18 -> Gát, közepes víz | C125: =kod!C18 -> Xtra Carp Team | D125: 0 | E125: 0 | F125: 0 | G125: =MAX(J125:BA125) -> 0 | I125: fekete amur
A126: B7 | B126: =kod!B19 -> I. sziget, jobb közép | C126: =kod!C19 -> Elite Carp Team Brasov | D126: =SUM(D127:D132) -> 66.7 | E126: =SUM(E127:E132) -> 6 | F126: 11.11666667 | G126: =MAX(G127:G132) -> 25.875 | H126: =H130 -> 4.425 | I126: ÖSSZESEN | J126: =COUNTIFS($J127:$BB132,">9,99",$J127:$BB132,"<20") -> 1 | K126: =COUNTIFS($J127:$BB132,">19,99") -> 1 | L126: =COUNTIFS($J130:$BA130,">4,99",$J130:$BA130,"<9,99") -> 0 | M126: =COUNTIFS($J130:$BB130,">9,99") -> 0
A127: B7 | B127: =kod!B19 -> I. sziget, jobb közép | C127: =kod!C19 -> Elite Carp Team Brasov | D127: =SUM(J127:AZ127) -> 17.55 | E127: =COUNT(J127:AZ127) -> 2 | F127: 8.775 | G127: =MAX(J127:BA127) -> 9.05 | I127: tükörponty | J127: 8.5 | K127: 9.05
A128: B7 | B128: =kod!B19 -> I. sziget, jobb közép | C128: =kod!C19 -> Elite Carp Team Brasov | D128: 32.825 | E128: 2 | F128: 16.4125 | G128: =MAX(J128:BA128) -> 25.875 | I128: tőponty | J128: 25.875 | K128: 6.95
A129: B7 | B129: =kod!B19 -> I. sziget, jobb közép | C129: =kod!C19 -> Elite Carp Team Brasov | D129: 11.9 | E129: 1 | F129: 11.9 | G129: =MAX(J129:BA129) -> 11.9 | I129: nyurgaponty | J129: 11.9
A130: B7 | B130: =kod!B19 -> I. sziget, jobb közép | C130: =kod!C19 -> Elite Carp Team Brasov | D130: 4.425 | E130: 1 | F130: 4.425 | H130: =MAX(J130:AZ130) -> 4.425 | I130: koi ponty | J130: 4.425
A131: B7 | B131: =kod!B19 -> I. sziget, jobb közép | C131: =kod!C19 -> Elite Carp Team Brasov | D131: 0 | E131: 0 | F131: 0 | G131: =MAX(J131:BA131) -> 0 | I131: amur
A132: B7 | B132: =kod!B19 -> I. sziget, jobb közép | C132: =kod!C19 -> Elite Carp Team Brasov | D132: 0 | E132: 0 | F132: 0 | G132: =MAX(J132:BA132) -> 0 | I132: fekete amur
A133: B8 | B133: =kod!B20 -> I. sziget, jobb | C133: =kod!C20 -> CT777 Varna Bulgaria | D133: =SUM(D134:D139) -> 143.9 | E133: =SUM(E134:E139) -> 15 | F133: 9.593333333 | G133: =MAX(G134:G139) -> 13.65 | H133: =H137 -> 9.525 | I133: ÖSSZESEN | J133: =COUNTIFS($J134:$BB139,">9,99",$J134:$BB139,"<20") -> 8 | K133: =COUNTIFS($J134:$BB139,">19,99") -> 0 | L133: =COUNTIFS($J137:$BA137,">4,99",$J137:$BA137,"<9,99") -> 1 | M133: =COUNTIFS($J137:$BB137,">9,99") -> 0
A134: B8 | B134: =kod!B20 -> I. sziget, jobb | C134: =kod!C20 -> CT777 Varna Bulgaria | D134: =SUM(J134:AZ134) -> 27.35 | E134: =COUNT(J134:AZ134) -> 3 | F134: 9.116666667 | G134: =MAX(J134:BA134) -> 11.35 | I134: tükörponty | J134: 6.975 | K134: 9.025 | L134: 11.35
A135: B8 | B135: =kod!B20 -> I. sziget, jobb | C135: =kod!C20 -> CT777 Varna Bulgaria | D135: 9.6 | E135: 1 | F135: 9.6 | G135: =MAX(J135:BA135) -> 9.6 | I135: tőponty | J135: 9.6
A136: B8 | B136: =kod!B20 -> I. sziget, jobb | C136: =kod!C20 -> CT777 Varna Bulgaria | D136: 12.75 | E136: 1 | F136: 12.75 | G136: =MAX(J136:BA136) -> 12.75 | I136: nyurgaponty | J136: 12.75
A137: B8 | B137: =kod!B20 -> I. sziget, jobb | C137: =kod!C20 -> CT777 Varna Bulgaria | D137: 9.525 | E137: 1 | F137: 9.525 | H137: =MAX(J137:AZ137) -> 9.525 | I137: koi ponty | J137: 9.525
A138: B8 | B138: =kod!B20 -> I. sziget, jobb | C138: =kod!C20 -> CT777 Varna Bulgaria | D138: 74.25 | E138: 6 | F138: 12.375 | G138: =MAX(J138:BA138) -> 13.65 | I138: amur | J138: 13.375 | K138: 12.95 | L138: 10.925 | M138: 13.65 | N138: 13.2 | O138: 10.15
A139: B8 | B139: =kod!B20 -> I. sziget, jobb | C139: =kod!C20 -> CT777 Varna Bulgaria | D139: 10.425 | E139: 3 | F139: 3.475 | G139: =MAX(J139:BA139) -> 3.6 | I139: fekete amur | J139: 3.6 | K139: 3.375 | L139: 3.45
A140: B9 | B140: =kod!B21 -> I. sziget, jobb külső | C140: =kod!C21 -> Bait Maker Team | D140: =SUM(D141:D146) -> 48.75 | E140: =SUM(E141:E146) -> 5 | F140: 9.75 | G140: =MAX(G141:G146) -> 13.275 | H140: =H144 -> 10.6 | I140: ÖSSZESEN | J140: =COUNTIFS($J141:$BB146,">9,99",$J141:$BB146,"<20") -> 2 | K140: =COUNTIFS($J141:$BB146,">19,99") -> 0 | L140: =COUNTIFS($J144:$BA144,">4,99",$J144:$BA144,"<9,99") -> 0 | M140: =COUNTIFS($J144:$BB144,">9,99") -> 1
A141: B9 | B141: =kod!B21 -> I. sziget, jobb külső | C141: =kod!C21 -> Bait Maker Team | D141: =SUM(J141:AZ141) -> 0 | E141: =COUNT(J141:AZ141) -> 0 | F141: 0 | G141: =MAX(J141:BA141) -> 0 | I141: tükörponty
A142: B9 | B142: =kod!B21 -> I. sziget, jobb külső | C142: =kod!C21 -> Bait Maker Team | D142: 15.375 | E142: 2 | F142: 7.6875 | G142: =MAX(J142:BA142) -> 7.725 | I142: tőponty | J142: 7.725 | K142: 7.65
A143: B9 | B143: =kod!B21 -> I. sziget, jobb külső | C143: =kod!C21 -> Bait Maker Team | D143: 0 | E143: 0 | F143: 0 | G143: =MAX(J143:BA143) -> 0 | I143: nyurgaponty
A144: B9 | B144: =kod!B21 -> I. sziget, jobb külső | C144: =kod!C21 -> Bait Maker Team | D144: 10.6 | E144: 1 | F144: 10.6 | H144: =MAX(J144:AZ144) -> 10.6 | I144: koi ponty | J144: 10.6
A145: B9 | B145: =kod!B21 -> I. sziget, jobb külső | C145: =kod!C21 -> Bait Maker Team | D145: 22.775 | E145: 2 | F145: 11.3875 | G145: =MAX(J145:BA145) -> 13.275 | I145: amur | J145: 9.5 | K145: 13.275
A146: B9 | B146: =kod!B21 -> I. sziget, jobb külső | C146: =kod!C21 -> Bait Maker Team | D146: 0 | E146: 0 | F146: 0 | G146: =MAX(J146:BA146) -> 0 | I146: fekete amur
A147: B10 | B147: =kod!B22 -> Felező-spicc, bal | C147: =kod!C22 -> SBS - SziKo Team | D147: =SUM(D148:D153) -> 51.1 | E147: =SUM(E148:E153) -> 7 | F147: 7.3 | G147: =MAX(G148:G153) -> 9.025 | H147: =H151 -> 12.4 | I147: ÖSSZESEN | J147: =COUNTIFS($J148:$BB153,">9,99",$J148:$BB153,"<20") -> 1 | K147: =COUNTIFS($J148:$BB153,">19,99") -> 0 | L147: =COUNTIFS($J151:$BA151,">4,99",$J151:$BA151,"<9,99") -> 0 | M147: =COUNTIFS($J151:$BB151,">9,99") -> 1
A148: B10 | B148: =kod!B22 -> Felező-spicc, bal | C148: =kod!C22 -> SBS - SziKo Team | D148: =SUM(J148:AZ148) -> 6.9 | E148: =COUNT(J148:AZ148) -> 1 | F148: 6.9 | G148: =MAX(J148:BA148) -> 6.9 | I148: tükörponty | J148: 6.9
A149: B10 | B149: =kod!B22 -> Felező-spicc, bal | C149: =kod!C22 -> SBS - SziKo Team | D149: 31.8 | E149: 5 | F149: =IF(E149=0,0,D149/E149) -> 6.36 | G149: =MAX(J149:BA149) -> 9.025 | I149: tőponty | J149: 5.35 | K149: 6.275 | L149: 9.025 | M149: 6.3 | N149: 4.85
A150: B10 | B150: =kod!B22 -> Felező-spicc, bal | C150: =kod!C22 -> SBS - SziKo Team | D150: 0 | E150: 0 | F150: 0 | G150: =MAX(J150:BA150) -> 0 | I150: nyurgaponty
A151: B10 | B151: =kod!B22 -> Felező-spicc, bal | C151: =kod!C22 -> SBS - SziKo Team | D151: 12.4 | E151: 1 | F151: 12.4 | H151: =MAX(J151:AZ151) -> 12.4 | I151: koi ponty | J151: 12.4
A152: B10 | B152: =kod!B22 -> Felező-spicc, bal | C152: =kod!C22 -> SBS - SziKo Team | D152: 0 | E152: 0 | F152: 0 | G152: =MAX(J152:BA152) -> 0 | I152: amur
A153: B10 | B153: =kod!B22 -> Felező-spicc, bal | C153: =kod!C22 -> SBS - SziKo Team | D153: 0 | E153: 0 | F153: 0 | G153: =MAX(J153:BA153) -> 0 | I153: fekete amur
A154: B11 | B154: =kod!B23 -> Felező-spicc, közép | C154: =kod!C23 -> Síp Carp Team | D154: =SUM(D155:D160) -> 30.325 | E154: =SUM(E155:E160) -> 5 | F154: 6.065 | G154: =MAX(G155:G160) -> 6.85 | H154: =H158 -> 0 | I154: ÖSSZESEN | J154: =COUNTIFS($J155:$BB160,">9,99",$J155:$BB160,"<20") -> 0 | K154: =COUNTIFS($J155:$BB160,">19,99") -> 0 | L154: =COUNTIFS($J158:$BA158,">4,99",$J158:$BA158,"<9,99") -> 0 | M154: =COUNTIFS($J158:$BB158,">9,99") -> 0
A155: B11 | B155: =kod!B23 -> Felező-spicc, közép | C155: =kod!C23 -> Síp Carp Team | D155: =SUM(J155:AZ155) -> 13.15 | E155: 2 | F155: 6.575 | G155: =MAX(J155:BA155) -> 6.85 | I155: tükörponty | J155: 6.85 | K155: 6.3
A156: B11 | B156: =kod!B23 -> Felező-spicc, közép | C156: =kod!C23 -> Síp Carp Team | D156: 17.175 | E156: 3 | F156: 5.725 | G156: 6.1 | I156: tőponty | J156: 5.75 | K156: 6.1 | L156: 5.325
A157: B11 | B157: =kod!B23 -> Felező-spicc, közép | C157: =kod!C23 -> Síp Carp Team | D157: 0 | E157: 0 | F157: 0 | G157: 0 | I157: nyurgaponty
A158: B11 | B158: =kod!B23 -> Felező-spicc, közép | C158: =kod!C23 -> Síp Carp Team | D158: 0 | E158: 0 | F158: 0 | H158: =MAX(J158:AZ158) -> 0 | I158: koi ponty
A159: B11 | B159: =kod!B23 -> Felező-spicc, közép | C159: =kod!C23 -> Síp Carp Team | D159: 0 | E159: 0 | F159: 0 | G159: =MAX(J159:BA159) -> 0 | I159: amur
A160: B11 | B160: =kod!B23 -> Felező-spicc, közép | C160: =kod!C23 -> Síp Carp Team | D160: 0 | E160: 0 | F160: 0 | G160: 0 | I160: fekete amur
A161: C1 | B161: =kod!B24 -> Gát, sekély víz | C161: =kod!C24 -> Carp Fever Bulgaria | D161: =SUM(D162:D167) -> 26.425 | E161: =SUM(E162:E167) -> 3 | F161: =IF(E161=0,0,D161/E161) -> 8.808333333 | G161: =MAX(G162:G167) -> 11.025 | H161: =H165 -> 0 | I161: ÖSSZESEN | J161: =COUNTIFS($J162:$BB167,">9,99",$J162:$BB167,"<20") -> 1 | K161: =COUNTIFS($J162:$BB167,">19,99") -> 0 | L161: =COUNTIFS($J165:$BA165,">4,99",$J165:$BA165,"<9,99") -> 0 | M161: =COUNTIFS($J165:$BB165,">9,99") -> 0
A162: C1 | B162: =kod!B24 -> Gát, sekély víz | C162: =kod!C24 -> Carp Fever Bulgaria | D162: =SUM(J162:AZ162) -> 0 | E162: =COUNT(J162:AZ162) -> 0 | F162: =IF(E162=0,0,D162/E162) -> 0 | G162: =MAX(J162:BA162) -> 0 | I162: tükörponty
A163: C1 | B163: =kod!B24 -> Gát, sekély víz | C163: =kod!C24 -> Carp Fever Bulgaria | D163: 15.4 | E163: 2 | F163: 7.7 | G163: =MAX(J163:BA163) -> 9.2 | I163: tőponty | J163: 9.2 | K163: 6.2
A164: C1 | B164: =kod!B24 -> Gát, sekély víz | C164: =kod!C24 -> Carp Fever Bulgaria | D164: 11.025 | E164: 1 | F164: 11.025 | G164: =MAX(J164:BA164) -> 11.025 | I164: nyurgaponty | J164: 11.025
A165: C1 | B165: =kod!B24 -> Gát, sekély víz | C165: =kod!C24 -> Carp Fever Bulgaria | D165: 0 | E165: 0 | F165: 0 | H165: =MAX(J165:AZ165) -> 0 | I165: koi ponty
A166: C1 | B166: =kod!B24 -> Gát, sekély víz | C166: =kod!C24 -> Carp Fever Bulgaria | D166: 0 | E166: 0 | F166: 0 | G166: =MAX(J166:BA166) -> 0 | I166: amur
A167: C1 | B167: =kod!B24 -> Gát, sekély víz | C167: =kod!C24 -> Carp Fever Bulgaria | D167: 0 | E167: 0 | F167: 0 | G167: =MAX(J167:BA167) -> 0 | I167: fekete amur
A168: C2 | B168: =kod!B25 -> Gát, sekély víz | C168: =kod!C25 -> Carpfriends Ennstal-Austria | D168: =SUM(D169:D174) -> 55.45 | E168: =SUM(E169:E174) -> 7 | F168: 7.921428571 | G168: =MAX(G169:G174) -> 14.2 | H168: =H172 -> 8.1 | I168: ÖSSZESEN | J168: =COUNTIFS($J169:$BB174,">9,99",$J169:$BB174,"<20") -> 1 | K168: =COUNTIFS($J169:$BB174,">19,99") -> 0 | L168: =COUNTIFS($J172:$BA172,">4,99",$J172:$BA172,"<9,99") -> 1 | M168: =COUNTIFS($J172:$BB172,">9,99") -> 0
A169: C2 | B169: =kod!B25 -> Gát, sekély víz | C169: =kod!C25 -> Carpfriends Ennstal-Austria | D169: =SUM(J169:AZ169) -> 0 | E169: =COUNT(J169:AZ169) -> 0 | F169: 0 | G169: =MAX(J169:BA169) -> 0 | I169: tükörponty
A170: C2 | B170: =kod!B25 -> Gát, sekély víz | C170: =kod!C25 -> Carpfriends Ennstal-Austria | D170: 17.775 | E170: 2 | F170: 8.8875 | G170: =MAX(J170:BA170) -> 9.6 | I170: tőponty | J170: 9.6 | K170: 8.175
A171: C2 | B171: =kod!B25 -> Gát, sekély víz | C171: =kod!C25 -> Carpfriends Ennstal-Austria | D171: 29.575 | E171: 4 | F171: 7.39375 | G171: =MAX(J171:BA171) -> 14.2 | I171: nyurgaponty | J171: 5.75 | K171: 1.075 | L171: 14.2 | M171: 8.55
A172: C2 | B172: =kod!B25 -> Gát, sekély víz | C172: =kod!C25 -> Carpfriends Ennstal-Austria | D172: 8.1 | E172: 1 | F172: 8.1 | H172: =MAX(J172:AZ172) -> 8.1 | I172: koi ponty | J172: 8.1
A173: C2 | B173: =kod!B25 -> Gát, sekély víz | C173: =kod!C25 -> Carpfriends Ennstal-Austria | D173: 0 | E173: 0 | F173: 0 | G173: =MAX(J173:BA173) -> 0 | I173: amur
A174: C2 | B174: =kod!B25 -> Gát, sekély víz | C174: =kod!C25 -> Carpfriends Ennstal-Austria | D174: 0 | E174: 0 | F174: 0 | G174: =MAX(J174:BA174) -> 0 | I174: fekete amur
A175: C3 | B175: =kod!B26 -> Gát, sekély víz | C175: =kod!C26 -> Carp Team Brasov | D175: =SUM(D176:D181) -> 35.875 | E175: =SUM(E176:E181) -> 5 | F175: 7.175 | G175: =MAX(G176:G181) -> 12.675 | H175: =H179 -> 0 | I175: ÖSSZESEN | J175: =COUNTIFS($J176:$BB181,">9,99",$J176:$BB181,"<20") -> 1 | K175: =COUNTIFS($J176:$BB181,">19,99") -> 0 | L175: =COUNTIFS($J179:$BA179,">4,99",$J179:$BA179,"<9,99") -> 0 | M175: =COUNTIFS($J179:$BB179,">9,99") -> 0
A176: C3 | B176: =kod!B26 -> Gát, sekély víz | C176: =kod!C26 -> Carp Team Brasov | D176: =SUM(J176:AZ176) -> 7.65 | E176: =COUNT(J176:AZ176) -> 1 | F176: 7.65 | G176: =MAX(J176:BA176) -> 7.65 | I176: tükörponty | J176: 7.65
A177: C3 | B177: =kod!B26 -> Gát, sekély víz | C177: =kod!C26 -> Carp Team Brasov | D177: 15.55 | E177: 3 | F177: 5.183333333 | G177: =MAX(J177:BA177) -> 8.8 | I177: tőponty | J177: 8.8 | K177: 4.85 | L177: 1.9
A178: C3 | B178: =kod!B26 -> Gát, sekély víz | C178: =kod!C26 -> Carp Team Brasov | D178: 12.675 | E178: 1 | F178: 12.675 | G178: =MAX(J178:BA178) -> 12.675 | I178: nyurgaponty | J178: 12.675
A179: C3 | B179: =kod!B26 -> Gát, sekély víz | C179: =kod!C26 -> Carp Team Brasov | D179: 0 | E179: 0 | F179: 0 | H179: =MAX(J179:AZ179) -> 0 | I179: koi ponty
A180: C3 | B180: =kod!B26 -> Gát, sekély víz | C180: =kod!C26 -> Carp Team Brasov | D180: 0 | E180: 0 | F180: 0 | G180: =MAX(J180:BA180) -> 0 | I180: amur
A181: C3 | B181: =kod!B26 -> Gát, sekély víz | C181: =kod!C26 -> Carp Team Brasov | D181: 0 | E181: 0 | F181: 0 | G181: =MAX(J181:BA181) -> 0 | I181: fekete amur
A182: C4 | B182: =kod!B27 -> Gát, sekély víz | C182: =kod!C27 -> As La Carp Team | D182: =SUM(D183:D188) -> 16.1 | E182: =SUM(E183:E188) -> 3 | F182: 5.366666667 | G182: =MAX(G183:G188) -> 8 | H182: =H186 -> 0 | I182: ÖSSZESEN | J182: =COUNTIFS($J183:$BB188,">9,99",$J183:$BB188,"<20") -> 0 | K182: =COUNTIFS($J183:$BB188,">19,99") -> 0 | L182: =COUNTIFS($J186:$BA186,">4,99",$J186:$BA186,"<9,99") -> 0 | M182: =COUNTIFS($J186:$BB186,">9,99") -> 0
